Workbook

Sheet Assumptions
A1: Florida Power & Light Company
A2: Docket No. 20210015-EI
A3: SACE's First Set of Interrogatories
A4: Interrogatory No: 1
A5: Attachment No. 1 of 1
A6: Tab 1 of 29
A7: GENERAL ASSUMPTIONS
B9: PROJECT TITLE: | D9: Capital Spend Revenue Requirements
B13: DATES
B14: Model Start Year | D14: 2017
B15: Discount Date | D15: 2020-01-01
B16: Inflation Base Year | D16: 2020
A19: I) | B19: TAX RATES
B20: State Income Tax Rate | E20: 0.055
B21: Federal Income Tax Rate | E21: 0.21
B22: Blended Income Tax Rate | E22: =((1-E20)*E21)+E20 -> 0.25345
A24: II) | B24: COST OF CAPITAL
D27: ASSETS | E27: WTD COST | F27: UNWTD AFTER | G27: WTD AFTER | H27: WTD PRE
B28: SOURCE | C28: WEIGHT | D28: COST | E28: RATE | F28: TAX RATE | G28: TAX RATE | H28: TAX RATE
B29: DEBT | C29: =1-C30 -> 0.404 | D29: 0.041 | E29: =C29*D29 -> 0.016564 | F29: =D29*(1-$E$22) -> 0.03060855 | G29: =E29*(1-$E$22) -> 0.0123658542 | H29: =+E29 -> 0.016564
B30: COMMON | C30: 0.596 | D30: 0.1055 | E30: =C30*D30 -> 0.062878 | F30: =D30 -> 0.1055 | G30: =E30 -> 0.062878 | H30: =+E30/(1-Tax_Rate) -> 0.08422476726
B31: TOTAL | C31: =SUM(C29:C30) -> 1 | G31: =SUM(G29:G30) -> 0.0752438542 | H31: =SUM(H29:H30) -> 0.1007887673
B33: DISCOUNT RATE ("WACC"): | E33: =G31 -> 0.0752438542
A37: III) | B37: PROPERTY TAXES | E37: 0 | F37: <-- Not in use
B38: PROPERTY INSURANCE | E38: 0 | F38: <-- Not in use
A42: IV) | B42: FEDERAL TAX INCENTIVES
C44: 2017 | D44: 2018 | E44: 2019 | F44: 2020 | G44: 2021 | H44: 2022 | I44: 2023 | J44: 2024
B45: ITC | C45: 0.3 | D45: 0.3 | E45: 0.3 | F45: 0.3 | G45: 0.3 | H45: 0.26 | I45: 0.22 | J45: 0.1 | K45: <-- May need adjusting depending on whether panels are purchased when needed or if Safe Harbored
B46: Bonus | C46: 0 | D46: 0 | E46: 0 | F46: 0 | G46: 0 | H46: 0 | I46: 0 | J46: 0 | K46: <-- Not in use
B64: https://www.irs.gov/pub/irs-drop/n-18-59.pdf

Sheet Testimony Sum
A1: Florida Power & Light Company
A2: Docket No. 20210015-EI
A3: SACE's First Set of Interrogatories
A4: Interrogatory No: 1
A5: Attachment No. 1 of 1
A6: Tab 2 of 29
B8: Capital Initiatives ($MM) | D8: 2019 - 2022 | F8: 2019-2023 | J8: Comments
B9: Per Witness Bores Direct Testimony | D9: Capex | E9: Revenue Requirement | F9: Capex | G9: Incremental 2023 Capex | H9: Revenue Requirement | I9: Incremental 2023 Rev. Req. | K9: Check vs. Spoor
B12: Power Delivery
B14: Reliability | D14: =SUM('Earning & Infra Combined'!Q36:T36)+SUM('Earning & Infra Combined'!Q49:T49)+SUM('Earning & Infra Combined'!Q140:T145)+SUM('Earning & Infra Combined'!Q119:T124)+SUM('Earning & Infra Combined'!Q62:T62) -> 5821.091658 | E14: ='Earning & Infra Combined'!AG36+'Earning & Infra Combined'!AG125-'Earning & Infra Combined'!AC125+'Earning & Infra Combined'!AG146-'Earning & Infra Combined'!AC146+'Earning & Infra Combined'!AG49+'Earning & Infra Combined'!AG62 -> 644.8882989 | F14: =SUM('Earning & Infra Combined'!Q36:U36)+SUM('Earning & Infra Combined'!Q49:U49)+SUM('Earning & Infra Combined'!Q140:U145)+SUM('Earning & Infra Combined'!Q119:U124)+SUM('Earning & Infra Combined'!Q62:U62) -> 7226.472517 | G14: =F14-D14 -> 1405.380859 | H14: ='Earning & Infra Combined'!AH36+'Earning & Infra Combined'!AH125-'Earning & Infra Combined'!AC125+'Earning & Infra Combined'!AH146-'Earning & Infra Combined'!AC146+'Earning & Infra Combined'!AH49+'Earning & Infra Combined'!AH62 -> 835.1940604 | I14: =H14-E14 -> 190.3057615 | J14: Includes NFRC, 500 kV, Pensacola UG Modernization | K14: =D70+D71-D14/1000 -> -0.001091657748 | L14: =E70+E71-F14/1000 -> 0.003527483241
B16: Generation Upgrades
B18: Six FPL solar facilities (447 MW) | D18: =SUM('Earning & Infra Combined'!Q76:S76) -> 537.3175483 | E18: =SUM('Earning & Infra Combined'!AG76:AG76) -> 64.93932064 | F18: =SUM('Earning & Infra Combined'!Q76:S76) -> 537.3175483 | G18: =F18-D18 -> 0 | H18: =SUM('Earning & Infra Combined'!AH76:AH76) -> 63.09803115 | I18: =H18-E18 -> -1.841289493
B20: Three Gulf solar projects (224 MW) | D20: =SUM('Earning & Infra Combined'!Q73:T75) -> 310.6603043 | E20: =SUM('Earning & Infra Combined'!AG73:AG75) -> 36.1434649 | F20: =SUM('Earning & Infra Combined'!Q73:U75) -> 310.6603043 | G20: =F20-D20 -> 0 | H20: =SUM('Earning & Infra Combined'!AH73:AH75) -> 35.23544389 | I20: =H20-E20 -> -0.9080210042 | J20: Mason, Blue Springs, Cotton Creek
B22: Ten FPL solar facilities (745 MW) | D22: 0 | E22: 0 | F22: =SUM('Earning & Infra Combined'!Q77:T77) -> 859.5528771 | G22: =F22-D22 -> 859.5528771 | H22: =SUM('Earning & Infra Combined'!AH77:AH77) -> 105.2515812 | I22: =H22 -> 105.2515812
B24: Dania Beach Clean Energy Center Unit 7 | D24: =SUM('Earning & Infra Combined'!P60:T60)+SUM('Earning & Infra Combined'!P177:T177) -> 914.5991604 | E24: ='Earning & Infra Combined'!AG60+'Earning & Infra Combined'!AG177+7.25 -> 80.00003388 | F24: =SUM('Earning & Infra Combined'!P60:T60)+SUM('Earning & Infra Combined'!P177:T177) -> 914.5991604 | G24: =F24-D24 -> 0 | H24: ='Earning & Infra Combined'!AH60+'Earning & Infra Combined'!AH177 -> 120.4175896 | I24: =H24-E24 -> 40.41755568 | J24: 2018-2022 capex spend
B26: Manatee Battery Storage | D26: =SUM('Earning & Infra Combined'!Q92:T92) -> 346.1367854 | E26: ='Earning & Infra Combined'!AG92 -> 67.37591531 | F26: =SUM('Earning & Infra Combined'!Q92:T92) -> 346.1367854 | G26: =F26-D26 -> 0 | H26: ='Earning & Infra Combined'!AH92 -> 63.98169645 | I26: =H26-E26 -> -3.394218858 | J26: Includes Echo and Sunshine batteries
B28: Gulf CTs | D28: =SUM('Earning & Infra Combined'!Q63:T63) -> 430.0078748 | E28: =SUM('Earning & Infra Combined'!AG63:AG63) -> 59.52901278 | F28: =SUM('Earning & Infra Combined'!Q63:T63) -> 430.0078748 | G28: =F28-D28 -> 0 | H28: =SUM('Earning & Infra Combined'!AH63:AH63) -> 57.79541424 | I28: =H28-E28 -> -1.733598544
B30: Kai Upgrades | D30: =112692.03705748/1000 -> 112.6920371 | E30: 14.41872309 | F30: =112692.03705748/1000 -> 112.6920371 | G30: =F30-D30 -> 0 | H30: 13.50953625 | I30: =H30-E30 -> -0.9091868401
B32: Generation Upgrades | D32: =SUM('Earning & Infra Combined'!Q19:T22)+SUM('Earning & Infra Combined'!Q61:T61) -> 404.8342116 | E32: =SUM('Earning & Infra Combined'!AG23)+SUM('Earning & Infra Combined'!AG61) -> 149.5825193 | F32: =SUM('Earning & Infra Combined'!Q19:T22)+SUM('Earning & Infra Combined'!Q61:T61) -> 404.8342116 | G32: =F32-D32 -> 0 | H32: =SUM('Earning & Infra Combined'!AH23)+SUM('Earning & Infra Combined'!AH61) -> 144.7244704 | I32: =H32-E32 -> -4.858048933 | J32: HRSG Boiler; .05 CT Parts; 3SAR-DLN2.6+ Labor/Parts; 3SAR Hot Days Projects, Crist Pipeline
B34: Combined Cycle Fleet Maintenance | D34: 0 | E34: 0 | F34: ='Earning & Infra Combined'!U162 -> 515.731664 | G34: =F34-D34 -> 515.731664 | H34: ='Earning & Infra Combined'!AH162-'Earning & Infra Combined'!AG162 -> 77.15249418 | I34: =H34-E34 -> 77.15249418
B36: Total Generation Upgrades | D36: =SUM(D18:D34) -> 3056.247922 | E36: =SUM(E18:E34) -> 471.9889899 | F36: 4431.532463 | G36: 1375.284541 | H36: 681.1662572 | I36: 209.1772673
B38: Growth | D38: =SUM('Earning & Infra Combined'!Q37:T45)+SUM('Earning & Infra Combined'!Q110:T116) -> 4514.337129 | E38: =SUM('Earning & Infra Combined'!AG37:AG45)+SUM('Earning & Infra Combined'!AG110:AG116)-SUM('Earning & Infra Combined'!AC110:AC116) -> 525.5995002 | F38: =SUM('Earning & Infra Combined'!Q37:U45)+SUM('Earning & Infra Combined'!Q110:U116) -> 5859.600635 | G38: =F38-D38 -> 1345.263505 | H38: =SUM('Earning & Infra Combined'!AH37:AH45)+SUM('Earning & Infra Combined'!AH110:AH116)-SUM('Earning & Infra Combined'!AC110:AC116) -> 675.5201224 | I38: =H38-E38 -> 149.9206222 | K38: =D69-D38/1000 -> 0.005662870872 | L38: =E69-F38/1000 -> 0.01039936538
B40: Storm Hardening | D40: =SUM('Earning & Infra Combined'!Q127:T133) -> 2096.822247 | E40: =SUM('Earning & Infra Combined'!AG127:AG133)-SUM('Earning & Infra Combined'!AC127:AC133) -> 269.4436668 | F40: =SUM('Earning & Infra Combined'!Q127:U133) -> 2241.997475 | G40: =F40-D40 -> 145.1752283 | H40: =SUM('Earning & Infra Combined'!AH127:AH133)-SUM('Earning & Infra Combined'!AC127:AC133) -> 279.0727342 | I40: =H40-E40 -> 9.629067328 | J40: Base only | K40: =D68-D40/1000 -> 0.003177752946 | L40: =E68-F40/1000 -> 0.008002524599
B42: Regulatory Compliance
B44: NERC & FERC Reliability | D44: =SUM('Earning & Infra Combined'!Q135:T137) -> 272.5280254 | E44: =SUM('Earning & Infra Combined'!AG135:AG137)-SUM('Earning & Infra Combined'!AC135:AC137) -> 30.85431927 | F44: =SUM('Earning & Infra Combined'!Q135:U137) -> 345.4769071 | G44: =F44-D44 -> 72.94888174 | H44: =SUM('Earning & Infra Combined'!AH135:AH137)-SUM('Earning & Infra Combined'!AC135:AC137) -> 39.32206814 | I44: =H44-E44 -> 8.467748872 | J44: PD Only | K44: =D72-D44/1000 -> -0.002528025396 | L44: =E72-F44/1000 -> -0.005476907137
B46: Cyber Security | D46: 86.297 | E46: 15.75722953 | F46: =109130/1000 -> 109.13 | G46: =F46-D46 -> 22.833 | H46: =20123.2054331026/1000 -> 20.12320543 | I46: =H46-E46 -> 4.365975905
B48: NRC Requirements - TP License Renewal | D48: 57.06579091 | E48: =7158.69912082495/1000 -> 7.158699121 | F48: 57.29500541 | G48: =F48-D48 -> 0.2292145023 | H48: 8.386405626 | I48: =H48-E48 -> 1.227706505
B50: Total Regulatory Compliance | D50: =SUM(D44:D48) -> 415.8908163 | E50: 53.77024792 | F50: 511.9019126 | G50: 96.01109624 | H50: 67.8316792 | I50: =SUM(I44:I48) -> 14.06143128
B52: Total Capex Spend | D52: =D14+D36+D40+D44+D38 -> 15761.02698 | E52: =E14+E36+E40+E50+E38 -> 1965.690704 | F52: =F14+F36+F40+F44+F38 -> 20105.08 | G52: =F52-D52 -> 4344.053016 | H52: =H14+H36+H40+H50+H38 -> 2538.784853 | I52: =I14+I36+I40+I50+I38 -> 573.0941497
B55: Capital Initiatives Revenue Requirement per SRB-7 & SRB-10 | E55: 1967.751068 | I55: 616.0792847 | J55: Excludes SoBRA, OCEC, Solar Together, IT Accelerate
B57: Other | E57: =E55-E52 -> 2.060363724 | I57: =I52-I55 -> -42.985135
B66: Per Witness Spoor's Testimony | D66: 2019-2022 | E66: 2019-2023
B68: FPSC Storm Hardening/SPP | D68: 2.1 | E68: 2.25
B69: Growth | D69: 4.52 | E69: 5.87
B70: Reliability/Grid Modernization | D70: 4.57 | E70: 5.63
B71: Grid Servicing/Support | D71: 1.25 | E71: 1.6
B72: Other Regulatory Commitments | D72: 0.27 | E72: 0.34
B73: Total (Base Only, Excludes SPPCRC) | D73: =SUM(D68:D72) -> 12.71 | E73: =SUM(E68:E72) -> 15.69

Sheet Earning & Infra Combined
A1: Florida Power & Light Company
A2: Docket No. 20210015-EI
A3: SACE's First Set of Interrogatories
A4: Interrogatory No: 1
A5: Attachment No. 1 of 1
A6: Tab 3 of 29
A8: FPL Finance Inputs | K8: Source Data | X8: Revenue Requirements | AM8: Revenue Requirements | BD8: Revenue Requirements
E9: Default Construction Start Date | H9: ='Earning Summary w. AFUDC'!$I$9 -> 2020-01-01
B10: Total Revenue Requirements | C10: =IF($Z$229=0,"Ok","Variance") -> Ok | E10: Default In-Service Date | H10: ='Earning Summary w. AFUDC'!$I$10 -> 2020-07-01
B11: CPVRR | C11: =IF($Y$229=0,"Ok","Variance") -> Ok | E11: Default Depreciation Rate | H11: ='Earning Summary w. AFUDC'!$I$11 -> 0.035
B12: CPVRR (Juris Sep Factor Applied) | C12: =IF($X$229=0,"Ok","Variance") -> Ok | E12: Default Juris. Sep. Factor | H12: ='Earning Summary w. AFUDC'!$I$12 -> 0.98 | K12: Combined Capital Expenditures - Earning Only | O12: A01 Base and A18 New Nuclear only
K13: Excluding Nuclear Fuels | Y13: Discount Factor | AB13: =RevReq!O$11 -> 1.198976256 | AC13: =RevReq!P$11 -> 1.115073805 | AD13: =RevReq!Q$11 -> 1.037042714 | AE13: =RevReq!R$11 -> 0.9643762704 | AF13: =RevReq!S$11 -> 0.8969798909 | AG13: =RevReq!T$11 -> 0.8342106652 | AH13: =RevReq!U$11 -> 0.7758339301 | AI13: =RevReq!V$11 -> 0.7213989064 | AJ13: =RevReq!W$11 -> 0.6709165587 | AK13: =RevReq!X$11 -> 0.6239668853 | AL13: =RevReq!Y$11 -> 0.5803026754 | AM13: =RevReq!Z$11 -> 0.5395867584 | AN13: =RevReq!AA$11 -> 0.5018273355 | AO13: =RevReq!AB$11 -> 0.466710257 | AP13: =RevReq!AC$11 -> 0.4340506158 | AQ13: =RevReq!AD$11 -> 0.4035962174 | AR13: =RevReq!AE$11 -> 0.3753531962 | AS13: =RevReq!AF$11 -> 0.3490865768 | AT13: =RevReq!AG$11 -> 0.3246580535 | AU13: =RevReq!AH$11 -> 0.301878992 | AV13: =RevReq!AI$11 -> 0.2807539804 | AW13: =RevReq!AJ$11 -> 0.2611072635 | AX13: =RevReq!AK$11 -> 0.2428353927 | AY13: =RevReq!AL$11 -> 0.2257972743 | AZ13: =RevReq!AM$11 -> 0.2099963402 | BA13: =RevReq!AN$11 -> 0.1953011305 | BB13: =RevReq!AO$11 -> 0.1816342681 | BC13: =RevReq!AP$11 -> 0.168890219 | BD13: =RevReq!AQ$11 -> 0.1570715502 | BE13: =RevReq!AR$11 -> 0.146079933 | BF13: =RevReq!AS$11 -> 0.1358574917 | BG13: =RevReq!AT$11 -> 0.1263252896 | BH13: =RevReq!AU$11 -> 0.1174852468 | BI13: =RevReq!AV$11 -> 0.1092638162 | BJ13: =RevReq!AW$11 -> 0.1016177082 | BK13: =RevReq!AX$11 -> 0.09448788033 | BL13: =RevReq!AY$11 -> 0.0878757688 | BM13: =RevReq!AZ$11 -> 0.08172636231 | BN13: =RevReq!BA$11 -> 0.0760072815 | BO13: =RevReq!BB$11 -> 0.07067436422 | BP13: =RevReq!BC$11 -> 0.06572868466 | BQ13: =RevReq!BD$11 -> 0.06112909588 | BR13: =RevReq!BE$11 -> 0.05685137901 | BS13: =RevReq!BF$11 -> 0.05286250195 | BT13: =RevReq!BG$11 -> 0.04916326817 | BU13: =RevReq!BH$11 -> 0.04572290088 | BV13: =RevReq!BI$11 -> 0.04252328502 | BW13: =RevReq!BJ$11 -> 0.03953971349 | BX13: =RevReq!BK$11 -> 0.03677278724 | BY13: =RevReq!BL$11 -> 0.0341994861 | BZ13: =RevReq!BM$11 -> 0.03180626047
K14: 2017 - 2023 | O14: Capital Expenditures
K15: $ Millions
O16: Actual | R16: Actual/R10 | S16: Forecast N11 | Y16: Period | AB16: =RevReq!O$8 -> 0 | AC16: =RevReq!P$8 -> 1 | AD16: =RevReq!Q$8 -> 2 | AE16: =RevReq!R$8 -> 3 | AF16: =RevReq!S$8 -> 4 | AG16: =RevReq!T$8 -> 5 | AH16: =RevReq!U$8 -> 6 | AI16: =RevReq!V$8 -> 7 | AJ16: =RevReq!W$8 -> 8 | AK16: =RevReq!X$8 -> 9 | AL16: =RevReq!Y$8 -> 10 | AM16: =RevReq!Z$8 -> 11 | AN16: =RevReq!AA$8 -> 12 | AO16: =RevReq!AB$8 -> 13 | AP16: =RevReq!AC$8 -> 14 | AQ16: =RevReq!AD$8 -> 15 | AR16: =RevReq!AE$8 -> 16 | AS16: =RevReq!AF$8 -> 17 | AT16: =RevReq!AG$8 -> 18 | AU16: =RevReq!AH$8 -> 19 | AV16: =RevReq!AI$8 -> 20 | AW16: =RevReq!AJ$8 -> 21 | AX16: =RevReq!AK$8 -> 22 | AY16: =RevReq!AL$8 -> 23 | AZ16: =RevReq!AM$8 -> 24 | BA16: =RevReq!AN$8 -> 25 | BB16: =RevReq!AO$8 -> 26 | BC16: =RevReq!AP$8 -> 27 | BD16: =RevReq!AQ$8 -> 28 | BE16: =RevReq!AR$8 -> 29 | BF16: =RevReq!AS$8 -> 30 | BG16: =RevReq!AT$8 -> 31 | BH16: =RevReq!AU$8 -> 32 | BI16: =RevReq!AV$8 -> 33 | BJ16: =RevReq!AW$8 -> 34 | BK16: =RevReq!AX$8 -> 35 | BL16: =RevReq!AY$8 -> 36 | BM16: =RevReq!AZ$8 -> 37 | BN16: =RevReq!BA$8 -> 38 | BO16: =RevReq!BB$8 -> 39 | BP16: =RevReq!BC$8 -> 40 | BQ16: =RevReq!BD$8 -> 41 | BR16: =RevReq!BE$8 -> 42 | BS16: =RevReq!BF$8 -> 43 | BT16: =RevReq!BG$8 -> 44 | BU16: =RevReq!BH$8 -> 45 | BV16: =RevReq!BI$8 -> 46 | BW16: =RevReq!BJ$8 -> 47 | BX16: =RevReq!BK$8 -> 48 | BY16: =RevReq!BL$8 -> 49 | BZ16: =RevReq!BM$8 -> 50
A17: Project Identifier | B17: Business Unit | C17: Project Category | D17: Construction Start Year | E17: Construction Start Date | F17: In-Service Date | G17: Depreciation Rate | H17: Jurisdictional Separation Factor | L17: In-Service Date | M17: Depreciation Rate | N17: Jurisdictional Separation Factor | O17: 2017 | P17: 2018 | Q17: 2019 | R17: 2020 | S17: 2021 | T17: 2022 | U17: 2023 | Y17: Year | AB17: =RevReq!O$9 -> 2017 | AC17: =RevReq!P$9 -> 2018 | AD17: =RevReq!Q$9 -> 2019 | AE17: =RevReq!R$9 -> 2020 | AF17: =RevReq!S$9 -> 2021 | AG17: =RevReq!T$9 -> 2022 | AH17: =RevReq!U$9 -> 2023 | AI17: =RevReq!V$9 -> 2024 | AJ17: =RevReq!W$9 -> 2025 | AK17: =RevReq!X$9 -> 2026 | AL17: =RevReq!Y$9 -> 2027 | AM17: =RevReq!Z$9 -> 2028 | AN17: =RevReq!AA$9 -> 2029 | AO17: =RevReq!AB$9 -> 2030 | AP17: =RevReq!AC$9 -> 2031 | AQ17: =RevReq!AD$9 -> 2032 | AR17: =RevReq!AE$9 -> 2033 | AS17: =RevReq!AF$9 -> 2034 | AT17: =RevReq!AG$9 -> 2035 | AU17: =RevReq!AH$9 -> 2036 | AV17: =RevReq!AI$9 -> 2037 | AW17: =RevReq!AJ$9 -> 2038 | AX17: =RevReq!AK$9 -> 2039 | AY17: =RevReq!AL$9 -> 2040 | AZ17: =RevReq!AM$9 -> 2041 | BA17: =RevReq!AN$9 -> 2042 | BB17: =RevReq!AO$9 -> 2043 | BC17: =RevReq!AP$9 -> 2044 | BD17: =RevReq!AQ$9 -> 2045 | BE17: =RevReq!AR$9 -> 2046 | BF17: =RevReq!AS$9 -> 2047 | BG17: =RevReq!AT$9 -> 2048 | BH17: =RevReq!AU$9 -> 2049 | BI17: =RevReq!AV$9 -> 2050 | BJ17: =RevReq!AW$9 -> 2051 | BK17: =RevReq!AX$9 -> 2052 | BL17: =RevReq!AY$9 -> 2053 | BM17: =RevReq!AZ$9 -> 2054 | BN17: =RevReq!BA$9 -> 2055 | BO17: =RevReq!BB$9 -> 2056 | BP17: =RevReq!BC$9 -> 2057 | BQ17: =RevReq!BD$9 -> 2058 | BR17: =RevReq!BE$9 -> 2059 | BS17: =RevReq!BF$9 -> 2060 | BT17: =RevReq!BG$9 -> 2061 | BU17: =RevReq!BH$9 -> 2062 | BV17: =RevReq!BI$9 -> 2063 | BW17: =RevReq!BJ$9 -> 2064 | BX17: =RevReq!BK$9 -> 2065 | BY17: =RevReq!BL$9 -> 2066 | BZ17: =RevReq!BM$9 -> 2067
K18: Power Generation | X18: Juris. Sep. Factor CPVRR | Y18: CPVRR | Z18: Total
A19: 1 | B19: ='Earning Summary w. AFUDC'!B19 -> Power Generation | C19: Generation Upgrades | D19: ='Earning Summary w. AFUDC'!D19 -> 2019 | E19: ='Earning Summary w. AFUDC'!E19 -> 2019-01-01 | F19: ='Earning Summary w. AFUDC'!G19 -> 2020-12-01 | G19: ='Earning Summary w. AFUDC'!H19 -> 0.04 | H19: ='Earning Summary w. AFUDC'!I19 -> 0.955404 | K19: ='Earning Summary w. AFUDC'!L19 -> HRSG Boiler | L19: ='Earning Summary w. AFUDC'!M19 -> 202012 | M19: ='Earning Summary w. AFUDC'!N19 -> 0.04 | N19: ='Earning Summary w. AFUDC'!O19 -> 0.955404 | O19: ='Earning Summary w. AFUDC'!P19 -> 0 | P19: ='Earning Summary w. AFUDC'!Q19 -> 0 | Q19: ='Earning Summary w. AFUDC'!R19 -> 22.85257076 | R19: ='Earning Summary w. AFUDC'!S19 -> 17.4461173 | S19: ='Earning Summary w. AFUDC'!T19 -> 0 | T19: ='Earning Summary w. AFUDC'!U19 -> 0 | U19: ='Earning Summary w. AFUDC'!V19 -> 0 | X19: =Y19*H19 -> 43.55691128 | Y19: =SUMPRODUCT($AB$13:$BZ$13,$AB19:$BZ19) -> 45.59004492 | Z19: =SUM(AB19:BZ19) -> 91.06937671 | AB19: =INDEX(RevReq!$O$16:$BM$140,MATCH('Earning & Infra Combined'!$A19,RevReq!$C$16:$C$140,0),AB$16+1) -> 0 | AC19: =INDEX(RevReq!$O$16:$BM$140,MATCH('Earning & Infra Combined'!$A19,RevReq!$C$16:$C$140,0),AC$16+1) -> 0 | AD19: =INDEX(RevReq!$O$16:$BM$140,MATCH('Earning & Infra Combined'!$A19,RevReq!$C$16:$C$140,0),AD$16+1) -> 0 | AE19: =INDEX(RevReq!$O$16:$BM$140,MATCH('Earning & Infra Combined'!$A19,RevReq!$C$16:$C$140,0),AE$16+1) -> 0.4660307927 | AF19: =INDEX(RevReq!$O$16:$BM$140,MATCH('Earning & Infra Combined'!$A19,RevReq!$C$16:$C$140,0),AF$16+1) -> 5.578830663 | AG19: =INDEX(RevReq!$O$16:$BM$140,MATCH('Earning & Infra Combined'!$A19,RevReq!$C$16:$C$140,0),AG$16+1) -> 5.416364459 | AH19: =INDEX(RevReq!$O$16:$BM$140,MATCH('Earning & Infra Combined'!$A19,RevReq!$C$16:$C$140,0),AH$16+1) -> 5.253898255 | AI19: =INDEX(RevReq!$O$16:$BM$140,MATCH('Earning & Infra Combined'!$A19,RevReq!$C$16:$C$140,0),AI$16+1) -> 5.091432051 | AJ19: =INDEX(RevReq!$O$16:$BM$140,MATCH('Earning & Infra Combined'!$A19,RevReq!$C$16:$C$140,0),AJ$16+1) -> 4.928965848 | AK19: =INDEX(RevReq!$O$16:$BM$140,MATCH('Earning & Infra Combined'!$A19,RevReq!$C$16:$C$140,0),AK$16+1) -> 4.766499644 | AL19: =INDEX(RevReq!$O$16:$BM$140,MATCH('Earning & Infra Combined'!$A19,RevReq!$C$16:$C$140,0),AL$16+1) -> 4.60403344 | AM19: =INDEX(RevReq!$O$16:$BM$140,MATCH('Earning & Infra Combined'!$A19,RevReq!$C$16:$C$140,0),AM$16+1) -> 4.441567237 | AN19: =INDEX(RevReq!$O$16:$BM$140,MATCH('Earning & Infra Combined'!$A19,RevReq!$C$16:$C$140,0),AN$16+1) -> 4.279101033 | AO19: =INDEX(RevReq!$O$16:$BM$140,MATCH('Earning & Infra Combined'!$A19,RevReq!$C$16:$C$140,0),AO$16+1) -> 4.116634829 | AP19: =INDEX(RevReq!$O$16:$BM$140,MATCH('Earning & Infra Combined'!$A19,RevReq!$C$16:$C$140,0),AP$16+1) -> 3.954168626 | AQ19: =INDEX(RevReq!$O$16:$BM$140,MATCH('Earning & Infra Combined'!$A19,RevReq!$C$16:$C$140,0),AQ$16+1) -> 3.791702422 | AR19: =INDEX(RevReq!$O$16:$BM$140,MATCH('Earning & Infra Combined'!$A19,RevReq!$C$16:$C$140,0),AR$16+1) -> 3.629236218 | AS19: =INDEX(RevReq!$O$16:$BM$140,MATCH('Earning & Infra Combined'!$A19,RevReq!$C$16:$C$140,0),AS$16+1) -> 3.466770015 | AT19: =INDEX(RevReq!$O$16:$BM$140,MATCH('Earning & Infra Combined'!$A19,RevReq!$C$16:$C$140,0),AT$16+1) -> 3.304303811 | AU19: =INDEX(RevReq!$O$16:$BM$140,MATCH('Earning & Infra Combined'!$A19,RevReq!$C$16:$C$140,0),AU$16+1) -> 3.141837607 | AV19: =INDEX(RevReq!$O$16:$BM$140,MATCH('Earning & Infra Combined'!$A19,RevReq!$C$16:$C$140,0),AV$16+1) -> 2.979371404 | AW19: =INDEX(RevReq!$O$16:$BM$140,MATCH('Earning & Infra Combined'!$A19,RevReq!$C$16:$C$140,0),AW$16+1) -> 2.8169052 | AX19: =INDEX(RevReq!$O$16:$BM$140,MATCH('Earning & Infra Combined'!$A19,RevReq!$C$16:$C$140,0),AX$16+1) -> 2.654438996 | AY19: =INDEX(RevReq!$O$16:$BM$140,MATCH('Earning & Infra Combined'!$A19,RevReq!$C$16:$C$140,0),AY$16+1) -> 2.491972792 | AZ19: =INDEX(RevReq!$O$16:$BM$140,MATCH('Earning & Infra Combined'!$A19,RevReq!$C$16:$C$140,0),AZ$16+1) -> 2.329506589 | BA19: =INDEX(RevReq!$O$16:$BM$140,MATCH('Earning & Infra Combined'!$A19,RevReq!$C$16:$C$140,0),BA$16+1) -> 2.167040385 | BB19: =INDEX(RevReq!$O$16:$BM$140,MATCH('Earning & Infra Combined'!$A19,RevReq!$C$16:$C$140,0),BB$16+1) -> 2.004574181 | BC19: =INDEX(RevReq!$O$16:$BM$140,MATCH('Earning & Infra Combined'!$A19,RevReq!$C$16:$C$140,0),BC$16+1) -> 1.842107978 | BD19: =INDEX(RevReq!$O$16:$BM$140,MATCH('Earning & Infra Combined'!$A19,RevReq!$C$16:$C$140,0),BD$16+1) -> 1.552082239 | BE19: =INDEX(RevReq!$O$16:$BM$140,MATCH('Earning & Infra Combined'!$A19,RevReq!$C$16:$C$140,0),BE$16+1) -> 1.432294528e-15 | BF19: =INDEX(RevReq!$O$16:$BM$140,MATCH('Earning & Infra Combined'!$A19,RevReq!$C$16:$C$140,0),BF$16+1) -> 1.432294528e-15 | BG19: =INDEX(RevReq!$O$16:$BM$140,MATCH('Earning & Infra Combined'!$A19,RevReq!$C$16:$C$140,0),BG$16+1) -> 1.432294528e-15 | BH19: =INDEX(RevReq!$O$16:$BM$140,MATCH('Earning & Infra Combined'!$A19,RevReq!$C$16:$C$140,0),BH$16+1) -> 1.432294528e-15 | BI19: =INDEX(RevReq!$O$16:$BM$140,MATCH('Earning & Infra Combined'!$A19,RevReq!$C$16:$C$140,0),BI$16+1) -> 1.432294528e-15 | BJ19: =INDEX(RevReq!$O$16:$BM$140,MATCH('Earning & Infra Combined'!$A19,RevReq!$C$16:$C$140,0),BJ$16+1) -> 1.432294528e-15 | BK19: =INDEX(RevReq!$O$16:$BM$140,MATCH('Earning & Infra Combined'!$A19,RevReq!$C$16:$C$140,0),BK$16+1) -> 1.432294528e-15 | BL19: =INDEX(RevReq!$O$16:$BM$140,MATCH('Earning & Infra Combined'!$A19,RevReq!$C$16:$C$140,0),BL$16+1) -> 1.432294528e-15 | BM19: =INDEX(RevReq!$O$16:$BM$140,MATCH('Earning & Infra Combined'!$A19,RevReq!$C$16:$C$140,0),BM$16+1) -> 1.432294528e-15 | BN19: =INDEX(RevReq!$O$16:$BM$140,MATCH('Earning & Infra Combined'!$A19,RevReq!$C$16:$C$140,0),BN$16+1) -> 1.432294528e-15 | BO19: =INDEX(RevReq!$O$16:$BM$140,MATCH('Earning & Infra Combined'!$A19,RevReq!$C$16:$C$140,0),BO$16+1) -> 1.432294528e-15 | BP19: =INDEX(RevReq!$O$16:$BM$140,MATCH('Earning & Infra Combined'!$A19,RevReq!$C$16:$C$140,0),BP$16+1) -> 1.432294528e-15 | BQ19: =INDEX(RevReq!$O$16:$BM$140,MATCH('Earning & Infra Combined'!$A19,RevReq!$C$16:$C$140,0),BQ$16+1) -> 1.432294528e-15 | BR19: =INDEX(RevReq!$O$16:$BM$140,MATCH('Earning & Infra Combined'!$A19,RevReq!$C$16:$C$140,0),BR$16+1) -> 1.432294528e-15 | BS19: =INDEX(RevReq!$O$16:$BM$140,MATCH('Earning & Infra Combined'!$A19,RevReq!$C$16:$C$140,0),BS$16+1) -> 1.432294528e-15 | BT19: =INDEX(RevReq!$O$16:$BM$140,MATCH('Earning & Infra Combined'!$A19,RevReq!$C$16:$C$140,0),BT$16+1) -> 1.432294528e-15 | BU19: =INDEX(RevReq!$O$16:$BM$140,MATCH('Earning & Infra Combined'!$A19,RevReq!$C$16:$C$140,0),BU$16+1) -> 1.432294528e-15 | BV19: =INDEX(RevReq!$O$16:$BM$140,MATCH('Earning & Infra Combined'!$A19,RevReq!$C$16:$C$140,0),BV$16+1) -> 1.432294528e-15 | BW19: =INDEX(RevReq!$O$16:$BM$140,MATCH('Earning & Infra Combined'!$A19,RevReq!$C$16:$C$140,0),BW$16+1) -> 1.432294528e-15 | BX19: =INDEX(RevReq!$O$16:$BM$140,MATCH('Earning & Infra Combined'!$A19,RevReq!$C$16:$C$140,0),BX$16+1) -> 1.432294528e-15 | BY19: =INDEX(RevReq!$O$16:$BM$140,MATCH('Earning & Infra Combined'!$A19,RevReq!$C$16:$C$140,0),BY$16+1) -> 1.432294528e-15 | BZ19: =INDEX(RevReq!$O$16:$BM$140,MATCH('Earning & Infra Combined'!$A19,RevReq!$C$16:$C$140,0),BZ$16+1) -> 1.432294528e-15
A20: =MAX($A$18:A19)+1 -> 2 | B20: ='Earning Summary w. AFUDC'!B20 -> Power Generation | C20: Generation Upgrades | D20: ='Earning Summary w. AFUDC'!D20 -> 2017 | E20: ='Earning Summary w. AFUDC'!E20 -> 2017-01-01 | F20: ='Earning Summary w. AFUDC'!G20 -> 2020-05-01 | G20: ='Earning Summary w. AFUDC'!H20 -> 0.043 | H20: ='Earning Summary w. AFUDC'!I20 -> 0.955404 | K20: ='Earning Summary w. AFUDC'!L20 -> .05 CT Parts | L20: ='Earning Summary w. AFUDC'!M20 -> 202005 | M20: ='Earning Summary w. AFUDC'!N20 -> 0.043 | N20: ='Earning Summary w. AFUDC'!O20 -> 0.955404 | O20: ='Earning Summary w. AFUDC'!P20 -> 65.00835892 | P20: ='Earning Summary w. AFUDC'!Q20 -> 24.95200941 | Q20: ='Earning Summary w. AFUDC'!R20 -> 3.22585827 | R20: ='Earning Summary w. AFUDC'!S20 -> -1.0145e-07 | S20: ='Earning Summary w. AFUDC'!T20 -> 0 | T20: ='Earning Summary w. AFUDC'!U20 -> 0.2513858545 | U20: ='Earning Summary w. AFUDC'!V20 -> 0 | X20: =Y20*H20 -> 104.6298902 | Y20: =SUMPRODUCT($AB$13:$BZ$13,$AB20:$BZ20) -> 109.5137661 | Z20: =SUM(AB20:BZ20) -> 202.9469969 | AB20: =INDEX(RevReq!$O$16:$BM$140,MATCH('Earning & Infra Combined'!$A20,RevReq!$C$16:$C$140,0),AB$16+1) -> 0 | AC20: =INDEX(RevReq!$O$16:$BM$140,MATCH('Earning & Infra Combined'!$A20,RevReq!$C$16:$C$140,0),AC$16+1) -> 0 | AD20: =INDEX(RevReq!$O$16:$BM$140,MATCH('Earning & Infra Combined'!$A20,RevReq!$C$16:$C$140,0),AD$16+1) -> 0 | AE20: =INDEX(RevReq!$O$16:$BM$140,MATCH('Earning & Infra Combined'!$A20,RevReq!$C$16:$C$140,0),AE$16+1) -> 8.798134633 | AF20: =INDEX(RevReq!$O$16:$BM$140,MATCH('Earning & Infra Combined'!$A20,RevReq!$C$16:$C$140,0),AF$16+1) -> 12.92796104 | AG20: =INDEX(RevReq!$O$16:$BM$140,MATCH('Earning & Infra Combined'!$A20,RevReq!$C$16:$C$140,0),AG$16+1) -> 12.54783414 | AH20: =INDEX(RevReq!$O$16:$BM$140,MATCH('Earning & Infra Combined'!$A20,RevReq!$C$16:$C$140,0),AH$16+1) -> 12.15511369 | AI20: =INDEX(RevReq!$O$16:$BM$140,MATCH('Earning & Infra Combined'!$A20,RevReq!$C$16:$C$140,0),AI$16+1) -> 11.75016283 | AJ20: =INDEX(RevReq!$O$16:$BM$140,MATCH('Earning & Infra Combined'!$A20,RevReq!$C$16:$C$140,0),AJ$16+1) -> 11.34521198 | AK20: =INDEX(RevReq!$O$16:$BM$140,MATCH('Earning & Infra Combined'!$A20,RevReq!$C$16:$C$140,0),AK$16+1) -> 10.94026112 | AL20: =INDEX(RevReq!$O$16:$BM$140,MATCH('Earning & Infra Combined'!$A20,RevReq!$C$16:$C$140,0),AL$16+1) -> 10.53531027 | AM20: =INDEX(RevReq!$O$16:$BM$140,MATCH('Earning & Infra Combined'!$A20,RevReq!$C$16:$C$140,0),AM$16+1) -> 10.13035941 | AN20: =INDEX(RevReq!$O$16:$BM$140,MATCH('Earning & Infra Combined'!$A20,RevReq!$C$16:$C$140,0),AN$16+1) -> 9.725408555 | AO20: =INDEX(RevReq!$O$16:$BM$140,MATCH('Earning & Infra Combined'!$A20,RevReq!$C$16:$C$140,0),AO$16+1) -> 9.320457699 | AP20: =INDEX(RevReq!$O$16:$BM$140,MATCH('Earning & Infra Combined'!$A20,RevReq!$C$16:$C$140,0),AP$16+1) -> 8.915506843 | AQ20: =INDEX(RevReq!$O$16:$BM$140,MATCH('Earning & Infra Combined'!$A20,RevReq!$C$16:$C$140,0),AQ$16+1) -> 8.510555987 | AR20: =INDEX(RevReq!$O$16:$BM$140,MATCH('Earning & Infra Combined'!$A20,RevReq!$C$16:$C$140,0),AR$16+1) -> 8.105605131 | AS20: =INDEX(RevReq!$O$16:$BM$140,MATCH('Earning & Infra Combined'!$A20,RevReq!$C$16:$C$140,0),AS$16+1) -> 7.700654275 | AT20: =INDEX(RevReq!$O$16:$BM$140,MATCH('Earning & Infra Combined'!$A20,RevReq!$C$16:$C$140,0),AT$16+1) -> 7.295703419 | AU20: =INDEX(RevReq!$O$16:$BM$140,MATCH('Earning & Infra Combined'!$A20,RevReq!$C$16:$C$140,0),AU$16+1) -> 6.890752563 | AV20: =INDEX(RevReq!$O$16:$BM$140,MATCH('Earning & Infra Combined'!$A20,RevReq!$C$16:$C$140,0),AV$16+1) -> 6.485801708 | AW20: =INDEX(RevReq!$O$16:$BM$140,MATCH('Earning & Infra Combined'!$A20,RevReq!$C$16:$C$140,0),AW$16+1) -> 6.080850852 | AX20: =INDEX(RevReq!$O$16:$BM$140,MATCH('Earning & Infra Combined'!$A20,RevReq!$C$16:$C$140,0),AX$16+1) -> 5.675899996 | AY20: =INDEX(RevReq!$O$16:$BM$140,MATCH('Earning & Infra Combined'!$A20,RevReq!$C$16:$C$140,0),AY$16+1) -> 5.27094914 | AZ20: =INDEX(RevReq!$O$16:$BM$140,MATCH('Earning & Infra Combined'!$A20,RevReq!$C$16:$C$140,0),AZ$16+1) -> 4.865998284 | BA20: =INDEX(RevReq!$O$16:$BM$140,MATCH('Earning & Infra Combined'!$A20,RevReq!$C$16:$C$140,0),BA$16+1) -> 4.461047428 | BB20: =INDEX(RevReq!$O$16:$BM$140,MATCH('Earning & Infra Combined'!$A20,RevReq!$C$16:$C$140,0),BB$16+1) -> 2.492770341 | BC20: =INDEX(RevReq!$O$16:$BM$140,MATCH('Earning & Infra Combined'!$A20,RevReq!$C$16:$C$140,0),BC$16+1) -> 0.01199620184 | BD20: =INDEX(RevReq!$O$16:$BM$140,MATCH('Earning & Infra Combined'!$A20,RevReq!$C$16:$C$140,0),BD$16+1) -> 0.006689375339 | BE20: =INDEX(RevReq!$O$16:$BM$140,MATCH('Earning & Infra Combined'!$A20,RevReq!$C$16:$C$140,0),BE$16+1) -> 8.593767171e-15 | BF20: =INDEX(RevReq!$O$16:$BM$140,MATCH('Earning & Infra Combined'!$A20,RevReq!$C$16:$C$140,0),BF$16+1) -> 8.593767171e-15 | BG20: =INDEX(RevReq!$O$16:$BM$140,MATCH('Earning & Infra Combined'!$A20,RevReq!$C$16:$C$140,0),BG$16+1) -> 8.593767171e-15 | BH20: =INDEX(RevReq!$O$16:$BM$140,MATCH('Earning & Infra Combined'!$A20,RevReq!$C$16:$C$140,0),BH$16+1) -> 8.593767171e-15 | BI20: =INDEX(RevReq!$O$16:$BM$140,MATCH('Earning & Infra Combined'!$A20,RevReq!$C$16:$C$140,0),BI$16+1) -> 8.593767171e-15 | BJ20: =INDEX(RevReq!$O$16:$BM$140,MATCH('Earning & Infra Combined'!$A20,RevReq!$C$16:$C$140,0),BJ$16+1) -> 8.593767171e-15 | BK20: =INDEX(RevReq!$O$16:$BM$140,MATCH('Earning & Infra Combined'!$A20,RevReq!$C$16:$C$140,0),BK$16+1) -> 8.593767171e-15 | BL20: =INDEX(RevReq!$O$16:$BM$140,MATCH('Earning & Infra Combined'!$A20,RevReq!$C$16:$C$140,0),BL$16+1) -> 8.593767171e-15 | BM20: =INDEX(RevReq!$O$16:$BM$140,MATCH('Earning & Infra Combined'!$A20,RevReq!$C$16:$C$140,0),BM$16+1) -> 8.593767171e-15 | BN20: =INDEX(RevReq!$O$16:$BM$140,MATCH('Earning & Infra Combined'!$A20,RevReq!$C$16:$C$140,0),BN$16+1) -> 8.593767171e-15 | BO20: =INDEX(RevReq!$O$16:$BM$140,MATCH('Earning & Infra Combined'!$A20,RevReq!$C$16:$C$140,0),BO$16+1) -> 8.593767171e-15 | BP20: =INDEX(RevReq!$O$16:$BM$140,MATCH('Earning & Infra Combined'!$A20,RevReq!$C$16:$C$140,0),BP$16+1) -> 8.593767171e-15 | BQ20: =INDEX(RevReq!$O$16:$BM$140,MATCH('Earning & Infra Combined'!$A20,RevReq!$C$16:$C$140,0),BQ$16+1) -> 8.593767171e-15 | BR20: =INDEX(RevReq!$O$16:$BM$140,MATCH('Earning & Infra Combined'!$A20,RevReq!$C$16:$C$140,0),BR$16+1) -> 8.593767171e-15 | BS20: =INDEX(RevReq!$O$16:$BM$140,MATCH('Earning & Infra Combined'!$A20,RevReq!$C$16:$C$140,0),BS$16+1) -> 8.593767171e-15 | BT20: =INDEX(RevReq!$O$16:$BM$140,MATCH('Earning & Infra Combined'!$A20,RevReq!$C$16:$C$140,0),BT$16+1) -> 8.593767171e-15 | BU20: =INDEX(RevReq!$O$16:$BM$140,MATCH('Earning & Infra Combined'!$A20,RevReq!$C$16:$C$140,0),BU$16+1) -> 8.593767171e-15 | BV20: =INDEX(RevReq!$O$16:$BM$140,MATCH('Earning & Infra Combined'!$A20,RevReq!$C$16:$C$140,0),BV$16+1) -> 8.593767171e-15 | BW20: =INDEX(RevReq!$O$16:$BM$140,MATCH('Earning & Infra Combined'!$A20,RevReq!$C$16:$C$140,0),BW$16+1) -> 8.593767171e-15 | BX20: =INDEX(RevReq!$O$16:$BM$140,MATCH('Earning & Infra Combined'!$A20,RevReq!$C$16:$C$140,0),BX$16+1) -> 8.593767171e-15 | BY20: =INDEX(RevReq!$O$16:$BM$140,MATCH('Earning & Infra Combined'!$A20,RevReq!$C$16:$C$140,0),BY$16+1) -> 8.593767171e-15 | BZ20: =INDEX(RevReq!$O$16:$BM$140,MATCH('Earning & Infra Combined'!$A20,RevReq!$C$16:$C$140,0),BZ$16+1) -> 8.593767171e-15
A21: =MAX($A$18:A20)+1 -> 3 | B21: ='Earning Summary w. AFUDC'!B21 -> Power Generation | C21: Generation Upgrades | D21: ='Earning Summary w. AFUDC'!D21 -> 2017 | E21: ='Earning Summary w. AFUDC'!E21 -> 2017-01-01 | F21: ='Earning Summary w. AFUDC'!G21 -> 2018-12-01 | G21: ='Earning Summary w. AFUDC'!H21 -> 0.043 | H21: ='Earning Summary w. AFUDC'!I21 -> 0.955404 | K21: ='Earning Summary w. AFUDC'!L21 -> 3SAR-DLN2.6+ Labor/Parts | L21: ='Earning Summary w. AFUDC'!M21 -> 201812 | M21: ='Earning Summary w. AFUDC'!N21 -> 0.043 | N21: ='Earning Summary w. AFUDC'!O21 -> 0.955404 | O21: ='Earning Summary w. AFUDC'!P21 -> 422.8797414 | P21: ='Earning Summary w. AFUDC'!Q21 -> 69.71485315 | Q21: ='Earning Summary w. AFUDC'!R21 -> 17.31394756 | R21: ='Earning Summary w. AFUDC'!S21 -> 5.178254267 | S21: ='Earning Summary w. AFUDC'!T21 -> 0 | T21: ='Earning Summary w. AFUDC'!U21 -> 0 | U21: ='Earning Summary w. AFUDC'!V21 -> 0 | X21: 636.872532 | Y21: 666.6002361 | Z21: 1118.823209 | AB21: =INDEX(RevReq!$O$16:$BM$140,MATCH('Earning & Infra Combined'!$A21,RevReq!$C$16:$C$140,0),AB$16+1) -> 0 | AC21: =INDEX(RevReq!$O$16:$BM$140,MATCH('Earning & Infra Combined'!$A21,RevReq!$C$16:$C$140,0),AC$16+1) -> 5.813511455 | AD21: =INDEX(RevReq!$O$16:$BM$140,MATCH('Earning & Infra Combined'!$A21,RevReq!$C$16:$C$140,0),AD$16+1) -> 69.78856817 | AE21: =INDEX(RevReq!$O$16:$BM$140,MATCH('Earning & Infra Combined'!$A21,RevReq!$C$16:$C$140,0),AE$16+1) -> 69.95626032 | AF21: =INDEX(RevReq!$O$16:$BM$140,MATCH('Earning & Infra Combined'!$A21,RevReq!$C$16:$C$140,0),AF$16+1) -> 68.41672977 | AG21: =INDEX(RevReq!$O$16:$BM$140,MATCH('Earning & Infra Combined'!$A21,RevReq!$C$16:$C$140,0),AG$16+1) -> 66.18438635 | AH21: =INDEX(RevReq!$O$16:$BM$140,MATCH('Earning & Infra Combined'!$A21,RevReq!$C$16:$C$140,0),AH$16+1) -> 63.95204294 | AI21: =INDEX(RevReq!$O$16:$BM$140,MATCH('Earning & Infra Combined'!$A21,RevReq!$C$16:$C$140,0),AI$16+1) -> 61.71969952 | AJ21: =INDEX(RevReq!$O$16:$BM$140,MATCH('Earning & Infra Combined'!$A21,RevReq!$C$16:$C$140,0),AJ$16+1) -> 59.4873561 | AK21: =INDEX(RevReq!$O$16:$BM$140,MATCH('Earning & Infra Combined'!$A21,RevReq!$C$16:$C$140,0),AK$16+1) -> 57.25501268 | AL21: =INDEX(RevReq!$O$16:$BM$140,MATCH('Earning & Infra Combined'!$A21,RevReq!$C$16:$C$140,0),AL$16+1) -> 55.02266926 | AM21: =INDEX(RevReq!$O$16:$BM$140,MATCH('Earning & Infra Combined'!$A21,RevReq!$C$16:$C$140,0),AM$16+1) -> 52.79032584 | AN21: =INDEX(RevReq!$O$16:$BM$140,MATCH('Earning & Infra Combined'!$A21,RevReq!$C$16:$C$140,0),AN$16+1) -> 50.55798242 | AO21: =INDEX(RevReq!$O$16:$BM$140,MATCH('Earning & Infra Combined'!$A21,RevReq!$C$16:$C$140,0),AO$16+1) -> 48.325639 | AP21: =INDEX(RevReq!$O$16:$BM$140,MATCH('Earning & Infra Combined'!$A21,RevReq!$C$16:$C$140,0),AP$16+1) -> 46.09329558 | AQ21: =INDEX(RevReq!$O$16:$BM$140,MATCH('Earning & Infra Combined'!$A21,RevReq!$C$16:$C$140,0),AQ$16+1) -> 43.86095216 | AR21: =INDEX(RevReq!$O$16:$BM$140,MATCH('Earning & Infra Combined'!$A21,RevReq!$C$16:$C$140,0),AR$16+1) -> 41.62860874 | AS21: =INDEX(RevReq!$O$16:$BM$140,MATCH('Earning & Infra Combined'!$A21,RevReq!$C$16:$C$140,0),AS$16+1) -> 39.39626532 | AT21: =INDEX(RevReq!$O$16:$BM$140,MATCH('Earning & Infra Combined'!$A21,RevReq!$C$16:$C$140,0),AT$16+1) -> 37.1639219 | AU21: =INDEX(RevReq!$O$16:$BM$140,MATCH('Earning & Infra Combined'!$A21,RevReq!$C$16:$C$140,0),AU$16+1) -> 34.93157849 | AV21: =INDEX(RevReq!$O$16:$BM$140,MATCH('Earning & Infra Combined'!$A21,RevReq!$C$16:$C$140,0),AV$16+1) -> 32.69923507 | AW21: =INDEX(RevReq!$O$16:$BM$140,MATCH('Earning & Infra Combined'!$A21,RevReq!$C$16:$C$140,0),AW$16+1) -> 30.46689165 | AX21: =INDEX(RevReq!$O$16:$BM$140,MATCH('Earning & Infra Combined'!$A21,RevReq!$C$16:$C$140,0),AX$16+1) -> 28.23454823 | AY21: =INDEX(RevReq!$O$16:$BM$140,MATCH('Earning & Infra Combined'!$A21,RevReq!$C$16:$C$140,0),AY$16+1) -> 26.00220481 | AZ21: =INDEX(RevReq!$O$16:$BM$140,MATCH('Earning & Infra Combined'!$A21,RevReq!$C$16:$C$140,0),AZ$16+1) -> 23.76986139 | BA21: =INDEX(RevReq!$O$16:$BM$140,MATCH('Earning & Infra Combined'!$A21,RevReq!$C$16:$C$140,0),BA$16+1) -> 4.892681017 | BB21: =INDEX(RevReq!$O$16:$BM$140,MATCH('Earning & Infra Combined'!$A21,RevReq!$C$16:$C$140,0),BB$16+1) -> 0.3726398372 | BC21: =INDEX(RevReq!$O$16:$BM$140,MATCH('Earning & Infra Combined'!$A21,RevReq!$C$16:$C$140,0),BC$16+1) -> 0.04034080156 | BD21: =INDEX(RevReq!$O$16:$BM$140,MATCH('Earning & Infra Combined'!$A21,RevReq!$C$16:$C$140,0),BD$16+1) -> 3.437506868e-14 | BE21: =INDEX(RevReq!$O$16:$BM$140,MATCH('Earning & Infra Combined'!$A21,RevReq!$C$16:$C$140,0),BE$16+1) -> 3.437506868e-14 | BF21: =INDEX(RevReq!$O$16:$BM$140,MATCH('Earning & Infra Combined'!$A21,RevReq!$C$16:$C$140,0),BF$16+1) -> 3.437506868e-14 | BG21: =INDEX(RevReq!$O$16:$BM$140,MATCH('Earning & Infra Combined'!$A21,RevReq!$C$16:$C$140,0),BG$16+1) -> 3.437506868e-14 | BH21: =INDEX(RevReq!$O$16:$BM$140,MATCH('Earning & Infra Combined'!$A21,RevReq!$C$16:$C$140,0),BH$16+1) -> 3.437506868e-14 | BI21: =INDEX(RevReq!$O$16:$BM$140,MATCH('Earning & Infra Combined'!$A21,RevReq!$C$16:$C$140,0),BI$16+1) -> 3.437506868e-14 | BJ21: =INDEX(RevReq!$O$16:$BM$140,MATCH('Earning & Infra Combined'!$A21,RevReq!$C$16:$C$140,0),BJ$16+1) -> 3.437506868e-14 | BK21: =INDEX(RevReq!$O$16:$BM$140,MATCH('Earning & Infra Combined'!$A21,RevReq!$C$16:$C$140,0),BK$16+1) -> 3.437506868e-14 | BL21: =INDEX(RevReq!$O$16:$BM$140,MATCH('Earning & Infra Combined'!$A21,RevReq!$C$16:$C$140,0),BL$16+1) -> 3.437506868e-14 | BM21: =INDEX(RevReq!$O$16:$BM$140,MATCH('Earning & Infra Combined'!$A21,RevReq!$C$16:$C$140,0),BM$16+1) -> 3.437506868e-14 | BN21: =INDEX(RevReq!$O$16:$BM$140,MATCH('Earning & Infra Combined'!$A21,RevReq!$C$16:$C$140,0),BN$16+1) -> 3.437506868e-14 | BO21: =INDEX(RevReq!$O$16:$BM$140,MATCH('Earning & Infra Combined'!$A21,RevReq!$C$16:$C$140,0),BO$16+1) -> 3.437506868e-14 | BP21: =INDEX(RevReq!$O$16:$BM$140,MATCH('Earning & Infra Combined'!$A21,RevReq!$C$16:$C$140,0),BP$16+1) -> 3.437506868e-14 | BQ21: =INDEX(RevReq!$O$16:$BM$140,MATCH('Earning & Infra Combined'!$A21,RevReq!$C$16:$C$140,0),BQ$16+1) -> 3.437506868e-14 | BR21: =INDEX(RevReq!$O$16:$BM$140,MATCH('Earning & Infra Combined'!$A21,RevReq!$C$16:$C$140,0),BR$16+1) -> 3.437506868e-14 | BS21: =INDEX(RevReq!$O$16:$BM$140,MATCH('Earning & Infra Combined'!$A21,RevReq!$C$16:$C$140,0),BS$16+1) -> 3.437506868e-14 | BT21: =INDEX(RevReq!$O$16:$BM$140,MATCH('Earning & Infra Combined'!$A21,RevReq!$C$16:$C$140,0),BT$16+1) -> 3.437506868e-14 | BU21: =INDEX(RevReq!$O$16:$BM$140,MATCH('Earning & Infra Combined'!$A21,RevReq!$C$16:$C$140,0),BU$16+1) -> 3.437506868e-14 | BV21: =INDEX(RevReq!$O$16:$BM$140,MATCH('Earning & Infra Combined'!$A21,RevReq!$C$16:$C$140,0),BV$16+1) -> 3.437506868e-14 | BW21: =INDEX(RevReq!$O$16:$BM$140,MATCH('Earning & Infra Combined'!$A21,RevReq!$C$16:$C$140,0),BW$16+1) -> 3.437506868e-14 | BX21: =INDEX(RevReq!$O$16:$BM$140,MATCH('Earning & Infra Combined'!$A21,RevReq!$C$16:$C$140,0),BX$16+1) -> 3.437506868e-14 | BY21: =INDEX(RevReq!$O$16:$BM$140,MATCH('Earning & Infra Combined'!$A21,RevReq!$C$16:$C$140,0),BY$16+1) -> 3.437506868e-14 | BZ21: =INDEX(RevReq!$O$16:$BM$140,MATCH('Earning & Infra Combined'!$A21,RevReq!$C$16:$C$140,0),BZ$16+1) -> 3.437506868e-14
A22: =MAX($A$18:A21)+1 -> 4 | B22: ='Earning Summary w. AFUDC'!B22 -> Power Generation | C22: Generation Upgrades | D22: ='Earning Summary w. AFUDC'!D22 -> 2018 | E22: ='Earning Summary w. AFUDC'!E22 -> 2018-01-01 | F22: ='Earning Summary w. AFUDC'!G22 -> 2020-05-01 | G22: ='Earning Summary w. AFUDC'!H22 -> 0.043 | H22: ='Earning Summary w. AFUDC'!I22 -> 0.955404 | K22: ='Earning Summary w. AFUDC'!L22 -> 3SAR Hot Days Projects | L22: ='Earning Summary w. AFUDC'!M22 -> 202005 | M22: ='Earning Summary w. AFUDC'!N22 -> 0.043 | N22: ='Earning Summary w. AFUDC'!O22 -> 0.955404 | O22: ='Earning Summary w. AFUDC'!P22 -> 0 | P22: ='Earning Summary w. AFUDC'!Q22 -> 148.242146 | Q22: ='Earning Summary w. AFUDC'!R22 -> 175.2854839 | R22: ='Earning Summary w. AFUDC'!S22 -> 33.41302312 | S22: ='Earning Summary w. AFUDC'!T22 -> 0 | T22: ='Earning Summary w. AFUDC'!U22 -> 0 | U22: ='Earning Summary w. AFUDC'!V22 -> 0 | X22: 399.8415963 | Y22: 418.5052567 | Z22: 775.2770193 | AB22: =INDEX(RevReq!$O$16:$BM$140,MATCH('Earning & Infra Combined'!$A22,RevReq!$C$16:$C$140,0),AB$16+1) -> 0 | AC22: =INDEX(RevReq!$O$16:$BM$140,MATCH('Earning & Infra Combined'!$A22,RevReq!$C$16:$C$140,0),AC$16+1) -> 0 | AD22: =INDEX(RevReq!$O$16:$BM$140,MATCH('Earning & Infra Combined'!$A22,RevReq!$C$16:$C$140,0),AD$16+1) -> 0 | AE22: =INDEX(RevReq!$O$16:$BM$140,MATCH('Earning & Infra Combined'!$A22,RevReq!$C$16:$C$140,0),AE$16+1) -> 33.70038727 | AF22: =INDEX(RevReq!$O$16:$BM$140,MATCH('Earning & Infra Combined'!$A22,RevReq!$C$16:$C$140,0),AF$16+1) -> 49.51928012 | AG22: =INDEX(RevReq!$O$16:$BM$140,MATCH('Earning & Infra Combined'!$A22,RevReq!$C$16:$C$140,0),AG$16+1) -> 47.97232896 | AH22: =INDEX(RevReq!$O$16:$BM$140,MATCH('Earning & Infra Combined'!$A22,RevReq!$C$16:$C$140,0),AH$16+1) -> 46.4253778 | AI22: =INDEX(RevReq!$O$16:$BM$140,MATCH('Earning & Infra Combined'!$A22,RevReq!$C$16:$C$140,0),AI$16+1) -> 44.87842664 | AJ22: =INDEX(RevReq!$O$16:$BM$140,MATCH('Earning & Infra Combined'!$A22,RevReq!$C$16:$C$140,0),AJ$16+1) -> 43.33147548 | AK22: =INDEX(RevReq!$O$16:$BM$140,MATCH('Earning & Infra Combined'!$A22,RevReq!$C$16:$C$140,0),AK$16+1) -> 41.78452432 | AL22: =INDEX(RevReq!$O$16:$BM$140,MATCH('Earning & Infra Combined'!$A22,RevReq!$C$16:$C$140,0),AL$16+1) -> 40.23757316 | AM22: =INDEX(RevReq!$O$16:$BM$140,MATCH('Earning & Infra Combined'!$A22,RevReq!$C$16:$C$140,0),AM$16+1) -> 38.690622 | AN22: =INDEX(RevReq!$O$16:$BM$140,MATCH('Earning & Infra Combined'!$A22,RevReq!$C$16:$C$140,0),AN$16+1) -> 37.14367083 | AO22: =INDEX(RevReq!$O$16:$BM$140,MATCH('Earning & Infra Combined'!$A22,RevReq!$C$16:$C$140,0),AO$16+1) -> 35.59671967 | AP22: =INDEX(RevReq!$O$16:$BM$140,MATCH('Earning & Infra Combined'!$A22,RevReq!$C$16:$C$140,0),AP$16+1) -> 34.04976851 | AQ22: =INDEX(RevReq!$O$16:$BM$140,MATCH('Earning & Infra Combined'!$A22,RevReq!$C$16:$C$140,0),AQ$16+1) -> 32.50281735 | AR22: =INDEX(RevReq!$O$16:$BM$140,MATCH('Earning & Infra Combined'!$A22,RevReq!$C$16:$C$140,0),AR$16+1) -> 30.95586619 | AS22: =INDEX(RevReq!$O$16:$BM$140,MATCH('Earning & Infra Combined'!$A22,RevReq!$C$16:$C$140,0),AS$16+1) -> 29.40891503 | AT22: =INDEX(RevReq!$O$16:$BM$140,MATCH('Earning & Infra Combined'!$A22,RevReq!$C$16:$C$140,0),AT$16+1) -> 27.86196387 | AU22: =INDEX(RevReq!$O$16:$BM$140,MATCH('Earning & Infra Combined'!$A22,RevReq!$C$16:$C$140,0),AU$16+1) -> 26.31501271 | AV22: =INDEX(RevReq!$O$16:$BM$140,MATCH('Earning & Infra Combined'!$A22,RevReq!$C$16:$C$140,0),AV$16+1) -> 24.76806154 | AW22: =INDEX(RevReq!$O$16:$BM$140,MATCH('Earning & Infra Combined'!$A22,RevReq!$C$16:$C$140,0),AW$16+1) -> 23.22111038 | AX22: =INDEX(RevReq!$O$16:$BM$140,MATCH('Earning & Infra Combined'!$A22,RevReq!$C$16:$C$140,0),AX$16+1) -> 21.67415922 | AY22: =INDEX(RevReq!$O$16:$BM$140,MATCH('Earning & Infra Combined'!$A22,RevReq!$C$16:$C$140,0),AY$16+1) -> 20.12720806 | AZ22: =INDEX(RevReq!$O$16:$BM$140,MATCH('Earning & Infra Combined'!$A22,RevReq!$C$16:$C$140,0),AZ$16+1) -> 18.5802569 | BA22: =INDEX(RevReq!$O$16:$BM$140,MATCH('Earning & Infra Combined'!$A22,RevReq!$C$16:$C$140,0),BA$16+1) -> 17.03330574 | BB22: =INDEX(RevReq!$O$16:$BM$140,MATCH('Earning & Infra Combined'!$A22,RevReq!$C$16:$C$140,0),BB$16+1) -> 9.498187582 | BC22: =INDEX(RevReq!$O$16:$BM$140,MATCH('Earning & Infra Combined'!$A22,RevReq!$C$16:$C$140,0),BC$16+1) -> 2.291671246e-14 | BD22: =INDEX(RevReq!$O$16:$BM$140,MATCH('Earning & Infra Combined'!$A22,RevReq!$C$16:$C$140,0),BD$16+1) -> 2.291671246e-14 | BE22: =INDEX(RevReq!$O$16:$BM$140,MATCH('Earning & Infra Combined'!$A22,RevReq!$C$16:$C$140,0),BE$16+1) -> 2.291671246e-14 | BF22: =INDEX(RevReq!$O$16:$BM$140,MATCH('Earning & Infra Combined'!$A22,RevReq!$C$16:$C$140,0),BF$16+1) -> 2.291671246e-14 | BG22: =INDEX(RevReq!$O$16:$BM$140,MATCH('Earning & Infra Combined'!$A22,RevReq!$C$16:$C$140,0),BG$16+1) -> 2.291671246e-14 | BH22: =INDEX(RevReq!$O$16:$BM$140,MATCH('Earning & Infra Combined'!$A22,RevReq!$C$16:$C$140,0),BH$16+1) -> 2.291671246e-14 | BI22: =INDEX(RevReq!$O$16:$BM$140,MATCH('Earning & Infra Combined'!$A22,RevReq!$C$16:$C$140,0),BI$16+1) -> 2.291671246e-14 | BJ22: =INDEX(RevReq!$O$16:$BM$140,MATCH('Earning & Infra Combined'!$A22,RevReq!$C$16:$C$140,0),BJ$16+1) -> 2.291671246e-14 | BK22: =INDEX(RevReq!$O$16:$BM$140,MATCH('Earning & Infra Combined'!$A22,RevReq!$C$16:$C$140,0),BK$16+1) -> 2.291671246e-14 | BL22: =INDEX(RevReq!$O$16:$BM$140,MATCH('Earning & Infra Combined'!$A22,RevReq!$C$16:$C$140,0),BL$16+1) -> 2.291671246e-14 | BM22: =INDEX(RevReq!$O$16:$BM$140,MATCH('Earning & Infra Combined'!$A22,RevReq!$C$16:$C$140,0),BM$16+1) -> 2.291671246e-14 | BN22: =INDEX(RevReq!$O$16:$BM$140,MATCH('Earning & Infra Combined'!$A22,RevReq!$C$16:$C$140,0),BN$16+1) -> 2.291671246e-14 | BO22: =INDEX(RevReq!$O$16:$BM$140,MATCH('Earning & Infra Combined'!$A22,RevReq!$C$16:$C$140,0),BO$16+1) -> 2.291671246e-14 | BP22: =INDEX(RevReq!$O$16:$BM$140,MATCH('Earning & Infra Combined'!$A22,RevReq!$C$16:$C$140,0),BP$16+1) -> 2.291671246e-14 | BQ22: =INDEX(RevReq!$O$16:$BM$140,MATCH('Earning & Infra Combined'!$A22,RevReq!$C$16:$C$140,0),BQ$16+1) -> 2.291671246e-14 | BR22: =INDEX(RevReq!$O$16:$BM$140,MATCH('Earning & Infra Combined'!$A22,RevReq!$C$16:$C$140,0),BR$16+1) -> 2.291671246e-14 | BS22: =INDEX(RevReq!$O$16:$BM$140,MATCH('Earning & Infra Combined'!$A22,RevReq!$C$16:$C$140,0),BS$16+1) -> 2.291671246e-14 | BT22: =INDEX(RevReq!$O$16:$BM$140,MATCH('Earning & Infra Combined'!$A22,RevReq!$C$16:$C$140,0),BT$16+1) -> 2.291671246e-14 | BU22: =INDEX(RevReq!$O$16:$BM$140,MATCH('Earning & Infra Combined'!$A22,RevReq!$C$16:$C$140,0),BU$16+1) -> 2.291671246e-14 | BV22: =INDEX(RevReq!$O$16:$BM$140,MATCH('Earning & Infra Combined'!$A22,RevReq!$C$16:$C$140,0),BV$16+1) -> 2.291671246e-14 | BW22: =INDEX(RevReq!$O$16:$BM$140,MATCH('Earning & Infra Combined'!$A22,RevReq!$C$16:$C$140,0),BW$16+1) -> 2.291671246e-14 | BX22: =INDEX(RevReq!$O$16:$BM$140,MATCH('Earning & Infra Combined'!$A22,RevReq!$C$16:$C$140,0),BX$16+1) -> 2.291671246e-14 | BY22: =INDEX(RevReq!$O$16:$BM$140,MATCH('Earning & Infra Combined'!$A22,RevReq!$C$16:$C$140,0),BY$16+1) -> 2.291671246e-14 | BZ22: =INDEX(RevReq!$O$16:$BM$140,MATCH('Earning & Infra Combined'!$A22,RevReq!$C$16:$C$140,0),BZ$16+1) -> 2.291671246e-14
K23: Total Power Generation | O23: =SUM(O19:O22) -> 487.8881003 | P23: =SUM(P19:P22) -> 242.9090086 | Q23: 218.6778604 | R23: 56.03739459 | S23: 0 | T23: 0.2513858545 | U23: 0 | X23: =SUM(X19:X22) -> 1184.90093 | Y23: =SUM(Y19:Y22) -> 1240.209304 | Z23: =SUM(Z19:Z22) -> 2188.116602 | AB23: =SUM(AB19:AB22) -> 0 | AC23: =SUM(AC19:AC22) -> 5.813511455 | AD23: 69.78856817 | AE23: 112.920813 | AF23: 136.4428016 | AG23: 132.1209139 | AH23: 127.7864327 | AI23: 123.439721 | AJ23: 119.0930094 | AK23: 114.7462978 | AL23: 110.3995861 | AM23: 106.0528745 | AN23: 101.7061628 | AO23: 97.3594512 | AP23: 93.01273956 | AQ23: 88.66602792 | AR23: 84.31931628 | AS23: 79.97260464 | AT23: 75.625893 | AU23: 71.27918136 | AV23: 66.93246972 | AW23: 62.58575808 | AX23: 58.23904644 | AY23: 53.8923348 | AZ23: 49.54562316 | BA23: 28.55407457 | BB23: 14.36817194 | BC23: 1.894444981 | BD23: 1.558771614 | BE23: 6.731784284e-14 | BF23: 6.731784284e-14 | BG23: 6.731784284e-14 | BH23: 6.731784284e-14 | BI23: 6.731784284e-14 | BJ23: 6.731784284e-14 | BK23: 6.731784284e-14 | BL23: 6.731784284e-14 | BM23: 6.731784284e-14 | BN23: 6.731784284e-14 | BO23: 6.731784284e-14 | BP23: 6.731784284e-14 | BQ23: 6.731784284e-14 | BR23: 6.731784284e-14 | BS23: 6.731784284e-14 | BT23: 6.731784284e-14 | BU23: 6.731784284e-14 | BV23: 6.731784284e-14 | BW23: 6.731784284e-14 | BX23: 6.731784284e-14 | BY23: 6.731784284e-14 | BZ23: 6.731784284e-14
K25: Nuclear
A26: =MAX($A$18:A25)+1 -> 5 | B26: ='Earning Summary w. AFUDC'!B26 -> Nuclear Generation | C26: ='Earning Summary w. AFUDC'!C26 -> Projects | D26: ='Earning Summary w. AFUDC'!D26 -> 2017 | E26: ='Earning Summary w. AFUDC'!E26 -> 2017-01-01 | F26: ='Earning Summary w. AFUDC'!G26 -> 2020-11-01 | G26: ='Earning Summary w. AFUDC'!H26 -> 0.049 | H26: ='Earning Summary w. AFUDC'!I26 -> 0.959314 | K26: ='Earning Summary w. AFUDC'!L26 -> PTN LP Turbine Replacement | L26: ='Earning Summary w. AFUDC'!M26 -> 202011 | M26: ='Earning Summary w. AFUDC'!N26 -> 0.049 | N26: ='Earning Summary w. AFUDC'!O26 -> 0.959314 | O26: ='Earning Summary w. AFUDC'!P26 -> 33.19487148 | P26: ='Earning Summary w. AFUDC'!Q26 -> 52.38179834 | Q26: ='Earning Summary w. AFUDC'!R26 -> 0.94645933 | R26: ='Earning Summary w. AFUDC'!S26 -> 36.19825722 | S26: ='Earning Summary w. AFUDC'!T26 -> 5.458911413 | T26: ='Earning Summary w. AFUDC'!U26 -> 0 | U26: ='Earning Summary w. AFUDC'!V26 -> 0 | X26: =Y26*H26 -> 136.8541513 | Y26: =SUMPRODUCT($AB$13:$BZ$13,$AB26:$BZ26) -> 142.6583489 | Z26: =SUM(AB26:BZ26) -> 260.0222155 | AB26: =INDEX(RevReq!$O$16:$BM$140,MATCH('Earning & Infra Combined'!$A26,RevReq!$C$16:$C$140,0),AB$16+1) -> 0 | AC26: =INDEX(RevReq!$O$16:$BM$140,MATCH('Earning & Infra Combined'!$A26,RevReq!$C$16:$C$140,0),AC$16+1) -> 0 | AD26: =INDEX(RevReq!$O$16:$BM$140,MATCH('Earning & Infra Combined'!$A26,RevReq!$C$16:$C$140,0),AD$16+1) -> 0 | AE26: =INDEX(RevReq!$O$16:$BM$140,MATCH('Earning & Infra Combined'!$A26,RevReq!$C$16:$C$140,0),AE$16+1) -> 3.013207703 | AF26: =INDEX(RevReq!$O$16:$BM$140,MATCH('Earning & Infra Combined'!$A26,RevReq!$C$16:$C$140,0),AF$16+1) -> 18.1122672 | AG26: =INDEX(RevReq!$O$16:$BM$140,MATCH('Earning & Infra Combined'!$A26,RevReq!$C$16:$C$140,0),AG$16+1) -> 18.17186582 | AH26: =INDEX(RevReq!$O$16:$BM$140,MATCH('Earning & Infra Combined'!$A26,RevReq!$C$16:$C$140,0),AH$16+1) -> 17.53882824 | AI26: =INDEX(RevReq!$O$16:$BM$140,MATCH('Earning & Infra Combined'!$A26,RevReq!$C$16:$C$140,0),AI$16+1) -> 16.90579067 | AJ26: =INDEX(RevReq!$O$16:$BM$140,MATCH('Earning & Infra Combined'!$A26,RevReq!$C$16:$C$140,0),AJ$16+1) -> 16.27275309 | AK26: =INDEX(RevReq!$O$16:$BM$140,MATCH('Earning & Infra Combined'!$A26,RevReq!$C$16:$C$140,0),AK$16+1) -> 15.63971551 | AL26: =INDEX(RevReq!$O$16:$BM$140,MATCH('Earning & Infra Combined'!$A26,RevReq!$C$16:$C$140,0),AL$16+1) -> 15.00667794 | AM26: =INDEX(RevReq!$O$16:$BM$140,MATCH('Earning & Infra Combined'!$A26,RevReq!$C$16:$C$140,0),AM$16+1) -> 14.37364036 | AN26: =INDEX(RevReq!$O$16:$BM$140,MATCH('Earning & Infra Combined'!$A26,RevReq!$C$16:$C$140,0),AN$16+1) -> 13.74060279 | AO26: =INDEX(RevReq!$O$16:$BM$140,MATCH('Earning & Infra Combined'!$A26,RevReq!$C$16:$C$140,0),AO$16+1) -> 13.10756521 | AP26: =INDEX(RevReq!$O$16:$BM$140,MATCH('Earning & Infra Combined'!$A26,RevReq!$C$16:$C$140,0),AP$16+1) -> 12.47452763 | AQ26: =INDEX(RevReq!$O$16:$BM$140,MATCH('Earning & Infra Combined'!$A26,RevReq!$C$16:$C$140,0),AQ$16+1) -> 11.84149006 | AR26: =INDEX(RevReq!$O$16:$BM$140,MATCH('Earning & Infra Combined'!$A26,RevReq!$C$16:$C$140,0),AR$16+1) -> 11.20845248 | AS26: =INDEX(RevReq!$O$16:$BM$140,MATCH('Earning & Infra Combined'!$A26,RevReq!$C$16:$C$140,0),AS$16+1) -> 10.57541491 | AT26: =INDEX(RevReq!$O$16:$BM$140,MATCH('Earning & Infra Combined'!$A26,RevReq!$C$16:$C$140,0),AT$16+1) -> 9.942377331 | AU26: =INDEX(RevReq!$O$16:$BM$140,MATCH('Earning & Infra Combined'!$A26,RevReq!$C$16:$C$140,0),AU$16+1) -> 9.309339755 | AV26: =INDEX(RevReq!$O$16:$BM$140,MATCH('Earning & Infra Combined'!$A26,RevReq!$C$16:$C$140,0),AV$16+1) -> 8.676302179 | AW26: =INDEX(RevReq!$O$16:$BM$140,MATCH('Earning & Infra Combined'!$A26,RevReq!$C$16:$C$140,0),AW$16+1) -> 8.043264603 | AX26: =INDEX(RevReq!$O$16:$BM$140,MATCH('Earning & Infra Combined'!$A26,RevReq!$C$16:$C$140,0),AX$16+1) -> 7.410227027 | AY26: =INDEX(RevReq!$O$16:$BM$140,MATCH('Earning & Infra Combined'!$A26,RevReq!$C$16:$C$140,0),AY$16+1) -> 6.777189451 | AZ26: =INDEX(RevReq!$O$16:$BM$140,MATCH('Earning & Infra Combined'!$A26,RevReq!$C$16:$C$140,0),AZ$16+1) -> 1.812863099 | BA26: =INDEX(RevReq!$O$16:$BM$140,MATCH('Earning & Infra Combined'!$A26,RevReq!$C$16:$C$140,0),BA$16+1) -> 0.06785245036 | BB26: =INDEX(RevReq!$O$16:$BM$140,MATCH('Earning & Infra Combined'!$A26,RevReq!$C$16:$C$140,0),BB$16+1) -> 8.593767171e-15 | BC26: =INDEX(RevReq!$O$16:$BM$140,MATCH('Earning & Infra Combined'!$A26,RevReq!$C$16:$C$140,0),BC$16+1) -> 8.593767171e-15 | BD26: =INDEX(RevReq!$O$16:$BM$140,MATCH('Earning & Infra Combined'!$A26,RevReq!$C$16:$C$140,0),BD$16+1) -> 8.593767171e-15 | BE26: =INDEX(RevReq!$O$16:$BM$140,MATCH('Earning & Infra Combined'!$A26,RevReq!$C$16:$C$140,0),BE$16+1) -> 8.593767171e-15 | BF26: =INDEX(RevReq!$O$16:$BM$140,MATCH('Earning & Infra Combined'!$A26,RevReq!$C$16:$C$140,0),BF$16+1) -> 8.593767171e-15 | BG26: =INDEX(RevReq!$O$16:$BM$140,MATCH('Earning & Infra Combined'!$A26,RevReq!$C$16:$C$140,0),BG$16+1) -> 8.593767171e-15 | BH26: =INDEX(RevReq!$O$16:$BM$140,MATCH('Earning & Infra Combined'!$A26,RevReq!$C$16:$C$140,0),BH$16+1) -> 8.593767171e-15 | BI26: =INDEX(RevReq!$O$16:$BM$140,MATCH('Earning & Infra Combined'!$A26,RevReq!$C$16:$C$140,0),BI$16+1) -> 8.593767171e-15 | BJ26: =INDEX(RevReq!$O$16:$BM$140,MATCH('Earning & Infra Combined'!$A26,RevReq!$C$16:$C$140,0),BJ$16+1) -> 8.593767171e-15 | BK26: =INDEX(RevReq!$O$16:$BM$140,MATCH('Earning & Infra Combined'!$A26,RevReq!$C$16:$C$140,0),BK$16+1) -> 8.593767171e-15 | BL26: =INDEX(RevReq!$O$16:$BM$140,MATCH('Earning & Infra Combined'!$A26,RevReq!$C$16:$C$140,0),BL$16+1) -> 8.593767171e-15 | BM26: =INDEX(RevReq!$O$16:$BM$140,MATCH('Earning & Infra Combined'!$A26,RevReq!$C$16:$C$140,0),BM$16+1) -> 8.593767171e-15 | BN26: =INDEX(RevReq!$O$16:$BM$140,MATCH('Earning & Infra Combined'!$A26,RevReq!$C$16:$C$140,0),BN$16+1) -> 8.593767171e-15 | BO26: =INDEX(RevReq!$O$16:$BM$140,MATCH('Earning & Infra Combined'!$A26,RevReq!$C$16:$C$140,0),BO$16+1) -> 8.593767171e-15 | BP26: =INDEX(RevReq!$O$16:$BM$140,MATCH('Earning & Infra Combined'!$A26,RevReq!$C$16:$C$140,0),BP$16+1) -> 8.593767171e-15 | BQ26: =INDEX(RevReq!$O$16:$BM$140,MATCH('Earning & Infra Combined'!$A26,RevReq!$C$16:$C$140,0),BQ$16+1) -> 8.593767171e-15 | BR26: =INDEX(RevReq!$O$16:$BM$140,MATCH('Earning & Infra Combined'!$A26,RevReq!$C$16:$C$140,0),BR$16+1) -> 8.593767171e-15 | BS26: =INDEX(RevReq!$O$16:$BM$140,MATCH('Earning & Infra Combined'!$A26,RevReq!$C$16:$C$140,0),BS$16+1) -> 8.593767171e-15 | BT26: =INDEX(RevReq!$O$16:$BM$140,MATCH('Earning & Infra Combined'!$A26,RevReq!$C$16:$C$140,0),BT$16+1) -> 8.593767171e-15 | BU26: =INDEX(RevReq!$O$16:$BM$140,MATCH('Earning & Infra Combined'!$A26,RevReq!$C$16:$C$140,0),BU$16+1) -> 8.593767171e-15 | BV26: =INDEX(RevReq!$O$16:$BM$140,MATCH('Earning & Infra Combined'!$A26,RevReq!$C$16:$C$140,0),BV$16+1) -> 8.593767171e-15 | BW26: =INDEX(RevReq!$O$16:$BM$140,MATCH('Earning & Infra Combined'!$A26,RevReq!$C$16:$C$140,0),BW$16+1) -> 8.593767171e-15 | BX26: =INDEX(RevReq!$O$16:$BM$140,MATCH('Earning & Infra Combined'!$A26,RevReq!$C$16:$C$140,0),BX$16+1) -> 8.593767171e-15 | BY26: =INDEX(RevReq!$O$16:$BM$140,MATCH('Earning & Infra Combined'!$A26,RevReq!$C$16:$C$140,0),BY$16+1) -> 8.593767171e-15 | BZ26: =INDEX(RevReq!$O$16:$BM$140,MATCH('Earning & Infra Combined'!$A26,RevReq!$C$16:$C$140,0),BZ$16+1) -> 8.593767171e-15
A27: =MAX($A$18:A26)+1 -> 6 | B27: ='Earning Summary w. AFUDC'!B27 -> Nuclear Generation | C27: ='Earning Summary w. AFUDC'!C27 -> Projects | D27: ='Earning Summary w. AFUDC'!D27 -> 2017 | E27: ='Earning Summary w. AFUDC'!E27 -> 2017-01-01 | F27: ='Earning Summary w. AFUDC'!G27 -> 2028-06-01 | G27: ='Earning Summary w. AFUDC'!H27 -> 0.04 | H27: ='Earning Summary w. AFUDC'!I27 -> 0.959314 | K27: ='Earning Summary w. AFUDC'!L27 -> Other | L27: ='Earning Summary w. AFUDC'!M27 -> 202806 | M27: ='Earning Summary w. AFUDC'!N27 -> 0.04 | N27: ='Earning Summary w. AFUDC'!O27 -> 0.959314 | O27: ='Earning Summary w. AFUDC'!P27 -> 10.87033211 | P27: ='Earning Summary w. AFUDC'!Q27 -> 0.86133079 | Q27: ='Earning Summary w. AFUDC'!R27 -> 1.51000465 | R27: ='Earning Summary w. AFUDC'!S27 -> 1.60600011 | S27: ='Earning Summary w. AFUDC'!T27 -> 0.6907886677 | T27: ='Earning Summary w. AFUDC'!U27 -> 0.7370338958 | U27: ='Earning Summary w. AFUDC'!V27 -> 0.6668155404 | X27: 10.67172615 | Y27: 11.12433066 | Z27: 38.28723217 | AB27: =INDEX(RevReq!$O$16:$BM$140,MATCH('Earning & Infra Combined'!$A27,RevReq!$C$16:$C$140,0),AB$16+1) -> 0 | AC27: =INDEX(RevReq!$O$16:$BM$140,MATCH('Earning & Infra Combined'!$A27,RevReq!$C$16:$C$140,0),AC$16+1) -> 0 | AD27: =INDEX(RevReq!$O$16:$BM$140,MATCH('Earning & Infra Combined'!$A27,RevReq!$C$16:$C$140,0),AD$16+1) -> 0 | AE27: =INDEX(RevReq!$O$16:$BM$140,MATCH('Earning & Infra Combined'!$A27,RevReq!$C$16:$C$140,0),AE$16+1) -> 0 | AF27: =INDEX(RevReq!$O$16:$BM$140,MATCH('Earning & Infra Combined'!$A27,RevReq!$C$16:$C$140,0),AF$16+1) -> 0 | AG27: =INDEX(RevReq!$O$16:$BM$140,MATCH('Earning & Infra Combined'!$A27,RevReq!$C$16:$C$140,0),AG$16+1) -> 0 | AH27: =INDEX(RevReq!$O$16:$BM$140,MATCH('Earning & Infra Combined'!$A27,RevReq!$C$16:$C$140,0),AH$16+1) -> 0 | AI27: =INDEX(RevReq!$O$16:$BM$140,MATCH('Earning & Infra Combined'!$A27,RevReq!$C$16:$C$140,0),AI$16+1) -> 0 | AJ27: =INDEX(RevReq!$O$16:$BM$140,MATCH('Earning & Infra Combined'!$A27,RevReq!$C$16:$C$140,0),AJ$16+1) -> 0 | AK27: =INDEX(RevReq!$O$16:$BM$140,MATCH('Earning & Infra Combined'!$A27,RevReq!$C$16:$C$140,0),AK$16+1) -> 0 | AL27: =INDEX(RevReq!$O$16:$BM$140,MATCH('Earning & Infra Combined'!$A27,RevReq!$C$16:$C$140,0),AL$16+1) -> 0 | AM27: =INDEX(RevReq!$O$16:$BM$140,MATCH('Earning & Infra Combined'!$A27,RevReq!$C$16:$C$140,0),AM$16+1) -> 1.371495102 | AN27: =INDEX(RevReq!$O$16:$BM$140,MATCH('Earning & Infra Combined'!$A27,RevReq!$C$16:$C$140,0),AN$16+1) -> 2.311290598 | AO27: =INDEX(RevReq!$O$16:$BM$140,MATCH('Earning & Infra Combined'!$A27,RevReq!$C$16:$C$140,0),AO$16+1) -> 2.242986834 | AP27: =INDEX(RevReq!$O$16:$BM$140,MATCH('Earning & Infra Combined'!$A27,RevReq!$C$16:$C$140,0),AP$16+1) -> 2.174683069 | AQ27: =INDEX(RevReq!$O$16:$BM$140,MATCH('Earning & Infra Combined'!$A27,RevReq!$C$16:$C$140,0),AQ$16+1) -> 2.106379305 | AR27: =INDEX(RevReq!$O$16:$BM$140,MATCH('Earning & Infra Combined'!$A27,RevReq!$C$16:$C$140,0),AR$16+1) -> 2.03807554 | AS27: =INDEX(RevReq!$O$16:$BM$140,MATCH('Earning & Infra Combined'!$A27,RevReq!$C$16:$C$140,0),AS$16+1) -> 1.969771776 | AT27: =INDEX(RevReq!$O$16:$BM$140,MATCH('Earning & Infra Combined'!$A27,RevReq!$C$16:$C$140,0),AT$16+1) -> 1.901468011 | AU27: =INDEX(RevReq!$O$16:$BM$140,MATCH('Earning & Infra Combined'!$A27,RevReq!$C$16:$C$140,0),AU$16+1) -> 1.833164247 | AV27: =INDEX(RevReq!$O$16:$BM$140,MATCH('Earning & Infra Combined'!$A27,RevReq!$C$16:$C$140,0),AV$16+1) -> 1.764860482 | AW27: =INDEX(RevReq!$O$16:$BM$140,MATCH('Earning & Infra Combined'!$A27,RevReq!$C$16:$C$140,0),AW$16+1) -> 1.696556718 | AX27: =INDEX(RevReq!$O$16:$BM$140,MATCH('Earning & Infra Combined'!$A27,RevReq!$C$16:$C$140,0),AX$16+1) -> 1.628252953 | AY27: =INDEX(RevReq!$O$16:$BM$140,MATCH('Earning & Infra Combined'!$A27,RevReq!$C$16:$C$140,0),AY$16+1) -> 1.559949189 | AZ27: =INDEX(RevReq!$O$16:$BM$140,MATCH('Earning & Infra Combined'!$A27,RevReq!$C$16:$C$140,0),AZ$16+1) -> 1.491645424 | BA27: =INDEX(RevReq!$O$16:$BM$140,MATCH('Earning & Infra Combined'!$A27,RevReq!$C$16:$C$140,0),BA$16+1) -> 1.42334166 | BB27: =INDEX(RevReq!$O$16:$BM$140,MATCH('Earning & Infra Combined'!$A27,RevReq!$C$16:$C$140,0),BB$16+1) -> 1.355037895 | BC27: =INDEX(RevReq!$O$16:$BM$140,MATCH('Earning & Infra Combined'!$A27,RevReq!$C$16:$C$140,0),BC$16+1) -> 1.286734131 | BD27: =INDEX(RevReq!$O$16:$BM$140,MATCH('Earning & Infra Combined'!$A27,RevReq!$C$16:$C$140,0),BD$16+1) -> 1.218430366 | BE27: =INDEX(RevReq!$O$16:$BM$140,MATCH('Earning & Infra Combined'!$A27,RevReq!$C$16:$C$140,0),BE$16+1) -> 1.150126602 | BF27: =INDEX(RevReq!$O$16:$BM$140,MATCH('Earning & Infra Combined'!$A27,RevReq!$C$16:$C$140,0),BF$16+1) -> 1.081822837 | BG27: =INDEX(RevReq!$O$16:$BM$140,MATCH('Earning & Infra Combined'!$A27,RevReq!$C$16:$C$140,0),BG$16+1) -> 1.013519073 | BH27: =INDEX(RevReq!$O$16:$BM$140,MATCH('Earning & Infra Combined'!$A27,RevReq!$C$16:$C$140,0),BH$16+1) -> 0.9452153082 | BI27: =INDEX(RevReq!$O$16:$BM$140,MATCH('Earning & Infra Combined'!$A27,RevReq!$C$16:$C$140,0),BI$16+1) -> 0.8769115437 | BJ27: =INDEX(RevReq!$O$16:$BM$140,MATCH('Earning & Infra Combined'!$A27,RevReq!$C$16:$C$140,0),BJ$16+1) -> 0.8086077792 | BK27: =INDEX(RevReq!$O$16:$BM$140,MATCH('Earning & Infra Combined'!$A27,RevReq!$C$16:$C$140,0),BK$16+1) -> 0.7403040147 | BL27: =INDEX(RevReq!$O$16:$BM$140,MATCH('Earning & Infra Combined'!$A27,RevReq!$C$16:$C$140,0),BL$16+1) -> 0.2966017137 | BM27: =INDEX(RevReq!$O$16:$BM$140,MATCH('Earning & Infra Combined'!$A27,RevReq!$C$16:$C$140,0),BM$16+1) -> 3.580736321e-16 | BN27: =INDEX(RevReq!$O$16:$BM$140,MATCH('Earning & Infra Combined'!$A27,RevReq!$C$16:$C$140,0),BN$16+1) -> 3.580736321e-16 | BO27: =INDEX(RevReq!$O$16:$BM$140,MATCH('Earning & Infra Combined'!$A27,RevReq!$C$16:$C$140,0),BO$16+1) -> 3.580736321e-16 | BP27: =INDEX(RevReq!$O$16:$BM$140,MATCH('Earning & Infra Combined'!$A27,RevReq!$C$16:$C$140,0),BP$16+1) -> 3.580736321e-16 | BQ27: =INDEX(RevReq!$O$16:$BM$140,MATCH('Earning & Infra Combined'!$A27,RevReq!$C$16:$C$140,0),BQ$16+1) -> 3.580736321e-16 | BR27: =INDEX(RevReq!$O$16:$BM$140,MATCH('Earning & Infra Combined'!$A27,RevReq!$C$16:$C$140,0),BR$16+1) -> 3.580736321e-16 | BS27: =INDEX(RevReq!$O$16:$BM$140,MATCH('Earning & Infra Combined'!$A27,RevReq!$C$16:$C$140,0),BS$16+1) -> 3.580736321e-16 | BT27: =INDEX(RevReq!$O$16:$BM$140,MATCH('Earning & Infra Combined'!$A27,RevReq!$C$16:$C$140,0),BT$16+1) -> 3.580736321e-16 | BU27: =INDEX(RevReq!$O$16:$BM$140,MATCH('Earning & Infra Combined'!$A27,RevReq!$C$16:$C$140,0),BU$16+1) -> 3.580736321e-16 | BV27: =INDEX(RevReq!$O$16:$BM$140,MATCH('Earning & Infra Combined'!$A27,RevReq!$C$16:$C$140,0),BV$16+1) -> 3.580736321e-16 | BW27: =INDEX(RevReq!$O$16:$BM$140,MATCH('Earning & Infra Combined'!$A27,RevReq!$C$16:$C$140,0),BW$16+1) -> 3.580736321e-16 | BX27: =INDEX(RevReq!$O$16:$BM$140,MATCH('Earning & Infra Combined'!$A27,RevReq!$C$16:$C$140,0),BX$16+1) -> 3.580736321e-16 | BY27: =INDEX(RevReq!$O$16:$BM$140,MATCH('Earning & Infra Combined'!$A27,RevReq!$C$16:$C$140,0),BY$16+1) -> 3.580736321e-16 | BZ27: =INDEX(RevReq!$O$16:$BM$140,MATCH('Earning & Infra Combined'!$A27,RevReq!$C$16:$C$140,0),BZ$16+1) -> 3.580736321e-16
K28: Total Nuclear | O28: =SUM(O26:O27) -> 44.06520359 | P28: 53.24312913 | Q28: 2.45646398 | R28: 37.80425733 | S28: 6.149700081 | T28: 0.7370338958 | U28: 0.6668155404 | X28: =SUM(X26:X27) -> 147.5258775 | Y28: =SUM(Y26:Y27) -> 153.7826796 | Z28: =SUM(Z26:Z27) -> 298.3094477 | AB28: =SUM(AB26:AB27) -> 0 | AC28: =SUM(AC26:AC27) -> 0 | AD28: 0 | AE28: 3.013207703 | AF28: 18.1122672 | AG28: 18.17186582 | AH28: 17.53882824 | AI28: 16.90579067 | AJ28: 16.27275309 | AK28: 15.63971551 | AL28: 15.00667794 | AM28: 15.74513546 | AN28: 16.05189338 | AO28: 15.35055204 | AP28: 14.6492107 | AQ28: 13.94786936 | AR28: 13.24652802 | AS28: 12.54518668 | AT28: 11.84384534 | AU28: 11.142504 | AV28: 10.44116266 | AW28: 9.739821321 | AX28: 9.038479981 | AY28: 8.33713864 | AZ28: 3.304508524 | BA28: 1.49119411 | BB28: 1.355037895 | BC28: 1.286734131 | BD28: 1.218430366 | BE28: 1.150126602 | BF28: 1.081822837 | BG28: 1.013519073 | BH28: 0.9452153082 | BI28: 0.8769115437 | BJ28: 0.8086077792 | BK28: 0.7403040147 | BL28: 0.2966017137 | BM28: 8.951840803e-15 | BN28: 8.951840803e-15 | BO28: 8.951840803e-15 | BP28: 8.951840803e-15 | BQ28: 8.951840803e-15 | BR28: 8.951840803e-15 | BS28: 8.951840803e-15 | BT28: 8.951840803e-15 | BU28: 8.951840803e-15 | BV28: 8.951840803e-15 | BW28: 8.951840803e-15 | BX28: 8.951840803e-15 | BY28: 8.951840803e-15 | BZ28: 8.951840803e-15
K30: Information Technology
A31: =MAX($A$18:A30)+1 -> 7 | B31: ='Earning Summary w. AFUDC'!B31 -> Information Management | C31: ='Earning Summary w. AFUDC'!C31 -> Projects | D31: ='Earning Summary w. AFUDC'!D31 -> 2019 | E31: ='Earning Summary w. AFUDC'!E31 -> 2019-01-01 | F31: ='Earning Summary w. AFUDC'!G31 -> 2020-02-01 | G31: ='Earning Summary w. AFUDC'!H31 -> 0.05 | H31: ='Earning Summary w. AFUDC'!I31 -> 0.968984 | K31: ='Earning Summary w. AFUDC'!L31 -> IT CAMS Project - Gulf | L31: ='Earning Summary w. AFUDC'!M31 -> 202002 | M31: ='Earning Summary w. AFUDC'!N31 -> 0.05 | N31: ='Earning Summary w. AFUDC'!O31 -> 0.968984 | O31: ='Earning Summary w. AFUDC'!P31 -> 0 | P31: ='Earning Summary w. AFUDC'!Q31 -> 0 | Q31: ='Earning Summary w. AFUDC'!R31 -> 73.63485034 | R31: ='Earning Summary w. AFUDC'!S31 -> 26.0653647 | S31: ='Earning Summary w. AFUDC'!T31 -> 0 | T31: ='Earning Summary w. AFUDC'!U31 -> 0 | U31: ='Earning Summary w. AFUDC'!V31 -> 0 | X31: =Y31*H31 -> 113.6320049 | Y31: =SUMPRODUCT($AB$13:$BZ$13,$AB31:$BZ31) -> 117.2692272 | Z31: =SUM(AB31:BZ31) -> 200.1868327 | AB31: =INDEX(RevReq!$O$16:$BM$140,MATCH('Earning & Infra Combined'!$A31,RevReq!$C$16:$C$140,0),AB$16+1) -> 0 | AC31: =INDEX(RevReq!$O$16:$BM$140,MATCH('Earning & Infra Combined'!$A31,RevReq!$C$16:$C$140,0),AC$16+1) -> 0 | AD31: =INDEX(RevReq!$O$16:$BM$140,MATCH('Earning & Infra Combined'!$A31,RevReq!$C$16:$C$140,0),AD$16+1) -> 0 | AE31: =INDEX(RevReq!$O$16:$BM$140,MATCH('Earning & Infra Combined'!$A31,RevReq!$C$16:$C$140,0),AE$16+1) -> 13.55058465 | AF31: =INDEX(RevReq!$O$16:$BM$140,MATCH('Earning & Infra Combined'!$A31,RevReq!$C$16:$C$140,0),AF$16+1) -> 14.32189231 | AG31: =INDEX(RevReq!$O$16:$BM$140,MATCH('Earning & Infra Combined'!$A31,RevReq!$C$16:$C$140,0),AG$16+1) -> 13.81945922 | AH31: =INDEX(RevReq!$O$16:$BM$140,MATCH('Earning & Infra Combined'!$A31,RevReq!$C$16:$C$140,0),AH$16+1) -> 13.31702614 | AI31: =INDEX(RevReq!$O$16:$BM$140,MATCH('Earning & Infra Combined'!$A31,RevReq!$C$16:$C$140,0),AI$16+1) -> 12.81459305 | AJ31: =INDEX(RevReq!$O$16:$BM$140,MATCH('Earning & Infra Combined'!$A31,RevReq!$C$16:$C$140,0),AJ$16+1) -> 12.31215996 | AK31: =INDEX(RevReq!$O$16:$BM$140,MATCH('Earning & Infra Combined'!$A31,RevReq!$C$16:$C$140,0),AK$16+1) -> 11.80972687 | AL31: =INDEX(RevReq!$O$16:$BM$140,MATCH('Earning & Infra Combined'!$A31,RevReq!$C$16:$C$140,0),AL$16+1) -> 11.30729378 | AM31: =INDEX(RevReq!$O$16:$BM$140,MATCH('Earning & Infra Combined'!$A31,RevReq!$C$16:$C$140,0),AM$16+1) -> 10.80486069 | AN31: =INDEX(RevReq!$O$16:$BM$140,MATCH('Earning & Infra Combined'!$A31,RevReq!$C$16:$C$140,0),AN$16+1) -> 10.30242761 | AO31: =INDEX(RevReq!$O$16:$BM$140,MATCH('Earning & Infra Combined'!$A31,RevReq!$C$16:$C$140,0),AO$16+1) -> 9.799994517 | AP31: =INDEX(RevReq!$O$16:$BM$140,MATCH('Earning & Infra Combined'!$A31,RevReq!$C$16:$C$140,0),AP$16+1) -> 9.297561428 | AQ31: =INDEX(RevReq!$O$16:$BM$140,MATCH('Earning & Infra Combined'!$A31,RevReq!$C$16:$C$140,0),AQ$16+1) -> 8.79512834 | AR31: =INDEX(RevReq!$O$16:$BM$140,MATCH('Earning & Infra Combined'!$A31,RevReq!$C$16:$C$140,0),AR$16+1) -> 8.292695251 | AS31: =INDEX(RevReq!$O$16:$BM$140,MATCH('Earning & Infra Combined'!$A31,RevReq!$C$16:$C$140,0),AS$16+1) -> 7.790262163 | AT31: =INDEX(RevReq!$O$16:$BM$140,MATCH('Earning & Infra Combined'!$A31,RevReq!$C$16:$C$140,0),AT$16+1) -> 7.287829074 | AU31: =INDEX(RevReq!$O$16:$BM$140,MATCH('Earning & Infra Combined'!$A31,RevReq!$C$16:$C$140,0),AU$16+1) -> 6.785395986 | AV31: =INDEX(RevReq!$O$16:$BM$140,MATCH('Earning & Infra Combined'!$A31,RevReq!$C$16:$C$140,0),AV$16+1) -> 6.282962897 | AW31: =INDEX(RevReq!$O$16:$BM$140,MATCH('Earning & Infra Combined'!$A31,RevReq!$C$16:$C$140,0),AW$16+1) -> 5.780529809 | AX31: =INDEX(RevReq!$O$16:$BM$140,MATCH('Earning & Infra Combined'!$A31,RevReq!$C$16:$C$140,0),AX$16+1) -> 5.27809672 | AY31: =INDEX(RevReq!$O$16:$BM$140,MATCH('Earning & Infra Combined'!$A31,RevReq!$C$16:$C$140,0),AY$16+1) -> 0.4363522747 | AZ31: =INDEX(RevReq!$O$16:$BM$140,MATCH('Earning & Infra Combined'!$A31,RevReq!$C$16:$C$140,0),AZ$16+1) -> 5.729178114e-15 | BA31: =INDEX(RevReq!$O$16:$BM$140,MATCH('Earning & Infra Combined'!$A31,RevReq!$C$16:$C$140,0),BA$16+1) -> 5.729178114e-15 | BB31: =INDEX(RevReq!$O$16:$BM$140,MATCH('Earning & Infra Combined'!$A31,RevReq!$C$16:$C$140,0),BB$16+1) -> 5.729178114e-15 | BC31: =INDEX(RevReq!$O$16:$BM$140,MATCH('Earning & Infra Combined'!$A31,RevReq!$C$16:$C$140,0),BC$16+1) -> 5.729178114e-15 | BD31: =INDEX(RevReq!$O$16:$BM$140,MATCH('Earning & Infra Combined'!$A31,RevReq!$C$16:$C$140,0),BD$16+1) -> 5.729178114e-15 | BE31: =INDEX(RevReq!$O$16:$BM$140,MATCH('Earning & Infra Combined'!$A31,RevReq!$C$16:$C$140,0),BE$16+1) -> 5.729178114e-15 | BF31: =INDEX(RevReq!$O$16:$BM$140,MATCH('Earning & Infra Combined'!$A31,RevReq!$C$16:$C$140,0),BF$16+1) -> 5.729178114e-15 | BG31: =INDEX(RevReq!$O$16:$BM$140,MATCH('Earning & Infra Combined'!$A31,RevReq!$C$16:$C$140,0),BG$16+1) -> 5.729178114e-15 | BH31: =INDEX(RevReq!$O$16:$BM$140,MATCH('Earning & Infra Combined'!$A31,RevReq!$C$16:$C$140,0),BH$16+1) -> 5.729178114e-15 | BI31: =INDEX(RevReq!$O$16:$BM$140,MATCH('Earning & Infra Combined'!$A31,RevReq!$C$16:$C$140,0),BI$16+1) -> 5.729178114e-15 | BJ31: =INDEX(RevReq!$O$16:$BM$140,MATCH('Earning & Infra Combined'!$A31,RevReq!$C$16:$C$140,0),BJ$16+1) -> 5.729178114e-15 | BK31: =INDEX(RevReq!$O$16:$BM$140,MATCH('Earning & Infra Combined'!$A31,RevReq!$C$16:$C$140,0),BK$16+1) -> 5.729178114e-15 | BL31: =INDEX(RevReq!$O$16:$BM$140,MATCH('Earning & Infra Combined'!$A31,RevReq!$C$16:$C$140,0),BL$16+1) -> 5.729178114e-15 | BM31: =INDEX(RevReq!$O$16:$BM$140,MATCH('Earning & Infra Combined'!$A31,RevReq!$C$16:$C$140,0),BM$16+1) -> 5.729178114e-15 | BN31: =INDEX(RevReq!$O$16:$BM$140,MATCH('Earning & Infra Combined'!$A31,RevReq!$C$16:$C$140,0),BN$16+1) -> 5.729178114e-15 | BO31: =INDEX(RevReq!$O$16:$BM$140,MATCH('Earning & Infra Combined'!$A31,RevReq!$C$16:$C$140,0),BO$16+1) -> 5.729178114e-15 | BP31: =INDEX(RevReq!$O$16:$BM$140,MATCH('Earning & Infra Combined'!$A31,RevReq!$C$16:$C$140,0),BP$16+1) -> 5.729178114e-15 | BQ31: =INDEX(RevReq!$O$16:$BM$140,MATCH('Earning & Infra Combined'!$A31,RevReq!$C$16:$C$140,0),BQ$16+1) -> 5.729178114e-15 | BR31: =INDEX(RevReq!$O$16:$BM$140,MATCH('Earning & Infra Combined'!$A31,RevReq!$C$16:$C$140,0),BR$16+1) -> 5.729178114e-15 | BS31: =INDEX(RevReq!$O$16:$BM$140,MATCH('Earning & Infra Combined'!$A31,RevReq!$C$16:$C$140,0),BS$16+1) -> 5.729178114e-15 | BT31: =INDEX(RevReq!$O$16:$BM$140,MATCH('Earning & Infra Combined'!$A31,RevReq!$C$16:$C$140,0),BT$16+1) -> 5.729178114e-15 | BU31: =INDEX(RevReq!$O$16:$BM$140,MATCH('Earning & Infra Combined'!$A31,RevReq!$C$16:$C$140,0),BU$16+1) -> 5.729178114e-15 | BV31: =INDEX(RevReq!$O$16:$BM$140,MATCH('Earning & Infra Combined'!$A31,RevReq!$C$16:$C$140,0),BV$16+1) -> 5.729178114e-15 | BW31: =INDEX(RevReq!$O$16:$BM$140,MATCH('Earning & Infra Combined'!$A31,RevReq!$C$16:$C$140,0),BW$16+1) -> 5.729178114e-15 | BX31: =INDEX(RevReq!$O$16:$BM$140,MATCH('Earning & Infra Combined'!$A31,RevReq!$C$16:$C$140,0),BX$16+1) -> 5.729178114e-15 | BY31: =INDEX(RevReq!$O$16:$BM$140,MATCH('Earning & Infra Combined'!$A31,RevReq!$C$16:$C$140,0),BY$16+1) -> 5.729178114e-15 | BZ31: =INDEX(RevReq!$O$16:$BM$140,MATCH('Earning & Infra Combined'!$A31,RevReq!$C$16:$C$140,0),BZ$16+1) -> 5.729178114e-15
K32: Total Information Technology | O32: =SUM(O31:O31) -> 0 | P32: 0 | Q32: 73.63485034 | R32: 26.0653647 | S32: 0 | T32: 0 | U32: 0 | X32: =SUM(X31:X31) -> 113.6320049 | Y32: =SUM(Y31:Y31) -> 117.2692272 | Z32: =SUM(Z31:Z31) -> 200.1868327 | AB32: =SUM(AB31:AB31) -> 0 | AC32: =SUM(AC31:AC31) -> 0 | AD32: 0 | AE32: 13.55058465 | AF32: 14.32189231 | AG32: 13.81945922 | AH32: 13.31702614 | AI32: 12.81459305 | AJ32: 12.31215996 | AK32: 11.80972687 | AL32: 11.30729378 | AM32: 10.80486069 | AN32: 10.30242761 | AO32: 9.799994517 | AP32: 9.297561428 | AQ32: 8.79512834 | AR32: 8.292695251 | AS32: 7.790262163 | AT32: 7.287829074 | AU32: 6.785395986 | AV32: 6.282962897 | AW32: 5.780529809 | AX32: 5.27809672 | AY32: 0.4363522747 | AZ32: 5.729178114e-15 | BA32: 5.729178114e-15 | BB32: 5.729178114e-15 | BC32: 5.729178114e-15 | BD32: 5.729178114e-15 | BE32: 5.729178114e-15 | BF32: 5.729178114e-15 | BG32: 5.729178114e-15 | BH32: 5.729178114e-15 | BI32: 5.729178114e-15 | BJ32: 5.729178114e-15 | BK32: 5.729178114e-15 | BL32: 5.729178114e-15 | BM32: 5.729178114e-15 | BN32: 5.729178114e-15 | BO32: 5.729178114e-15 | BP32: 5.729178114e-15 | BQ32: 5.729178114e-15 | BR32: 5.729178114e-15 | BS32: 5.729178114e-15 | BT32: 5.729178114e-15 | BU32: 5.729178114e-15 | BV32: 5.729178114e-15 | BW32: 5.729178114e-15 | BX32: 5.729178114e-15 | BY32: 5.729178114e-15 | BZ32: 5.729178114e-15
K34: Power Delivery
K35: Growth
A36: =MAX($A$18:A35)+1 -> 8 | B36: ='Earning Summary w. AFUDC'!B36 -> Power Delivery | C36: Reliability | D36: ='Earning Summary w. AFUDC'!D36 -> 2019 | E36: ='Earning Summary w. AFUDC'!E36 -> 2019-01-01 | F36: ='Earning Summary w. AFUDC'!G36 -> 2019-01-01 | G36: ='Earning Summary w. AFUDC'!H36 -> 0.021 | H36: ='Earning Summary w. AFUDC'!I36 -> 0.902581 | K36: ='Earning Summary w. AFUDC'!L36 -> 500kV Improvement | L36: ='Earning Summary w. AFUDC'!M36 -> 201901 | M36: ='Earning Summary w. AFUDC'!N36 -> 0.021 | N36: ='Earning Summary w. AFUDC'!O36 -> 0.902581 | O36: ='Earning Summary w. AFUDC'!P36 -> 0 | P36: ='Earning Summary w. AFUDC'!Q36 -> 0 | Q36: ='Earning Summary w. AFUDC'!R36 -> 328.276065 | R36: ='Earning Summary w. AFUDC'!S36 -> 299.5405888 | S36: ='Earning Summary w. AFUDC'!T36 -> 528.571956 | T36: ='Earning Summary w. AFUDC'!U36 -> 397.2429493 | U36: ='Earning Summary w. AFUDC'!V36 -> 306.9441047 | X36: =Y36*H36 -> 2001.80345 | Y36: =SUMPRODUCT($AB$13:$BZ$13,$AB36:$BZ36) -> 2217.86571 | Z36: =SUM(AB36:BZ36) -> 6284.812199 | AB36: =INDEX(RevReq!$O$16:$BM$140,MATCH('Earning & Infra Combined'!$A36,RevReq!$C$16:$C$140,0),AB$16+1) -> 0 | AC36: =INDEX(RevReq!$O$16:$BM$140,MATCH('Earning & Infra Combined'!$A36,RevReq!$C$16:$C$140,0),AC$16+1) -> 0 | AD36: =INDEX(RevReq!$O$16:$BM$140,MATCH('Earning & Infra Combined'!$A36,RevReq!$C$16:$C$140,0),AD$16+1) -> 39.63292861 | AE36: =INDEX(RevReq!$O$16:$BM$140,MATCH('Earning & Infra Combined'!$A36,RevReq!$C$16:$C$140,0),AE$16+1) -> 75.1017919 | AF36: =INDEX(RevReq!$O$16:$BM$140,MATCH('Earning & Infra Combined'!$A36,RevReq!$C$16:$C$140,0),AF$16+1) -> 137.5877264 | AG36: =INDEX(RevReq!$O$16:$BM$140,MATCH('Earning & Infra Combined'!$A36,RevReq!$C$16:$C$140,0),AG$16+1) -> 183.0994898 | AH36: =INDEX(RevReq!$O$16:$BM$140,MATCH('Earning & Infra Combined'!$A36,RevReq!$C$16:$C$140,0),AH$16+1) -> 216.8686397 | AI36: =INDEX(RevReq!$O$16:$BM$140,MATCH('Earning & Infra Combined'!$A36,RevReq!$C$16:$C$140,0),AI$16+1) -> 212.930612 | AJ36: =INDEX(RevReq!$O$16:$BM$140,MATCH('Earning & Infra Combined'!$A36,RevReq!$C$16:$C$140,0),AJ$16+1) -> 208.9925843 | AK36: =INDEX(RevReq!$O$16:$BM$140,MATCH('Earning & Infra Combined'!$A36,RevReq!$C$16:$C$140,0),AK$16+1) -> 205.0545567 | AL36: =INDEX(RevReq!$O$16:$BM$140,MATCH('Earning & Infra Combined'!$A36,RevReq!$C$16:$C$140,0),AL$16+1) -> 201.116529 | AM36: =INDEX(RevReq!$O$16:$BM$140,MATCH('Earning & Infra Combined'!$A36,RevReq!$C$16:$C$140,0),AM$16+1) -> 197.1785013 | AN36: =INDEX(RevReq!$O$16:$BM$140,MATCH('Earning & Infra Combined'!$A36,RevReq!$C$16:$C$140,0),AN$16+1) -> 193.2404736 | AO36: =INDEX(RevReq!$O$16:$BM$140,MATCH('Earning & Infra Combined'!$A36,RevReq!$C$16:$C$140,0),AO$16+1) -> 189.3024459 | AP36: =INDEX(RevReq!$O$16:$BM$140,MATCH('Earning & Infra Combined'!$A36,RevReq!$C$16:$C$140,0),AP$16+1) -> 185.3644183 | AQ36: =INDEX(RevReq!$O$16:$BM$140,MATCH('Earning & Infra Combined'!$A36,RevReq!$C$16:$C$140,0),AQ$16+1) -> 181.4263906 | AR36: =INDEX(RevReq!$O$16:$BM$140,MATCH('Earning & Infra Combined'!$A36,RevReq!$C$16:$C$140,0),AR$16+1) -> 177.4883629 | AS36: =INDEX(RevReq!$O$16:$BM$140,MATCH('Earning & Infra Combined'!$A36,RevReq!$C$16:$C$140,0),AS$16+1) -> 173.5503352 | AT36: =INDEX(RevReq!$O$16:$BM$140,MATCH('Earning & Infra Combined'!$A36,RevReq!$C$16:$C$140,0),AT$16+1) -> 169.6123075 | AU36: =INDEX(RevReq!$O$16:$BM$140,MATCH('Earning & Infra Combined'!$A36,RevReq!$C$16:$C$140,0),AU$16+1) -> 165.6742799 | AV36: =INDEX(RevReq!$O$16:$BM$140,MATCH('Earning & Infra Combined'!$A36,RevReq!$C$16:$C$140,0),AV$16+1) -> 161.7362522 | AW36: =INDEX(RevReq!$O$16:$BM$140,MATCH('Earning & Infra Combined'!$A36,RevReq!$C$16:$C$140,0),AW$16+1) -> 157.7982245 | AX36: =INDEX(RevReq!$O$16:$BM$140,MATCH('Earning & Infra Combined'!$A36,RevReq!$C$16:$C$140,0),AX$16+1) -> 153.8601968 | AY36: =INDEX(RevReq!$O$16:$BM$140,MATCH('Earning & Infra Combined'!$A36,RevReq!$C$16:$C$140,0),AY$16+1) -> 149.9221692 | AZ36: =INDEX(RevReq!$O$16:$BM$140,MATCH('Earning & Infra Combined'!$A36,RevReq!$C$16:$C$140,0),AZ$16+1) -> 145.9841415 | BA36: =INDEX(RevReq!$O$16:$BM$140,MATCH('Earning & Infra Combined'!$A36,RevReq!$C$16:$C$140,0),BA$16+1) -> 142.0461138 | BB36: =INDEX(RevReq!$O$16:$BM$140,MATCH('Earning & Infra Combined'!$A36,RevReq!$C$16:$C$140,0),BB$16+1) -> 138.1080861 | BC36: =INDEX(RevReq!$O$16:$BM$140,MATCH('Earning & Infra Combined'!$A36,RevReq!$C$16:$C$140,0),BC$16+1) -> 134.1700584 | BD36: =INDEX(RevReq!$O$16:$BM$140,MATCH('Earning & Infra Combined'!$A36,RevReq!$C$16:$C$140,0),BD$16+1) -> 130.2320308 | BE36: =INDEX(RevReq!$O$16:$BM$140,MATCH('Earning & Infra Combined'!$A36,RevReq!$C$16:$C$140,0),BE$16+1) -> 126.2940031 | BF36: =INDEX(RevReq!$O$16:$BM$140,MATCH('Earning & Infra Combined'!$A36,RevReq!$C$16:$C$140,0),BF$16+1) -> 122.3559754 | BG36: =INDEX(RevReq!$O$16:$BM$140,MATCH('Earning & Infra Combined'!$A36,RevReq!$C$16:$C$140,0),BG$16+1) -> 118.4179477 | BH36: =INDEX(RevReq!$O$16:$BM$140,MATCH('Earning & Infra Combined'!$A36,RevReq!$C$16:$C$140,0),BH$16+1) -> 114.47992 | BI36: =INDEX(RevReq!$O$16:$BM$140,MATCH('Earning & Infra Combined'!$A36,RevReq!$C$16:$C$140,0),BI$16+1) -> 110.5418924 | BJ36: =INDEX(RevReq!$O$16:$BM$140,MATCH('Earning & Infra Combined'!$A36,RevReq!$C$16:$C$140,0),BJ$16+1) -> 106.6038647 | BK36: =INDEX(RevReq!$O$16:$BM$140,MATCH('Earning & Infra Combined'!$A36,RevReq!$C$16:$C$140,0),BK$16+1) -> 102.665837 | BL36: =INDEX(RevReq!$O$16:$BM$140,MATCH('Earning & Infra Combined'!$A36,RevReq!$C$16:$C$140,0),BL$16+1) -> 98.72780933 | BM36: =INDEX(RevReq!$O$16:$BM$140,MATCH('Earning & Infra Combined'!$A36,RevReq!$C$16:$C$140,0),BM$16+1) -> 94.78978165 | BN36: =INDEX(RevReq!$O$16:$BM$140,MATCH('Earning & Infra Combined'!$A36,RevReq!$C$16:$C$140,0),BN$16+1) -> 90.85175397 | BO36: =INDEX(RevReq!$O$16:$BM$140,MATCH('Earning & Infra Combined'!$A36,RevReq!$C$16:$C$140,0),BO$16+1) -> 86.91372629 | BP36: =INDEX(RevReq!$O$16:$BM$140,MATCH('Earning & Infra Combined'!$A36,RevReq!$C$16:$C$140,0),BP$16+1) -> 82.97569861 | BQ36: =INDEX(RevReq!$O$16:$BM$140,MATCH('Earning & Infra Combined'!$A36,RevReq!$C$16:$C$140,0),BQ$16+1) -> 79.03767094 | BR36: =INDEX(RevReq!$O$16:$BM$140,MATCH('Earning & Infra Combined'!$A36,RevReq!$C$16:$C$140,0),BR$16+1) -> 75.09964326 | BS36: =INDEX(RevReq!$O$16:$BM$140,MATCH('Earning & Infra Combined'!$A36,RevReq!$C$16:$C$140,0),BS$16+1) -> 71.16161558 | BT36: =INDEX(RevReq!$O$16:$BM$140,MATCH('Earning & Infra Combined'!$A36,RevReq!$C$16:$C$140,0),BT$16+1) -> 67.2235879 | BU36: =INDEX(RevReq!$O$16:$BM$140,MATCH('Earning & Infra Combined'!$A36,RevReq!$C$16:$C$140,0),BU$16+1) -> 63.28556022 | BV36: =INDEX(RevReq!$O$16:$BM$140,MATCH('Earning & Infra Combined'!$A36,RevReq!$C$16:$C$140,0),BV$16+1) -> 59.34753254 | BW36: =INDEX(RevReq!$O$16:$BM$140,MATCH('Earning & Infra Combined'!$A36,RevReq!$C$16:$C$140,0),BW$16+1) -> 55.40950486 | BX36: =INDEX(RevReq!$O$16:$BM$140,MATCH('Earning & Infra Combined'!$A36,RevReq!$C$16:$C$140,0),BX$16+1) -> 51.47147718 | BY36: =INDEX(RevReq!$O$16:$BM$140,MATCH('Earning & Infra Combined'!$A36,RevReq!$C$16:$C$140,0),BY$16+1) -> 45.03958714 | BZ36: =INDEX(RevReq!$O$16:$BM$140,MATCH('Earning & Infra Combined'!$A36,RevReq!$C$16:$C$140,0),BZ$16+1) -> 35.03816205
A37: =MAX($A$18:A36)+1 -> 9 | B37: ='Earning Summary w. AFUDC'!B37 -> Power Delivery | C37: ='Earning Summary w. AFUDC'!C37 -> Growth | D37: ='Earning Summary w. AFUDC'!D37 -> 2017 | E37: ='Earning Summary w. AFUDC'!E37 -> 2017-01-01 | F37: ='Earning Summary w. AFUDC'!G37 -> 2019-04-01 | G37: ='Earning Summary w. AFUDC'!H37 -> 0.021 | H37: ='Earning Summary w. AFUDC'!I37 -> 0.902581 | K37: ='Earning Summary w. AFUDC'!L37 -> Corbett-Sugar-Quarry 500 KV Line | L37: ='Earning Summary w. AFUDC'!M37 -> 201904 | M37: ='Earning Summary w. AFUDC'!N37 -> 0.021 | N37: ='Earning Summary w. AFUDC'!O37 -> 0.902581 | O37: ='Earning Summary w. AFUDC'!P37 -> 44.13881846 | P37: ='Earning Summary w. AFUDC'!Q37 -> 194.1437181 | Q37: ='Earning Summary w. AFUDC'!R37 -> 32.32712014 | R37: ='Earning Summary w. AFUDC'!S37 -> 0.19022076 | S37: ='Earning Summary w. AFUDC'!T37 -> 0 | T37: ='Earning Summary w. AFUDC'!U37 -> 0 | U37: ='Earning Summary w. AFUDC'!V37 -> 0 | X37: 330.3301792 | Y37: 365.9839717 | Z37: 920.626039 | AB37: =INDEX(RevReq!$O$16:$BM$140,MATCH('Earning & Infra Combined'!$A37,RevReq!$C$16:$C$140,0),AB$16+1) -> 0 | AC37: =INDEX(RevReq!$O$16:$BM$140,MATCH('Earning & Infra Combined'!$A37,RevReq!$C$16:$C$140,0),AC$16+1) -> 0 | AD37: =INDEX(RevReq!$O$16:$BM$140,MATCH('Earning & Infra Combined'!$A37,RevReq!$C$16:$C$140,0),AD$16+1) -> 24.50312637 | AE37: =INDEX(RevReq!$O$16:$BM$140,MATCH('Earning & Infra Combined'!$A37,RevReq!$C$16:$C$140,0),AE$16+1) -> 32.25848722 | AF37: =INDEX(RevReq!$O$16:$BM$140,MATCH('Earning & Infra Combined'!$A37,RevReq!$C$16:$C$140,0),AF$16+1) -> 31.69116394 | AG37: =INDEX(RevReq!$O$16:$BM$140,MATCH('Earning & Infra Combined'!$A37,RevReq!$C$16:$C$140,0),AG$16+1) -> 31.11799863 | AH37: =INDEX(RevReq!$O$16:$BM$140,MATCH('Earning & Infra Combined'!$A37,RevReq!$C$16:$C$140,0),AH$16+1) -> 30.54483333 | AI37: =INDEX(RevReq!$O$16:$BM$140,MATCH('Earning & Infra Combined'!$A37,RevReq!$C$16:$C$140,0),AI$16+1) -> 29.97166803 | AJ37: =INDEX(RevReq!$O$16:$BM$140,MATCH('Earning & Infra Combined'!$A37,RevReq!$C$16:$C$140,0),AJ$16+1) -> 29.39850273 | AK37: =INDEX(RevReq!$O$16:$BM$140,MATCH('Earning & Infra Combined'!$A37,RevReq!$C$16:$C$140,0),AK$16+1) -> 28.82533742 | AL37: =INDEX(RevReq!$O$16:$BM$140,MATCH('Earning & Infra Combined'!$A37,RevReq!$C$16:$C$140,0),AL$16+1) -> 28.25217212 | AM37: =INDEX(RevReq!$O$16:$BM$140,MATCH('Earning & Infra Combined'!$A37,RevReq!$C$16:$C$140,0),AM$16+1) -> 27.67900682 | AN37: =INDEX(RevReq!$O$16:$BM$140,MATCH('Earning & Infra Combined'!$A37,RevReq!$C$16:$C$140,0),AN$16+1) -> 27.10584152 | AO37: =INDEX(RevReq!$O$16:$BM$140,MATCH('Earning & Infra Combined'!$A37,RevReq!$C$16:$C$140,0),AO$16+1) -> 26.53267622 | AP37: =INDEX(RevReq!$O$16:$BM$140,MATCH('Earning & Infra Combined'!$A37,RevReq!$C$16:$C$140,0),AP$16+1) -> 25.95951091 | AQ37: =INDEX(RevReq!$O$16:$BM$140,MATCH('Earning & Infra Combined'!$A37,RevReq!$C$16:$C$140,0),AQ$16+1) -> 25.38634561 | AR37: =INDEX(RevReq!$O$16:$BM$140,MATCH('Earning & Infra Combined'!$A37,RevReq!$C$16:$C$140,0),AR$16+1) -> 24.81318031 | AS37: =INDEX(RevReq!$O$16:$BM$140,MATCH('Earning & Infra Combined'!$A37,RevReq!$C$16:$C$140,0),AS$16+1) -> 24.24001501 | AT37: =INDEX(RevReq!$O$16:$BM$140,MATCH('Earning & Infra Combined'!$A37,RevReq!$C$16:$C$140,0),AT$16+1) -> 23.6668497 | AU37: =INDEX(RevReq!$O$16:$BM$140,MATCH('Earning & Infra Combined'!$A37,RevReq!$C$16:$C$140,0),AU$16+1) -> 23.0936844 | AV37: =INDEX(RevReq!$O$16:$BM$140,MATCH('Earning & Infra Combined'!$A37,RevReq!$C$16:$C$140,0),AV$16+1) -> 22.5205191 | AW37: =INDEX(RevReq!$O$16:$BM$140,MATCH('Earning & Infra Combined'!$A37,RevReq!$C$16:$C$140,0),AW$16+1) -> 21.9473538 | AX37: =INDEX(RevReq!$O$16:$BM$140,MATCH('Earning & Infra Combined'!$A37,RevReq!$C$16:$C$140,0),AX$16+1) -> 21.37418849 | AY37: =INDEX(RevReq!$O$16:$BM$140,MATCH('Earning & Infra Combined'!$A37,RevReq!$C$16:$C$140,0),AY$16+1) -> 20.80102319 | AZ37: =INDEX(RevReq!$O$16:$BM$140,MATCH('Earning & Infra Combined'!$A37,RevReq!$C$16:$C$140,0),AZ$16+1) -> 20.22785789 | BA37: =INDEX(RevReq!$O$16:$BM$140,MATCH('Earning & Infra Combined'!$A37,RevReq!$C$16:$C$140,0),BA$16+1) -> 19.65469259 | BB37: =INDEX(RevReq!$O$16:$BM$140,MATCH('Earning & Infra Combined'!$A37,RevReq!$C$16:$C$140,0),BB$16+1) -> 19.08152728 | BC37: =INDEX(RevReq!$O$16:$BM$140,MATCH('Earning & Infra Combined'!$A37,RevReq!$C$16:$C$140,0),BC$16+1) -> 18.50836198 | BD37: =INDEX(RevReq!$O$16:$BM$140,MATCH('Earning & Infra Combined'!$A37,RevReq!$C$16:$C$140,0),BD$16+1) -> 17.93519668 | BE37: =INDEX(RevReq!$O$16:$BM$140,MATCH('Earning & Infra Combined'!$A37,RevReq!$C$16:$C$140,0),BE$16+1) -> 17.36203138 | BF37: =INDEX(RevReq!$O$16:$BM$140,MATCH('Earning & Infra Combined'!$A37,RevReq!$C$16:$C$140,0),BF$16+1) -> 16.78886608 | BG37: =INDEX(RevReq!$O$16:$BM$140,MATCH('Earning & Infra Combined'!$A37,RevReq!$C$16:$C$140,0),BG$16+1) -> 16.21570077 | BH37: =INDEX(RevReq!$O$16:$BM$140,MATCH('Earning & Infra Combined'!$A37,RevReq!$C$16:$C$140,0),BH$16+1) -> 15.64253547 | BI37: =INDEX(RevReq!$O$16:$BM$140,MATCH('Earning & Infra Combined'!$A37,RevReq!$C$16:$C$140,0),BI$16+1) -> 15.06937017 | BJ37: =INDEX(RevReq!$O$16:$BM$140,MATCH('Earning & Infra Combined'!$A37,RevReq!$C$16:$C$140,0),BJ$16+1) -> 14.49620487 | BK37: =INDEX(RevReq!$O$16:$BM$140,MATCH('Earning & Infra Combined'!$A37,RevReq!$C$16:$C$140,0),BK$16+1) -> 13.92303956 | BL37: =INDEX(RevReq!$O$16:$BM$140,MATCH('Earning & Infra Combined'!$A37,RevReq!$C$16:$C$140,0),BL$16+1) -> 13.34987426 | BM37: =INDEX(RevReq!$O$16:$BM$140,MATCH('Earning & Infra Combined'!$A37,RevReq!$C$16:$C$140,0),BM$16+1) -> 12.77670896 | BN37: =INDEX(RevReq!$O$16:$BM$140,MATCH('Earning & Infra Combined'!$A37,RevReq!$C$16:$C$140,0),BN$16+1) -> 12.20354366 | BO37: =INDEX(RevReq!$O$16:$BM$140,MATCH('Earning & Infra Combined'!$A37,RevReq!$C$16:$C$140,0),BO$16+1) -> 11.63037835 | BP37: =INDEX(RevReq!$O$16:$BM$140,MATCH('Earning & Infra Combined'!$A37,RevReq!$C$16:$C$140,0),BP$16+1) -> 11.05721305 | BQ37: =INDEX(RevReq!$O$16:$BM$140,MATCH('Earning & Infra Combined'!$A37,RevReq!$C$16:$C$140,0),BQ$16+1) -> 10.48404775 | BR37: =INDEX(RevReq!$O$16:$BM$140,MATCH('Earning & Infra Combined'!$A37,RevReq!$C$16:$C$140,0),BR$16+1) -> 9.910882448 | BS37: =INDEX(RevReq!$O$16:$BM$140,MATCH('Earning & Infra Combined'!$A37,RevReq!$C$16:$C$140,0),BS$16+1) -> 9.337717145 | BT37: =INDEX(RevReq!$O$16:$BM$140,MATCH('Earning & Infra Combined'!$A37,RevReq!$C$16:$C$140,0),BT$16+1) -> 8.764551843 | BU37: =INDEX(RevReq!$O$16:$BM$140,MATCH('Earning & Infra Combined'!$A37,RevReq!$C$16:$C$140,0),BU$16+1) -> 8.191386541 | BV37: =INDEX(RevReq!$O$16:$BM$140,MATCH('Earning & Infra Combined'!$A37,RevReq!$C$16:$C$140,0),BV$16+1) -> 7.618221238 | BW37: =INDEX(RevReq!$O$16:$BM$140,MATCH('Earning & Infra Combined'!$A37,RevReq!$C$16:$C$140,0),BW$16+1) -> 7.045055936 | BX37: =INDEX(RevReq!$O$16:$BM$140,MATCH('Earning & Infra Combined'!$A37,RevReq!$C$16:$C$140,0),BX$16+1) -> 6.471890634 | BY37: =INDEX(RevReq!$O$16:$BM$140,MATCH('Earning & Infra Combined'!$A37,RevReq!$C$16:$C$140,0),BY$16+1) -> 5.192051094 | BZ37: =INDEX(RevReq!$O$16:$BM$140,MATCH('Earning & Infra Combined'!$A37,RevReq!$C$16:$C$140,0),BZ$16+1) -> 0.003646474428
A38: =MAX($A$18:A37)+1 -> 10 | B38: ='Earning Summary w. AFUDC'!B38 -> Power Delivery | C38: ='Earning Summary w. AFUDC'!C38 -> Growth | D38: ='Earning Summary w. AFUDC'!D38 -> 2017 | E38: ='Earning Summary w. AFUDC'!E38 -> 2017-01-01 | F38: ='Earning Summary w. AFUDC'!G38 -> 2020-05-01 | G38: ='Earning Summary w. AFUDC'!H38 -> 0.021 | H38: ='Earning Summary w. AFUDC'!I38 -> 0.902581 | K38: ='Earning Summary w. AFUDC'!L38 -> Eau-Gallie Injection | L38: ='Earning Summary w. AFUDC'!M38 -> 202005 | M38: ='Earning Summary w. AFUDC'!N38 -> 0.021 | N38: ='Earning Summary w. AFUDC'!O38 -> 0.902581 | O38: ='Earning Summary w. AFUDC'!P38 -> 0.06174555 | P38: ='Earning Summary w. AFUDC'!Q38 -> 0.47433687 | Q38: ='Earning Summary w. AFUDC'!R38 -> 8.67194285 | R38: ='Earning Summary w. AFUDC'!S38 -> 24.05210666 | S38: ='Earning Summary w. AFUDC'!T38 -> 0 | T38: ='Earning Summary w. AFUDC'!U38 -> 0 | U38: ='Earning Summary w. AFUDC'!V38 -> 0 | X38: 37.50892741 | Y38: 41.5574086 | Z38: 113.0693277 | AB38: =INDEX(RevReq!$O$16:$BM$140,MATCH('Earning & Infra Combined'!$A38,RevReq!$C$16:$C$140,0),AB$16+1) -> 0 | AC38: =INDEX(RevReq!$O$16:$BM$140,MATCH('Earning & Infra Combined'!$A38,RevReq!$C$16:$C$140,0),AC$16+1) -> 0 | AD38: =INDEX(RevReq!$O$16:$BM$140,MATCH('Earning & Infra Combined'!$A38,RevReq!$C$16:$C$140,0),AD$16+1) -> 0 | AE38: =INDEX(RevReq!$O$16:$BM$140,MATCH('Earning & Infra Combined'!$A38,RevReq!$C$16:$C$140,0),AE$16+1) -> 2.677007911 | AF38: =INDEX(RevReq!$O$16:$BM$140,MATCH('Earning & Infra Combined'!$A38,RevReq!$C$16:$C$140,0),AF$16+1) -> 3.968580398 | AG38: =INDEX(RevReq!$O$16:$BM$140,MATCH('Earning & Infra Combined'!$A38,RevReq!$C$16:$C$140,0),AG$16+1) -> 3.898183197 | AH38: =INDEX(RevReq!$O$16:$BM$140,MATCH('Earning & Infra Combined'!$A38,RevReq!$C$16:$C$140,0),AH$16+1) -> 3.827785995 | AI38: =INDEX(RevReq!$O$16:$BM$140,MATCH('Earning & Infra Combined'!$A38,RevReq!$C$16:$C$140,0),AI$16+1) -> 3.757388793 | AJ38: =INDEX(RevReq!$O$16:$BM$140,MATCH('Earning & Infra Combined'!$A38,RevReq!$C$16:$C$140,0),AJ$16+1) -> 3.686991592 | AK38: =INDEX(RevReq!$O$16:$BM$140,MATCH('Earning & Infra Combined'!$A38,RevReq!$C$16:$C$140,0),AK$16+1) -> 3.61659439 | AL38: =INDEX(RevReq!$O$16:$BM$140,MATCH('Earning & Infra Combined'!$A38,RevReq!$C$16:$C$140,0),AL$16+1) -> 3.546197188 | AM38: =INDEX(RevReq!$O$16:$BM$140,MATCH('Earning & Infra Combined'!$A38,RevReq!$C$16:$C$140,0),AM$16+1) -> 3.475799987 | AN38: =INDEX(RevReq!$O$16:$BM$140,MATCH('Earning & Infra Combined'!$A38,RevReq!$C$16:$C$140,0),AN$16+1) -> 3.405402785 | AO38: =INDEX(RevReq!$O$16:$BM$140,MATCH('Earning & Infra Combined'!$A38,RevReq!$C$16:$C$140,0),AO$16+1) -> 3.335005584 | AP38: =INDEX(RevReq!$O$16:$BM$140,MATCH('Earning & Infra Combined'!$A38,RevReq!$C$16:$C$140,0),AP$16+1) -> 3.264608382 | AQ38: =INDEX(RevReq!$O$16:$BM$140,MATCH('Earning & Infra Combined'!$A38,RevReq!$C$16:$C$140,0),AQ$16+1) -> 3.19421118 | AR38: =INDEX(RevReq!$O$16:$BM$140,MATCH('Earning & Infra Combined'!$A38,RevReq!$C$16:$C$140,0),AR$16+1) -> 3.123813979 | AS38: =INDEX(RevReq!$O$16:$BM$140,MATCH('Earning & Infra Combined'!$A38,RevReq!$C$16:$C$140,0),AS$16+1) -> 3.053416777 | AT38: =INDEX(RevReq!$O$16:$BM$140,MATCH('Earning & Infra Combined'!$A38,RevReq!$C$16:$C$140,0),AT$16+1) -> 2.983019576 | AU38: =INDEX(RevReq!$O$16:$BM$140,MATCH('Earning & Infra Combined'!$A38,RevReq!$C$16:$C$140,0),AU$16+1) -> 2.912622374 | AV38: =INDEX(RevReq!$O$16:$BM$140,MATCH('Earning & Infra Combined'!$A38,RevReq!$C$16:$C$140,0),AV$16+1) -> 2.842225172 | AW38: =INDEX(RevReq!$O$16:$BM$140,MATCH('Earning & Infra Combined'!$A38,RevReq!$C$16:$C$140,0),AW$16+1) -> 2.771827971 | AX38: =INDEX(RevReq!$O$16:$BM$140,MATCH('Earning & Infra Combined'!$A38,RevReq!$C$16:$C$140,0),AX$16+1) -> 2.701430769 | AY38: =INDEX(RevReq!$O$16:$BM$140,MATCH('Earning & Infra Combined'!$A38,RevReq!$C$16:$C$140,0),AY$16+1) -> 2.631033567 | AZ38: =INDEX(RevReq!$O$16:$BM$140,MATCH('Earning & Infra Combined'!$A38,RevReq!$C$16:$C$140,0),AZ$16+1) -> 2.560636366 | BA38: =INDEX(RevReq!$O$16:$BM$140,MATCH('Earning & Infra Combined'!$A38,RevReq!$C$16:$C$140,0),BA$16+1) -> 2.490239164 | BB38: =INDEX(RevReq!$O$16:$BM$140,MATCH('Earning & Infra Combined'!$A38,RevReq!$C$16:$C$140,0),BB$16+1) -> 2.419841963 | BC38: =INDEX(RevReq!$O$16:$BM$140,MATCH('Earning & Infra Combined'!$A38,RevReq!$C$16:$C$140,0),BC$16+1) -> 2.349444761 | BD38: =INDEX(RevReq!$O$16:$BM$140,MATCH('Earning & Infra Combined'!$A38,RevReq!$C$16:$C$140,0),BD$16+1) -> 2.279047559 | BE38: =INDEX(RevReq!$O$16:$BM$140,MATCH('Earning & Infra Combined'!$A38,RevReq!$C$16:$C$140,0),BE$16+1) -> 2.208650358 | BF38: =INDEX(RevReq!$O$16:$BM$140,MATCH('Earning & Infra Combined'!$A38,RevReq!$C$16:$C$140,0),BF$16+1) -> 2.138253156 | BG38: =INDEX(RevReq!$O$16:$BM$140,MATCH('Earning & Infra Combined'!$A38,RevReq!$C$16:$C$140,0),BG$16+1) -> 2.067855954 | BH38: =INDEX(RevReq!$O$16:$BM$140,MATCH('Earning & Infra Combined'!$A38,RevReq!$C$16:$C$140,0),BH$16+1) -> 1.997458753 | BI38: =INDEX(RevReq!$O$16:$BM$140,MATCH('Earning & Infra Combined'!$A38,RevReq!$C$16:$C$140,0),BI$16+1) -> 1.927061551 | BJ38: =INDEX(RevReq!$O$16:$BM$140,MATCH('Earning & Infra Combined'!$A38,RevReq!$C$16:$C$140,0),BJ$16+1) -> 1.85666435 | BK38: =INDEX(RevReq!$O$16:$BM$140,MATCH('Earning & Infra Combined'!$A38,RevReq!$C$16:$C$140,0),BK$16+1) -> 1.786267148 | BL38: =INDEX(RevReq!$O$16:$BM$140,MATCH('Earning & Infra Combined'!$A38,RevReq!$C$16:$C$140,0),BL$16+1) -> 1.715869946 | BM38: =INDEX(RevReq!$O$16:$BM$140,MATCH('Earning & Infra Combined'!$A38,RevReq!$C$16:$C$140,0),BM$16+1) -> 1.645472745 | BN38: =INDEX(RevReq!$O$16:$BM$140,MATCH('Earning & Infra Combined'!$A38,RevReq!$C$16:$C$140,0),BN$16+1) -> 1.575075543 | BO38: =INDEX(RevReq!$O$16:$BM$140,MATCH('Earning & Infra Combined'!$A38,RevReq!$C$16:$C$140,0),BO$16+1) -> 1.504678341 | BP38: =INDEX(RevReq!$O$16:$BM$140,MATCH('Earning & Infra Combined'!$A38,RevReq!$C$16:$C$140,0),BP$16+1) -> 1.43428114 | BQ38: =INDEX(RevReq!$O$16:$BM$140,MATCH('Earning & Infra Combined'!$A38,RevReq!$C$16:$C$140,0),BQ$16+1) -> 1.363883938 | BR38: =INDEX(RevReq!$O$16:$BM$140,MATCH('Earning & Infra Combined'!$A38,RevReq!$C$16:$C$140,0),BR$16+1) -> 1.293486737 | BS38: =INDEX(RevReq!$O$16:$BM$140,MATCH('Earning & Infra Combined'!$A38,RevReq!$C$16:$C$140,0),BS$16+1) -> 1.223089535 | BT38: =INDEX(RevReq!$O$16:$BM$140,MATCH('Earning & Infra Combined'!$A38,RevReq!$C$16:$C$140,0),BT$16+1) -> 1.152692333 | BU38: =INDEX(RevReq!$O$16:$BM$140,MATCH('Earning & Infra Combined'!$A38,RevReq!$C$16:$C$140,0),BU$16+1) -> 1.082295132 | BV38: =INDEX(RevReq!$O$16:$BM$140,MATCH('Earning & Infra Combined'!$A38,RevReq!$C$16:$C$140,0),BV$16+1) -> 1.01189793 | BW38: =INDEX(RevReq!$O$16:$BM$140,MATCH('Earning & Infra Combined'!$A38,RevReq!$C$16:$C$140,0),BW$16+1) -> 0.9415007285 | BX38: =INDEX(RevReq!$O$16:$BM$140,MATCH('Earning & Infra Combined'!$A38,RevReq!$C$16:$C$140,0),BX$16+1) -> 0.8711035269 | BY38: =INDEX(RevReq!$O$16:$BM$140,MATCH('Earning & Infra Combined'!$A38,RevReq!$C$16:$C$140,0),BY$16+1) -> 0.8007063253 | BZ38: =INDEX(RevReq!$O$16:$BM$140,MATCH('Earning & Infra Combined'!$A38,RevReq!$C$16:$C$140,0),BZ$16+1) -> 0.6987251156
A39: =MAX($A$18:A38)+1 -> 11 | B39: ='Earning Summary w. AFUDC'!B39 -> Power Delivery | C39: ='Earning Summary w. AFUDC'!C39 -> Growth | D39: ='Earning Summary w. AFUDC'!D39 -> 2017 | E39: ='Earning Summary w. AFUDC'!E39 -> 2017-01-01 | F39: ='Earning Summary w. AFUDC'!G39 -> 2020-12-01 | G39: ='Earning Summary w. AFUDC'!H39 -> 0.021 | H39: ='Earning Summary w. AFUDC'!I39 -> 0.902581 | K39: ='Earning Summary w. AFUDC'!L39 -> North Project | L39: ='Earning Summary w. AFUDC'!M39 -> 202012 | M39: ='Earning Summary w. AFUDC'!N39 -> 0.021 | N39: ='Earning Summary w. AFUDC'!O39 -> 0.902581 | O39: ='Earning Summary w. AFUDC'!P39 -> 17.98390291 | P39: ='Earning Summary w. AFUDC'!Q39 -> 99.03452288 | Q39: ='Earning Summary w. AFUDC'!R39 -> 118.5009072 | R39: ='Earning Summary w. AFUDC'!S39 -> 55.83289706 | S39: ='Earning Summary w. AFUDC'!T39 -> 0 | T39: ='Earning Summary w. AFUDC'!U39 -> 0 | U39: ='Earning Summary w. AFUDC'!V39 -> 0 | X39: 314.7405802 | Y39: 348.7117281 | Z39: 987.1299068 | AB39: =INDEX(RevReq!$O$16:$BM$140,MATCH('Earning & Infra Combined'!$A39,RevReq!$C$16:$C$140,0),AB$16+1) -> 0 | AC39: =INDEX(RevReq!$O$16:$BM$140,MATCH('Earning & Infra Combined'!$A39,RevReq!$C$16:$C$140,0),AC$16+1) -> 0 | AD39: =INDEX(RevReq!$O$16:$BM$140,MATCH('Earning & Infra Combined'!$A39,RevReq!$C$16:$C$140,0),AD$16+1) -> 0 | AE39: =INDEX(RevReq!$O$16:$BM$140,MATCH('Earning & Infra Combined'!$A39,RevReq!$C$16:$C$140,0),AE$16+1) -> 2.931258008 | AF39: =INDEX(RevReq!$O$16:$BM$140,MATCH('Earning & Infra Combined'!$A39,RevReq!$C$16:$C$140,0),AF$16+1) -> 35.12370729 | AG39: =INDEX(RevReq!$O$16:$BM$140,MATCH('Earning & Infra Combined'!$A39,RevReq!$C$16:$C$140,0),AG$16+1) -> 34.50704161 | AH39: =INDEX(RevReq!$O$16:$BM$140,MATCH('Earning & Infra Combined'!$A39,RevReq!$C$16:$C$140,0),AH$16+1) -> 33.89037594 | AI39: =INDEX(RevReq!$O$16:$BM$140,MATCH('Earning & Infra Combined'!$A39,RevReq!$C$16:$C$140,0),AI$16+1) -> 33.27371027 | AJ39: =INDEX(RevReq!$O$16:$BM$140,MATCH('Earning & Infra Combined'!$A39,RevReq!$C$16:$C$140,0),AJ$16+1) -> 32.65704459 | AK39: =INDEX(RevReq!$O$16:$BM$140,MATCH('Earning & Infra Combined'!$A39,RevReq!$C$16:$C$140,0),AK$16+1) -> 32.04037892 | AL39: =INDEX(RevReq!$O$16:$BM$140,MATCH('Earning & Infra Combined'!$A39,RevReq!$C$16:$C$140,0),AL$16+1) -> 31.42371324 | AM39: =INDEX(RevReq!$O$16:$BM$140,MATCH('Earning & Infra Combined'!$A39,RevReq!$C$16:$C$140,0),AM$16+1) -> 30.80704757 | AN39: =INDEX(RevReq!$O$16:$BM$140,MATCH('Earning & Infra Combined'!$A39,RevReq!$C$16:$C$140,0),AN$16+1) -> 30.19038189 | AO39: =INDEX(RevReq!$O$16:$BM$140,MATCH('Earning & Infra Combined'!$A39,RevReq!$C$16:$C$140,0),AO$16+1) -> 29.57371622 | AP39: =INDEX(RevReq!$O$16:$BM$140,MATCH('Earning & Infra Combined'!$A39,RevReq!$C$16:$C$140,0),AP$16+1) -> 28.95705055 | AQ39: =INDEX(RevReq!$O$16:$BM$140,MATCH('Earning & Infra Combined'!$A39,RevReq!$C$16:$C$140,0),AQ$16+1) -> 28.34038487 | AR39: =INDEX(RevReq!$O$16:$BM$140,MATCH('Earning & Infra Combined'!$A39,RevReq!$C$16:$C$140,0),AR$16+1) -> 27.7237192 | AS39: =INDEX(RevReq!$O$16:$BM$140,MATCH('Earning & Infra Combined'!$A39,RevReq!$C$16:$C$140,0),AS$16+1) -> 27.10705352 | AT39: =INDEX(RevReq!$O$16:$BM$140,MATCH('Earning & Infra Combined'!$A39,RevReq!$C$16:$C$140,0),AT$16+1) -> 26.49038785 | AU39: =INDEX(RevReq!$O$16:$BM$140,MATCH('Earning & Infra Combined'!$A39,RevReq!$C$16:$C$140,0),AU$16+1) -> 25.87372218 | AV39: =INDEX(RevReq!$O$16:$BM$140,MATCH('Earning & Infra Combined'!$A39,RevReq!$C$16:$C$140,0),AV$16+1) -> 25.2570565 | AW39: =INDEX(RevReq!$O$16:$BM$140,MATCH('Earning & Infra Combined'!$A39,RevReq!$C$16:$C$140,0),AW$16+1) -> 24.64039083 | AX39: =INDEX(RevReq!$O$16:$BM$140,MATCH('Earning & Infra Combined'!$A39,RevReq!$C$16:$C$140,0),AX$16+1) -> 24.02372515 | AY39: =INDEX(RevReq!$O$16:$BM$140,MATCH('Earning & Infra Combined'!$A39,RevReq!$C$16:$C$140,0),AY$16+1) -> 23.40705948 | AZ39: =INDEX(RevReq!$O$16:$BM$140,MATCH('Earning & Infra Combined'!$A39,RevReq!$C$16:$C$140,0),AZ$16+1) -> 22.79039381 | BA39: =INDEX(RevReq!$O$16:$BM$140,MATCH('Earning & Infra Combined'!$A39,RevReq!$C$16:$C$140,0),BA$16+1) -> 22.17372813 | BB39: =INDEX(RevReq!$O$16:$BM$140,MATCH('Earning & Infra Combined'!$A39,RevReq!$C$16:$C$140,0),BB$16+1) -> 21.55706246 | BC39: =INDEX(RevReq!$O$16:$BM$140,MATCH('Earning & Infra Combined'!$A39,RevReq!$C$16:$C$140,0),BC$16+1) -> 20.94039678 | BD39: =INDEX(RevReq!$O$16:$BM$140,MATCH('Earning & Infra Combined'!$A39,RevReq!$C$16:$C$140,0),BD$16+1) -> 20.32373111 | BE39: =INDEX(RevReq!$O$16:$BM$140,MATCH('Earning & Infra Combined'!$A39,RevReq!$C$16:$C$140,0),BE$16+1) -> 19.70706543 | BF39: =INDEX(RevReq!$O$16:$BM$140,MATCH('Earning & Infra Combined'!$A39,RevReq!$C$16:$C$140,0),BF$16+1) -> 19.09039976 | BG39: =INDEX(RevReq!$O$16:$BM$140,MATCH('Earning & Infra Combined'!$A39,RevReq!$C$16:$C$140,0),BG$16+1) -> 18.47373409 | BH39: =INDEX(RevReq!$O$16:$BM$140,MATCH('Earning & Infra Combined'!$A39,RevReq!$C$16:$C$140,0),BH$16+1) -> 17.85706841 | BI39: =INDEX(RevReq!$O$16:$BM$140,MATCH('Earning & Infra Combined'!$A39,RevReq!$C$16:$C$140,0),BI$16+1) -> 17.24040274 | BJ39: =INDEX(RevReq!$O$16:$BM$140,MATCH('Earning & Infra Combined'!$A39,RevReq!$C$16:$C$140,0),BJ$16+1) -> 16.62373706 | BK39: =INDEX(RevReq!$O$16:$BM$140,MATCH('Earning & Infra Combined'!$A39,RevReq!$C$16:$C$140,0),BK$16+1) -> 16.00707139 | BL39: =INDEX(RevReq!$O$16:$BM$140,MATCH('Earning & Infra Combined'!$A39,RevReq!$C$16:$C$140,0),BL$16+1) -> 15.39040572 | BM39: =INDEX(RevReq!$O$16:$BM$140,MATCH('Earning & Infra Combined'!$A39,RevReq!$C$16:$C$140,0),BM$16+1) -> 14.77374004 | BN39: =INDEX(RevReq!$O$16:$BM$140,MATCH('Earning & Infra Combined'!$A39,RevReq!$C$16:$C$140,0),BN$16+1) -> 14.15707437 | BO39: =INDEX(RevReq!$O$16:$BM$140,MATCH('Earning & Infra Combined'!$A39,RevReq!$C$16:$C$140,0),BO$16+1) -> 13.54040869 | BP39: =INDEX(RevReq!$O$16:$BM$140,MATCH('Earning & Infra Combined'!$A39,RevReq!$C$16:$C$140,0),BP$16+1) -> 12.92374302 | BQ39: =INDEX(RevReq!$O$16:$BM$140,MATCH('Earning & Infra Combined'!$A39,RevReq!$C$16:$C$140,0),BQ$16+1) -> 12.30707735 | BR39: =INDEX(RevReq!$O$16:$BM$140,MATCH('Earning & Infra Combined'!$A39,RevReq!$C$16:$C$140,0),BR$16+1) -> 11.69041167 | BS39: =INDEX(RevReq!$O$16:$BM$140,MATCH('Earning & Infra Combined'!$A39,RevReq!$C$16:$C$140,0),BS$16+1) -> 11.073746 | BT39: =INDEX(RevReq!$O$16:$BM$140,MATCH('Earning & Infra Combined'!$A39,RevReq!$C$16:$C$140,0),BT$16+1) -> 10.45708032 | BU39: =INDEX(RevReq!$O$16:$BM$140,MATCH('Earning & Infra Combined'!$A39,RevReq!$C$16:$C$140,0),BU$16+1) -> 9.840414649 | BV39: =INDEX(RevReq!$O$16:$BM$140,MATCH('Earning & Infra Combined'!$A39,RevReq!$C$16:$C$140,0),BV$16+1) -> 9.223748975 | BW39: =INDEX(RevReq!$O$16:$BM$140,MATCH('Earning & Infra Combined'!$A39,RevReq!$C$16:$C$140,0),BW$16+1) -> 8.607083301 | BX39: =INDEX(RevReq!$O$16:$BM$140,MATCH('Earning & Infra Combined'!$A39,RevReq!$C$16:$C$140,0),BX$16+1) -> 7.990417626 | BY39: =INDEX(RevReq!$O$16:$BM$140,MATCH('Earning & Infra Combined'!$A39,RevReq!$C$16:$C$140,0),BY$16+1) -> 7.373751952 | BZ39: =INDEX(RevReq!$O$16:$BM$140,MATCH('Earning & Infra Combined'!$A39,RevReq!$C$16:$C$140,0),BZ$16+1) -> 6.757086278
A40: =MAX($A$18:A39)+1 -> 12 | B40: ='Earning Summary w. AFUDC'!B40 -> Power Delivery | C40: ='Earning Summary w. AFUDC'!C40 -> Growth | D40: ='Earning Summary w. AFUDC'!D40 -> 2019 | E40: ='Earning Summary w. AFUDC'!E40 -> 2019-01-01 | F40: ='Earning Summary w. AFUDC'!G40 -> 2020-07-01 | G40: ='Earning Summary w. AFUDC'!H40 -> 0.049 | H40: ='Earning Summary w. AFUDC'!I40 -> 0.959314 | K40: ='Earning Summary w. AFUDC'!L40 -> PTN 3 & 4 Generation Projects | L40: ='Earning Summary w. AFUDC'!M40 -> 202007 | M40: ='Earning Summary w. AFUDC'!N40 -> 0.049 | N40: ='Earning Summary w. AFUDC'!O40 -> 0.959314 | O40: ='Earning Summary w. AFUDC'!P40 -> 0 | P40: ='Earning Summary w. AFUDC'!Q40 -> 0 | Q40: ='Earning Summary w. AFUDC'!R40 -> 0.0016175 | R40: ='Earning Summary w. AFUDC'!S40 -> 0.00011385 | S40: ='Earning Summary w. AFUDC'!T40 -> 0 | T40: ='Earning Summary w. AFUDC'!U40 -> 0 | U40: ='Earning Summary w. AFUDC'!V40 -> 0 | X40: 0.001899930641 | Y40: 0.001980509657 | Z40: 0.003511256448 | AB40: =INDEX(RevReq!$O$16:$BM$140,MATCH('Earning & Infra Combined'!$A40,RevReq!$C$16:$C$140,0),AB$16+1) -> 0 | AC40: =INDEX(RevReq!$O$16:$BM$140,MATCH('Earning & Infra Combined'!$A40,RevReq!$C$16:$C$140,0),AC$16+1) -> 0 | AD40: =INDEX(RevReq!$O$16:$BM$140,MATCH('Earning & Infra Combined'!$A40,RevReq!$C$16:$C$140,0),AD$16+1) -> 0 | AE40: =INDEX(RevReq!$O$16:$BM$140,MATCH('Earning & Infra Combined'!$A40,RevReq!$C$16:$C$140,0),AE$16+1) -> 0.0001275307584 | AF40: =INDEX(RevReq!$O$16:$BM$140,MATCH('Earning & Infra Combined'!$A40,RevReq!$C$16:$C$140,0),AF$16+1) -> 0.0002507862512 | AG40: =INDEX(RevReq!$O$16:$BM$140,MATCH('Earning & Infra Combined'!$A40,RevReq!$C$16:$C$140,0),AG$16+1) -> 0.0002422357202 | AH40: =INDEX(RevReq!$O$16:$BM$140,MATCH('Earning & Infra Combined'!$A40,RevReq!$C$16:$C$140,0),AH$16+1) -> 0.0002336851893 | AI40: =INDEX(RevReq!$O$16:$BM$140,MATCH('Earning & Infra Combined'!$A40,RevReq!$C$16:$C$140,0),AI$16+1) -> 0.0002251346583 | AJ40: =INDEX(RevReq!$O$16:$BM$140,MATCH('Earning & Infra Combined'!$A40,RevReq!$C$16:$C$140,0),AJ$16+1) -> 0.0002165841273 | AK40: =INDEX(RevReq!$O$16:$BM$140,MATCH('Earning & Infra Combined'!$A40,RevReq!$C$16:$C$140,0),AK$16+1) -> 0.0002080335963 | AL40: =INDEX(RevReq!$O$16:$BM$140,MATCH('Earning & Infra Combined'!$A40,RevReq!$C$16:$C$140,0),AL$16+1) -> 0.0001994830654 | AM40: =INDEX(RevReq!$O$16:$BM$140,MATCH('Earning & Infra Combined'!$A40,RevReq!$C$16:$C$140,0),AM$16+1) -> 0.0001909325344 | AN40: =INDEX(RevReq!$O$16:$BM$140,MATCH('Earning & Infra Combined'!$A40,RevReq!$C$16:$C$140,0),AN$16+1) -> 0.0001823820034 | AO40: =INDEX(RevReq!$O$16:$BM$140,MATCH('Earning & Infra Combined'!$A40,RevReq!$C$16:$C$140,0),AO$16+1) -> 0.0001738314724 | AP40: =INDEX(RevReq!$O$16:$BM$140,MATCH('Earning & Infra Combined'!$A40,RevReq!$C$16:$C$140,0),AP$16+1) -> 0.0001652809414 | AQ40: =INDEX(RevReq!$O$16:$BM$140,MATCH('Earning & Infra Combined'!$A40,RevReq!$C$16:$C$140,0),AQ$16+1) -> 0.0001567304105 | AR40: =INDEX(RevReq!$O$16:$BM$140,MATCH('Earning & Infra Combined'!$A40,RevReq!$C$16:$C$140,0),AR$16+1) -> 0.0001481798795 | AS40: =INDEX(RevReq!$O$16:$BM$140,MATCH('Earning & Infra Combined'!$A40,RevReq!$C$16:$C$140,0),AS$16+1) -> 0.0001396293485 | AT40: =INDEX(RevReq!$O$16:$BM$140,MATCH('Earning & Infra Combined'!$A40,RevReq!$C$16:$C$140,0),AT$16+1) -> 0.0001310788175 | AU40: =INDEX(RevReq!$O$16:$BM$140,MATCH('Earning & Infra Combined'!$A40,RevReq!$C$16:$C$140,0),AU$16+1) -> 0.0001225282866 | AV40: =INDEX(RevReq!$O$16:$BM$140,MATCH('Earning & Infra Combined'!$A40,RevReq!$C$16:$C$140,0),AV$16+1) -> 0.0001139777556 | AW40: =INDEX(RevReq!$O$16:$BM$140,MATCH('Earning & Infra Combined'!$A40,RevReq!$C$16:$C$140,0),AW$16+1) -> 0.0001054272246 | AX40: =INDEX(RevReq!$O$16:$BM$140,MATCH('Earning & Infra Combined'!$A40,RevReq!$C$16:$C$140,0),AX$16+1) -> 9.687669362e-05 | AY40: =INDEX(RevReq!$O$16:$BM$140,MATCH('Earning & Infra Combined'!$A40,RevReq!$C$16:$C$140,0),AY$16+1) -> 8.092771407e-05 | AZ40: =INDEX(RevReq!$O$16:$BM$140,MATCH('Earning & Infra Combined'!$A40,RevReq!$C$16:$C$140,0),AZ$16+1) -> 0 | BA40: =INDEX(RevReq!$O$16:$BM$140,MATCH('Earning & Infra Combined'!$A40,RevReq!$C$16:$C$140,0),BA$16+1) -> 0 | BB40: =INDEX(RevReq!$O$16:$BM$140,MATCH('Earning & Infra Combined'!$A40,RevReq!$C$16:$C$140,0),BB$16+1) -> 0 | BC40: =INDEX(RevReq!$O$16:$BM$140,MATCH('Earning & Infra Combined'!$A40,RevReq!$C$16:$C$140,0),BC$16+1) -> 0 | BD40: =INDEX(RevReq!$O$16:$BM$140,MATCH('Earning & Infra Combined'!$A40,RevReq!$C$16:$C$140,0),BD$16+1) -> 0 | BE40: =INDEX(RevReq!$O$16:$BM$140,MATCH('Earning & Infra Combined'!$A40,RevReq!$C$16:$C$140,0),BE$16+1) -> 0 | BF40: =INDEX(RevReq!$O$16:$BM$140,MATCH('Earning & Infra Combined'!$A40,RevReq!$C$16:$C$140,0),BF$16+1) -> 0 | BG40: =INDEX(RevReq!$O$16:$BM$140,MATCH('Earning & Infra Combined'!$A40,RevReq!$C$16:$C$140,0),BG$16+1) -> 0 | BH40: =INDEX(RevReq!$O$16:$BM$140,MATCH('Earning & Infra Combined'!$A40,RevReq!$C$16:$C$140,0),BH$16+1) -> 0 | BI40: =INDEX(RevReq!$O$16:$BM$140,MATCH('Earning & Infra Combined'!$A40,RevReq!$C$16:$C$140,0),BI$16+1) -> 0 | BJ40: =INDEX(RevReq!$O$16:$BM$140,MATCH('Earning & Infra Combined'!$A40,RevReq!$C$16:$C$140,0),BJ$16+1) -> 0 | BK40: =INDEX(RevReq!$O$16:$BM$140,MATCH('Earning & Infra Combined'!$A40,RevReq!$C$16:$C$140,0),BK$16+1) -> 0 | BL40: =INDEX(RevReq!$O$16:$BM$140,MATCH('Earning & Infra Combined'!$A40,RevReq!$C$16:$C$140,0),BL$16+1) -> 0 | BM40: =INDEX(RevReq!$O$16:$BM$140,MATCH('Earning & Infra Combined'!$A40,RevReq!$C$16:$C$140,0),BM$16+1) -> 0 | BN40: =INDEX(RevReq!$O$16:$BM$140,MATCH('Earning & Infra Combined'!$A40,RevReq!$C$16:$C$140,0),BN$16+1) -> 0 | BO40: =INDEX(RevReq!$O$16:$BM$140,MATCH('Earning & Infra Combined'!$A40,RevReq!$C$16:$C$140,0),BO$16+1) -> 0 | BP40: =INDEX(RevReq!$O$16:$BM$140,MATCH('Earning & Infra Combined'!$A40,RevReq!$C$16:$C$140,0),BP$16+1) -> 0 | BQ40: =INDEX(RevReq!$O$16:$BM$140,MATCH('Earning & Infra Combined'!$A40,RevReq!$C$16:$C$140,0),BQ$16+1) -> 0 | BR40: =INDEX(RevReq!$O$16:$BM$140,MATCH('Earning & Infra Combined'!$A40,RevReq!$C$16:$C$140,0),BR$16+1) -> 0 | BS40: =INDEX(RevReq!$O$16:$BM$140,MATCH('Earning & Infra Combined'!$A40,RevReq!$C$16:$C$140,0),BS$16+1) -> 0 | BT40: =INDEX(RevReq!$O$16:$BM$140,MATCH('Earning & Infra Combined'!$A40,RevReq!$C$16:$C$140,0),BT$16+1) -> 0 | BU40: =INDEX(RevReq!$O$16:$BM$140,MATCH('Earning & Infra Combined'!$A40,RevReq!$C$16:$C$140,0),BU$16+1) -> 0 | BV40: =INDEX(RevReq!$O$16:$BM$140,MATCH('Earning & Infra Combined'!$A40,RevReq!$C$16:$C$140,0),BV$16+1) -> 0 | BW40: =INDEX(RevReq!$O$16:$BM$140,MATCH('Earning & Infra Combined'!$A40,RevReq!$C$16:$C$140,0),BW$16+1) -> 0 | BX40: =INDEX(RevReq!$O$16:$BM$140,MATCH('Earning & Infra Combined'!$A40,RevReq!$C$16:$C$140,0),BX$16+1) -> 0 | BY40: =INDEX(RevReq!$O$16:$BM$140,MATCH('Earning & Infra Combined'!$A40,RevReq!$C$16:$C$140,0),BY$16+1) -> 0 | BZ40: =INDEX(RevReq!$O$16:$BM$140,MATCH('Earning & Infra Combined'!$A40,RevReq!$C$16:$C$140,0),BZ$16+1) -> 0
A41: =MAX($A$18:A40)+1 -> 13 | B41: ='Earning Summary w. AFUDC'!B41 -> Power Delivery | C41: ='Earning Summary w. AFUDC'!C41 -> Growth | D41: ='Earning Summary w. AFUDC'!D41 -> 2022 | E41: ='Earning Summary w. AFUDC'!E41 -> 2022-01-01 | F41: ='Earning Summary w. AFUDC'!G41 -> 2024-12-01 | G41: ='Earning Summary w. AFUDC'!H41 -> 0.021 | H41: ='Earning Summary w. AFUDC'!I41 -> 0.902581 | K41: ='Earning Summary w. AFUDC'!L41 -> Quarry to ClearSky Major Projects | L41: ='Earning Summary w. AFUDC'!M41 -> 202412 | M41: ='Earning Summary w. AFUDC'!N41 -> 0.021 | N41: ='Earning Summary w. AFUDC'!O41 -> 0.902581 | O41: ='Earning Summary w. AFUDC'!P41 -> 0 | P41: ='Earning Summary w. AFUDC'!Q41 -> 0 | Q41: ='Earning Summary w. AFUDC'!R41 -> 0 | R41: ='Earning Summary w. AFUDC'!S41 -> 0 | S41: ='Earning Summary w. AFUDC'!T41 -> 0 | T41: ='Earning Summary w. AFUDC'!U41 -> 51.39550574 | U41: ='Earning Summary w. AFUDC'!V41 -> 79.98842941 | X41: 105.825206 | Y41: 117.247323 | Z41: 431.2848456 | AB41: =INDEX(RevReq!$O$16:$BM$140,MATCH('Earning & Infra Combined'!$A41,RevReq!$C$16:$C$140,0),AB$16+1) -> 0 | AC41: =INDEX(RevReq!$O$16:$BM$140,MATCH('Earning & Infra Combined'!$A41,RevReq!$C$16:$C$140,0),AC$16+1) -> 0 | AD41: =INDEX(RevReq!$O$16:$BM$140,MATCH('Earning & Infra Combined'!$A41,RevReq!$C$16:$C$140,0),AD$16+1) -> 0 | AE41: =INDEX(RevReq!$O$16:$BM$140,MATCH('Earning & Infra Combined'!$A41,RevReq!$C$16:$C$140,0),AE$16+1) -> 0 | AF41: =INDEX(RevReq!$O$16:$BM$140,MATCH('Earning & Infra Combined'!$A41,RevReq!$C$16:$C$140,0),AF$16+1) -> 0 | AG41: =INDEX(RevReq!$O$16:$BM$140,MATCH('Earning & Infra Combined'!$A41,RevReq!$C$16:$C$140,0),AG$16+1) -> 0 | AH41: =INDEX(RevReq!$O$16:$BM$140,MATCH('Earning & Infra Combined'!$A41,RevReq!$C$16:$C$140,0),AH$16+1) -> 0 | AI41: =INDEX(RevReq!$O$16:$BM$140,MATCH('Earning & Infra Combined'!$A41,RevReq!$C$16:$C$140,0),AI$16+1) -> 1.321837187 | AJ41: =INDEX(RevReq!$O$16:$BM$140,MATCH('Earning & Infra Combined'!$A41,RevReq!$C$16:$C$140,0),AJ$16+1) -> 15.8388727 | AK41: =INDEX(RevReq!$O$16:$BM$140,MATCH('Earning & Infra Combined'!$A41,RevReq!$C$16:$C$140,0),AK$16+1) -> 15.56079017 | AL41: =INDEX(RevReq!$O$16:$BM$140,MATCH('Earning & Infra Combined'!$A41,RevReq!$C$16:$C$140,0),AL$16+1) -> 15.28270765 | AM41: =INDEX(RevReq!$O$16:$BM$140,MATCH('Earning & Infra Combined'!$A41,RevReq!$C$16:$C$140,0),AM$16+1) -> 15.00462513 | AN41: =INDEX(RevReq!$O$16:$BM$140,MATCH('Earning & Infra Combined'!$A41,RevReq!$C$16:$C$140,0),AN$16+1) -> 14.72654261 | AO41: =INDEX(RevReq!$O$16:$BM$140,MATCH('Earning & Infra Combined'!$A41,RevReq!$C$16:$C$140,0),AO$16+1) -> 14.44846008 | AP41: =INDEX(RevReq!$O$16:$BM$140,MATCH('Earning & Infra Combined'!$A41,RevReq!$C$16:$C$140,0),AP$16+1) -> 14.17037756 | AQ41: =INDEX(RevReq!$O$16:$BM$140,MATCH('Earning & Infra Combined'!$A41,RevReq!$C$16:$C$140,0),AQ$16+1) -> 13.89229504 | AR41: =INDEX(RevReq!$O$16:$BM$140,MATCH('Earning & Infra Combined'!$A41,RevReq!$C$16:$C$140,0),AR$16+1) -> 13.61421252 | AS41: =INDEX(RevReq!$O$16:$BM$140,MATCH('Earning & Infra Combined'!$A41,RevReq!$C$16:$C$140,0),AS$16+1) -> 13.33613 | AT41: =INDEX(RevReq!$O$16:$BM$140,MATCH('Earning & Infra Combined'!$A41,RevReq!$C$16:$C$140,0),AT$16+1) -> 13.05804747 | AU41: =INDEX(RevReq!$O$16:$BM$140,MATCH('Earning & Infra Combined'!$A41,RevReq!$C$16:$C$140,0),AU$16+1) -> 12.77996495 | AV41: =INDEX(RevReq!$O$16:$BM$140,MATCH('Earning & Infra Combined'!$A41,RevReq!$C$16:$C$140,0),AV$16+1) -> 12.50188243 | AW41: =INDEX(RevReq!$O$16:$BM$140,MATCH('Earning & Infra Combined'!$A41,RevReq!$C$16:$C$140,0),AW$16+1) -> 12.22379991 | AX41: =INDEX(RevReq!$O$16:$BM$140,MATCH('Earning & Infra Combined'!$A41,RevReq!$C$16:$C$140,0),AX$16+1) -> 11.94571739 | AY41: =INDEX(RevReq!$O$16:$BM$140,MATCH('Earning & Infra Combined'!$A41,RevReq!$C$16:$C$140,0),AY$16+1) -> 11.66763486 | AZ41: =INDEX(RevReq!$O$16:$BM$140,MATCH('Earning & Infra Combined'!$A41,RevReq!$C$16:$C$140,0),AZ$16+1) -> 11.38955234 | BA41: =INDEX(RevReq!$O$16:$BM$140,MATCH('Earning & Infra Combined'!$A41,RevReq!$C$16:$C$140,0),BA$16+1) -> 11.11146982 | BB41: =INDEX(RevReq!$O$16:$BM$140,MATCH('Earning & Infra Combined'!$A41,RevReq!$C$16:$C$140,0),BB$16+1) -> 10.8333873 | BC41: =INDEX(RevReq!$O$16:$BM$140,MATCH('Earning & Infra Combined'!$A41,RevReq!$C$16:$C$140,0),BC$16+1) -> 10.55530478 | BD41: =INDEX(RevReq!$O$16:$BM$140,MATCH('Earning & Infra Combined'!$A41,RevReq!$C$16:$C$140,0),BD$16+1) -> 10.27722225 | BE41: =INDEX(RevReq!$O$16:$BM$140,MATCH('Earning & Infra Combined'!$A41,RevReq!$C$16:$C$140,0),BE$16+1) -> 9.999139731 | BF41: =INDEX(RevReq!$O$16:$BM$140,MATCH('Earning & Infra Combined'!$A41,RevReq!$C$16:$C$140,0),BF$16+1) -> 9.721057209 | BG41: =INDEX(RevReq!$O$16:$BM$140,MATCH('Earning & Infra Combined'!$A41,RevReq!$C$16:$C$140,0),BG$16+1) -> 9.442974687 | BH41: =INDEX(RevReq!$O$16:$BM$140,MATCH('Earning & Infra Combined'!$A41,RevReq!$C$16:$C$140,0),BH$16+1) -> 9.164892165 | BI41: =INDEX(RevReq!$O$16:$BM$140,MATCH('Earning & Infra Combined'!$A41,RevReq!$C$16:$C$140,0),BI$16+1) -> 8.886809643 | BJ41: =INDEX(RevReq!$O$16:$BM$140,MATCH('Earning & Infra Combined'!$A41,RevReq!$C$16:$C$140,0),BJ$16+1) -> 8.608727121 | BK41: =INDEX(RevReq!$O$16:$BM$140,MATCH('Earning & Infra Combined'!$A41,RevReq!$C$16:$C$140,0),BK$16+1) -> 8.330644599 | BL41: =INDEX(RevReq!$O$16:$BM$140,MATCH('Earning & Infra Combined'!$A41,RevReq!$C$16:$C$140,0),BL$16+1) -> 8.052562077 | BM41: =INDEX(RevReq!$O$16:$BM$140,MATCH('Earning & Infra Combined'!$A41,RevReq!$C$16:$C$140,0),BM$16+1) -> 7.774479554 | BN41: =INDEX(RevReq!$O$16:$BM$140,MATCH('Earning & Infra Combined'!$A41,RevReq!$C$16:$C$140,0),BN$16+1) -> 7.496397032 | BO41: =INDEX(RevReq!$O$16:$BM$140,MATCH('Earning & Infra Combined'!$A41,RevReq!$C$16:$C$140,0),BO$16+1) -> 7.21831451 | BP41: =INDEX(RevReq!$O$16:$BM$140,MATCH('Earning & Infra Combined'!$A41,RevReq!$C$16:$C$140,0),BP$16+1) -> 6.940231988 | BQ41: =INDEX(RevReq!$O$16:$BM$140,MATCH('Earning & Infra Combined'!$A41,RevReq!$C$16:$C$140,0),BQ$16+1) -> 6.662149466 | BR41: =INDEX(RevReq!$O$16:$BM$140,MATCH('Earning & Infra Combined'!$A41,RevReq!$C$16:$C$140,0),BR$16+1) -> 6.384066944 | BS41: =INDEX(RevReq!$O$16:$BM$140,MATCH('Earning & Infra Combined'!$A41,RevReq!$C$16:$C$140,0),BS$16+1) -> 6.105984422 | BT41: =INDEX(RevReq!$O$16:$BM$140,MATCH('Earning & Infra Combined'!$A41,RevReq!$C$16:$C$140,0),BT$16+1) -> 5.8279019 | BU41: =INDEX(RevReq!$O$16:$BM$140,MATCH('Earning & Infra Combined'!$A41,RevReq!$C$16:$C$140,0),BU$16+1) -> 5.549819378 | BV41: =INDEX(RevReq!$O$16:$BM$140,MATCH('Earning & Infra Combined'!$A41,RevReq!$C$16:$C$140,0),BV$16+1) -> 5.271736856 | BW41: =INDEX(RevReq!$O$16:$BM$140,MATCH('Earning & Infra Combined'!$A41,RevReq!$C$16:$C$140,0),BW$16+1) -> 4.993654334 | BX41: =INDEX(RevReq!$O$16:$BM$140,MATCH('Earning & Infra Combined'!$A41,RevReq!$C$16:$C$140,0),BX$16+1) -> 4.715571811 | BY41: =INDEX(RevReq!$O$16:$BM$140,MATCH('Earning & Infra Combined'!$A41,RevReq!$C$16:$C$140,0),BY$16+1) -> 4.437489289 | BZ41: =INDEX(RevReq!$O$16:$BM$140,MATCH('Earning & Infra Combined'!$A41,RevReq!$C$16:$C$140,0),BZ$16+1) -> 4.159406767
A42: =MAX($A$18:A41)+1 -> 14 | B42: ='Earning Summary w. AFUDC'!B42 -> Power Delivery | C42: ='Earning Summary w. AFUDC'!C42 -> Growth | D42: ='Earning Summary w. AFUDC'!D42 -> 2020 | E42: ='Earning Summary w. AFUDC'!E42 -> 2020-01-01 | F42: ='Earning Summary w. AFUDC'!G42 -> 2021-12-01 | G42: ='Earning Summary w. AFUDC'!H42 -> 0.032 | H42: ='Earning Summary w. AFUDC'!I42 -> 0.902581 | K42: ='Earning Summary w. AFUDC'!L42 -> Argyle Injection (PNG-24) | L42: ='Earning Summary w. AFUDC'!M42 -> 202112 | M42: ='Earning Summary w. AFUDC'!N42 -> 0.032 | N42: ='Earning Summary w. AFUDC'!O42 -> 0.902581 | O42: ='Earning Summary w. AFUDC'!P42 -> 0 | P42: ='Earning Summary w. AFUDC'!Q42 -> 0 | Q42: ='Earning Summary w. AFUDC'!R42 -> 0 | R42: ='Earning Summary w. AFUDC'!S42 -> 0.1959220843 | S42: ='Earning Summary w. AFUDC'!T42 -> 29.9085826 | T42: ='Earning Summary w. AFUDC'!U42 -> 0.565 | U42: ='Earning Summary w. AFUDC'!V42 -> 0 | X42: 29.70437291 | Y42: 32.91047885 | Z42: 78.97168286 | AB42: =INDEX(RevReq!$O$16:$BM$140,MATCH('Earning & Infra Combined'!$A42,RevReq!$C$16:$C$140,0),AB$16+1) -> 0 | AC42: =INDEX(RevReq!$O$16:$BM$140,MATCH('Earning & Infra Combined'!$A42,RevReq!$C$16:$C$140,0),AC$16+1) -> 0 | AD42: =INDEX(RevReq!$O$16:$BM$140,MATCH('Earning & Infra Combined'!$A42,RevReq!$C$16:$C$140,0),AD$16+1) -> 0 | AE42: =INDEX(RevReq!$O$16:$BM$140,MATCH('Earning & Infra Combined'!$A42,RevReq!$C$16:$C$140,0),AE$16+1) -> 0 | AF42: =INDEX(RevReq!$O$16:$BM$140,MATCH('Earning & Infra Combined'!$A42,RevReq!$C$16:$C$140,0),AF$16+1) -> 0.3290827443 | AG42: =INDEX(RevReq!$O$16:$BM$140,MATCH('Earning & Infra Combined'!$A42,RevReq!$C$16:$C$140,0),AG$16+1) -> 3.947077953 | AH42: =INDEX(RevReq!$O$16:$BM$140,MATCH('Earning & Infra Combined'!$A42,RevReq!$C$16:$C$140,0),AH$16+1) -> 3.917770141 | AI42: =INDEX(RevReq!$O$16:$BM$140,MATCH('Earning & Infra Combined'!$A42,RevReq!$C$16:$C$140,0),AI$16+1) -> 3.818853611 | AJ42: =INDEX(RevReq!$O$16:$BM$140,MATCH('Earning & Infra Combined'!$A42,RevReq!$C$16:$C$140,0),AJ$16+1) -> 3.719937081 | AK42: =INDEX(RevReq!$O$16:$BM$140,MATCH('Earning & Infra Combined'!$A42,RevReq!$C$16:$C$140,0),AK$16+1) -> 3.621020551 | AL42: =INDEX(RevReq!$O$16:$BM$140,MATCH('Earning & Infra Combined'!$A42,RevReq!$C$16:$C$140,0),AL$16+1) -> 3.52210402 | AM42: =INDEX(RevReq!$O$16:$BM$140,MATCH('Earning & Infra Combined'!$A42,RevReq!$C$16:$C$140,0),AM$16+1) -> 3.42318749 | AN42: =INDEX(RevReq!$O$16:$BM$140,MATCH('Earning & Infra Combined'!$A42,RevReq!$C$16:$C$140,0),AN$16+1) -> 3.32427096 | AO42: =INDEX(RevReq!$O$16:$BM$140,MATCH('Earning & Infra Combined'!$A42,RevReq!$C$16:$C$140,0),AO$16+1) -> 3.22535443 | AP42: =INDEX(RevReq!$O$16:$BM$140,MATCH('Earning & Infra Combined'!$A42,RevReq!$C$16:$C$140,0),AP$16+1) -> 3.126437899 | AQ42: =INDEX(RevReq!$O$16:$BM$140,MATCH('Earning & Infra Combined'!$A42,RevReq!$C$16:$C$140,0),AQ$16+1) -> 3.027521369 | AR42: =INDEX(RevReq!$O$16:$BM$140,MATCH('Earning & Infra Combined'!$A42,RevReq!$C$16:$C$140,0),AR$16+1) -> 2.928604839 | AS42: =INDEX(RevReq!$O$16:$BM$140,MATCH('Earning & Infra Combined'!$A42,RevReq!$C$16:$C$140,0),AS$16+1) -> 2.829688309 | AT42: =INDEX(RevReq!$O$16:$BM$140,MATCH('Earning & Infra Combined'!$A42,RevReq!$C$16:$C$140,0),AT$16+1) -> 2.730771778 | AU42: =INDEX(RevReq!$O$16:$BM$140,MATCH('Earning & Infra Combined'!$A42,RevReq!$C$16:$C$140,0),AU$16+1) -> 2.631855248 | AV42: =INDEX(RevReq!$O$16:$BM$140,MATCH('Earning & Infra Combined'!$A42,RevReq!$C$16:$C$140,0),AV$16+1) -> 2.532938718 | AW42: =INDEX(RevReq!$O$16:$BM$140,MATCH('Earning & Infra Combined'!$A42,RevReq!$C$16:$C$140,0),AW$16+1) -> 2.434022188 | AX42: =INDEX(RevReq!$O$16:$BM$140,MATCH('Earning & Infra Combined'!$A42,RevReq!$C$16:$C$140,0),AX$16+1) -> 2.335105657 | AY42: =INDEX(RevReq!$O$16:$BM$140,MATCH('Earning & Infra Combined'!$A42,RevReq!$C$16:$C$140,0),AY$16+1) -> 2.236189127 | AZ42: =INDEX(RevReq!$O$16:$BM$140,MATCH('Earning & Infra Combined'!$A42,RevReq!$C$16:$C$140,0),AZ$16+1) -> 2.137272597 | BA42: =INDEX(RevReq!$O$16:$BM$140,MATCH('Earning & Infra Combined'!$A42,RevReq!$C$16:$C$140,0),BA$16+1) -> 2.038356067 | BB42: =INDEX(RevReq!$O$16:$BM$140,MATCH('Earning & Infra Combined'!$A42,RevReq!$C$16:$C$140,0),BB$16+1) -> 1.939439537 | BC42: =INDEX(RevReq!$O$16:$BM$140,MATCH('Earning & Infra Combined'!$A42,RevReq!$C$16:$C$140,0),BC$16+1) -> 1.840523006 | BD42: =INDEX(RevReq!$O$16:$BM$140,MATCH('Earning & Infra Combined'!$A42,RevReq!$C$16:$C$140,0),BD$16+1) -> 1.741606476 | BE42: =INDEX(RevReq!$O$16:$BM$140,MATCH('Earning & Infra Combined'!$A42,RevReq!$C$16:$C$140,0),BE$16+1) -> 1.642689946 | BF42: =INDEX(RevReq!$O$16:$BM$140,MATCH('Earning & Infra Combined'!$A42,RevReq!$C$16:$C$140,0),BF$16+1) -> 1.543773416 | BG42: =INDEX(RevReq!$O$16:$BM$140,MATCH('Earning & Infra Combined'!$A42,RevReq!$C$16:$C$140,0),BG$16+1) -> 1.444856885 | BH42: =INDEX(RevReq!$O$16:$BM$140,MATCH('Earning & Infra Combined'!$A42,RevReq!$C$16:$C$140,0),BH$16+1) -> 1.345940355 | BI42: =INDEX(RevReq!$O$16:$BM$140,MATCH('Earning & Infra Combined'!$A42,RevReq!$C$16:$C$140,0),BI$16+1) -> 1.247023825 | BJ42: =INDEX(RevReq!$O$16:$BM$140,MATCH('Earning & Infra Combined'!$A42,RevReq!$C$16:$C$140,0),BJ$16+1) -> 1.148107295 | BK42: =INDEX(RevReq!$O$16:$BM$140,MATCH('Earning & Infra Combined'!$A42,RevReq!$C$16:$C$140,0),BK$16+1) -> 1.049190764 | BL42: =INDEX(RevReq!$O$16:$BM$140,MATCH('Earning & Infra Combined'!$A42,RevReq!$C$16:$C$140,0),BL$16+1) -> 0.187943388 | BM42: =INDEX(RevReq!$O$16:$BM$140,MATCH('Earning & Infra Combined'!$A42,RevReq!$C$16:$C$140,0),BM$16+1) -> 0.003165188409 | BN42: =INDEX(RevReq!$O$16:$BM$140,MATCH('Earning & Infra Combined'!$A42,RevReq!$C$16:$C$140,0),BN$16+1) -> 2.864589057e-15 | BO42: =INDEX(RevReq!$O$16:$BM$140,MATCH('Earning & Infra Combined'!$A42,RevReq!$C$16:$C$140,0),BO$16+1) -> 2.864589057e-15 | BP42: =INDEX(RevReq!$O$16:$BM$140,MATCH('Earning & Infra Combined'!$A42,RevReq!$C$16:$C$140,0),BP$16+1) -> 2.864589057e-15 | BQ42: =INDEX(RevReq!$O$16:$BM$140,MATCH('Earning & Infra Combined'!$A42,RevReq!$C$16:$C$140,0),BQ$16+1) -> 2.864589057e-15 | BR42: =INDEX(RevReq!$O$16:$BM$140,MATCH('Earning & Infra Combined'!$A42,RevReq!$C$16:$C$140,0),BR$16+1) -> 2.864589057e-15 | BS42: =INDEX(RevReq!$O$16:$BM$140,MATCH('Earning & Infra Combined'!$A42,RevReq!$C$16:$C$140,0),BS$16+1) -> 2.864589057e-15 | BT42: =INDEX(RevReq!$O$16:$BM$140,MATCH('Earning & Infra Combined'!$A42,RevReq!$C$16:$C$140,0),BT$16+1) -> 2.864589057e-15 | BU42: =INDEX(RevReq!$O$16:$BM$140,MATCH('Earning & Infra Combined'!$A42,RevReq!$C$16:$C$140,0),BU$16+1) -> 2.864589057e-15 | BV42: =INDEX(RevReq!$O$16:$BM$140,MATCH('Earning & Infra Combined'!$A42,RevReq!$C$16:$C$140,0),BV$16+1) -> 2.864589057e-15 | BW42: =INDEX(RevReq!$O$16:$BM$140,MATCH('Earning & Infra Combined'!$A42,RevReq!$C$16:$C$140,0),BW$16+1) -> 2.864589057e-15 | BX42: =INDEX(RevReq!$O$16:$BM$140,MATCH('Earning & Infra Combined'!$A42,RevReq!$C$16:$C$140,0),BX$16+1) -> 2.864589057e-15 | BY42: =INDEX(RevReq!$O$16:$BM$140,MATCH('Earning & Infra Combined'!$A42,RevReq!$C$16:$C$140,0),BY$16+1) -> 2.864589057e-15 | BZ42: =INDEX(RevReq!$O$16:$BM$140,MATCH('Earning & Infra Combined'!$A42,RevReq!$C$16:$C$140,0),BZ$16+1) -> 2.864589057e-15
A43: =MAX($A$18:A42)+1 -> 15 | B43: ='Earning Summary w. AFUDC'!B43 -> Power Delivery | C43: ='Earning Summary w. AFUDC'!C43 -> Growth | D43: ='Earning Summary w. AFUDC'!D43 -> 2021 | E43: ='Earning Summary w. AFUDC'!E43 -> 2021-01-01 | F43: ='Earning Summary w. AFUDC'!G43 -> 2022-06-01 | G43: ='Earning Summary w. AFUDC'!H43 -> 0.032 | H43: ='Earning Summary w. AFUDC'!I43 -> 0.902581 | K43: ='Earning Summary w. AFUDC'!L43 -> Deaton Injection (PNG-28) | L43: ='Earning Summary w. AFUDC'!M43 -> 202206 | M43: ='Earning Summary w. AFUDC'!N43 -> 0.032 | N43: ='Earning Summary w. AFUDC'!O43 -> 0.902581 | O43: ='Earning Summary w. AFUDC'!P43 -> 0 | P43: ='Earning Summary w. AFUDC'!Q43 -> 0 | Q43: ='Earning Summary w. AFUDC'!R43 -> 0 | R43: ='Earning Summary w. AFUDC'!S43 -> 0 | S43: ='Earning Summary w. AFUDC'!T43 -> 8.184657153 | T43: ='Earning Summary w. AFUDC'!U43 -> 14.2080457 | U43: ='Earning Summary w. AFUDC'!V43 -> 0 | X43: 20.95090011 | Y43: 23.21221044 | Z43: 57.65652736 | AB43: =INDEX(RevReq!$O$16:$BM$140,MATCH('Earning & Infra Combined'!$A43,RevReq!$C$16:$C$140,0),AB$16+1) -> 0 | AC43: =INDEX(RevReq!$O$16:$BM$140,MATCH('Earning & Infra Combined'!$A43,RevReq!$C$16:$C$140,0),AC$16+1) -> 0 | AD43: =INDEX(RevReq!$O$16:$BM$140,MATCH('Earning & Infra Combined'!$A43,RevReq!$C$16:$C$140,0),AD$16+1) -> 0 | AE43: =INDEX(RevReq!$O$16:$BM$140,MATCH('Earning & Infra Combined'!$A43,RevReq!$C$16:$C$140,0),AE$16+1) -> 0 | AF43: =INDEX(RevReq!$O$16:$BM$140,MATCH('Earning & Infra Combined'!$A43,RevReq!$C$16:$C$140,0),AF$16+1) -> 0 | AG43: =INDEX(RevReq!$O$16:$BM$140,MATCH('Earning & Infra Combined'!$A43,RevReq!$C$16:$C$140,0),AG$16+1) -> 1.713476614 | AH43: =INDEX(RevReq!$O$16:$BM$140,MATCH('Earning & Infra Combined'!$A43,RevReq!$C$16:$C$140,0),AH$16+1) -> 2.895259067 | AI43: =INDEX(RevReq!$O$16:$BM$140,MATCH('Earning & Infra Combined'!$A43,RevReq!$C$16:$C$140,0),AI$16+1) -> 2.823037213 | AJ43: =INDEX(RevReq!$O$16:$BM$140,MATCH('Earning & Infra Combined'!$A43,RevReq!$C$16:$C$140,0),AJ$16+1) -> 2.75081536 | AK43: =INDEX(RevReq!$O$16:$BM$140,MATCH('Earning & Infra Combined'!$A43,RevReq!$C$16:$C$140,0),AK$16+1) -> 2.678593507 | AL43: =INDEX(RevReq!$O$16:$BM$140,MATCH('Earning & Infra Combined'!$A43,RevReq!$C$16:$C$140,0),AL$16+1) -> 2.606371653 | AM43: =INDEX(RevReq!$O$16:$BM$140,MATCH('Earning & Infra Combined'!$A43,RevReq!$C$16:$C$140,0),AM$16+1) -> 2.5341498 | AN43: =INDEX(RevReq!$O$16:$BM$140,MATCH('Earning & Infra Combined'!$A43,RevReq!$C$16:$C$140,0),AN$16+1) -> 2.461927947 | AO43: =INDEX(RevReq!$O$16:$BM$140,MATCH('Earning & Infra Combined'!$A43,RevReq!$C$16:$C$140,0),AO$16+1) -> 2.389706093 | AP43: =INDEX(RevReq!$O$16:$BM$140,MATCH('Earning & Infra Combined'!$A43,RevReq!$C$16:$C$140,0),AP$16+1) -> 2.31748424 | AQ43: =INDEX(RevReq!$O$16:$BM$140,MATCH('Earning & Infra Combined'!$A43,RevReq!$C$16:$C$140,0),AQ$16+1) -> 2.245262387 | AR43: =INDEX(RevReq!$O$16:$BM$140,MATCH('Earning & Infra Combined'!$A43,RevReq!$C$16:$C$140,0),AR$16+1) -> 2.173040533 | AS43: =INDEX(RevReq!$O$16:$BM$140,MATCH('Earning & Infra Combined'!$A43,RevReq!$C$16:$C$140,0),AS$16+1) -> 2.10081868 | AT43: =INDEX(RevReq!$O$16:$BM$140,MATCH('Earning & Infra Combined'!$A43,RevReq!$C$16:$C$140,0),AT$16+1) -> 2.028596827 | AU43: =INDEX(RevReq!$O$16:$BM$140,MATCH('Earning & Infra Combined'!$A43,RevReq!$C$16:$C$140,0),AU$16+1) -> 1.956374973 | AV43: =INDEX(RevReq!$O$16:$BM$140,MATCH('Earning & Infra Combined'!$A43,RevReq!$C$16:$C$140,0),AV$16+1) -> 1.88415312 | AW43: =INDEX(RevReq!$O$16:$BM$140,MATCH('Earning & Infra Combined'!$A43,RevReq!$C$16:$C$140,0),AW$16+1) -> 1.811931267 | AX43: =INDEX(RevReq!$O$16:$BM$140,MATCH('Earning & Infra Combined'!$A43,RevReq!$C$16:$C$140,0),AX$16+1) -> 1.739709414 | AY43: =INDEX(RevReq!$O$16:$BM$140,MATCH('Earning & Infra Combined'!$A43,RevReq!$C$16:$C$140,0),AY$16+1) -> 1.66748756 | AZ43: =INDEX(RevReq!$O$16:$BM$140,MATCH('Earning & Infra Combined'!$A43,RevReq!$C$16:$C$140,0),AZ$16+1) -> 1.595265707 | BA43: =INDEX(RevReq!$O$16:$BM$140,MATCH('Earning & Infra Combined'!$A43,RevReq!$C$16:$C$140,0),BA$16+1) -> 1.523043854 | BB43: =INDEX(RevReq!$O$16:$BM$140,MATCH('Earning & Infra Combined'!$A43,RevReq!$C$16:$C$140,0),BB$16+1) -> 1.450822 | BC43: =INDEX(RevReq!$O$16:$BM$140,MATCH('Earning & Infra Combined'!$A43,RevReq!$C$16:$C$140,0),BC$16+1) -> 1.378600147 | BD43: =INDEX(RevReq!$O$16:$BM$140,MATCH('Earning & Infra Combined'!$A43,RevReq!$C$16:$C$140,0),BD$16+1) -> 1.306378294 | BE43: =INDEX(RevReq!$O$16:$BM$140,MATCH('Earning & Infra Combined'!$A43,RevReq!$C$16:$C$140,0),BE$16+1) -> 1.23415644 | BF43: =INDEX(RevReq!$O$16:$BM$140,MATCH('Earning & Infra Combined'!$A43,RevReq!$C$16:$C$140,0),BF$16+1) -> 1.161934587 | BG43: =INDEX(RevReq!$O$16:$BM$140,MATCH('Earning & Infra Combined'!$A43,RevReq!$C$16:$C$140,0),BG$16+1) -> 1.089712734 | BH43: =INDEX(RevReq!$O$16:$BM$140,MATCH('Earning & Infra Combined'!$A43,RevReq!$C$16:$C$140,0),BH$16+1) -> 1.01749088 | BI43: =INDEX(RevReq!$O$16:$BM$140,MATCH('Earning & Infra Combined'!$A43,RevReq!$C$16:$C$140,0),BI$16+1) -> 0.9452690269 | BJ43: =INDEX(RevReq!$O$16:$BM$140,MATCH('Earning & Infra Combined'!$A43,RevReq!$C$16:$C$140,0),BJ$16+1) -> 0.8730471736 | BK43: =INDEX(RevReq!$O$16:$BM$140,MATCH('Earning & Infra Combined'!$A43,RevReq!$C$16:$C$140,0),BK$16+1) -> 0.8008253203 | BL43: =INDEX(RevReq!$O$16:$BM$140,MATCH('Earning & Infra Combined'!$A43,RevReq!$C$16:$C$140,0),BL$16+1) -> 0.5017849454 | BM43: =INDEX(RevReq!$O$16:$BM$140,MATCH('Earning & Infra Combined'!$A43,RevReq!$C$16:$C$140,0),BM$16+1) -> 2.148441793e-15 | BN43: =INDEX(RevReq!$O$16:$BM$140,MATCH('Earning & Infra Combined'!$A43,RevReq!$C$16:$C$140,0),BN$16+1) -> 2.148441793e-15 | BO43: =INDEX(RevReq!$O$16:$BM$140,MATCH('Earning & Infra Combined'!$A43,RevReq!$C$16:$C$140,0),BO$16+1) -> 2.148441793e-15 | BP43: =INDEX(RevReq!$O$16:$BM$140,MATCH('Earning & Infra Combined'!$A43,RevReq!$C$16:$C$140,0),BP$16+1) -> 2.148441793e-15 | BQ43: =INDEX(RevReq!$O$16:$BM$140,MATCH('Earning & Infra Combined'!$A43,RevReq!$C$16:$C$140,0),BQ$16+1) -> 2.148441793e-15 | BR43: =INDEX(RevReq!$O$16:$BM$140,MATCH('Earning & Infra Combined'!$A43,RevReq!$C$16:$C$140,0),BR$16+1) -> 2.148441793e-15 | BS43: =INDEX(RevReq!$O$16:$BM$140,MATCH('Earning & Infra Combined'!$A43,RevReq!$C$16:$C$140,0),BS$16+1) -> 2.148441793e-15 | BT43: =INDEX(RevReq!$O$16:$BM$140,MATCH('Earning & Infra Combined'!$A43,RevReq!$C$16:$C$140,0),BT$16+1) -> 2.148441793e-15 | BU43: =INDEX(RevReq!$O$16:$BM$140,MATCH('Earning & Infra Combined'!$A43,RevReq!$C$16:$C$140,0),BU$16+1) -> 2.148441793e-15 | BV43: =INDEX(RevReq!$O$16:$BM$140,MATCH('Earning & Infra Combined'!$A43,RevReq!$C$16:$C$140,0),BV$16+1) -> 2.148441793e-15 | BW43: =INDEX(RevReq!$O$16:$BM$140,MATCH('Earning & Infra Combined'!$A43,RevReq!$C$16:$C$140,0),BW$16+1) -> 2.148441793e-15 | BX43: =INDEX(RevReq!$O$16:$BM$140,MATCH('Earning & Infra Combined'!$A43,RevReq!$C$16:$C$140,0),BX$16+1) -> 2.148441793e-15 | BY43: =INDEX(RevReq!$O$16:$BM$140,MATCH('Earning & Infra Combined'!$A43,RevReq!$C$16:$C$140,0),BY$16+1) -> 2.148441793e-15 | BZ43: =INDEX(RevReq!$O$16:$BM$140,MATCH('Earning & Infra Combined'!$A43,RevReq!$C$16:$C$140,0),BZ$16+1) -> 2.148441793e-15
A44: =MAX($A$18:A43)+1 -> 16 | B44: ='Earning Summary w. AFUDC'!B44 -> Power Delivery | C44: ='Earning Summary w. AFUDC'!C44 -> Growth | D44: ='Earning Summary w. AFUDC'!D44 -> 2020 | E44: ='Earning Summary w. AFUDC'!E44 -> 2020-01-01 | F44: ='Earning Summary w. AFUDC'!G44 -> 2022-12-01 | G44: ='Earning Summary w. AFUDC'!H44 -> 0.032 | H44: ='Earning Summary w. AFUDC'!I44 -> 0.902581 | K44: ='Earning Summary w. AFUDC'!L44 -> Deaton Project | L44: ='Earning Summary w. AFUDC'!M44 -> 202212 | M44: ='Earning Summary w. AFUDC'!N44 -> 0.032 | N44: ='Earning Summary w. AFUDC'!O44 -> 0.902581 | O44: ='Earning Summary w. AFUDC'!P44 -> 0 | P44: ='Earning Summary w. AFUDC'!Q44 -> 0 | Q44: ='Earning Summary w. AFUDC'!R44 -> 0 | R44: ='Earning Summary w. AFUDC'!S44 -> 0.1854175821 | S44: ='Earning Summary w. AFUDC'!T44 -> 20.41556632 | T44: ='Earning Summary w. AFUDC'!U44 -> 90.57012606 | U44: ='Earning Summary w. AFUDC'!V44 -> 0.3850000013 | X44: 100.5849998 | Y44: 111.4415213 | Z44: 287.2486474 | AB44: =INDEX(RevReq!$O$16:$BM$140,MATCH('Earning & Infra Combined'!$A44,RevReq!$C$16:$C$140,0),AB$16+1) -> 0 | AC44: =INDEX(RevReq!$O$16:$BM$140,MATCH('Earning & Infra Combined'!$A44,RevReq!$C$16:$C$140,0),AC$16+1) -> 0 | AD44: =INDEX(RevReq!$O$16:$BM$140,MATCH('Earning & Infra Combined'!$A44,RevReq!$C$16:$C$140,0),AD$16+1) -> 0 | AE44: =INDEX(RevReq!$O$16:$BM$140,MATCH('Earning & Infra Combined'!$A44,RevReq!$C$16:$C$140,0),AE$16+1) -> 0 | AF44: =INDEX(RevReq!$O$16:$BM$140,MATCH('Earning & Infra Combined'!$A44,RevReq!$C$16:$C$140,0),AF$16+1) -> 0 | AG44: =INDEX(RevReq!$O$16:$BM$140,MATCH('Earning & Infra Combined'!$A44,RevReq!$C$16:$C$140,0),AG$16+1) -> 1.215249822 | AH44: =INDEX(RevReq!$O$16:$BM$140,MATCH('Earning & Infra Combined'!$A44,RevReq!$C$16:$C$140,0),AH$16+1) -> 14.55732696 | AI44: =INDEX(RevReq!$O$16:$BM$140,MATCH('Earning & Infra Combined'!$A44,RevReq!$C$16:$C$140,0),AI$16+1) -> 14.24496416 | AJ44: =INDEX(RevReq!$O$16:$BM$140,MATCH('Earning & Infra Combined'!$A44,RevReq!$C$16:$C$140,0),AJ$16+1) -> 13.88516888 | AK44: =INDEX(RevReq!$O$16:$BM$140,MATCH('Earning & Infra Combined'!$A44,RevReq!$C$16:$C$140,0),AK$16+1) -> 13.52537359 | AL44: =INDEX(RevReq!$O$16:$BM$140,MATCH('Earning & Infra Combined'!$A44,RevReq!$C$16:$C$140,0),AL$16+1) -> 13.1655783 | AM44: =INDEX(RevReq!$O$16:$BM$140,MATCH('Earning & Infra Combined'!$A44,RevReq!$C$16:$C$140,0),AM$16+1) -> 12.80578301 | AN44: =INDEX(RevReq!$O$16:$BM$140,MATCH('Earning & Infra Combined'!$A44,RevReq!$C$16:$C$140,0),AN$16+1) -> 12.44598772 | AO44: =INDEX(RevReq!$O$16:$BM$140,MATCH('Earning & Infra Combined'!$A44,RevReq!$C$16:$C$140,0),AO$16+1) -> 12.08619243 | AP44: =INDEX(RevReq!$O$16:$BM$140,MATCH('Earning & Infra Combined'!$A44,RevReq!$C$16:$C$140,0),AP$16+1) -> 11.72639714 | AQ44: =INDEX(RevReq!$O$16:$BM$140,MATCH('Earning & Infra Combined'!$A44,RevReq!$C$16:$C$140,0),AQ$16+1) -> 11.36660185 | AR44: =INDEX(RevReq!$O$16:$BM$140,MATCH('Earning & Infra Combined'!$A44,RevReq!$C$16:$C$140,0),AR$16+1) -> 11.00680656 | AS44: =INDEX(RevReq!$O$16:$BM$140,MATCH('Earning & Infra Combined'!$A44,RevReq!$C$16:$C$140,0),AS$16+1) -> 10.64701127 | AT44: =INDEX(RevReq!$O$16:$BM$140,MATCH('Earning & Infra Combined'!$A44,RevReq!$C$16:$C$140,0),AT$16+1) -> 10.28721598 | AU44: =INDEX(RevReq!$O$16:$BM$140,MATCH('Earning & Infra Combined'!$A44,RevReq!$C$16:$C$140,0),AU$16+1) -> 9.927420688 | AV44: =INDEX(RevReq!$O$16:$BM$140,MATCH('Earning & Infra Combined'!$A44,RevReq!$C$16:$C$140,0),AV$16+1) -> 9.567625398 | AW44: =INDEX(RevReq!$O$16:$BM$140,MATCH('Earning & Infra Combined'!$A44,RevReq!$C$16:$C$140,0),AW$16+1) -> 9.207830109 | AX44: =INDEX(RevReq!$O$16:$BM$140,MATCH('Earning & Infra Combined'!$A44,RevReq!$C$16:$C$140,0),AX$16+1) -> 8.848034819 | AY44: =INDEX(RevReq!$O$16:$BM$140,MATCH('Earning & Infra Combined'!$A44,RevReq!$C$16:$C$140,0),AY$16+1) -> 8.488239529 | AZ44: =INDEX(RevReq!$O$16:$BM$140,MATCH('Earning & Infra Combined'!$A44,RevReq!$C$16:$C$140,0),AZ$16+1) -> 8.12844424 | BA44: =INDEX(RevReq!$O$16:$BM$140,MATCH('Earning & Infra Combined'!$A44,RevReq!$C$16:$C$140,0),BA$16+1) -> 7.76864895 | BB44: =INDEX(RevReq!$O$16:$BM$140,MATCH('Earning & Infra Combined'!$A44,RevReq!$C$16:$C$140,0),BB$16+1) -> 7.40885366 | BC44: =INDEX(RevReq!$O$16:$BM$140,MATCH('Earning & Infra Combined'!$A44,RevReq!$C$16:$C$140,0),BC$16+1) -> 7.04905837 | BD44: =INDEX(RevReq!$O$16:$BM$140,MATCH('Earning & Infra Combined'!$A44,RevReq!$C$16:$C$140,0),BD$16+1) -> 6.689263081 | BE44: =INDEX(RevReq!$O$16:$BM$140,MATCH('Earning & Infra Combined'!$A44,RevReq!$C$16:$C$140,0),BE$16+1) -> 6.329467791 | BF44: =INDEX(RevReq!$O$16:$BM$140,MATCH('Earning & Infra Combined'!$A44,RevReq!$C$16:$C$140,0),BF$16+1) -> 5.969672501 | BG44: =INDEX(RevReq!$O$16:$BM$140,MATCH('Earning & Infra Combined'!$A44,RevReq!$C$16:$C$140,0),BG$16+1) -> 5.609877212 | BH44: =INDEX(RevReq!$O$16:$BM$140,MATCH('Earning & Infra Combined'!$A44,RevReq!$C$16:$C$140,0),BH$16+1) -> 5.250081922 | BI44: =INDEX(RevReq!$O$16:$BM$140,MATCH('Earning & Infra Combined'!$A44,RevReq!$C$16:$C$140,0),BI$16+1) -> 4.890286632 | BJ44: =INDEX(RevReq!$O$16:$BM$140,MATCH('Earning & Infra Combined'!$A44,RevReq!$C$16:$C$140,0),BJ$16+1) -> 4.530491342 | BK44: =INDEX(RevReq!$O$16:$BM$140,MATCH('Earning & Infra Combined'!$A44,RevReq!$C$16:$C$140,0),BK$16+1) -> 4.170696053 | BL44: =INDEX(RevReq!$O$16:$BM$140,MATCH('Earning & Infra Combined'!$A44,RevReq!$C$16:$C$140,0),BL$16+1) -> 3.810900763 | BM44: =INDEX(RevReq!$O$16:$BM$140,MATCH('Earning & Infra Combined'!$A44,RevReq!$C$16:$C$140,0),BM$16+1) -> 0.6359398626 | BN44: =INDEX(RevReq!$O$16:$BM$140,MATCH('Earning & Infra Combined'!$A44,RevReq!$C$16:$C$140,0),BN$16+1) -> 0.002156809808 | BO44: =INDEX(RevReq!$O$16:$BM$140,MATCH('Earning & Infra Combined'!$A44,RevReq!$C$16:$C$140,0),BO$16+1) -> 1.432294528e-15 | BP44: =INDEX(RevReq!$O$16:$BM$140,MATCH('Earning & Infra Combined'!$A44,RevReq!$C$16:$C$140,0),BP$16+1) -> 1.432294528e-15 | BQ44: =INDEX(RevReq!$O$16:$BM$140,MATCH('Earning & Infra Combined'!$A44,RevReq!$C$16:$C$140,0),BQ$16+1) -> 1.432294528e-15 | BR44: =INDEX(RevReq!$O$16:$BM$140,MATCH('Earning & Infra Combined'!$A44,RevReq!$C$16:$C$140,0),BR$16+1) -> 1.432294528e-15 | BS44: =INDEX(RevReq!$O$16:$BM$140,MATCH('Earning & Infra Combined'!$A44,RevReq!$C$16:$C$140,0),BS$16+1) -> 1.432294528e-15 | BT44: =INDEX(RevReq!$O$16:$BM$140,MATCH('Earning & Infra Combined'!$A44,RevReq!$C$16:$C$140,0),BT$16+1) -> 1.432294528e-15 | BU44: =INDEX(RevReq!$O$16:$BM$140,MATCH('Earning & Infra Combined'!$A44,RevReq!$C$16:$C$140,0),BU$16+1) -> 1.432294528e-15 | BV44: =INDEX(RevReq!$O$16:$BM$140,MATCH('Earning & Infra Combined'!$A44,RevReq!$C$16:$C$140,0),BV$16+1) -> 1.432294528e-15 | BW44: =INDEX(RevReq!$O$16:$BM$140,MATCH('Earning & Infra Combined'!$A44,RevReq!$C$16:$C$140,0),BW$16+1) -> 1.432294528e-15 | BX44: =INDEX(RevReq!$O$16:$BM$140,MATCH('Earning & Infra Combined'!$A44,RevReq!$C$16:$C$140,0),BX$16+1) -> 1.432294528e-15 | BY44: =INDEX(RevReq!$O$16:$BM$140,MATCH('Earning & Infra Combined'!$A44,RevReq!$C$16:$C$140,0),BY$16+1) -> 1.432294528e-15 | BZ44: =INDEX(RevReq!$O$16:$BM$140,MATCH('Earning & Infra Combined'!$A44,RevReq!$C$16:$C$140,0),BZ$16+1) -> 1.432294528e-15
A45: =MAX($A$18:A44)+1 -> 17 | B45: ='Earning Summary w. AFUDC'!B45 -> Power Delivery | C45: ='Earning Summary w. AFUDC'!C45 -> Growth | D45: ='Earning Summary w. AFUDC'!D45 -> 2021 | E45: ='Earning Summary w. AFUDC'!E45 -> 2021-01-01 | F45: ='Earning Summary w. AFUDC'!G45 -> 2023-06-01 | G45: ='Earning Summary w. AFUDC'!H45 -> 0.032 | H45: ='Earning Summary w. AFUDC'!I45 -> 0.902581 | K45: ='Earning Summary w. AFUDC'!L45 -> Major Projects Transmission | L45: ='Earning Summary w. AFUDC'!M45 -> 202306 | M45: ='Earning Summary w. AFUDC'!N45 -> 0.032 | N45: ='Earning Summary w. AFUDC'!O45 -> 0.902581 | O45: ='Earning Summary w. AFUDC'!P45 -> 0 | P45: ='Earning Summary w. AFUDC'!Q45 -> 0 | Q45: ='Earning Summary w. AFUDC'!R45 -> 0 | R45: ='Earning Summary w. AFUDC'!S45 -> 0 | S45: ='Earning Summary w. AFUDC'!T45 -> 1.2279454 | T45: ='Earning Summary w. AFUDC'!U45 -> 63.64790779 | U45: ='Earning Summary w. AFUDC'!V45 -> 34.29857473 | X45: 86.29095395 | Y45: 95.60466479 | Z45: 255.3534138 | AB45: =INDEX(RevReq!$O$16:$BM$140,MATCH('Earning & Infra Combined'!$A45,RevReq!$C$16:$C$140,0),AB$16+1) -> 0 | AC45: =INDEX(RevReq!$O$16:$BM$140,MATCH('Earning & Infra Combined'!$A45,RevReq!$C$16:$C$140,0),AC$16+1) -> 0 | AD45: =INDEX(RevReq!$O$16:$BM$140,MATCH('Earning & Infra Combined'!$A45,RevReq!$C$16:$C$140,0),AD$16+1) -> 0 | AE45: =INDEX(RevReq!$O$16:$BM$140,MATCH('Earning & Infra Combined'!$A45,RevReq!$C$16:$C$140,0),AE$16+1) -> 0 | AF45: =INDEX(RevReq!$O$16:$BM$140,MATCH('Earning & Infra Combined'!$A45,RevReq!$C$16:$C$140,0),AF$16+1) -> 0 | AG45: =INDEX(RevReq!$O$16:$BM$140,MATCH('Earning & Infra Combined'!$A45,RevReq!$C$16:$C$140,0),AG$16+1) -> 0 | AH45: =INDEX(RevReq!$O$16:$BM$140,MATCH('Earning & Infra Combined'!$A45,RevReq!$C$16:$C$140,0),AH$16+1) -> 7.588769612 | AI45: =INDEX(RevReq!$O$16:$BM$140,MATCH('Earning & Infra Combined'!$A45,RevReq!$C$16:$C$140,0),AI$16+1) -> 12.82273353 | AJ45: =INDEX(RevReq!$O$16:$BM$140,MATCH('Earning & Infra Combined'!$A45,RevReq!$C$16:$C$140,0),AJ$16+1) -> 12.50287214 | AK45: =INDEX(RevReq!$O$16:$BM$140,MATCH('Earning & Infra Combined'!$A45,RevReq!$C$16:$C$140,0),AK$16+1) -> 12.18301075 | AL45: =INDEX(RevReq!$O$16:$BM$140,MATCH('Earning & Infra Combined'!$A45,RevReq!$C$16:$C$140,0),AL$16+1) -> 11.86314937 | AM45: =INDEX(RevReq!$O$16:$BM$140,MATCH('Earning & Infra Combined'!$A45,RevReq!$C$16:$C$140,0),AM$16+1) -> 11.54328798 | AN45: =INDEX(RevReq!$O$16:$BM$140,MATCH('Earning & Infra Combined'!$A45,RevReq!$C$16:$C$140,0),AN$16+1) -> 11.22342659 | AO45: =INDEX(RevReq!$O$16:$BM$140,MATCH('Earning & Infra Combined'!$A45,RevReq!$C$16:$C$140,0),AO$16+1) -> 10.90356521 | AP45: =INDEX(RevReq!$O$16:$BM$140,MATCH('Earning & Infra Combined'!$A45,RevReq!$C$16:$C$140,0),AP$16+1) -> 10.58370382 | AQ45: =INDEX(RevReq!$O$16:$BM$140,MATCH('Earning & Infra Combined'!$A45,RevReq!$C$16:$C$140,0),AQ$16+1) -> 10.26384243 | AR45: =INDEX(RevReq!$O$16:$BM$140,MATCH('Earning & Infra Combined'!$A45,RevReq!$C$16:$C$140,0),AR$16+1) -> 9.943981045 | AS45: =INDEX(RevReq!$O$16:$BM$140,MATCH('Earning & Infra Combined'!$A45,RevReq!$C$16:$C$140,0),AS$16+1) -> 9.624119659 | AT45: =INDEX(RevReq!$O$16:$BM$140,MATCH('Earning & Infra Combined'!$A45,RevReq!$C$16:$C$140,0),AT$16+1) -> 9.304258272 | AU45: =INDEX(RevReq!$O$16:$BM$140,MATCH('Earning & Infra Combined'!$A45,RevReq!$C$16:$C$140,0),AU$16+1) -> 8.984396885 | AV45: =INDEX(RevReq!$O$16:$BM$140,MATCH('Earning & Infra Combined'!$A45,RevReq!$C$16:$C$140,0),AV$16+1) -> 8.664535499 | AW45: =INDEX(RevReq!$O$16:$BM$140,MATCH('Earning & Infra Combined'!$A45,RevReq!$C$16:$C$140,0),AW$16+1) -> 8.344674112 | AX45: =INDEX(RevReq!$O$16:$BM$140,MATCH('Earning & Infra Combined'!$A45,RevReq!$C$16:$C$140,0),AX$16+1) -> 8.024812725 | AY45: =INDEX(RevReq!$O$16:$BM$140,MATCH('Earning & Infra Combined'!$A45,RevReq!$C$16:$C$140,0),AY$16+1) -> 7.704951338 | AZ45: =INDEX(RevReq!$O$16:$BM$140,MATCH('Earning & Infra Combined'!$A45,RevReq!$C$16:$C$140,0),AZ$16+1) -> 7.385089952 | BA45: =INDEX(RevReq!$O$16:$BM$140,MATCH('Earning & Infra Combined'!$A45,RevReq!$C$16:$C$140,0),BA$16+1) -> 7.065228565 | BB45: =INDEX(RevReq!$O$16:$BM$140,MATCH('Earning & Infra Combined'!$A45,RevReq!$C$16:$C$140,0),BB$16+1) -> 6.745367178 | BC45: =INDEX(RevReq!$O$16:$BM$140,MATCH('Earning & Infra Combined'!$A45,RevReq!$C$16:$C$140,0),BC$16+1) -> 6.425505792 | BD45: =INDEX(RevReq!$O$16:$BM$140,MATCH('Earning & Infra Combined'!$A45,RevReq!$C$16:$C$140,0),BD$16+1) -> 6.105644405 | BE45: =INDEX(RevReq!$O$16:$BM$140,MATCH('Earning & Infra Combined'!$A45,RevReq!$C$16:$C$140,0),BE$16+1) -> 5.785783018 | BF45: =INDEX(RevReq!$O$16:$BM$140,MATCH('Earning & Infra Combined'!$A45,RevReq!$C$16:$C$140,0),BF$16+1) -> 5.465921632 | BG45: =INDEX(RevReq!$O$16:$BM$140,MATCH('Earning & Infra Combined'!$A45,RevReq!$C$16:$C$140,0),BG$16+1) -> 5.146060245 | BH45: =INDEX(RevReq!$O$16:$BM$140,MATCH('Earning & Infra Combined'!$A45,RevReq!$C$16:$C$140,0),BH$16+1) -> 4.826198858 | BI45: =INDEX(RevReq!$O$16:$BM$140,MATCH('Earning & Infra Combined'!$A45,RevReq!$C$16:$C$140,0),BI$16+1) -> 4.506337471 | BJ45: =INDEX(RevReq!$O$16:$BM$140,MATCH('Earning & Infra Combined'!$A45,RevReq!$C$16:$C$140,0),BJ$16+1) -> 4.186476085 | BK45: =INDEX(RevReq!$O$16:$BM$140,MATCH('Earning & Infra Combined'!$A45,RevReq!$C$16:$C$140,0),BK$16+1) -> 3.866614698 | BL45: =INDEX(RevReq!$O$16:$BM$140,MATCH('Earning & Infra Combined'!$A45,RevReq!$C$16:$C$140,0),BL$16+1) -> 3.546753311 | BM45: =INDEX(RevReq!$O$16:$BM$140,MATCH('Earning & Infra Combined'!$A45,RevReq!$C$16:$C$140,0),BM$16+1) -> 2.222341591 | BN45: =INDEX(RevReq!$O$16:$BM$140,MATCH('Earning & Infra Combined'!$A45,RevReq!$C$16:$C$140,0),BN$16+1) -> 8.593767171e-15 | BO45: =INDEX(RevReq!$O$16:$BM$140,MATCH('Earning & Infra Combined'!$A45,RevReq!$C$16:$C$140,0),BO$16+1) -> 8.593767171e-15 | BP45: =INDEX(RevReq!$O$16:$BM$140,MATCH('Earning & Infra Combined'!$A45,RevReq!$C$16:$C$140,0),BP$16+1) -> 8.593767171e-15 | BQ45: =INDEX(RevReq!$O$16:$BM$140,MATCH('Earning & Infra Combined'!$A45,RevReq!$C$16:$C$140,0),BQ$16+1) -> 8.593767171e-15 | BR45: =INDEX(RevReq!$O$16:$BM$140,MATCH('Earning & Infra Combined'!$A45,RevReq!$C$16:$C$140,0),BR$16+1) -> 8.593767171e-15 | BS45: =INDEX(RevReq!$O$16:$BM$140,MATCH('Earning & Infra Combined'!$A45,RevReq!$C$16:$C$140,0),BS$16+1) -> 8.593767171e-15 | BT45: =INDEX(RevReq!$O$16:$BM$140,MATCH('Earning & Infra Combined'!$A45,RevReq!$C$16:$C$140,0),BT$16+1) -> 8.593767171e-15 | BU45: =INDEX(RevReq!$O$16:$BM$140,MATCH('Earning & Infra Combined'!$A45,RevReq!$C$16:$C$140,0),BU$16+1) -> 8.593767171e-15 | BV45: =INDEX(RevReq!$O$16:$BM$140,MATCH('Earning & Infra Combined'!$A45,RevReq!$C$16:$C$140,0),BV$16+1) -> 8.593767171e-15 | BW45: =INDEX(RevReq!$O$16:$BM$140,MATCH('Earning & Infra Combined'!$A45,RevReq!$C$16:$C$140,0),BW$16+1) -> 8.593767171e-15 | BX45: =INDEX(RevReq!$O$16:$BM$140,MATCH('Earning & Infra Combined'!$A45,RevReq!$C$16:$C$140,0),BX$16+1) -> 8.593767171e-15 | BY45: =INDEX(RevReq!$O$16:$BM$140,MATCH('Earning & Infra Combined'!$A45,RevReq!$C$16:$C$140,0),BY$16+1) -> 8.593767171e-15 | BZ45: =INDEX(RevReq!$O$16:$BM$140,MATCH('Earning & Infra Combined'!$A45,RevReq!$C$16:$C$140,0),BZ$16+1) -> 8.593767171e-15
K46: Total Growth | O46: =SUM(O36:O45) -> 62.18446692 | P46: 293.6525779 | Q46: 487.7776526 | R46: 379.9972668 | S46: 588.3087075 | T46: 617.6295346 | U46: 421.6161088 | X46: =SUM(X36:X45) -> 3027.741469 | Y46: 3354.536997 | Z46: 9416.156101 | AB46: =SUM(AB36:AB45) -> 0 | AC46: =SUM(AC36:AC45) -> 0 | AD46: 64.13605498 | AE46: 112.9686726 | AF46: 208.7005116 | AG46: 259.4987599 | AH46: 314.0909944 | AI46: 314.9650299 | AJ46: 323.433006 | AK46: 317.105864 | AL46: 310.778722 | AM46: 304.45158 | AN46: 298.124438 | AO46: 291.797296 | AP46: 285.470154 | AQ46: 279.1430121 | AR46: 272.8158701 | AS46: 266.4887281 | AT46: 260.1615861 | AU46: 253.8344441 | AV46: 247.5073021 | AW46: 241.1801601 | AX46: 234.8530181 | AY46: 228.5258687 | AZ46: 222.1986544 | BA46: 215.8715209 | BB46: 209.5443875 | BC46: 203.2172541 | BD46: 196.8901206 | BE46: 190.5629872 | BF46: 184.2358537 | BG46: 177.9087203 | BH46: 171.5815869 | BI46: 165.2544534 | BJ46: 158.92732 | BK46: 152.6001865 | BL46: 145.2839037 | BM46: 134.6216296 | BN46: 126.2860014 | BO46: 120.8075062 | BP46: 115.3311678 | BQ46: 109.8548294 | BR46: 104.3784911 | BS46: 98.90215268 | BT46: 93.4258143 | BU46: 87.94947592 | BV46: 82.47313754 | BW46: 76.99679916 | BX46: 71.52046078 | BY46: 62.84358581 | BZ46: 46.65702668
K48: Reliability
A49: =MAX($A$18:A48)+1 -> 18 | B49: ='Earning Summary w. AFUDC'!B49 -> Power Delivery | C49: ='Earning Summary w. AFUDC'!C49 -> Reliability | D49: ='Earning Summary w. AFUDC'!D49 -> 2019 | E49: ='Earning Summary w. AFUDC'!E49 -> 2019-01-01 | F49: ='Earning Summary w. AFUDC'!G49 -> 2022-12-01 | G49: ='Earning Summary w. AFUDC'!H49 -> 0.034 | H49: ='Earning Summary w. AFUDC'!I49 -> 1 | K49: ='Earning Summary w. AFUDC'!L49 -> Pensacola UG Modernization | L49: ='Earning Summary w. AFUDC'!M49 -> 202212 | M49: ='Earning Summary w. AFUDC'!N49 -> 0.034 | N49: ='Earning Summary w. AFUDC'!O49 -> 1 | O49: ='Earning Summary w. AFUDC'!P49 -> 0 | P49: ='Earning Summary w. AFUDC'!Q49 -> 0 | Q49: ='Earning Summary w. AFUDC'!R49 -> 43.23587324 | R49: ='Earning Summary w. AFUDC'!S49 -> -3.58248839 | S49: ='Earning Summary w. AFUDC'!T49 -> 22.25766068 | T49: ='Earning Summary w. AFUDC'!U49 -> 17.71194873 | U49: ='Earning Summary w. AFUDC'!V49 -> 0.5469089799 | X49: =Y49*H49 -> 79.62046903 | Y49: =SUMPRODUCT($AB$13:$BZ$13,$AB49:$BZ49) -> 79.62046903 | Z49: =SUM(AB49:BZ49) -> 199.0165565 | AB49: =INDEX(RevReq!$O$16:$BM$140,MATCH('Earning & Infra Combined'!$A49,RevReq!$C$16:$C$140,0),AB$16+1) -> 0 | AC49: =INDEX(RevReq!$O$16:$BM$140,MATCH('Earning & Infra Combined'!$A49,RevReq!$C$16:$C$140,0),AC$16+1) -> 0 | AD49: =INDEX(RevReq!$O$16:$BM$140,MATCH('Earning & Infra Combined'!$A49,RevReq!$C$16:$C$140,0),AD$16+1) -> 0 | AE49: =INDEX(RevReq!$O$16:$BM$140,MATCH('Earning & Infra Combined'!$A49,RevReq!$C$16:$C$140,0),AE$16+1) -> 0 | AF49: =INDEX(RevReq!$O$16:$BM$140,MATCH('Earning & Infra Combined'!$A49,RevReq!$C$16:$C$140,0),AF$16+1) -> 0 | AG49: =INDEX(RevReq!$O$16:$BM$140,MATCH('Earning & Infra Combined'!$A49,RevReq!$C$16:$C$140,0),AG$16+1) -> 0.8829882069 | AH49: =INDEX(RevReq!$O$16:$BM$140,MATCH('Earning & Infra Combined'!$A49,RevReq!$C$16:$C$140,0),AH$16+1) -> 10.5791857 | AI49: =INDEX(RevReq!$O$16:$BM$140,MATCH('Earning & Infra Combined'!$A49,RevReq!$C$16:$C$140,0),AI$16+1) -> 10.3728911 | AJ49: =INDEX(RevReq!$O$16:$BM$140,MATCH('Earning & Infra Combined'!$A49,RevReq!$C$16:$C$140,0),AJ$16+1) -> 10.09816343 | AK49: =INDEX(RevReq!$O$16:$BM$140,MATCH('Earning & Infra Combined'!$A49,RevReq!$C$16:$C$140,0),AK$16+1) -> 9.823435753 | AL49: =INDEX(RevReq!$O$16:$BM$140,MATCH('Earning & Infra Combined'!$A49,RevReq!$C$16:$C$140,0),AL$16+1) -> 9.548708078 | AM49: =INDEX(RevReq!$O$16:$BM$140,MATCH('Earning & Infra Combined'!$A49,RevReq!$C$16:$C$140,0),AM$16+1) -> 9.273980404 | AN49: =INDEX(RevReq!$O$16:$BM$140,MATCH('Earning & Infra Combined'!$A49,RevReq!$C$16:$C$140,0),AN$16+1) -> 8.999252729 | AO49: =INDEX(RevReq!$O$16:$BM$140,MATCH('Earning & Infra Combined'!$A49,RevReq!$C$16:$C$140,0),AO$16+1) -> 8.724525055 | AP49: =INDEX(RevReq!$O$16:$BM$140,MATCH('Earning & Infra Combined'!$A49,RevReq!$C$16:$C$140,0),AP$16+1) -> 8.44979738 | AQ49: =INDEX(RevReq!$O$16:$BM$140,MATCH('Earning & Infra Combined'!$A49,RevReq!$C$16:$C$140,0),AQ$16+1) -> 8.175069706 | AR49: =INDEX(RevReq!$O$16:$BM$140,MATCH('Earning & Infra Combined'!$A49,RevReq!$C$16:$C$140,0),AR$16+1) -> 7.900342032 | AS49: =INDEX(RevReq!$O$16:$BM$140,MATCH('Earning & Infra Combined'!$A49,RevReq!$C$16:$C$140,0),AS$16+1) -> 7.625614357 | AT49: =INDEX(RevReq!$O$16:$BM$140,MATCH('Earning & Infra Combined'!$A49,RevReq!$C$16:$C$140,0),AT$16+1) -> 7.350886683 | AU49: =INDEX(RevReq!$O$16:$BM$140,MATCH('Earning & Infra Combined'!$A49,RevReq!$C$16:$C$140,0),AU$16+1) -> 7.076159008 | AV49: =INDEX(RevReq!$O$16:$BM$140,MATCH('Earning & Infra Combined'!$A49,RevReq!$C$16:$C$140,0),AV$16+1) -> 6.801431334 | AW49: =INDEX(RevReq!$O$16:$BM$140,MATCH('Earning & Infra Combined'!$A49,RevReq!$C$16:$C$140,0),AW$16+1) -> 6.526703659 | AX49: =INDEX(RevReq!$O$16:$BM$140,MATCH('Earning & Infra Combined'!$A49,RevReq!$C$16:$C$140,0),AX$16+1) -> 6.251975985 | AY49: =INDEX(RevReq!$O$16:$BM$140,MATCH('Earning & Infra Combined'!$A49,RevReq!$C$16:$C$140,0),AY$16+1) -> 5.977248311 | AZ49: =INDEX(RevReq!$O$16:$BM$140,MATCH('Earning & Infra Combined'!$A49,RevReq!$C$16:$C$140,0),AZ$16+1) -> 5.702520636 | BA49: =INDEX(RevReq!$O$16:$BM$140,MATCH('Earning & Infra Combined'!$A49,RevReq!$C$16:$C$140,0),BA$16+1) -> 5.427792962 | BB49: =INDEX(RevReq!$O$16:$BM$140,MATCH('Earning & Infra Combined'!$A49,RevReq!$C$16:$C$140,0),BB$16+1) -> 5.153065287 | BC49: =INDEX(RevReq!$O$16:$BM$140,MATCH('Earning & Infra Combined'!$A49,RevReq!$C$16:$C$140,0),BC$16+1) -> 4.878337613 | BD49: =INDEX(RevReq!$O$16:$BM$140,MATCH('Earning & Infra Combined'!$A49,RevReq!$C$16:$C$140,0),BD$16+1) -> 4.603609938 | BE49: =INDEX(RevReq!$O$16:$BM$140,MATCH('Earning & Infra Combined'!$A49,RevReq!$C$16:$C$140,0),BE$16+1) -> 4.328882264 | BF49: =INDEX(RevReq!$O$16:$BM$140,MATCH('Earning & Infra Combined'!$A49,RevReq!$C$16:$C$140,0),BF$16+1) -> 4.05415459 | BG49: =INDEX(RevReq!$O$16:$BM$140,MATCH('Earning & Infra Combined'!$A49,RevReq!$C$16:$C$140,0),BG$16+1) -> 3.779426915 | BH49: =INDEX(RevReq!$O$16:$BM$140,MATCH('Earning & Infra Combined'!$A49,RevReq!$C$16:$C$140,0),BH$16+1) -> 3.504699241 | BI49: =INDEX(RevReq!$O$16:$BM$140,MATCH('Earning & Infra Combined'!$A49,RevReq!$C$16:$C$140,0),BI$16+1) -> 3.229971566 | BJ49: =INDEX(RevReq!$O$16:$BM$140,MATCH('Earning & Infra Combined'!$A49,RevReq!$C$16:$C$140,0),BJ$16+1) -> 2.955243892 | BK49: =INDEX(RevReq!$O$16:$BM$140,MATCH('Earning & Infra Combined'!$A49,RevReq!$C$16:$C$140,0),BK$16+1) -> 0.9540777796 | BL49: =INDEX(RevReq!$O$16:$BM$140,MATCH('Earning & Infra Combined'!$A49,RevReq!$C$16:$C$140,0),BL$16+1) -> 0.006414916349 | BM49: =INDEX(RevReq!$O$16:$BM$140,MATCH('Earning & Infra Combined'!$A49,RevReq!$C$16:$C$140,0),BM$16+1) -> 5.729178114e-15 | BN49: =INDEX(RevReq!$O$16:$BM$140,MATCH('Earning & Infra Combined'!$A49,RevReq!$C$16:$C$140,0),BN$16+1) -> 5.729178114e-15 | BO49: =INDEX(RevReq!$O$16:$BM$140,MATCH('Earning & Infra Combined'!$A49,RevReq!$C$16:$C$140,0),BO$16+1) -> 5.729178114e-15 | BP49: =INDEX(RevReq!$O$16:$BM$140,MATCH('Earning & Infra Combined'!$A49,RevReq!$C$16:$C$140,0),BP$16+1) -> 5.729178114e-15 | BQ49: =INDEX(RevReq!$O$16:$BM$140,MATCH('Earning & Infra Combined'!$A49,RevReq!$C$16:$C$140,0),BQ$16+1) -> 5.729178114e-15 | BR49: =INDEX(RevReq!$O$16:$BM$140,MATCH('Earning & Infra Combined'!$A49,RevReq!$C$16:$C$140,0),BR$16+1) -> 5.729178114e-15 | BS49: =INDEX(RevReq!$O$16:$BM$140,MATCH('Earning & Infra Combined'!$A49,RevReq!$C$16:$C$140,0),BS$16+1) -> 5.729178114e-15 | BT49: =INDEX(RevReq!$O$16:$BM$140,MATCH('Earning & Infra Combined'!$A49,RevReq!$C$16:$C$140,0),BT$16+1) -> 5.729178114e-15 | BU49: =INDEX(RevReq!$O$16:$BM$140,MATCH('Earning & Infra Combined'!$A49,RevReq!$C$16:$C$140,0),BU$16+1) -> 5.729178114e-15 | BV49: =INDEX(RevReq!$O$16:$BM$140,MATCH('Earning & Infra Combined'!$A49,RevReq!$C$16:$C$140,0),BV$16+1) -> 5.729178114e-15 | BW49: =INDEX(RevReq!$O$16:$BM$140,MATCH('Earning & Infra Combined'!$A49,RevReq!$C$16:$C$140,0),BW$16+1) -> 5.729178114e-15 | BX49: =INDEX(RevReq!$O$16:$BM$140,MATCH('Earning & Infra Combined'!$A49,RevReq!$C$16:$C$140,0),BX$16+1) -> 5.729178114e-15 | BY49: =INDEX(RevReq!$O$16:$BM$140,MATCH('Earning & Infra Combined'!$A49,RevReq!$C$16:$C$140,0),BY$16+1) -> 5.729178114e-15 | BZ49: =INDEX(RevReq!$O$16:$BM$140,MATCH('Earning & Infra Combined'!$A49,RevReq!$C$16:$C$140,0),BZ$16+1) -> 5.729178114e-15
K50: Total Reliability | O50: =SUM(O49:O49) -> 0 | P50: 0 | Q50: 43.23587324 | R50: -3.58248839 | S50: 22.25766068 | T50: 17.71194873 | U50: 0.5469089799 | X50: =SUM(X49:X49) -> 79.62046903 | Y50: =SUM(Y49:Y49) -> 79.62046903 | Z50: =SUM(Z49:Z49) -> 199.0165565 | AB50: =SUM(AB49:AB49) -> 0 | AC50: =SUM(AC49:AC49) -> 0 | AD50: 0 | AE50: 0 | AF50: 0 | AG50: 0.8829882069 | AH50: 10.5791857 | AI50: 10.3728911 | AJ50: 10.09816343 | AK50: 9.823435753 | AL50: 9.548708078 | AM50: 9.273980404 | AN50: 8.999252729 | AO50: 8.724525055 | AP50: 8.44979738 | AQ50: 8.175069706 | AR50: 7.900342032 | AS50: 7.625614357 | AT50: 7.350886683 | AU50: 7.076159008 | AV50: 6.801431334 | AW50: 6.526703659 | AX50: 6.251975985 | AY50: 5.977248311 | AZ50: 5.702520636 | BA50: 5.427792962 | BB50: 5.153065287 | BC50: 4.878337613 | BD50: 4.603609938 | BE50: 4.328882264 | BF50: 4.05415459 | BG50: 3.779426915 | BH50: 3.504699241 | BI50: 3.229971566 | BJ50: 2.955243892 | BK50: 0.9540777796 | BL50: 0.006414916349 | BM50: 5.729178114e-15 | BN50: 5.729178114e-15 | BO50: 5.729178114e-15 | BP50: 5.729178114e-15 | BQ50: 5.729178114e-15 | BR50: 5.729178114e-15 | BS50: 5.729178114e-15 | BT50: 5.729178114e-15 | BU50: 5.729178114e-15 | BV50: 5.729178114e-15 | BW50: 5.729178114e-15 | BX50: 5.729178114e-15 | BY50: 5.729178114e-15 | BZ50: 5.729178114e-15
K52: Total Power Delivery | O52: =+O46+O50 -> 62.18446692 | P52: 293.6525779 | Q52: 531.0135259 | R52: 376.4147784 | S52: 610.5663682 | T52: 635.3414834 | U52: 422.1630178 | X52: =+X46+X50 -> 3107.361939 | Y52: 3434.157466 | Z52: 9615.172657 | AB52: =+AB46+AB50 -> 0 | AC52: 0 | AD52: 64.13605498 | AE52: 112.9686726 | AF52: 208.7005116 | AG52: 260.3817481 | AH52: 324.6701801 | AI52: 325.337921 | AJ52: 333.5311694 | AK52: 326.9292997 | AL52: 320.3274301 | AM52: 313.7255604 | AN52: 307.1236908 | AO52: 300.5218211 | AP52: 293.9199514 | AQ52: 287.3180818 | AR52: 280.7162121 | AS52: 274.1143424 | AT52: 267.5124728 | AU52: 260.9106031 | AV52: 254.3087334 | AW52: 247.7068638 | AX52: 241.1049941 | AY52: 234.5031171 | AZ52: 227.901175 | BA52: 221.2993139 | BB52: 214.6974528 | BC52: 208.0955917 | BD52: 201.4937306 | BE52: 194.8918694 | BF52: 188.2900083 | BG52: 181.6881472 | BH52: 175.0862861 | BI52: 168.484425 | BJ52: 161.8825639 | BK52: 153.5542643 | BL52: 145.2903187 | BM52: 134.6216296 | BN52: 126.2860014 | BO52: 120.8075062 | BP52: 115.3311678 | BQ52: 109.8548294 | BR52: 104.3784911 | BS52: 98.90215268 | BT52: 93.4258143 | BU52: 87.94947592 | BV52: 82.47313754 | BW52: 76.99679916 | BX52: 71.52046078 | BY52: 62.84358581 | BZ52: 46.65702668
K54: Customer Service
A55: =MAX($A$18:A54)+1 -> 19 | B55: ='Earning Summary w. AFUDC'!B55 -> Customer Service | C55: ='Earning Summary w. AFUDC'!C55 -> Projects | D55: ='Earning Summary w. AFUDC'!D55 -> 2017 | E55: ='Earning Summary w. AFUDC'!E55 -> 2017-01-01 | F55: ='Earning Summary w. AFUDC'!G55 -> 2017-06-01 | G55: ='Earning Summary w. AFUDC'!H55 -> 0.2 | H55: ='Earning Summary w. AFUDC'!I55 -> 1 | K55: ='Earning Summary w. AFUDC'!L55 -> Other | L55: ='Earning Summary w. AFUDC'!M55 -> 201706 | M55: ='Earning Summary w. AFUDC'!N55 -> 0.2 | N55: ='Earning Summary w. AFUDC'!O55 -> 1 | O55: ='Earning Summary w. AFUDC'!P55 -> 0.13878793 | P55: ='Earning Summary w. AFUDC'!Q55 -> 0.07678811 | Q55: ='Earning Summary w. AFUDC'!R55 -> -0.00626416 | R55: ='Earning Summary w. AFUDC'!S55 -> 0 | S55: ='Earning Summary w. AFUDC'!T55 -> 0.0371448972 | T55: ='Earning Summary w. AFUDC'!U55 -> 0.0371448972 | U55: ='Earning Summary w. AFUDC'!V55 -> 0.0371448972 | X55: =Y55*H55 -> 0.3620607067 | Y55: =SUMPRODUCT($AB$13:$BZ$13,$AB55:$BZ55) -> 0.3620607067 | Z55: =SUM(AB55:BZ55) -> 0.4015657005 | AB55: =INDEX(RevReq!$O$16:$BM$140,MATCH('Earning & Infra Combined'!$A55,RevReq!$C$16:$C$140,0),AB$16+1) -> 0.02353576396 | AC55: =INDEX(RevReq!$O$16:$BM$140,MATCH('Earning & Infra Combined'!$A55,RevReq!$C$16:$C$140,0),AC$16+1) -> 0.05173684654 | AD55: =INDEX(RevReq!$O$16:$BM$140,MATCH('Earning & Infra Combined'!$A55,RevReq!$C$16:$C$140,0),AD$16+1) -> 0.05627526132 | AE55: =INDEX(RevReq!$O$16:$BM$140,MATCH('Earning & Infra Combined'!$A55,RevReq!$C$16:$C$140,0),AE$16+1) -> 0.05124461877 | AF55: =INDEX(RevReq!$O$16:$BM$140,MATCH('Earning & Infra Combined'!$A55,RevReq!$C$16:$C$140,0),AF$16+1) -> 0.05332442175 | AG55: =INDEX(RevReq!$O$16:$BM$140,MATCH('Earning & Infra Combined'!$A55,RevReq!$C$16:$C$140,0),AG$16+1) -> 0.04409083509 | AH55: =INDEX(RevReq!$O$16:$BM$140,MATCH('Earning & Infra Combined'!$A55,RevReq!$C$16:$C$140,0),AH$16+1) -> 0.03162643245 | AI55: =INDEX(RevReq!$O$16:$BM$140,MATCH('Earning & Infra Combined'!$A55,RevReq!$C$16:$C$140,0),AI$16+1) -> 0.02829024814 | AJ55: =INDEX(RevReq!$O$16:$BM$140,MATCH('Earning & Infra Combined'!$A55,RevReq!$C$16:$C$140,0),AJ$16+1) -> 0.02659229498 | AK55: =INDEX(RevReq!$O$16:$BM$140,MATCH('Earning & Infra Combined'!$A55,RevReq!$C$16:$C$140,0),AK$16+1) -> 0.02023083826 | AL55: =INDEX(RevReq!$O$16:$BM$140,MATCH('Earning & Infra Combined'!$A55,RevReq!$C$16:$C$140,0),AL$16+1) -> 0.01136673993 | AM55: =INDEX(RevReq!$O$16:$BM$140,MATCH('Earning & Infra Combined'!$A55,RevReq!$C$16:$C$140,0),AM$16+1) -> 0.003251399283 | AN55: =INDEX(RevReq!$O$16:$BM$140,MATCH('Earning & Infra Combined'!$A55,RevReq!$C$16:$C$140,0),AN$16+1) -> 5.594900502e-18 | AO55: =INDEX(RevReq!$O$16:$BM$140,MATCH('Earning & Infra Combined'!$A55,RevReq!$C$16:$C$140,0),AO$16+1) -> 5.594900502e-18 | AP55: =INDEX(RevReq!$O$16:$BM$140,MATCH('Earning & Infra Combined'!$A55,RevReq!$C$16:$C$140,0),AP$16+1) -> 5.594900502e-18 | AQ55: =INDEX(RevReq!$O$16:$BM$140,MATCH('Earning & Infra Combined'!$A55,RevReq!$C$16:$C$140,0),AQ$16+1) -> 5.594900502e-18 | AR55: =INDEX(RevReq!$O$16:$BM$140,MATCH('Earning & Infra Combined'!$A55,RevReq!$C$16:$C$140,0),AR$16+1) -> 5.594900502e-18 | AS55: =INDEX(RevReq!$O$16:$BM$140,MATCH('Earning & Infra Combined'!$A55,RevReq!$C$16:$C$140,0),AS$16+1) -> 5.594900502e-18 | AT55: =INDEX(RevReq!$O$16:$BM$140,MATCH('Earning & Infra Combined'!$A55,RevReq!$C$16:$C$140,0),AT$16+1) -> 5.594900502e-18 | AU55: =INDEX(RevReq!$O$16:$BM$140,MATCH('Earning & Infra Combined'!$A55,RevReq!$C$16:$C$140,0),AU$16+1) -> 5.594900502e-18 | AV55: =INDEX(RevReq!$O$16:$BM$140,MATCH('Earning & Infra Combined'!$A55,RevReq!$C$16:$C$140,0),AV$16+1) -> 5.594900502e-18 | AW55: =INDEX(RevReq!$O$16:$BM$140,MATCH('Earning & Infra Combined'!$A55,RevReq!$C$16:$C$140,0),AW$16+1) -> 5.594900502e-18 | AX55: =INDEX(RevReq!$O$16:$BM$140,MATCH('Earning & Infra Combined'!$A55,RevReq!$C$16:$C$140,0),AX$16+1) -> 5.594900502e-18 | AY55: =INDEX(RevReq!$O$16:$BM$140,MATCH('Earning & Infra Combined'!$A55,RevReq!$C$16:$C$140,0),AY$16+1) -> 5.594900502e-18 | AZ55: =INDEX(RevReq!$O$16:$BM$140,MATCH('Earning & Infra Combined'!$A55,RevReq!$C$16:$C$140,0),AZ$16+1) -> 5.594900502e-18 | BA55: =INDEX(RevReq!$O$16:$BM$140,MATCH('Earning & Infra Combined'!$A55,RevReq!$C$16:$C$140,0),BA$16+1) -> 5.594900502e-18 | BB55: =INDEX(RevReq!$O$16:$BM$140,MATCH('Earning & Infra Combined'!$A55,RevReq!$C$16:$C$140,0),BB$16+1) -> 5.594900502e-18 | BC55: =INDEX(RevReq!$O$16:$BM$140,MATCH('Earning & Infra Combined'!$A55,RevReq!$C$16:$C$140,0),BC$16+1) -> 5.594900502e-18 | BD55: =INDEX(RevReq!$O$16:$BM$140,MATCH('Earning & Infra Combined'!$A55,RevReq!$C$16:$C$140,0),BD$16+1) -> 5.594900502e-18 | BE55: =INDEX(RevReq!$O$16:$BM$140,MATCH('Earning & Infra Combined'!$A55,RevReq!$C$16:$C$140,0),BE$16+1) -> 5.594900502e-18 | BF55: =INDEX(RevReq!$O$16:$BM$140,MATCH('Earning & Infra Combined'!$A55,RevReq!$C$16:$C$140,0),BF$16+1) -> 5.594900502e-18 | BG55: =INDEX(RevReq!$O$16:$BM$140,MATCH('Earning & Infra Combined'!$A55,RevReq!$C$16:$C$140,0),BG$16+1) -> 5.594900502e-18 | BH55: =INDEX(RevReq!$O$16:$BM$140,MATCH('Earning & Infra Combined'!$A55,RevReq!$C$16:$C$140,0),BH$16+1) -> 5.594900502e-18 | BI55: =INDEX(RevReq!$O$16:$BM$140,MATCH('Earning & Infra Combined'!$A55,RevReq!$C$16:$C$140,0),BI$16+1) -> 5.594900502e-18 | BJ55: =INDEX(RevReq!$O$16:$BM$140,MATCH('Earning & Infra Combined'!$A55,RevReq!$C$16:$C$140,0),BJ$16+1) -> 5.594900502e-18 | BK55: =INDEX(RevReq!$O$16:$BM$140,MATCH('Earning & Infra Combined'!$A55,RevReq!$C$16:$C$140,0),BK$16+1) -> 5.594900502e-18 | BL55: =INDEX(RevReq!$O$16:$BM$140,MATCH('Earning & Infra Combined'!$A55,RevReq!$C$16:$C$140,0),BL$16+1) -> 5.594900502e-18 | BM55: =INDEX(RevReq!$O$16:$BM$140,MATCH('Earning & Infra Combined'!$A55,RevReq!$C$16:$C$140,0),BM$16+1) -> 5.594900502e-18 | BN55: =INDEX(RevReq!$O$16:$BM$140,MATCH('Earning & Infra Combined'!$A55,RevReq!$C$16:$C$140,0),BN$16+1) -> 5.594900502e-18 | BO55: =INDEX(RevReq!$O$16:$BM$140,MATCH('Earning & Infra Combined'!$A55,RevReq!$C$16:$C$140,0),BO$16+1) -> 5.594900502e-18 | BP55: =INDEX(RevReq!$O$16:$BM$140,MATCH('Earning & Infra Combined'!$A55,RevReq!$C$16:$C$140,0),BP$16+1) -> 5.594900502e-18 | BQ55: =INDEX(RevReq!$O$16:$BM$140,MATCH('Earning & Infra Combined'!$A55,RevReq!$C$16:$C$140,0),BQ$16+1) -> 5.594900502e-18 | BR55: =INDEX(RevReq!$O$16:$BM$140,MATCH('Earning & Infra Combined'!$A55,RevReq!$C$16:$C$140,0),BR$16+1) -> 5.594900502e-18 | BS55: =INDEX(RevReq!$O$16:$BM$140,MATCH('Earning & Infra Combined'!$A55,RevReq!$C$16:$C$140,0),BS$16+1) -> 5.594900502e-18 | BT55: =INDEX(RevReq!$O$16:$BM$140,MATCH('Earning & Infra Combined'!$A55,RevReq!$C$16:$C$140,0),BT$16+1) -> 5.594900502e-18 | BU55: =INDEX(RevReq!$O$16:$BM$140,MATCH('Earning & Infra Combined'!$A55,RevReq!$C$16:$C$140,0),BU$16+1) -> 5.594900502e-18 | BV55: =INDEX(RevReq!$O$16:$BM$140,MATCH('Earning & Infra Combined'!$A55,RevReq!$C$16:$C$140,0),BV$16+1) -> 5.594900502e-18 | BW55: =INDEX(RevReq!$O$16:$BM$140,MATCH('Earning & Infra Combined'!$A55,RevReq!$C$16:$C$140,0),BW$16+1) -> 5.594900502e-18 | BX55: =INDEX(RevReq!$O$16:$BM$140,MATCH('Earning & Infra Combined'!$A55,RevReq!$C$16:$C$140,0),BX$16+1) -> 5.594900502e-18 | BY55: =INDEX(RevReq!$O$16:$BM$140,MATCH('Earning & Infra Combined'!$A55,RevReq!$C$16:$C$140,0),BY$16+1) -> 5.594900502e-18 | BZ55: =INDEX(RevReq!$O$16:$BM$140,MATCH('Earning & Infra Combined'!$A55,RevReq!$C$16:$C$140,0),BZ$16+1) -> 5.594900502e-18
K56: Total Customer Service | O56: =SUM(O55:O55) -> 0.13878793 | P56: 0.07678811 | Q56: -0.00626416 | R56: 0 | S56: 0.0371448972 | T56: 0.0371448972 | U56: 0.0371448972 | X56: =SUM(X55:X55) -> 0.3620607067 | Y56: =SUM(Y55:Y55) -> 0.3620607067 | Z56: =SUM(Z55:Z55) -> 0.4015657005 | AB56: =SUM(AB55:AB55) -> 0.02353576396 | AC56: =SUM(AC55:AC55) -> 0.05173684654 | AD56: 0.05627526132 | AE56: 0.05124461877 | AF56: 0.05332442175 | AG56: 0.04409083509 | AH56: 0.03162643245 | AI56: 0.02829024814 | AJ56: 0.02659229498 | AK56: 0.02023083826 | AL56: 0.01136673993 | AM56: 0.003251399283 | AN56: 5.594900502e-18 | AO56: 5.594900502e-18 | AP56: 5.594900502e-18 | AQ56: 5.594900502e-18 | AR56: 5.594900502e-18 | AS56: 5.594900502e-18 | AT56: 5.594900502e-18 | AU56: 5.594900502e-18 | AV56: 5.594900502e-18 | AW56: 5.594900502e-18 | AX56: 5.594900502e-18 | AY56: 5.594900502e-18 | AZ56: 5.594900502e-18 | BA56: 5.594900502e-18 | BB56: 5.594900502e-18 | BC56: 5.594900502e-18 | BD56: 5.594900502e-18 | BE56: 5.594900502e-18 | BF56: 5.594900502e-18 | BG56: 5.594900502e-18 | BH56: 5.594900502e-18 | BI56: 5.594900502e-18 | BJ56: 5.594900502e-18 | BK56: 5.594900502e-18 | BL56: 5.594900502e-18 | BM56: 5.594900502e-18 | BN56: 5.594900502e-18 | BO56: 5.594900502e-18 | BP56: 5.594900502e-18 | BQ56: 5.594900502e-18 | BR56: 5.594900502e-18 | BS56: 5.594900502e-18 | BT56: 5.594900502e-18 | BU56: 5.594900502e-18 | BV56: 5.594900502e-18 | BW56: 5.594900502e-18 | BX56: 5.594900502e-18 | BY56: 5.594900502e-18 | BZ56: 5.594900502e-18
K58: Engineering & Construction
A59: =MAX($A$18:A58)+1 -> 20 | B59: ='Earning Summary w. AFUDC'!B59 -> Engineering & Construction | C59: ='Earning Summary w. AFUDC'!C59 -> Projects | D59: ='Earning Summary w. AFUDC'!D59 -> 2017 | E59: ='Earning Summary w. AFUDC'!E59 -> 2017-01-01 | F59: ='Earning Summary w. AFUDC'!G59 -> 2019-03-01 | G59: ='Earning Summary w. AFUDC'!H59 -> 0.035 | H59: ='Earning Summary w. AFUDC'!I59 -> 0.955404 | K59: ='Earning Summary w. AFUDC'!L59 -> Okeechobee Energy Center | L59: ='Earning Summary w. AFUDC'!M59 -> 201903 | M59: ='Earning Summary w. AFUDC'!N59 -> 0.035 | N59: ='Earning Summary w. AFUDC'!O59 -> 0.955404 | O59: ='Earning Summary w. AFUDC'!P59 -> 407.0104941 | P59: ='Earning Summary w. AFUDC'!Q59 -> 321.1822685 | Q59: ='Earning Summary w. AFUDC'!R59 -> 65.15558161 | R59: ='Earning Summary w. AFUDC'!S59 -> 13.396727 | S59: ='Earning Summary w. AFUDC'!T59 -> 0.02034730566 | T59: ='Earning Summary w. AFUDC'!U59 -> 0.02101405969 | U59: ='Earning Summary w. AFUDC'!V59 -> 0.02171840821 | X59: =Y59*H59 -> 1001.77951 | Y59: =SUMPRODUCT($AB$13:$BZ$13,$AB59:$BZ59) -> 1048.540209 | Z59: =SUM(AB59:BZ59) -> 1968.559867 | AB59: =INDEX(RevReq!$O$16:$BM$140,MATCH('Earning & Infra Combined'!$A59,RevReq!$C$16:$C$140,0),AB$16+1) -> 0 | AC59: =INDEX(RevReq!$O$16:$BM$140,MATCH('Earning & Infra Combined'!$A59,RevReq!$C$16:$C$140,0),AC$16+1) -> 0 | AD59: =INDEX(RevReq!$O$16:$BM$140,MATCH('Earning & Infra Combined'!$A59,RevReq!$C$16:$C$140,0),AD$16+1) -> 88.60706928 | AE59: =INDEX(RevReq!$O$16:$BM$140,MATCH('Earning & Infra Combined'!$A59,RevReq!$C$16:$C$140,0),AE$16+1) -> 105.4925455 | AF59: =INDEX(RevReq!$O$16:$BM$140,MATCH('Earning & Infra Combined'!$A59,RevReq!$C$16:$C$140,0),AF$16+1) -> 102.9560643 | AG59: =INDEX(RevReq!$O$16:$BM$140,MATCH('Earning & Infra Combined'!$A59,RevReq!$C$16:$C$140,0),AG$16+1) -> 100.1129265 | AH59: =INDEX(RevReq!$O$16:$BM$140,MATCH('Earning & Infra Combined'!$A59,RevReq!$C$16:$C$140,0),AH$16+1) -> 97.26980861 | AI59: =INDEX(RevReq!$O$16:$BM$140,MATCH('Earning & Infra Combined'!$A59,RevReq!$C$16:$C$140,0),AI$16+1) -> 94.42420455 | AJ59: =INDEX(RevReq!$O$16:$BM$140,MATCH('Earning & Infra Combined'!$A59,RevReq!$C$16:$C$140,0),AJ$16+1) -> 91.57810258 | AK59: =INDEX(RevReq!$O$16:$BM$140,MATCH('Earning & Infra Combined'!$A59,RevReq!$C$16:$C$140,0),AK$16+1) -> 88.73200062 | AL59: =INDEX(RevReq!$O$16:$BM$140,MATCH('Earning & Infra Combined'!$A59,RevReq!$C$16:$C$140,0),AL$16+1) -> 85.88589866 | AM59: =INDEX(RevReq!$O$16:$BM$140,MATCH('Earning & Infra Combined'!$A59,RevReq!$C$16:$C$140,0),AM$16+1) -> 83.03979669 | AN59: =INDEX(RevReq!$O$16:$BM$140,MATCH('Earning & Infra Combined'!$A59,RevReq!$C$16:$C$140,0),AN$16+1) -> 80.19369473 | AO59: =INDEX(RevReq!$O$16:$BM$140,MATCH('Earning & Infra Combined'!$A59,RevReq!$C$16:$C$140,0),AO$16+1) -> 77.34759277 | AP59: =INDEX(RevReq!$O$16:$BM$140,MATCH('Earning & Infra Combined'!$A59,RevReq!$C$16:$C$140,0),AP$16+1) -> 74.5014908 | AQ59: =INDEX(RevReq!$O$16:$BM$140,MATCH('Earning & Infra Combined'!$A59,RevReq!$C$16:$C$140,0),AQ$16+1) -> 71.65538884 | AR59: =INDEX(RevReq!$O$16:$BM$140,MATCH('Earning & Infra Combined'!$A59,RevReq!$C$16:$C$140,0),AR$16+1) -> 68.80928688 | AS59: =INDEX(RevReq!$O$16:$BM$140,MATCH('Earning & Infra Combined'!$A59,RevReq!$C$16:$C$140,0),AS$16+1) -> 65.96318491 | AT59: =INDEX(RevReq!$O$16:$BM$140,MATCH('Earning & Infra Combined'!$A59,RevReq!$C$16:$C$140,0),AT$16+1) -> 63.11708295 | AU59: =INDEX(RevReq!$O$16:$BM$140,MATCH('Earning & Infra Combined'!$A59,RevReq!$C$16:$C$140,0),AU$16+1) -> 60.27098099 | AV59: =INDEX(RevReq!$O$16:$BM$140,MATCH('Earning & Infra Combined'!$A59,RevReq!$C$16:$C$140,0),AV$16+1) -> 57.42487902 | AW59: =INDEX(RevReq!$O$16:$BM$140,MATCH('Earning & Infra Combined'!$A59,RevReq!$C$16:$C$140,0),AW$16+1) -> 54.57877706 | AX59: =INDEX(RevReq!$O$16:$BM$140,MATCH('Earning & Infra Combined'!$A59,RevReq!$C$16:$C$140,0),AX$16+1) -> 51.7326751 | AY59: =INDEX(RevReq!$O$16:$BM$140,MATCH('Earning & Infra Combined'!$A59,RevReq!$C$16:$C$140,0),AY$16+1) -> 48.88657313 | AZ59: =INDEX(RevReq!$O$16:$BM$140,MATCH('Earning & Infra Combined'!$A59,RevReq!$C$16:$C$140,0),AZ$16+1) -> 46.04047117 | BA59: =INDEX(RevReq!$O$16:$BM$140,MATCH('Earning & Infra Combined'!$A59,RevReq!$C$16:$C$140,0),BA$16+1) -> 43.19436921 | BB59: =INDEX(RevReq!$O$16:$BM$140,MATCH('Earning & Infra Combined'!$A59,RevReq!$C$16:$C$140,0),BB$16+1) -> 40.34826724 | BC59: =INDEX(RevReq!$O$16:$BM$140,MATCH('Earning & Infra Combined'!$A59,RevReq!$C$16:$C$140,0),BC$16+1) -> 37.50216528 | BD59: =INDEX(RevReq!$O$16:$BM$140,MATCH('Earning & Infra Combined'!$A59,RevReq!$C$16:$C$140,0),BD$16+1) -> 34.65606332 | BE59: =INDEX(RevReq!$O$16:$BM$140,MATCH('Earning & Infra Combined'!$A59,RevReq!$C$16:$C$140,0),BE$16+1) -> 31.80996136 | BF59: =INDEX(RevReq!$O$16:$BM$140,MATCH('Earning & Infra Combined'!$A59,RevReq!$C$16:$C$140,0),BF$16+1) -> 22.05798566 | BG59: =INDEX(RevReq!$O$16:$BM$140,MATCH('Earning & Infra Combined'!$A59,RevReq!$C$16:$C$140,0),BG$16+1) -> 0.3662333601 | BH59: =INDEX(RevReq!$O$16:$BM$140,MATCH('Earning & Infra Combined'!$A59,RevReq!$C$16:$C$140,0),BH$16+1) -> 0.002311012971 | BI59: =INDEX(RevReq!$O$16:$BM$140,MATCH('Earning & Infra Combined'!$A59,RevReq!$C$16:$C$140,0),BI$16+1) -> 0.001425220188 | BJ59: =INDEX(RevReq!$O$16:$BM$140,MATCH('Earning & Infra Combined'!$A59,RevReq!$C$16:$C$140,0),BJ$16+1) -> 0.000589333095 | BK59: =INDEX(RevReq!$O$16:$BM$140,MATCH('Earning & Infra Combined'!$A59,RevReq!$C$16:$C$140,0),BK$16+1) -> 1.145835623e-14 | BL59: =INDEX(RevReq!$O$16:$BM$140,MATCH('Earning & Infra Combined'!$A59,RevReq!$C$16:$C$140,0),BL$16+1) -> 1.145835623e-14 | BM59: =INDEX(RevReq!$O$16:$BM$140,MATCH('Earning & Infra Combined'!$A59,RevReq!$C$16:$C$140,0),BM$16+1) -> 1.145835623e-14 | BN59: =INDEX(RevReq!$O$16:$BM$140,MATCH('Earning & Infra Combined'!$A59,RevReq!$C$16:$C$140,0),BN$16+1) -> 1.145835623e-14 | BO59: =INDEX(RevReq!$O$16:$BM$140,MATCH('Earning & Infra Combined'!$A59,RevReq!$C$16:$C$140,0),BO$16+1) -> 1.145835623e-14 | BP59: =INDEX(RevReq!$O$16:$BM$140,MATCH('Earning & Infra Combined'!$A59,RevReq!$C$16:$C$140,0),BP$16+1) -> 1.145835623e-14 | BQ59: =INDEX(RevReq!$O$16:$BM$140,MATCH('Earning & Infra Combined'!$A59,RevReq!$C$16:$C$140,0),BQ$16+1) -> 1.145835623e-14 | BR59: =INDEX(RevReq!$O$16:$BM$140,MATCH('Earning & Infra Combined'!$A59,RevReq!$C$16:$C$140,0),BR$16+1) -> 1.145835623e-14 | BS59: =INDEX(RevReq!$O$16:$BM$140,MATCH('Earning & Infra Combined'!$A59,RevReq!$C$16:$C$140,0),BS$16+1) -> 1.145835623e-14 | BT59: =INDEX(RevReq!$O$16:$BM$140,MATCH('Earning & Infra Combined'!$A59,RevReq!$C$16:$C$140,0),BT$16+1) -> 1.145835623e-14 | BU59: =INDEX(RevReq!$O$16:$BM$140,MATCH('Earning & Infra Combined'!$A59,RevReq!$C$16:$C$140,0),BU$16+1) -> 1.145835623e-14 | BV59: =INDEX(RevReq!$O$16:$BM$140,MATCH('Earning & Infra Combined'!$A59,RevReq!$C$16:$C$140,0),BV$16+1) -> 1.145835623e-14 | BW59: =INDEX(RevReq!$O$16:$BM$140,MATCH('Earning & Infra Combined'!$A59,RevReq!$C$16:$C$140,0),BW$16+1) -> 1.145835623e-14 | BX59: =INDEX(RevReq!$O$16:$BM$140,MATCH('Earning & Infra Combined'!$A59,RevReq!$C$16:$C$140,0),BX$16+1) -> 1.145835623e-14 | BY59: =INDEX(RevReq!$O$16:$BM$140,MATCH('Earning & Infra Combined'!$A59,RevReq!$C$16:$C$140,0),BY$16+1) -> 1.145835623e-14 | BZ59: =INDEX(RevReq!$O$16:$BM$140,MATCH('Earning & Infra Combined'!$A59,RevReq!$C$16:$C$140,0),BZ$16+1) -> 1.145835623e-14
A60: =MAX($A$18:A59)+1 -> 21 | B60: ='Earning Summary w. AFUDC'!B60 -> Engineering & Construction | C60: Dania Beach | D60: ='Earning Summary w. AFUDC'!D60 -> 2018 | E60: ='Earning Summary w. AFUDC'!E60 -> 2018-01-01 | F60: ='Earning Summary w. AFUDC'!G60 -> 2022-06-01 | G60: ='Earning Summary w. AFUDC'!H60 -> 0.035 | H60: ='Earning Summary w. AFUDC'!I60 -> 0.955404 | K60: ='Earning Summary w. AFUDC'!L60 -> Dania Beach Energy Center | L60: ='Earning Summary w. AFUDC'!M60 -> 202206 | M60: ='Earning Summary w. AFUDC'!N60 -> 0.035 | N60: ='Earning Summary w. AFUDC'!O60 -> 0.955404 | O60: ='Earning Summary w. AFUDC'!P60 -> 0 | P60: ='Earning Summary w. AFUDC'!Q60 -> 173.2691945 | Q60: ='Earning Summary w. AFUDC'!R60 -> 139.9906438 | R60: ='Earning Summary w. AFUDC'!S60 -> 374.2034833 | S60: ='Earning Summary w. AFUDC'!T60 -> 143.934084 | T60: ='Earning Summary w. AFUDC'!U60 -> 56.59301181 | U60: ='Earning Summary w. AFUDC'!V60 -> 0 | X60: 872.1304069 | Y60: 912.8393925 | Z60: 2166.191865 | AB60: =INDEX(RevReq!$O$16:$BM$140,MATCH('Earning & Infra Combined'!$A60,RevReq!$C$16:$C$140,0),AB$16+1) -> 0 | AC60: =INDEX(RevReq!$O$16:$BM$140,MATCH('Earning & Infra Combined'!$A60,RevReq!$C$16:$C$140,0),AC$16+1) -> 0 | AD60: =INDEX(RevReq!$O$16:$BM$140,MATCH('Earning & Infra Combined'!$A60,RevReq!$C$16:$C$140,0),AD$16+1) -> 0 | AE60: =INDEX(RevReq!$O$16:$BM$140,MATCH('Earning & Infra Combined'!$A60,RevReq!$C$16:$C$140,0),AE$16+1) -> 0 | AF60: =INDEX(RevReq!$O$16:$BM$140,MATCH('Earning & Infra Combined'!$A60,RevReq!$C$16:$C$140,0),AF$16+1) -> 0 | AG60: =INDEX(RevReq!$O$16:$BM$140,MATCH('Earning & Infra Combined'!$A60,RevReq!$C$16:$C$140,0),AG$16+1) -> 69.42418209 | AH60: =INDEX(RevReq!$O$16:$BM$140,MATCH('Earning & Infra Combined'!$A60,RevReq!$C$16:$C$140,0),AH$16+1) -> 117.185603 | AI60: =INDEX(RevReq!$O$16:$BM$140,MATCH('Earning & Infra Combined'!$A60,RevReq!$C$16:$C$140,0),AI$16+1) -> 114.0531219 | AJ60: =INDEX(RevReq!$O$16:$BM$140,MATCH('Earning & Infra Combined'!$A60,RevReq!$C$16:$C$140,0),AJ$16+1) -> 110.9206408 | AK60: =INDEX(RevReq!$O$16:$BM$140,MATCH('Earning & Infra Combined'!$A60,RevReq!$C$16:$C$140,0),AK$16+1) -> 107.7881597 | AL60: =INDEX(RevReq!$O$16:$BM$140,MATCH('Earning & Infra Combined'!$A60,RevReq!$C$16:$C$140,0),AL$16+1) -> 104.6556786 | AM60: =INDEX(RevReq!$O$16:$BM$140,MATCH('Earning & Infra Combined'!$A60,RevReq!$C$16:$C$140,0),AM$16+1) -> 101.5231975 | AN60: =INDEX(RevReq!$O$16:$BM$140,MATCH('Earning & Infra Combined'!$A60,RevReq!$C$16:$C$140,0),AN$16+1) -> 98.39071645 | AO60: =INDEX(RevReq!$O$16:$BM$140,MATCH('Earning & Infra Combined'!$A60,RevReq!$C$16:$C$140,0),AO$16+1) -> 95.25823537 | AP60: =INDEX(RevReq!$O$16:$BM$140,MATCH('Earning & Infra Combined'!$A60,RevReq!$C$16:$C$140,0),AP$16+1) -> 92.12575429 | AQ60: =INDEX(RevReq!$O$16:$BM$140,MATCH('Earning & Infra Combined'!$A60,RevReq!$C$16:$C$140,0),AQ$16+1) -> 88.9932732 | AR60: =INDEX(RevReq!$O$16:$BM$140,MATCH('Earning & Infra Combined'!$A60,RevReq!$C$16:$C$140,0),AR$16+1) -> 85.86079212 | AS60: =INDEX(RevReq!$O$16:$BM$140,MATCH('Earning & Infra Combined'!$A60,RevReq!$C$16:$C$140,0),AS$16+1) -> 82.72831104 | AT60: =INDEX(RevReq!$O$16:$BM$140,MATCH('Earning & Infra Combined'!$A60,RevReq!$C$16:$C$140,0),AT$16+1) -> 79.59582995 | AU60: =INDEX(RevReq!$O$16:$BM$140,MATCH('Earning & Infra Combined'!$A60,RevReq!$C$16:$C$140,0),AU$16+1) -> 76.46334887 | AV60: =INDEX(RevReq!$O$16:$BM$140,MATCH('Earning & Infra Combined'!$A60,RevReq!$C$16:$C$140,0),AV$16+1) -> 73.33086779 | AW60: =INDEX(RevReq!$O$16:$BM$140,MATCH('Earning & Infra Combined'!$A60,RevReq!$C$16:$C$140,0),AW$16+1) -> 70.19838671 | AX60: =INDEX(RevReq!$O$16:$BM$140,MATCH('Earning & Infra Combined'!$A60,RevReq!$C$16:$C$140,0),AX$16+1) -> 67.06590562 | AY60: =INDEX(RevReq!$O$16:$BM$140,MATCH('Earning & Infra Combined'!$A60,RevReq!$C$16:$C$140,0),AY$16+1) -> 63.93342454 | AZ60: =INDEX(RevReq!$O$16:$BM$140,MATCH('Earning & Infra Combined'!$A60,RevReq!$C$16:$C$140,0),AZ$16+1) -> 60.80094346 | BA60: =INDEX(RevReq!$O$16:$BM$140,MATCH('Earning & Infra Combined'!$A60,RevReq!$C$16:$C$140,0),BA$16+1) -> 57.66846237 | BB60: =INDEX(RevReq!$O$16:$BM$140,MATCH('Earning & Infra Combined'!$A60,RevReq!$C$16:$C$140,0),BB$16+1) -> 54.53598129 | BC60: =INDEX(RevReq!$O$16:$BM$140,MATCH('Earning & Infra Combined'!$A60,RevReq!$C$16:$C$140,0),BC$16+1) -> 51.40350021 | BD60: =INDEX(RevReq!$O$16:$BM$140,MATCH('Earning & Infra Combined'!$A60,RevReq!$C$16:$C$140,0),BD$16+1) -> 48.27101912 | BE60: =INDEX(RevReq!$O$16:$BM$140,MATCH('Earning & Infra Combined'!$A60,RevReq!$C$16:$C$140,0),BE$16+1) -> 45.13853804 | BF60: =INDEX(RevReq!$O$16:$BM$140,MATCH('Earning & Infra Combined'!$A60,RevReq!$C$16:$C$140,0),BF$16+1) -> 42.00605696 | BG60: =INDEX(RevReq!$O$16:$BM$140,MATCH('Earning & Infra Combined'!$A60,RevReq!$C$16:$C$140,0),BG$16+1) -> 38.87357588 | BH60: =INDEX(RevReq!$O$16:$BM$140,MATCH('Earning & Infra Combined'!$A60,RevReq!$C$16:$C$140,0),BH$16+1) -> 35.74109479 | BI60: =INDEX(RevReq!$O$16:$BM$140,MATCH('Earning & Infra Combined'!$A60,RevReq!$C$16:$C$140,0),BI$16+1) -> 32.25726342 | BJ60: =INDEX(RevReq!$O$16:$BM$140,MATCH('Earning & Infra Combined'!$A60,RevReq!$C$16:$C$140,0),BJ$16+1) -> 0 | BK60: =INDEX(RevReq!$O$16:$BM$140,MATCH('Earning & Infra Combined'!$A60,RevReq!$C$16:$C$140,0),BK$16+1) -> 0 | BL60: =INDEX(RevReq!$O$16:$BM$140,MATCH('Earning & Infra Combined'!$A60,RevReq!$C$16:$C$140,0),BL$16+1) -> 0 | BM60: =INDEX(RevReq!$O$16:$BM$140,MATCH('Earning & Infra Combined'!$A60,RevReq!$C$16:$C$140,0),BM$16+1) -> 0 | BN60: =INDEX(RevReq!$O$16:$BM$140,MATCH('Earning & Infra Combined'!$A60,RevReq!$C$16:$C$140,0),BN$16+1) -> 0 | BO60: =INDEX(RevReq!$O$16:$BM$140,MATCH('Earning & Infra Combined'!$A60,RevReq!$C$16:$C$140,0),BO$16+1) -> 0 | BP60: =INDEX(RevReq!$O$16:$BM$140,MATCH('Earning & Infra Combined'!$A60,RevReq!$C$16:$C$140,0),BP$16+1) -> 0 | BQ60: =INDEX(RevReq!$O$16:$BM$140,MATCH('Earning & Infra Combined'!$A60,RevReq!$C$16:$C$140,0),BQ$16+1) -> 0 | BR60: =INDEX(RevReq!$O$16:$BM$140,MATCH('Earning & Infra Combined'!$A60,RevReq!$C$16:$C$140,0),BR$16+1) -> 0 | BS60: =INDEX(RevReq!$O$16:$BM$140,MATCH('Earning & Infra Combined'!$A60,RevReq!$C$16:$C$140,0),BS$16+1) -> 0 | BT60: =INDEX(RevReq!$O$16:$BM$140,MATCH('Earning & Infra Combined'!$A60,RevReq!$C$16:$C$140,0),BT$16+1) -> 0 | BU60: =INDEX(RevReq!$O$16:$BM$140,MATCH('Earning & Infra Combined'!$A60,RevReq!$C$16:$C$140,0),BU$16+1) -> 0 | BV60: =INDEX(RevReq!$O$16:$BM$140,MATCH('Earning & Infra Combined'!$A60,RevReq!$C$16:$C$140,0),BV$16+1) -> 0 | BW60: =INDEX(RevReq!$O$16:$BM$140,MATCH('Earning & Infra Combined'!$A60,RevReq!$C$16:$C$140,0),BW$16+1) -> 0 | BX60: =INDEX(RevReq!$O$16:$BM$140,MATCH('Earning & Infra Combined'!$A60,RevReq!$C$16:$C$140,0),BX$16+1) -> 0 | BY60: =INDEX(RevReq!$O$16:$BM$140,MATCH('Earning & Infra Combined'!$A60,RevReq!$C$16:$C$140,0),BY$16+1) -> 0 | BZ60: =INDEX(RevReq!$O$16:$BM$140,MATCH('Earning & Infra Combined'!$A60,RevReq!$C$16:$C$140,0),BZ$16+1) -> 0
A61: =MAX($A$18:A60)+1 -> 22 | B61: ='Earning Summary w. AFUDC'!B61 -> Engineering & Construction | C61: Generation Upgrades | D61: ='Earning Summary w. AFUDC'!D61 -> 2019 | E61: ='Earning Summary w. AFUDC'!E61 -> 2019-01-01 | F61: ='Earning Summary w. AFUDC'!G61 -> 2020-12-01 | G61: ='Earning Summary w. AFUDC'!H61 -> 0.04 | H61: ='Earning Summary w. AFUDC'!I61 -> 0.955404 | K61: ='Earning Summary w. AFUDC'!L61 -> Crist Pipeline | L61: ='Earning Summary w. AFUDC'!M61 -> 202012 | M61: ='Earning Summary w. AFUDC'!N61 -> 0.04 | N61: ='Earning Summary w. AFUDC'!O61 -> 0.955404 | O61: ='Earning Summary w. AFUDC'!P61 -> 0 | P61: ='Earning Summary w. AFUDC'!Q61 -> 0 | Q61: ='Earning Summary w. AFUDC'!R61 -> 71.94234864 | R61: ='Earning Summary w. AFUDC'!S61 -> 56.26522205 | S61: ='Earning Summary w. AFUDC'!T61 -> 1.66 | T61: ='Earning Summary w. AFUDC'!U61 -> 0 | U61: ='Earning Summary w. AFUDC'!V61 -> 0 | X61: 140.2419718 | Y61: 146.7881355 | Z61: 293.4824752 | AB61: =INDEX(RevReq!$O$16:$BM$140,MATCH('Earning & Infra Combined'!$A61,RevReq!$C$16:$C$140,0),AB$16+1) -> 0 | AC61: =INDEX(RevReq!$O$16:$BM$140,MATCH('Earning & Infra Combined'!$A61,RevReq!$C$16:$C$140,0),AC$16+1) -> 0 | AD61: =INDEX(RevReq!$O$16:$BM$140,MATCH('Earning & Infra Combined'!$A61,RevReq!$C$16:$C$140,0),AD$16+1) -> 0 | AE61: =INDEX(RevReq!$O$16:$BM$140,MATCH('Earning & Infra Combined'!$A61,RevReq!$C$16:$C$140,0),AE$16+1) -> 1.482645681 | AF61: =INDEX(RevReq!$O$16:$BM$140,MATCH('Earning & Infra Combined'!$A61,RevReq!$C$16:$C$140,0),AF$16+1) -> 17.76787216 | AG61: =INDEX(RevReq!$O$16:$BM$140,MATCH('Earning & Infra Combined'!$A61,RevReq!$C$16:$C$140,0),AG$16+1) -> 17.46160538 | AH61: =INDEX(RevReq!$O$16:$BM$140,MATCH('Earning & Infra Combined'!$A61,RevReq!$C$16:$C$140,0),AH$16+1) -> 16.93803768 | AI61: =INDEX(RevReq!$O$16:$BM$140,MATCH('Earning & Infra Combined'!$A61,RevReq!$C$16:$C$140,0),AI$16+1) -> 16.41446999 | AJ61: =INDEX(RevReq!$O$16:$BM$140,MATCH('Earning & Infra Combined'!$A61,RevReq!$C$16:$C$140,0),AJ$16+1) -> 15.89090229 | AK61: =INDEX(RevReq!$O$16:$BM$140,MATCH('Earning & Infra Combined'!$A61,RevReq!$C$16:$C$140,0),AK$16+1) -> 15.3673346 | AL61: =INDEX(RevReq!$O$16:$BM$140,MATCH('Earning & Infra Combined'!$A61,RevReq!$C$16:$C$140,0),AL$16+1) -> 14.8437669 | AM61: =INDEX(RevReq!$O$16:$BM$140,MATCH('Earning & Infra Combined'!$A61,RevReq!$C$16:$C$140,0),AM$16+1) -> 14.32019921 | AN61: =INDEX(RevReq!$O$16:$BM$140,MATCH('Earning & Infra Combined'!$A61,RevReq!$C$16:$C$140,0),AN$16+1) -> 13.79663152 | AO61: =INDEX(RevReq!$O$16:$BM$140,MATCH('Earning & Infra Combined'!$A61,RevReq!$C$16:$C$140,0),AO$16+1) -> 13.27306382 | AP61: =INDEX(RevReq!$O$16:$BM$140,MATCH('Earning & Infra Combined'!$A61,RevReq!$C$16:$C$140,0),AP$16+1) -> 12.74949613 | AQ61: =INDEX(RevReq!$O$16:$BM$140,MATCH('Earning & Infra Combined'!$A61,RevReq!$C$16:$C$140,0),AQ$16+1) -> 12.22592843 | AR61: =INDEX(RevReq!$O$16:$BM$140,MATCH('Earning & Infra Combined'!$A61,RevReq!$C$16:$C$140,0),AR$16+1) -> 11.70236074 | AS61: =INDEX(RevReq!$O$16:$BM$140,MATCH('Earning & Infra Combined'!$A61,RevReq!$C$16:$C$140,0),AS$16+1) -> 11.17879304 | AT61: =INDEX(RevReq!$O$16:$BM$140,MATCH('Earning & Infra Combined'!$A61,RevReq!$C$16:$C$140,0),AT$16+1) -> 10.65522535 | AU61: =INDEX(RevReq!$O$16:$BM$140,MATCH('Earning & Infra Combined'!$A61,RevReq!$C$16:$C$140,0),AU$16+1) -> 10.13165766 | AV61: =INDEX(RevReq!$O$16:$BM$140,MATCH('Earning & Infra Combined'!$A61,RevReq!$C$16:$C$140,0),AV$16+1) -> 9.608089962 | AW61: =INDEX(RevReq!$O$16:$BM$140,MATCH('Earning & Infra Combined'!$A61,RevReq!$C$16:$C$140,0),AW$16+1) -> 9.084522268 | AX61: =INDEX(RevReq!$O$16:$BM$140,MATCH('Earning & Infra Combined'!$A61,RevReq!$C$16:$C$140,0),AX$16+1) -> 8.560954573 | AY61: =INDEX(RevReq!$O$16:$BM$140,MATCH('Earning & Infra Combined'!$A61,RevReq!$C$16:$C$140,0),AY$16+1) -> 8.037386879 | AZ61: =INDEX(RevReq!$O$16:$BM$140,MATCH('Earning & Infra Combined'!$A61,RevReq!$C$16:$C$140,0),AZ$16+1) -> 7.513819185 | BA61: =INDEX(RevReq!$O$16:$BM$140,MATCH('Earning & Infra Combined'!$A61,RevReq!$C$16:$C$140,0),BA$16+1) -> 6.990251491 | BB61: =INDEX(RevReq!$O$16:$BM$140,MATCH('Earning & Infra Combined'!$A61,RevReq!$C$16:$C$140,0),BB$16+1) -> 6.466683796 | BC61: =INDEX(RevReq!$O$16:$BM$140,MATCH('Earning & Infra Combined'!$A61,RevReq!$C$16:$C$140,0),BC$16+1) -> 5.943116102 | BD61: =INDEX(RevReq!$O$16:$BM$140,MATCH('Earning & Infra Combined'!$A61,RevReq!$C$16:$C$140,0),BD$16+1) -> 5.01372631 | BE61: =INDEX(RevReq!$O$16:$BM$140,MATCH('Earning & Infra Combined'!$A61,RevReq!$C$16:$C$140,0),BE$16+1) -> 0.06393400482 | BF61: =INDEX(RevReq!$O$16:$BM$140,MATCH('Earning & Infra Combined'!$A61,RevReq!$C$16:$C$140,0),BF$16+1) -> 1.145835623e-14 | BG61: =INDEX(RevReq!$O$16:$BM$140,MATCH('Earning & Infra Combined'!$A61,RevReq!$C$16:$C$140,0),BG$16+1) -> 1.145835623e-14 | BH61: =INDEX(RevReq!$O$16:$BM$140,MATCH('Earning & Infra Combined'!$A61,RevReq!$C$16:$C$140,0),BH$16+1) -> 1.145835623e-14 | BI61: =INDEX(RevReq!$O$16:$BM$140,MATCH('Earning & Infra Combined'!$A61,RevReq!$C$16:$C$140,0),BI$16+1) -> 1.145835623e-14 | BJ61: =INDEX(RevReq!$O$16:$BM$140,MATCH('Earning & Infra Combined'!$A61,RevReq!$C$16:$C$140,0),BJ$16+1) -> 1.145835623e-14 | BK61: =INDEX(RevReq!$O$16:$BM$140,MATCH('Earning & Infra Combined'!$A61,RevReq!$C$16:$C$140,0),BK$16+1) -> 1.145835623e-14 | BL61: =INDEX(RevReq!$O$16:$BM$140,MATCH('Earning & Infra Combined'!$A61,RevReq!$C$16:$C$140,0),BL$16+1) -> 1.145835623e-14 | BM61: =INDEX(RevReq!$O$16:$BM$140,MATCH('Earning & Infra Combined'!$A61,RevReq!$C$16:$C$140,0),BM$16+1) -> 1.145835623e-14 | BN61: =INDEX(RevReq!$O$16:$BM$140,MATCH('Earning & Infra Combined'!$A61,RevReq!$C$16:$C$140,0),BN$16+1) -> 1.145835623e-14 | BO61: =INDEX(RevReq!$O$16:$BM$140,MATCH('Earning & Infra Combined'!$A61,RevReq!$C$16:$C$140,0),BO$16+1) -> 1.145835623e-14 | BP61: =INDEX(RevReq!$O$16:$BM$140,MATCH('Earning & Infra Combined'!$A61,RevReq!$C$16:$C$140,0),BP$16+1) -> 1.145835623e-14 | BQ61: =INDEX(RevReq!$O$16:$BM$140,MATCH('Earning & Infra Combined'!$A61,RevReq!$C$16:$C$140,0),BQ$16+1) -> 1.145835623e-14 | BR61: =INDEX(RevReq!$O$16:$BM$140,MATCH('Earning & Infra Combined'!$A61,RevReq!$C$16:$C$140,0),BR$16+1) -> 1.145835623e-14 | BS61: =INDEX(RevReq!$O$16:$BM$140,MATCH('Earning & Infra Combined'!$A61,RevReq!$C$16:$C$140,0),BS$16+1) -> 1.145835623e-14 | BT61: =INDEX(RevReq!$O$16:$BM$140,MATCH('Earning & Infra Combined'!$A61,RevReq!$C$16:$C$140,0),BT$16+1) -> 1.145835623e-14 | BU61: =INDEX(RevReq!$O$16:$BM$140,MATCH('Earning & Infra Combined'!$A61,RevReq!$C$16:$C$140,0),BU$16+1) -> 1.145835623e-14 | BV61: =INDEX(RevReq!$O$16:$BM$140,MATCH('Earning & Infra Combined'!$A61,RevReq!$C$16:$C$140,0),BV$16+1) -> 1.145835623e-14 | BW61: =INDEX(RevReq!$O$16:$BM$140,MATCH('Earning & Infra Combined'!$A61,RevReq!$C$16:$C$140,0),BW$16+1) -> 1.145835623e-14 | BX61: =INDEX(RevReq!$O$16:$BM$140,MATCH('Earning & Infra Combined'!$A61,RevReq!$C$16:$C$140,0),BX$16+1) -> 1.145835623e-14 | BY61: =INDEX(RevReq!$O$16:$BM$140,MATCH('Earning & Infra Combined'!$A61,RevReq!$C$16:$C$140,0),BY$16+1) -> 1.145835623e-14 | BZ61: =INDEX(RevReq!$O$16:$BM$140,MATCH('Earning & Infra Combined'!$A61,RevReq!$C$16:$C$140,0),BZ$16+1) -> 1.145835623e-14
A62: =MAX($A$18:A61)+1 -> 23 | B62: ='Earning Summary w. AFUDC'!B62 -> Engineering & Construction | C62: Reliability | D62: ='Earning Summary w. AFUDC'!D62 -> 2019 | E62: ='Earning Summary w. AFUDC'!E62 -> 2019-01-01 | F62: ='Earning Summary w. AFUDC'!G62 -> 2022-06-01 | G62: ='Earning Summary w. AFUDC'!H62 -> 0.032 | H62: ='Earning Summary w. AFUDC'!I62 -> 0.902581 | K62: ='Earning Summary w. AFUDC'!L62 -> North Florida Resiliency Connection | L62: ='Earning Summary w. AFUDC'!M62 -> 202206 | M62: ='Earning Summary w. AFUDC'!N62 -> 0.032 | N62: ='Earning Summary w. AFUDC'!O62 -> 0.902581 | O62: ='Earning Summary w. AFUDC'!P62 -> 0 | P62: ='Earning Summary w. AFUDC'!Q62 -> 0 | Q62: ='Earning Summary w. AFUDC'!R62 -> 88.51745805 | R62: ='Earning Summary w. AFUDC'!S62 -> 284.4975653 | S62: ='Earning Summary w. AFUDC'!T62 -> 152.3005623 | T62: ='Earning Summary w. AFUDC'!U62 -> 68.06911931 | U62: ='Earning Summary w. AFUDC'!V62 -> 0 | X62: 555.1783436 | Y62: 615.1008537 | Z62: 1527.841534 | AB62: =INDEX(RevReq!$O$16:$BM$140,MATCH('Earning & Infra Combined'!$A62,RevReq!$C$16:$C$140,0),AB$16+1) -> 0 | AC62: =INDEX(RevReq!$O$16:$BM$140,MATCH('Earning & Infra Combined'!$A62,RevReq!$C$16:$C$140,0),AC$16+1) -> 0 | AD62: =INDEX(RevReq!$O$16:$BM$140,MATCH('Earning & Infra Combined'!$A62,RevReq!$C$16:$C$140,0),AD$16+1) -> 0 | AE62: =INDEX(RevReq!$O$16:$BM$140,MATCH('Earning & Infra Combined'!$A62,RevReq!$C$16:$C$140,0),AE$16+1) -> 0 | AF62: =INDEX(RevReq!$O$16:$BM$140,MATCH('Earning & Infra Combined'!$A62,RevReq!$C$16:$C$140,0),AF$16+1) -> 0 | AG62: =INDEX(RevReq!$O$16:$BM$140,MATCH('Earning & Infra Combined'!$A62,RevReq!$C$16:$C$140,0),AG$16+1) -> 45.40545291 | AH62: =INDEX(RevReq!$O$16:$BM$140,MATCH('Earning & Infra Combined'!$A62,RevReq!$C$16:$C$140,0),AH$16+1) -> 76.72153104 | AI62: =INDEX(RevReq!$O$16:$BM$140,MATCH('Earning & Infra Combined'!$A62,RevReq!$C$16:$C$140,0),AI$16+1) -> 74.80772263 | AJ62: =INDEX(RevReq!$O$16:$BM$140,MATCH('Earning & Infra Combined'!$A62,RevReq!$C$16:$C$140,0),AJ$16+1) -> 72.89391421 | AK62: =INDEX(RevReq!$O$16:$BM$140,MATCH('Earning & Infra Combined'!$A62,RevReq!$C$16:$C$140,0),AK$16+1) -> 70.9801058 | AL62: =INDEX(RevReq!$O$16:$BM$140,MATCH('Earning & Infra Combined'!$A62,RevReq!$C$16:$C$140,0),AL$16+1) -> 69.06629739 | AM62: =INDEX(RevReq!$O$16:$BM$140,MATCH('Earning & Infra Combined'!$A62,RevReq!$C$16:$C$140,0),AM$16+1) -> 67.15248897 | AN62: =INDEX(RevReq!$O$16:$BM$140,MATCH('Earning & Infra Combined'!$A62,RevReq!$C$16:$C$140,0),AN$16+1) -> 65.23868056 | AO62: =INDEX(RevReq!$O$16:$BM$140,MATCH('Earning & Infra Combined'!$A62,RevReq!$C$16:$C$140,0),AO$16+1) -> 63.32487215 | AP62: =INDEX(RevReq!$O$16:$BM$140,MATCH('Earning & Infra Combined'!$A62,RevReq!$C$16:$C$140,0),AP$16+1) -> 61.41106373 | AQ62: =INDEX(RevReq!$O$16:$BM$140,MATCH('Earning & Infra Combined'!$A62,RevReq!$C$16:$C$140,0),AQ$16+1) -> 59.49725532 | AR62: =INDEX(RevReq!$O$16:$BM$140,MATCH('Earning & Infra Combined'!$A62,RevReq!$C$16:$C$140,0),AR$16+1) -> 57.5834469 | AS62: =INDEX(RevReq!$O$16:$BM$140,MATCH('Earning & Infra Combined'!$A62,RevReq!$C$16:$C$140,0),AS$16+1) -> 55.66963849 | AT62: =INDEX(RevReq!$O$16:$BM$140,MATCH('Earning & Infra Combined'!$A62,RevReq!$C$16:$C$140,0),AT$16+1) -> 53.75583008 | AU62: =INDEX(RevReq!$O$16:$BM$140,MATCH('Earning & Infra Combined'!$A62,RevReq!$C$16:$C$140,0),AU$16+1) -> 51.84202166 | AV62: =INDEX(RevReq!$O$16:$BM$140,MATCH('Earning & Infra Combined'!$A62,RevReq!$C$16:$C$140,0),AV$16+1) -> 49.92821325 | AW62: =INDEX(RevReq!$O$16:$BM$140,MATCH('Earning & Infra Combined'!$A62,RevReq!$C$16:$C$140,0),AW$16+1) -> 48.01440484 | AX62: =INDEX(RevReq!$O$16:$BM$140,MATCH('Earning & Infra Combined'!$A62,RevReq!$C$16:$C$140,0),AX$16+1) -> 46.10059642 | AY62: =INDEX(RevReq!$O$16:$BM$140,MATCH('Earning & Infra Combined'!$A62,RevReq!$C$16:$C$140,0),AY$16+1) -> 44.18678801 | AZ62: =INDEX(RevReq!$O$16:$BM$140,MATCH('Earning & Infra Combined'!$A62,RevReq!$C$16:$C$140,0),AZ$16+1) -> 42.27297959 | BA62: =INDEX(RevReq!$O$16:$BM$140,MATCH('Earning & Infra Combined'!$A62,RevReq!$C$16:$C$140,0),BA$16+1) -> 40.35917118 | BB62: =INDEX(RevReq!$O$16:$BM$140,MATCH('Earning & Infra Combined'!$A62,RevReq!$C$16:$C$140,0),BB$16+1) -> 38.44536277 | BC62: =INDEX(RevReq!$O$16:$BM$140,MATCH('Earning & Infra Combined'!$A62,RevReq!$C$16:$C$140,0),BC$16+1) -> 36.53155435 | BD62: =INDEX(RevReq!$O$16:$BM$140,MATCH('Earning & Infra Combined'!$A62,RevReq!$C$16:$C$140,0),BD$16+1) -> 34.61774594 | BE62: =INDEX(RevReq!$O$16:$BM$140,MATCH('Earning & Infra Combined'!$A62,RevReq!$C$16:$C$140,0),BE$16+1) -> 32.70393753 | BF62: =INDEX(RevReq!$O$16:$BM$140,MATCH('Earning & Infra Combined'!$A62,RevReq!$C$16:$C$140,0),BF$16+1) -> 30.79012911 | BG62: =INDEX(RevReq!$O$16:$BM$140,MATCH('Earning & Infra Combined'!$A62,RevReq!$C$16:$C$140,0),BG$16+1) -> 28.8763207 | BH62: =INDEX(RevReq!$O$16:$BM$140,MATCH('Earning & Infra Combined'!$A62,RevReq!$C$16:$C$140,0),BH$16+1) -> 26.96251228 | BI62: =INDEX(RevReq!$O$16:$BM$140,MATCH('Earning & Infra Combined'!$A62,RevReq!$C$16:$C$140,0),BI$16+1) -> 25.04870387 | BJ62: =INDEX(RevReq!$O$16:$BM$140,MATCH('Earning & Infra Combined'!$A62,RevReq!$C$16:$C$140,0),BJ$16+1) -> 23.13489546 | BK62: =INDEX(RevReq!$O$16:$BM$140,MATCH('Earning & Infra Combined'!$A62,RevReq!$C$16:$C$140,0),BK$16+1) -> 21.22108704 | BL62: =INDEX(RevReq!$O$16:$BM$140,MATCH('Earning & Infra Combined'!$A62,RevReq!$C$16:$C$140,0),BL$16+1) -> 13.29680984 | BM62: =INDEX(RevReq!$O$16:$BM$140,MATCH('Earning & Infra Combined'!$A62,RevReq!$C$16:$C$140,0),BM$16+1) -> 5.729178114e-14 | BN62: =INDEX(RevReq!$O$16:$BM$140,MATCH('Earning & Infra Combined'!$A62,RevReq!$C$16:$C$140,0),BN$16+1) -> 5.729178114e-14 | BO62: =INDEX(RevReq!$O$16:$BM$140,MATCH('Earning & Infra Combined'!$A62,RevReq!$C$16:$C$140,0),BO$16+1) -> 5.729178114e-14 | BP62: =INDEX(RevReq!$O$16:$BM$140,MATCH('Earning & Infra Combined'!$A62,RevReq!$C$16:$C$140,0),BP$16+1) -> 5.729178114e-14 | BQ62: =INDEX(RevReq!$O$16:$BM$140,MATCH('Earning & Infra Combined'!$A62,RevReq!$C$16:$C$140,0),BQ$16+1) -> 5.729178114e-14 | BR62: =INDEX(RevReq!$O$16:$BM$140,MATCH('Earning & Infra Combined'!$A62,RevReq!$C$16:$C$140,0),BR$16+1) -> 5.729178114e-14 | BS62: =INDEX(RevReq!$O$16:$BM$140,MATCH('Earning & Infra Combined'!$A62,RevReq!$C$16:$C$140,0),BS$16+1) -> 5.729178114e-14 | BT62: =INDEX(RevReq!$O$16:$BM$140,MATCH('Earning & Infra Combined'!$A62,RevReq!$C$16:$C$140,0),BT$16+1) -> 5.729178114e-14 | BU62: =INDEX(RevReq!$O$16:$BM$140,MATCH('Earning & Infra Combined'!$A62,RevReq!$C$16:$C$140,0),BU$16+1) -> 5.729178114e-14 | BV62: =INDEX(RevReq!$O$16:$BM$140,MATCH('Earning & Infra Combined'!$A62,RevReq!$C$16:$C$140,0),BV$16+1) -> 5.729178114e-14 | BW62: =INDEX(RevReq!$O$16:$BM$140,MATCH('Earning & Infra Combined'!$A62,RevReq!$C$16:$C$140,0),BW$16+1) -> 5.729178114e-14 | BX62: =INDEX(RevReq!$O$16:$BM$140,MATCH('Earning & Infra Combined'!$A62,RevReq!$C$16:$C$140,0),BX$16+1) -> 5.729178114e-14 | BY62: =INDEX(RevReq!$O$16:$BM$140,MATCH('Earning & Infra Combined'!$A62,RevReq!$C$16:$C$140,0),BY$16+1) -> 5.729178114e-14 | BZ62: =INDEX(RevReq!$O$16:$BM$140,MATCH('Earning & Infra Combined'!$A62,RevReq!$C$16:$C$140,0),BZ$16+1) -> 5.729178114e-14
A63: =MAX($A$18:A62)+1 -> 24 | B63: ='Earning Summary w. AFUDC'!B63 -> Engineering & Construction | C63: Gulf CTs | D63: ='Earning Summary w. AFUDC'!D63 -> 2019 | E63: ='Earning Summary w. AFUDC'!E63 -> 2019-01-01 | F63: ='Earning Summary w. AFUDC'!G63 -> 2021-12-01 | G63: ='Earning Summary w. AFUDC'!H63 -> 0.04 | H63: ='Earning Summary w. AFUDC'!I63 -> 0.955404 | K63: ='Earning Summary w. AFUDC'!L63 -> Plant Crist Combustion | L63: ='Earning Summary w. AFUDC'!M63 -> 202112 | M63: ='Earning Summary w. AFUDC'!N63 -> 0.04 | N63: ='Earning Summary w. AFUDC'!O63 -> 0.955404 | O63: ='Earning Summary w. AFUDC'!P63 -> 0 | P63: ='Earning Summary w. AFUDC'!Q63 -> 0 | Q63: ='Earning Summary w. AFUDC'!R63 -> 169.4877566 | R63: ='Earning Summary w. AFUDC'!S63 -> 148.4038451 | S63: ='Earning Summary w. AFUDC'!T63 -> 112.116273 | T63: ='Earning Summary w. AFUDC'!U63 -> 0 | U63: ='Earning Summary w. AFUDC'!V63 -> 0 | X63: 432.231155 | Y63: 452.4066834 | Z63: 971.7574199 | AB63: =INDEX(RevReq!$O$16:$BM$140,MATCH('Earning & Infra Combined'!$A63,RevReq!$C$16:$C$140,0),AB$16+1) -> 0 | AC63: =INDEX(RevReq!$O$16:$BM$140,MATCH('Earning & Infra Combined'!$A63,RevReq!$C$16:$C$140,0),AC$16+1) -> 0 | AD63: =INDEX(RevReq!$O$16:$BM$140,MATCH('Earning & Infra Combined'!$A63,RevReq!$C$16:$C$140,0),AD$16+1) -> 0 | AE63: =INDEX(RevReq!$O$16:$BM$140,MATCH('Earning & Infra Combined'!$A63,RevReq!$C$16:$C$140,0),AE$16+1) -> 0 | AF63: =INDEX(RevReq!$O$16:$BM$140,MATCH('Earning & Infra Combined'!$A63,RevReq!$C$16:$C$140,0),AF$16+1) -> 4.972789944 | AG63: =INDEX(RevReq!$O$16:$BM$140,MATCH('Earning & Infra Combined'!$A63,RevReq!$C$16:$C$140,0),AG$16+1) -> 59.52901278 | AH63: =INDEX(RevReq!$O$16:$BM$140,MATCH('Earning & Infra Combined'!$A63,RevReq!$C$16:$C$140,0),AH$16+1) -> 57.79541424 | AI63: =INDEX(RevReq!$O$16:$BM$140,MATCH('Earning & Infra Combined'!$A63,RevReq!$C$16:$C$140,0),AI$16+1) -> 56.06181569 | AJ63: =INDEX(RevReq!$O$16:$BM$140,MATCH('Earning & Infra Combined'!$A63,RevReq!$C$16:$C$140,0),AJ$16+1) -> 54.32821715 | AK63: =INDEX(RevReq!$O$16:$BM$140,MATCH('Earning & Infra Combined'!$A63,RevReq!$C$16:$C$140,0),AK$16+1) -> 52.5946186 | AL63: =INDEX(RevReq!$O$16:$BM$140,MATCH('Earning & Infra Combined'!$A63,RevReq!$C$16:$C$140,0),AL$16+1) -> 50.86102006 | AM63: =INDEX(RevReq!$O$16:$BM$140,MATCH('Earning & Infra Combined'!$A63,RevReq!$C$16:$C$140,0),AM$16+1) -> 49.12742152 | AN63: =INDEX(RevReq!$O$16:$BM$140,MATCH('Earning & Infra Combined'!$A63,RevReq!$C$16:$C$140,0),AN$16+1) -> 47.39382297 | AO63: =INDEX(RevReq!$O$16:$BM$140,MATCH('Earning & Infra Combined'!$A63,RevReq!$C$16:$C$140,0),AO$16+1) -> 45.66022443 | AP63: =INDEX(RevReq!$O$16:$BM$140,MATCH('Earning & Infra Combined'!$A63,RevReq!$C$16:$C$140,0),AP$16+1) -> 43.92662588 | AQ63: =INDEX(RevReq!$O$16:$BM$140,MATCH('Earning & Infra Combined'!$A63,RevReq!$C$16:$C$140,0),AQ$16+1) -> 42.19302734 | AR63: =INDEX(RevReq!$O$16:$BM$140,MATCH('Earning & Infra Combined'!$A63,RevReq!$C$16:$C$140,0),AR$16+1) -> 40.45942879 | AS63: =INDEX(RevReq!$O$16:$BM$140,MATCH('Earning & Infra Combined'!$A63,RevReq!$C$16:$C$140,0),AS$16+1) -> 38.72583025 | AT63: =INDEX(RevReq!$O$16:$BM$140,MATCH('Earning & Infra Combined'!$A63,RevReq!$C$16:$C$140,0),AT$16+1) -> 36.9922317 | AU63: =INDEX(RevReq!$O$16:$BM$140,MATCH('Earning & Infra Combined'!$A63,RevReq!$C$16:$C$140,0),AU$16+1) -> 35.25863316 | AV63: =INDEX(RevReq!$O$16:$BM$140,MATCH('Earning & Infra Combined'!$A63,RevReq!$C$16:$C$140,0),AV$16+1) -> 33.52503462 | AW63: =INDEX(RevReq!$O$16:$BM$140,MATCH('Earning & Infra Combined'!$A63,RevReq!$C$16:$C$140,0),AW$16+1) -> 31.79143607 | AX63: =INDEX(RevReq!$O$16:$BM$140,MATCH('Earning & Infra Combined'!$A63,RevReq!$C$16:$C$140,0),AX$16+1) -> 30.05783753 | AY63: =INDEX(RevReq!$O$16:$BM$140,MATCH('Earning & Infra Combined'!$A63,RevReq!$C$16:$C$140,0),AY$16+1) -> 28.32423898 | AZ63: =INDEX(RevReq!$O$16:$BM$140,MATCH('Earning & Infra Combined'!$A63,RevReq!$C$16:$C$140,0),AZ$16+1) -> 26.59064044 | BA63: =INDEX(RevReq!$O$16:$BM$140,MATCH('Earning & Infra Combined'!$A63,RevReq!$C$16:$C$140,0),BA$16+1) -> 24.85704189 | BB63: =INDEX(RevReq!$O$16:$BM$140,MATCH('Earning & Infra Combined'!$A63,RevReq!$C$16:$C$140,0),BB$16+1) -> 23.12344335 | BC63: =INDEX(RevReq!$O$16:$BM$140,MATCH('Earning & Infra Combined'!$A63,RevReq!$C$16:$C$140,0),BC$16+1) -> 21.38984481 | BD63: =INDEX(RevReq!$O$16:$BM$140,MATCH('Earning & Infra Combined'!$A63,RevReq!$C$16:$C$140,0),BD$16+1) -> 19.65624626 | BE63: =INDEX(RevReq!$O$16:$BM$140,MATCH('Earning & Infra Combined'!$A63,RevReq!$C$16:$C$140,0),BE$16+1) -> 16.56152141 | BF63: =INDEX(RevReq!$O$16:$BM$140,MATCH('Earning & Infra Combined'!$A63,RevReq!$C$16:$C$140,0),BF$16+1) -> 2.864589057e-14 | BG63: =INDEX(RevReq!$O$16:$BM$140,MATCH('Earning & Infra Combined'!$A63,RevReq!$C$16:$C$140,0),BG$16+1) -> 2.864589057e-14 | BH63: =INDEX(RevReq!$O$16:$BM$140,MATCH('Earning & Infra Combined'!$A63,RevReq!$C$16:$C$140,0),BH$16+1) -> 2.864589057e-14 | BI63: =INDEX(RevReq!$O$16:$BM$140,MATCH('Earning & Infra Combined'!$A63,RevReq!$C$16:$C$140,0),BI$16+1) -> 2.864589057e-14 | BJ63: =INDEX(RevReq!$O$16:$BM$140,MATCH('Earning & Infra Combined'!$A63,RevReq!$C$16:$C$140,0),BJ$16+1) -> 2.864589057e-14 | BK63: =INDEX(RevReq!$O$16:$BM$140,MATCH('Earning & Infra Combined'!$A63,RevReq!$C$16:$C$140,0),BK$16+1) -> 2.864589057e-14 | BL63: =INDEX(RevReq!$O$16:$BM$140,MATCH('Earning & Infra Combined'!$A63,RevReq!$C$16:$C$140,0),BL$16+1) -> 2.864589057e-14 | BM63: =INDEX(RevReq!$O$16:$BM$140,MATCH('Earning & Infra Combined'!$A63,RevReq!$C$16:$C$140,0),BM$16+1) -> 2.864589057e-14 | BN63: =INDEX(RevReq!$O$16:$BM$140,MATCH('Earning & Infra Combined'!$A63,RevReq!$C$16:$C$140,0),BN$16+1) -> 2.864589057e-14 | BO63: =INDEX(RevReq!$O$16:$BM$140,MATCH('Earning & Infra Combined'!$A63,RevReq!$C$16:$C$140,0),BO$16+1) -> 2.864589057e-14 | BP63: =INDEX(RevReq!$O$16:$BM$140,MATCH('Earning & Infra Combined'!$A63,RevReq!$C$16:$C$140,0),BP$16+1) -> 2.864589057e-14 | BQ63: =INDEX(RevReq!$O$16:$BM$140,MATCH('Earning & Infra Combined'!$A63,RevReq!$C$16:$C$140,0),BQ$16+1) -> 2.864589057e-14 | BR63: =INDEX(RevReq!$O$16:$BM$140,MATCH('Earning & Infra Combined'!$A63,RevReq!$C$16:$C$140,0),BR$16+1) -> 2.864589057e-14 | BS63: =INDEX(RevReq!$O$16:$BM$140,MATCH('Earning & Infra Combined'!$A63,RevReq!$C$16:$C$140,0),BS$16+1) -> 2.864589057e-14 | BT63: =INDEX(RevReq!$O$16:$BM$140,MATCH('Earning & Infra Combined'!$A63,RevReq!$C$16:$C$140,0),BT$16+1) -> 2.864589057e-14 | BU63: =INDEX(RevReq!$O$16:$BM$140,MATCH('Earning & Infra Combined'!$A63,RevReq!$C$16:$C$140,0),BU$16+1) -> 2.864589057e-14 | BV63: =INDEX(RevReq!$O$16:$BM$140,MATCH('Earning & Infra Combined'!$A63,RevReq!$C$16:$C$140,0),BV$16+1) -> 2.864589057e-14 | BW63: =INDEX(RevReq!$O$16:$BM$140,MATCH('Earning & Infra Combined'!$A63,RevReq!$C$16:$C$140,0),BW$16+1) -> 2.864589057e-14 | BX63: =INDEX(RevReq!$O$16:$BM$140,MATCH('Earning & Infra Combined'!$A63,RevReq!$C$16:$C$140,0),BX$16+1) -> 2.864589057e-14 | BY63: =INDEX(RevReq!$O$16:$BM$140,MATCH('Earning & Infra Combined'!$A63,RevReq!$C$16:$C$140,0),BY$16+1) -> 2.864589057e-14 | BZ63: =INDEX(RevReq!$O$16:$BM$140,MATCH('Earning & Infra Combined'!$A63,RevReq!$C$16:$C$140,0),BZ$16+1) -> 2.864589057e-14
K64: Sub-Total Projects | O64: =SUM(O59:O63) -> 407.0104941 | P64: 494.451463 | Q64: 535.0937887 | R64: 876.7668428 | S64: 410.0312666 | T64: 124.6831452 | U64: 0.02171840821 | X64: =SUM(X59:X63) -> 3001.561387 | Y64: 3175.675274 | Z64: 6927.833161 | AB64: =SUM(AB59:AB63) -> 0 | AC64: =SUM(AC59:AC63) -> 0 | AD64: 88.60706928 | AE64: 106.9751911 | AF64: 125.6967264 | AG64: 291.9331797 | AH64: 365.9103945 | AI64: 355.7613347 | AJ64: 345.611777 | AK64: 335.4622193 | AL64: 325.3126616 | AM64: 315.1631039 | AN64: 305.0135462 | AO64: 294.8639885 | AP64: 284.7144308 | AQ64: 274.5648731 | AR64: 264.4153154 | AS64: 254.2657577 | AT64: 244.1162 | AU64: 233.9666423 | AV64: 223.8170846 | AW64: 213.6675269 | AX64: 203.5179692 | AY64: 193.3684115 | AZ64: 183.2188538 | BA64: 173.0692961 | BB64: 162.9197384 | BC64: 152.7701807 | BD64: 142.214801 | BE64: 126.2778923 | BF64: 94.85417173 | BG64: 68.11612993 | BH64: 62.70591809 | BI64: 57.30739251 | BJ64: 23.13548479 | BK64: 21.22108704 | BL64: 13.29680984 | BM64: 1.088543842e-13 | BN64: 1.088543842e-13 | BO64: 1.088543842e-13 | BP64: 1.088543842e-13 | BQ64: 1.088543842e-13 | BR64: 1.088543842e-13 | BS64: 1.088543842e-13 | BT64: 1.088543842e-13 | BU64: 1.088543842e-13 | BV64: 1.088543842e-13 | BW64: 1.088543842e-13 | BX64: 1.088543842e-13 | BY64: 1.088543842e-13 | BZ64: 1.088543842e-13
K66: Solar
A67: =MAX($A$18:A66)+1 -> 25 | B67: ='Earning Summary w. AFUDC'!B67 -> Engineering & Construction | C67: FPL Solar | D67: ='Earning Summary w. AFUDC'!D67 -> 2017 | E67: ='Earning Summary w. AFUDC'!E67 -> 2016-01-01 | F67: ='Earning Summary w. AFUDC'!G67 -> 2016-12-01 | G67: ='Earning Summary w. AFUDC'!H67 -> 0.034 | H67: ='Earning Summary w. AFUDC'!I67 -> 0.955404 | K67: ='Earning Summary w. AFUDC'!L67 -> 2016 Solar | L67: ='Earning Summary w. AFUDC'!M67 -> 201612 | M67: ='Earning Summary w. AFUDC'!N67 -> 0.034 | N67: ='Earning Summary w. AFUDC'!O67 -> 0.955404 | O67: ='Earning Summary w. AFUDC'!P67 -> 3.65171331 | P67: ='Earning Summary w. AFUDC'!Q67 -> 0.73378109 | Q67: ='Earning Summary w. AFUDC'!R67 -> 0.01607469 | R67: ='Earning Summary w. AFUDC'!S67 -> 0.00216718 | S67: ='Earning Summary w. AFUDC'!T67 -> 0 | T67: ='Earning Summary w. AFUDC'!U67 -> 0 | U67: ='Earning Summary w. AFUDC'!V67 -> 0 | X67: =Y67*H67 -> 5.235360128 | Y67: =SUMPRODUCT($AB$13:$BZ$13,$AB67:$BZ67) -> 5.479734361 | Z67: =SUM(AB67:BZ67) -> 9.386610247 | AB67: =INDEX(RevReq!$O$16:$BM$140,MATCH('Earning & Infra Combined'!$A67,RevReq!$C$16:$C$140,0),AB$16+1) -> 0.03686524292 | AC67: =INDEX(RevReq!$O$16:$BM$140,MATCH('Earning & Infra Combined'!$A67,RevReq!$C$16:$C$140,0),AC$16+1) -> 0.4487478625 | AD67: =INDEX(RevReq!$O$16:$BM$140,MATCH('Earning & Infra Combined'!$A67,RevReq!$C$16:$C$140,0),AD$16+1) -> 0.5176722071 | AE67: =INDEX(RevReq!$O$16:$BM$140,MATCH('Earning & Infra Combined'!$A67,RevReq!$C$16:$C$140,0),AE$16+1) -> 0.5044462755 | AF67: =INDEX(RevReq!$O$16:$BM$140,MATCH('Earning & Infra Combined'!$A67,RevReq!$C$16:$C$140,0),AF$16+1) -> 0.4896029423 | AG67: =INDEX(RevReq!$O$16:$BM$140,MATCH('Earning & Infra Combined'!$A67,RevReq!$C$16:$C$140,0),AG$16+1) -> 0.4745121392 | AH67: =INDEX(RevReq!$O$16:$BM$140,MATCH('Earning & Infra Combined'!$A67,RevReq!$C$16:$C$140,0),AH$16+1) -> 0.4594213361 | AI67: =INDEX(RevReq!$O$16:$BM$140,MATCH('Earning & Infra Combined'!$A67,RevReq!$C$16:$C$140,0),AI$16+1) -> 0.444330533 | AJ67: =INDEX(RevReq!$O$16:$BM$140,MATCH('Earning & Infra Combined'!$A67,RevReq!$C$16:$C$140,0),AJ$16+1) -> 0.4292397299 | AK67: =INDEX(RevReq!$O$16:$BM$140,MATCH('Earning & Infra Combined'!$A67,RevReq!$C$16:$C$140,0),AK$16+1) -> 0.4141489268 | AL67: =INDEX(RevReq!$O$16:$BM$140,MATCH('Earning & Infra Combined'!$A67,RevReq!$C$16:$C$140,0),AL$16+1) -> 0.3990581237 | AM67: =INDEX(RevReq!$O$16:$BM$140,MATCH('Earning & Infra Combined'!$A67,RevReq!$C$16:$C$140,0),AM$16+1) -> 0.3839673206 | AN67: =INDEX(RevReq!$O$16:$BM$140,MATCH('Earning & Infra Combined'!$A67,RevReq!$C$16:$C$140,0),AN$16+1) -> 0.3688765175 | AO67: =INDEX(RevReq!$O$16:$BM$140,MATCH('Earning & Infra Combined'!$A67,RevReq!$C$16:$C$140,0),AO$16+1) -> 0.3537857144 | AP67: =INDEX(RevReq!$O$16:$BM$140,MATCH('Earning & Infra Combined'!$A67,RevReq!$C$16:$C$140,0),AP$16+1) -> 0.3386949113 | AQ67: =INDEX(RevReq!$O$16:$BM$140,MATCH('Earning & Infra Combined'!$A67,RevReq!$C$16:$C$140,0),AQ$16+1) -> 0.3236041082 | AR67: =INDEX(RevReq!$O$16:$BM$140,MATCH('Earning & Infra Combined'!$A67,RevReq!$C$16:$C$140,0),AR$16+1) -> 0.3085133051 | AS67: =INDEX(RevReq!$O$16:$BM$140,MATCH('Earning & Infra Combined'!$A67,RevReq!$C$16:$C$140,0),AS$16+1) -> 0.293422502 | AT67: =INDEX(RevReq!$O$16:$BM$140,MATCH('Earning & Infra Combined'!$A67,RevReq!$C$16:$C$140,0),AT$16+1) -> 0.2783316989 | AU67: =INDEX(RevReq!$O$16:$BM$140,MATCH('Earning & Infra Combined'!$A67,RevReq!$C$16:$C$140,0),AU$16+1) -> 0.2632408958 | AV67: =INDEX(RevReq!$O$16:$BM$140,MATCH('Earning & Infra Combined'!$A67,RevReq!$C$16:$C$140,0),AV$16+1) -> 0.2481500927 | AW67: =INDEX(RevReq!$O$16:$BM$140,MATCH('Earning & Infra Combined'!$A67,RevReq!$C$16:$C$140,0),AW$16+1) -> 0.2330592896 | AX67: =INDEX(RevReq!$O$16:$BM$140,MATCH('Earning & Infra Combined'!$A67,RevReq!$C$16:$C$140,0),AX$16+1) -> 0.2179684865 | AY67: =INDEX(RevReq!$O$16:$BM$140,MATCH('Earning & Infra Combined'!$A67,RevReq!$C$16:$C$140,0),AY$16+1) -> 0.2028776834 | AZ67: =INDEX(RevReq!$O$16:$BM$140,MATCH('Earning & Infra Combined'!$A67,RevReq!$C$16:$C$140,0),AZ$16+1) -> 0.1877868803 | BA67: =INDEX(RevReq!$O$16:$BM$140,MATCH('Earning & Infra Combined'!$A67,RevReq!$C$16:$C$140,0),BA$16+1) -> 0.1726960772 | BB67: =INDEX(RevReq!$O$16:$BM$140,MATCH('Earning & Infra Combined'!$A67,RevReq!$C$16:$C$140,0),BB$16+1) -> 0.1576052741 | BC67: =INDEX(RevReq!$O$16:$BM$140,MATCH('Earning & Infra Combined'!$A67,RevReq!$C$16:$C$140,0),BC$16+1) -> 0.142514471 | BD67: =INDEX(RevReq!$O$16:$BM$140,MATCH('Earning & Infra Combined'!$A67,RevReq!$C$16:$C$140,0),BD$16+1) -> 0.1274236679 | BE67: =INDEX(RevReq!$O$16:$BM$140,MATCH('Earning & Infra Combined'!$A67,RevReq!$C$16:$C$140,0),BE$16+1) -> 0.1123328648 | BF67: =INDEX(RevReq!$O$16:$BM$140,MATCH('Earning & Infra Combined'!$A67,RevReq!$C$16:$C$140,0),BF$16+1) -> 0.04732353822 | BG67: =INDEX(RevReq!$O$16:$BM$140,MATCH('Earning & Infra Combined'!$A67,RevReq!$C$16:$C$140,0),BG$16+1) -> 0.00619316567 | BH67: =INDEX(RevReq!$O$16:$BM$140,MATCH('Earning & Infra Combined'!$A67,RevReq!$C$16:$C$140,0),BH$16+1) -> 0.000179534329 | BI67: =INDEX(RevReq!$O$16:$BM$140,MATCH('Earning & Infra Combined'!$A67,RevReq!$C$16:$C$140,0),BI$16+1) -> 1.692730077e-05 | BJ67: =INDEX(RevReq!$O$16:$BM$140,MATCH('Earning & Infra Combined'!$A67,RevReq!$C$16:$C$140,0),BJ$16+1) -> 3.580736321e-16 | BK67: =INDEX(RevReq!$O$16:$BM$140,MATCH('Earning & Infra Combined'!$A67,RevReq!$C$16:$C$140,0),BK$16+1) -> 3.580736321e-16 | BL67: =INDEX(RevReq!$O$16:$BM$140,MATCH('Earning & Infra Combined'!$A67,RevReq!$C$16:$C$140,0),BL$16+1) -> 3.580736321e-16 | BM67: =INDEX(RevReq!$O$16:$BM$140,MATCH('Earning & Infra Combined'!$A67,RevReq!$C$16:$C$140,0),BM$16+1) -> 3.580736321e-16 | BN67: =INDEX(RevReq!$O$16:$BM$140,MATCH('Earning & Infra Combined'!$A67,RevReq!$C$16:$C$140,0),BN$16+1) -> 3.580736321e-16 | BO67: =INDEX(RevReq!$O$16:$BM$140,MATCH('Earning & Infra Combined'!$A67,RevReq!$C$16:$C$140,0),BO$16+1) -> 3.580736321e-16 | BP67: =INDEX(RevReq!$O$16:$BM$140,MATCH('Earning & Infra Combined'!$A67,RevReq!$C$16:$C$140,0),BP$16+1) -> 3.580736321e-16 | BQ67: =INDEX(RevReq!$O$16:$BM$140,MATCH('Earning & Infra Combined'!$A67,RevReq!$C$16:$C$140,0),BQ$16+1) -> 3.580736321e-16 | BR67: =INDEX(RevReq!$O$16:$BM$140,MATCH('Earning & Infra Combined'!$A67,RevReq!$C$16:$C$140,0),BR$16+1) -> 3.580736321e-16 | BS67: =INDEX(RevReq!$O$16:$BM$140,MATCH('Earning & Infra Combined'!$A67,RevReq!$C$16:$C$140,0),BS$16+1) -> 3.580736321e-16 | BT67: =INDEX(RevReq!$O$16:$BM$140,MATCH('Earning & Infra Combined'!$A67,RevReq!$C$16:$C$140,0),BT$16+1) -> 3.580736321e-16 | BU67: =INDEX(RevReq!$O$16:$BM$140,MATCH('Earning & Infra Combined'!$A67,RevReq!$C$16:$C$140,0),BU$16+1) -> 3.580736321e-16 | BV67: =INDEX(RevReq!$O$16:$BM$140,MATCH('Earning & Infra Combined'!$A67,RevReq!$C$16:$C$140,0),BV$16+1) -> 3.580736321e-16 | BW67: =INDEX(RevReq!$O$16:$BM$140,MATCH('Earning & Infra Combined'!$A67,RevReq!$C$16:$C$140,0),BW$16+1) -> 3.580736321e-16 | BX67: =INDEX(RevReq!$O$16:$BM$140,MATCH('Earning & Infra Combined'!$A67,RevReq!$C$16:$C$140,0),BX$16+1) -> 3.580736321e-16 | BY67: =INDEX(RevReq!$O$16:$BM$140,MATCH('Earning & Infra Combined'!$A67,RevReq!$C$16:$C$140,0),BY$16+1) -> 3.580736321e-16 | BZ67: =INDEX(RevReq!$O$16:$BM$140,MATCH('Earning & Infra Combined'!$A67,RevReq!$C$16:$C$140,0),BZ$16+1) -> 3.580736321e-16
A68: =MAX($A$18:A67)+1 -> 26 | B68: ='Earning Summary w. AFUDC'!B68 -> Engineering & Construction | C68: FPL Solar | D68: ='Earning Summary w. AFUDC'!D68 -> 2017 | E68: ='Earning Summary w. AFUDC'!E68 -> 2017-01-01 | F68: ='Earning Summary w. AFUDC'!G68 -> 2018-01-01 | G68: ='Earning Summary w. AFUDC'!H68 -> 0.034 | H68: ='Earning Summary w. AFUDC'!I68 -> 0.955404 | K68: ='Earning Summary w. AFUDC'!L68 -> 2017 SoBRA | L68: ='Earning Summary w. AFUDC'!M68 -> 201801 | M68: ='Earning Summary w. AFUDC'!N68 -> 0.034 | N68: ='Earning Summary w. AFUDC'!O68 -> 0.955404 | O68: ='Earning Summary w. AFUDC'!P68 -> 381.2982143 | P68: ='Earning Summary w. AFUDC'!Q68 -> 4.68000269 | Q68: ='Earning Summary w. AFUDC'!R68 -> 1.37993915 | R68: ='Earning Summary w. AFUDC'!S68 -> 0.05054313946 | S68: ='Earning Summary w. AFUDC'!T68 -> 0 | T68: ='Earning Summary w. AFUDC'!U68 -> 0 | U68: ='Earning Summary w. AFUDC'!V68 -> 0 | X68: 463.257369 | Y68: 484.8811278 | Z68: 825.8308008 | AB68: =INDEX(RevReq!$O$16:$BM$140,MATCH('Earning & Infra Combined'!$A68,RevReq!$C$16:$C$140,0),AB$16+1) -> 0 | AC68: =INDEX(RevReq!$O$16:$BM$140,MATCH('Earning & Infra Combined'!$A68,RevReq!$C$16:$C$140,0),AC$16+1) -> 46.75891952 | AD68: =INDEX(RevReq!$O$16:$BM$140,MATCH('Earning & Infra Combined'!$A68,RevReq!$C$16:$C$140,0),AD$16+1) -> 45.60341364 | AE68: =INDEX(RevReq!$O$16:$BM$140,MATCH('Earning & Infra Combined'!$A68,RevReq!$C$16:$C$140,0),AE$16+1) -> 44.2821307 | AF68: =INDEX(RevReq!$O$16:$BM$140,MATCH('Earning & Infra Combined'!$A68,RevReq!$C$16:$C$140,0),AF$16+1) -> 42.95455156 | AG68: =INDEX(RevReq!$O$16:$BM$140,MATCH('Earning & Infra Combined'!$A68,RevReq!$C$16:$C$140,0),AG$16+1) -> 41.62697242 | AH68: =INDEX(RevReq!$O$16:$BM$140,MATCH('Earning & Infra Combined'!$A68,RevReq!$C$16:$C$140,0),AH$16+1) -> 40.29939329 | AI68: =INDEX(RevReq!$O$16:$BM$140,MATCH('Earning & Infra Combined'!$A68,RevReq!$C$16:$C$140,0),AI$16+1) -> 38.97181415 | AJ68: =INDEX(RevReq!$O$16:$BM$140,MATCH('Earning & Infra Combined'!$A68,RevReq!$C$16:$C$140,0),AJ$16+1) -> 37.64423501 | AK68: =INDEX(RevReq!$O$16:$BM$140,MATCH('Earning & Infra Combined'!$A68,RevReq!$C$16:$C$140,0),AK$16+1) -> 36.31665587 | AL68: =INDEX(RevReq!$O$16:$BM$140,MATCH('Earning & Infra Combined'!$A68,RevReq!$C$16:$C$140,0),AL$16+1) -> 34.98907674 | AM68: =INDEX(RevReq!$O$16:$BM$140,MATCH('Earning & Infra Combined'!$A68,RevReq!$C$16:$C$140,0),AM$16+1) -> 33.6614976 | AN68: =INDEX(RevReq!$O$16:$BM$140,MATCH('Earning & Infra Combined'!$A68,RevReq!$C$16:$C$140,0),AN$16+1) -> 32.33391846 | AO68: =INDEX(RevReq!$O$16:$BM$140,MATCH('Earning & Infra Combined'!$A68,RevReq!$C$16:$C$140,0),AO$16+1) -> 31.00633932 | AP68: =INDEX(RevReq!$O$16:$BM$140,MATCH('Earning & Infra Combined'!$A68,RevReq!$C$16:$C$140,0),AP$16+1) -> 29.67876018 | AQ68: =INDEX(RevReq!$O$16:$BM$140,MATCH('Earning & Infra Combined'!$A68,RevReq!$C$16:$C$140,0),AQ$16+1) -> 28.35118105 | AR68: =INDEX(RevReq!$O$16:$BM$140,MATCH('Earning & Infra Combined'!$A68,RevReq!$C$16:$C$140,0),AR$16+1) -> 27.02360191 | AS68: =INDEX(RevReq!$O$16:$BM$140,MATCH('Earning & Infra Combined'!$A68,RevReq!$C$16:$C$140,0),AS$16+1) -> 25.69602277 | AT68: =INDEX(RevReq!$O$16:$BM$140,MATCH('Earning & Infra Combined'!$A68,RevReq!$C$16:$C$140,0),AT$16+1) -> 24.36844363 | AU68: =INDEX(RevReq!$O$16:$BM$140,MATCH('Earning & Infra Combined'!$A68,RevReq!$C$16:$C$140,0),AU$16+1) -> 23.04086449 | AV68: =INDEX(RevReq!$O$16:$BM$140,MATCH('Earning & Infra Combined'!$A68,RevReq!$C$16:$C$140,0),AV$16+1) -> 21.71328536 | AW68: =INDEX(RevReq!$O$16:$BM$140,MATCH('Earning & Infra Combined'!$A68,RevReq!$C$16:$C$140,0),AW$16+1) -> 20.38570622 | AX68: =INDEX(RevReq!$O$16:$BM$140,MATCH('Earning & Infra Combined'!$A68,RevReq!$C$16:$C$140,0),AX$16+1) -> 19.05812708 | AY68: =INDEX(RevReq!$O$16:$BM$140,MATCH('Earning & Infra Combined'!$A68,RevReq!$C$16:$C$140,0),AY$16+1) -> 17.73054794 | AZ68: =INDEX(RevReq!$O$16:$BM$140,MATCH('Earning & Infra Combined'!$A68,RevReq!$C$16:$C$140,0),AZ$16+1) -> 16.40296881 | BA68: =INDEX(RevReq!$O$16:$BM$140,MATCH('Earning & Infra Combined'!$A68,RevReq!$C$16:$C$140,0),BA$16+1) -> 15.07538967 | BB68: =INDEX(RevReq!$O$16:$BM$140,MATCH('Earning & Infra Combined'!$A68,RevReq!$C$16:$C$140,0),BB$16+1) -> 13.74781053 | BC68: =INDEX(RevReq!$O$16:$BM$140,MATCH('Earning & Infra Combined'!$A68,RevReq!$C$16:$C$140,0),BC$16+1) -> 12.42023139 | BD68: =INDEX(RevReq!$O$16:$BM$140,MATCH('Earning & Infra Combined'!$A68,RevReq!$C$16:$C$140,0),BD$16+1) -> 11.09265225 | BE68: =INDEX(RevReq!$O$16:$BM$140,MATCH('Earning & Infra Combined'!$A68,RevReq!$C$16:$C$140,0),BE$16+1) -> 9.765073116 | BF68: =INDEX(RevReq!$O$16:$BM$140,MATCH('Earning & Infra Combined'!$A68,RevReq!$C$16:$C$140,0),BF$16+1) -> 3.815934664 | BG68: =INDEX(RevReq!$O$16:$BM$140,MATCH('Earning & Infra Combined'!$A68,RevReq!$C$16:$C$140,0),BG$16+1) -> 0.01478650176 | BH68: =INDEX(RevReq!$O$16:$BM$140,MATCH('Earning & Infra Combined'!$A68,RevReq!$C$16:$C$140,0),BH$16+1) -> 0.0004949478301 | BI68: =INDEX(RevReq!$O$16:$BM$140,MATCH('Earning & Infra Combined'!$A68,RevReq!$C$16:$C$140,0),BI$16+1) -> 4.01042468e-14 | BJ68: =INDEX(RevReq!$O$16:$BM$140,MATCH('Earning & Infra Combined'!$A68,RevReq!$C$16:$C$140,0),BJ$16+1) -> 4.01042468e-14 | BK68: =INDEX(RevReq!$O$16:$BM$140,MATCH('Earning & Infra Combined'!$A68,RevReq!$C$16:$C$140,0),BK$16+1) -> 4.01042468e-14 | BL68: =INDEX(RevReq!$O$16:$BM$140,MATCH('Earning & Infra Combined'!$A68,RevReq!$C$16:$C$140,0),BL$16+1) -> 4.01042468e-14 | BM68: =INDEX(RevReq!$O$16:$BM$140,MATCH('Earning & Infra Combined'!$A68,RevReq!$C$16:$C$140,0),BM$16+1) -> 4.01042468e-14 | BN68: =INDEX(RevReq!$O$16:$BM$140,MATCH('Earning & Infra Combined'!$A68,RevReq!$C$16:$C$140,0),BN$16+1) -> 4.01042468e-14 | BO68: =INDEX(RevReq!$O$16:$BM$140,MATCH('Earning & Infra Combined'!$A68,RevReq!$C$16:$C$140,0),BO$16+1) -> 4.01042468e-14 | BP68: =INDEX(RevReq!$O$16:$BM$140,MATCH('Earning & Infra Combined'!$A68,RevReq!$C$16:$C$140,0),BP$16+1) -> 4.01042468e-14 | BQ68: =INDEX(RevReq!$O$16:$BM$140,MATCH('Earning & Infra Combined'!$A68,RevReq!$C$16:$C$140,0),BQ$16+1) -> 4.01042468e-14 | BR68: =INDEX(RevReq!$O$16:$BM$140,MATCH('Earning & Infra Combined'!$A68,RevReq!$C$16:$C$140,0),BR$16+1) -> 4.01042468e-14 | BS68: =INDEX(RevReq!$O$16:$BM$140,MATCH('Earning & Infra Combined'!$A68,RevReq!$C$16:$C$140,0),BS$16+1) -> 4.01042468e-14 | BT68: =INDEX(RevReq!$O$16:$BM$140,MATCH('Earning & Infra Combined'!$A68,RevReq!$C$16:$C$140,0),BT$16+1) -> 4.01042468e-14 | BU68: =INDEX(RevReq!$O$16:$BM$140,MATCH('Earning & Infra Combined'!$A68,RevReq!$C$16:$C$140,0),BU$16+1) -> 4.01042468e-14 | BV68: =INDEX(RevReq!$O$16:$BM$140,MATCH('Earning & Infra Combined'!$A68,RevReq!$C$16:$C$140,0),BV$16+1) -> 4.01042468e-14 | BW68: =INDEX(RevReq!$O$16:$BM$140,MATCH('Earning & Infra Combined'!$A68,RevReq!$C$16:$C$140,0),BW$16+1) -> 4.01042468e-14 | BX68: =INDEX(RevReq!$O$16:$BM$140,MATCH('Earning & Infra Combined'!$A68,RevReq!$C$16:$C$140,0),BX$16+1) -> 4.01042468e-14 | BY68: =INDEX(RevReq!$O$16:$BM$140,MATCH('Earning & Infra Combined'!$A68,RevReq!$C$16:$C$140,0),BY$16+1) -> 4.01042468e-14 | BZ68: =INDEX(RevReq!$O$16:$BM$140,MATCH('Earning & Infra Combined'!$A68,RevReq!$C$16:$C$140,0),BZ$16+1) -> 4.01042468e-14
A69: =MAX($A$18:A68)+1 -> 27 | B69: ='Earning Summary w. AFUDC'!B69 -> Engineering & Construction | C69: FPL Solar | D69: ='Earning Summary w. AFUDC'!D69 -> 2017 | E69: ='Earning Summary w. AFUDC'!E69 -> 2017-01-01 | F69: ='Earning Summary w. AFUDC'!G69 -> 2018-03-01 | G69: ='Earning Summary w. AFUDC'!H69 -> 0.034 | H69: ='Earning Summary w. AFUDC'!I69 -> 0.955404 | K69: ='Earning Summary w. AFUDC'!L69 -> 2018 SoBRA | L69: ='Earning Summary w. AFUDC'!M69 -> 201803 | M69: ='Earning Summary w. AFUDC'!N69 -> 0.034 | N69: ='Earning Summary w. AFUDC'!O69 -> 0.955404 | O69: ='Earning Summary w. AFUDC'!P69 -> 384.263006 | P69: ='Earning Summary w. AFUDC'!Q69 -> 9.36551146 | Q69: ='Earning Summary w. AFUDC'!R69 -> 0.61536079 | R69: ='Earning Summary w. AFUDC'!S69 -> 0.03085985 | S69: ='Earning Summary w. AFUDC'!T69 -> 0 | T69: ='Earning Summary w. AFUDC'!U69 -> 0 | U69: ='Earning Summary w. AFUDC'!V69 -> 0 | X69: 466.0288635 | Y69: 487.781989 | Z69: 840.3742651 | AB69: =INDEX(RevReq!$O$16:$BM$140,MATCH('Earning & Infra Combined'!$A69,RevReq!$C$16:$C$140,0),AB$16+1) -> 0 | AC69: =INDEX(RevReq!$O$16:$BM$140,MATCH('Earning & Infra Combined'!$A69,RevReq!$C$16:$C$140,0),AC$16+1) -> 39.73808917 | AD69: =INDEX(RevReq!$O$16:$BM$140,MATCH('Earning & Infra Combined'!$A69,RevReq!$C$16:$C$140,0),AD$16+1) -> 46.62375193 | AE69: =INDEX(RevReq!$O$16:$BM$140,MATCH('Earning & Infra Combined'!$A69,RevReq!$C$16:$C$140,0),AE$16+1) -> 45.28864127 | AF69: =INDEX(RevReq!$O$16:$BM$140,MATCH('Earning & Infra Combined'!$A69,RevReq!$C$16:$C$140,0),AF$16+1) -> 43.93817417 | AG69: =INDEX(RevReq!$O$16:$BM$140,MATCH('Earning & Infra Combined'!$A69,RevReq!$C$16:$C$140,0),AG$16+1) -> 42.58706637 | AH69: =INDEX(RevReq!$O$16:$BM$140,MATCH('Earning & Infra Combined'!$A69,RevReq!$C$16:$C$140,0),AH$16+1) -> 41.23595856 | AI69: =INDEX(RevReq!$O$16:$BM$140,MATCH('Earning & Infra Combined'!$A69,RevReq!$C$16:$C$140,0),AI$16+1) -> 39.88485076 | AJ69: =INDEX(RevReq!$O$16:$BM$140,MATCH('Earning & Infra Combined'!$A69,RevReq!$C$16:$C$140,0),AJ$16+1) -> 38.53374296 | AK69: =INDEX(RevReq!$O$16:$BM$140,MATCH('Earning & Infra Combined'!$A69,RevReq!$C$16:$C$140,0),AK$16+1) -> 37.18263515 | AL69: =INDEX(RevReq!$O$16:$BM$140,MATCH('Earning & Infra Combined'!$A69,RevReq!$C$16:$C$140,0),AL$16+1) -> 35.83152735 | AM69: =INDEX(RevReq!$O$16:$BM$140,MATCH('Earning & Infra Combined'!$A69,RevReq!$C$16:$C$140,0),AM$16+1) -> 34.48041955 | AN69: =INDEX(RevReq!$O$16:$BM$140,MATCH('Earning & Infra Combined'!$A69,RevReq!$C$16:$C$140,0),AN$16+1) -> 33.12931174 | AO69: =INDEX(RevReq!$O$16:$BM$140,MATCH('Earning & Infra Combined'!$A69,RevReq!$C$16:$C$140,0),AO$16+1) -> 31.77820394 | AP69: =INDEX(RevReq!$O$16:$BM$140,MATCH('Earning & Infra Combined'!$A69,RevReq!$C$16:$C$140,0),AP$16+1) -> 30.42709613 | AQ69: =INDEX(RevReq!$O$16:$BM$140,MATCH('Earning & Infra Combined'!$A69,RevReq!$C$16:$C$140,0),AQ$16+1) -> 29.07598833 | AR69: =INDEX(RevReq!$O$16:$BM$140,MATCH('Earning & Infra Combined'!$A69,RevReq!$C$16:$C$140,0),AR$16+1) -> 27.72488053 | AS69: =INDEX(RevReq!$O$16:$BM$140,MATCH('Earning & Infra Combined'!$A69,RevReq!$C$16:$C$140,0),AS$16+1) -> 26.37377272 | AT69: =INDEX(RevReq!$O$16:$BM$140,MATCH('Earning & Infra Combined'!$A69,RevReq!$C$16:$C$140,0),AT$16+1) -> 25.02266492 | AU69: =INDEX(RevReq!$O$16:$BM$140,MATCH('Earning & Infra Combined'!$A69,RevReq!$C$16:$C$140,0),AU$16+1) -> 23.67155712 | AV69: =INDEX(RevReq!$O$16:$BM$140,MATCH('Earning & Infra Combined'!$A69,RevReq!$C$16:$C$140,0),AV$16+1) -> 22.32044931 | AW69: =INDEX(RevReq!$O$16:$BM$140,MATCH('Earning & Infra Combined'!$A69,RevReq!$C$16:$C$140,0),AW$16+1) -> 20.96934151 | AX69: =INDEX(RevReq!$O$16:$BM$140,MATCH('Earning & Infra Combined'!$A69,RevReq!$C$16:$C$140,0),AX$16+1) -> 19.61823371 | AY69: =INDEX(RevReq!$O$16:$BM$140,MATCH('Earning & Infra Combined'!$A69,RevReq!$C$16:$C$140,0),AY$16+1) -> 18.2671259 | AZ69: =INDEX(RevReq!$O$16:$BM$140,MATCH('Earning & Infra Combined'!$A69,RevReq!$C$16:$C$140,0),AZ$16+1) -> 16.9160181 | BA69: =INDEX(RevReq!$O$16:$BM$140,MATCH('Earning & Infra Combined'!$A69,RevReq!$C$16:$C$140,0),BA$16+1) -> 15.56491029 | BB69: =INDEX(RevReq!$O$16:$BM$140,MATCH('Earning & Infra Combined'!$A69,RevReq!$C$16:$C$140,0),BB$16+1) -> 14.21380249 | BC69: =INDEX(RevReq!$O$16:$BM$140,MATCH('Earning & Infra Combined'!$A69,RevReq!$C$16:$C$140,0),BC$16+1) -> 12.86269469 | BD69: =INDEX(RevReq!$O$16:$BM$140,MATCH('Earning & Infra Combined'!$A69,RevReq!$C$16:$C$140,0),BD$16+1) -> 11.51158688 | BE69: =INDEX(RevReq!$O$16:$BM$140,MATCH('Earning & Infra Combined'!$A69,RevReq!$C$16:$C$140,0),BE$16+1) -> 10.16047908 | BF69: =INDEX(RevReq!$O$16:$BM$140,MATCH('Earning & Infra Combined'!$A69,RevReq!$C$16:$C$140,0),BF$16+1) -> 5.431605777 | BG69: =INDEX(RevReq!$O$16:$BM$140,MATCH('Earning & Infra Combined'!$A69,RevReq!$C$16:$C$140,0),BG$16+1) -> 0.009260132587 | BH69: =INDEX(RevReq!$O$16:$BM$140,MATCH('Earning & Infra Combined'!$A69,RevReq!$C$16:$C$140,0),BH$16+1) -> 0.000424515686 | BI69: =INDEX(RevReq!$O$16:$BM$140,MATCH('Earning & Infra Combined'!$A69,RevReq!$C$16:$C$140,0),BI$16+1) -> 1.145835623e-14 | BJ69: =INDEX(RevReq!$O$16:$BM$140,MATCH('Earning & Infra Combined'!$A69,RevReq!$C$16:$C$140,0),BJ$16+1) -> 1.145835623e-14 | BK69: =INDEX(RevReq!$O$16:$BM$140,MATCH('Earning & Infra Combined'!$A69,RevReq!$C$16:$C$140,0),BK$16+1) -> 1.145835623e-14 | BL69: =INDEX(RevReq!$O$16:$BM$140,MATCH('Earning & Infra Combined'!$A69,RevReq!$C$16:$C$140,0),BL$16+1) -> 1.145835623e-14 | BM69: =INDEX(RevReq!$O$16:$BM$140,MATCH('Earning & Infra Combined'!$A69,RevReq!$C$16:$C$140,0),BM$16+1) -> 1.145835623e-14 | BN69: =INDEX(RevReq!$O$16:$BM$140,MATCH('Earning & Infra Combined'!$A69,RevReq!$C$16:$C$140,0),BN$16+1) -> 1.145835623e-14 | BO69: =INDEX(RevReq!$O$16:$BM$140,MATCH('Earning & Infra Combined'!$A69,RevReq!$C$16:$C$140,0),BO$16+1) -> 1.145835623e-14 | BP69: =INDEX(RevReq!$O$16:$BM$140,MATCH('Earning & Infra Combined'!$A69,RevReq!$C$16:$C$140,0),BP$16+1) -> 1.145835623e-14 | BQ69: =INDEX(RevReq!$O$16:$BM$140,MATCH('Earning & Infra Combined'!$A69,RevReq!$C$16:$C$140,0),BQ$16+1) -> 1.145835623e-14 | BR69: =INDEX(RevReq!$O$16:$BM$140,MATCH('Earning & Infra Combined'!$A69,RevReq!$C$16:$C$140,0),BR$16+1) -> 1.145835623e-14 | BS69: =INDEX(RevReq!$O$16:$BM$140,MATCH('Earning & Infra Combined'!$A69,RevReq!$C$16:$C$140,0),BS$16+1) -> 1.145835623e-14 | BT69: =INDEX(RevReq!$O$16:$BM$140,MATCH('Earning & Infra Combined'!$A69,RevReq!$C$16:$C$140,0),BT$16+1) -> 1.145835623e-14 | BU69: =INDEX(RevReq!$O$16:$BM$140,MATCH('Earning & Infra Combined'!$A69,RevReq!$C$16:$C$140,0),BU$16+1) -> 1.145835623e-14 | BV69: =INDEX(RevReq!$O$16:$BM$140,MATCH('Earning & Infra Combined'!$A69,RevReq!$C$16:$C$140,0),BV$16+1) -> 1.145835623e-14 | BW69: =INDEX(RevReq!$O$16:$BM$140,MATCH('Earning & Infra Combined'!$A69,RevReq!$C$16:$C$140,0),BW$16+1) -> 1.145835623e-14 | BX69: =INDEX(RevReq!$O$16:$BM$140,MATCH('Earning & Infra Combined'!$A69,RevReq!$C$16:$C$140,0),BX$16+1) -> 1.145835623e-14 | BY69: =INDEX(RevReq!$O$16:$BM$140,MATCH('Earning & Infra Combined'!$A69,RevReq!$C$16:$C$140,0),BY$16+1) -> 1.145835623e-14 | BZ69: =INDEX(RevReq!$O$16:$BM$140,MATCH('Earning & Infra Combined'!$A69,RevReq!$C$16:$C$140,0),BZ$16+1) -> 1.145835623e-14
A70: =MAX($A$18:A69)+1 -> 28 | B70: ='Earning Summary w. AFUDC'!B70 -> Engineering & Construction | C70: FPL Solar | D70: ='Earning Summary w. AFUDC'!D70 -> 2017 | E70: ='Earning Summary w. AFUDC'!E70 -> 2017-01-01 | F70: ='Earning Summary w. AFUDC'!G70 -> 2019-01-01 | G70: ='Earning Summary w. AFUDC'!H70 -> 0.034 | H70: ='Earning Summary w. AFUDC'!I70 -> 0.955404 | K70: ='Earning Summary w. AFUDC'!L70 -> 2019 SoBRA | L70: ='Earning Summary w. AFUDC'!M70 -> 201901 | M70: ='Earning Summary w. AFUDC'!N70 -> 0.034 | N70: ='Earning Summary w. AFUDC'!O70 -> 0.955404 | O70: ='Earning Summary w. AFUDC'!P70 -> 0.24991543 | P70: ='Earning Summary w. AFUDC'!Q70 -> 367.5770134 | Q70: ='Earning Summary w. AFUDC'!R70 -> 11.05730932 | R70: ='Earning Summary w. AFUDC'!S70 -> 0.04540027 | S70: ='Earning Summary w. AFUDC'!T70 -> 0 | T70: ='Earning Summary w. AFUDC'!U70 -> 0 | U70: ='Earning Summary w. AFUDC'!V70 -> 0 | X70: 421.5045433 | Y70: 441.1793789 | Z70: 807.7561689 | AB70: =INDEX(RevReq!$O$16:$BM$140,MATCH('Earning & Infra Combined'!$A70,RevReq!$C$16:$C$140,0),AB$16+1) -> 0 | AC70: =INDEX(RevReq!$O$16:$BM$140,MATCH('Earning & Infra Combined'!$A70,RevReq!$C$16:$C$140,0),AC$16+1) -> 0 | AD70: =INDEX(RevReq!$O$16:$BM$140,MATCH('Earning & Infra Combined'!$A70,RevReq!$C$16:$C$140,0),AD$16+1) -> 45.89952702 | AE70: =INDEX(RevReq!$O$16:$BM$140,MATCH('Earning & Infra Combined'!$A70,RevReq!$C$16:$C$140,0),AE$16+1) -> 44.60665962 | AF70: =INDEX(RevReq!$O$16:$BM$140,MATCH('Earning & Infra Combined'!$A70,RevReq!$C$16:$C$140,0),AF$16+1) -> 43.30813669 | AG70: =INDEX(RevReq!$O$16:$BM$140,MATCH('Earning & Infra Combined'!$A70,RevReq!$C$16:$C$140,0),AG$16+1) -> 42.00961375 | AH70: =INDEX(RevReq!$O$16:$BM$140,MATCH('Earning & Infra Combined'!$A70,RevReq!$C$16:$C$140,0),AH$16+1) -> 40.71109081 | AI70: =INDEX(RevReq!$O$16:$BM$140,MATCH('Earning & Infra Combined'!$A70,RevReq!$C$16:$C$140,0),AI$16+1) -> 39.41256787 | AJ70: =INDEX(RevReq!$O$16:$BM$140,MATCH('Earning & Infra Combined'!$A70,RevReq!$C$16:$C$140,0),AJ$16+1) -> 38.11404493 | AK70: =INDEX(RevReq!$O$16:$BM$140,MATCH('Earning & Infra Combined'!$A70,RevReq!$C$16:$C$140,0),AK$16+1) -> 36.81552199 | AL70: =INDEX(RevReq!$O$16:$BM$140,MATCH('Earning & Infra Combined'!$A70,RevReq!$C$16:$C$140,0),AL$16+1) -> 35.51699905 | AM70: =INDEX(RevReq!$O$16:$BM$140,MATCH('Earning & Infra Combined'!$A70,RevReq!$C$16:$C$140,0),AM$16+1) -> 34.21847611 | AN70: =INDEX(RevReq!$O$16:$BM$140,MATCH('Earning & Infra Combined'!$A70,RevReq!$C$16:$C$140,0),AN$16+1) -> 32.91995318 | AO70: =INDEX(RevReq!$O$16:$BM$140,MATCH('Earning & Infra Combined'!$A70,RevReq!$C$16:$C$140,0),AO$16+1) -> 31.62143024 | AP70: =INDEX(RevReq!$O$16:$BM$140,MATCH('Earning & Infra Combined'!$A70,RevReq!$C$16:$C$140,0),AP$16+1) -> 30.3229073 | AQ70: =INDEX(RevReq!$O$16:$BM$140,MATCH('Earning & Infra Combined'!$A70,RevReq!$C$16:$C$140,0),AQ$16+1) -> 29.02438436 | AR70: =INDEX(RevReq!$O$16:$BM$140,MATCH('Earning & Infra Combined'!$A70,RevReq!$C$16:$C$140,0),AR$16+1) -> 27.72586142 | AS70: =INDEX(RevReq!$O$16:$BM$140,MATCH('Earning & Infra Combined'!$A70,RevReq!$C$16:$C$140,0),AS$16+1) -> 26.42733848 | AT70: =INDEX(RevReq!$O$16:$BM$140,MATCH('Earning & Infra Combined'!$A70,RevReq!$C$16:$C$140,0),AT$16+1) -> 25.12881554 | AU70: =INDEX(RevReq!$O$16:$BM$140,MATCH('Earning & Infra Combined'!$A70,RevReq!$C$16:$C$140,0),AU$16+1) -> 23.8302926 | AV70: =INDEX(RevReq!$O$16:$BM$140,MATCH('Earning & Infra Combined'!$A70,RevReq!$C$16:$C$140,0),AV$16+1) -> 22.53176967 | AW70: =INDEX(RevReq!$O$16:$BM$140,MATCH('Earning & Infra Combined'!$A70,RevReq!$C$16:$C$140,0),AW$16+1) -> 21.23324673 | AX70: =INDEX(RevReq!$O$16:$BM$140,MATCH('Earning & Infra Combined'!$A70,RevReq!$C$16:$C$140,0),AX$16+1) -> 19.93472379 | AY70: =INDEX(RevReq!$O$16:$BM$140,MATCH('Earning & Infra Combined'!$A70,RevReq!$C$16:$C$140,0),AY$16+1) -> 18.63620085 | AZ70: =INDEX(RevReq!$O$16:$BM$140,MATCH('Earning & Infra Combined'!$A70,RevReq!$C$16:$C$140,0),AZ$16+1) -> 17.33767791 | BA70: =INDEX(RevReq!$O$16:$BM$140,MATCH('Earning & Infra Combined'!$A70,RevReq!$C$16:$C$140,0),BA$16+1) -> 16.03915497 | BB70: =INDEX(RevReq!$O$16:$BM$140,MATCH('Earning & Infra Combined'!$A70,RevReq!$C$16:$C$140,0),BB$16+1) -> 14.74063203 | BC70: =INDEX(RevReq!$O$16:$BM$140,MATCH('Earning & Infra Combined'!$A70,RevReq!$C$16:$C$140,0),BC$16+1) -> 13.4421091 | BD70: =INDEX(RevReq!$O$16:$BM$140,MATCH('Earning & Infra Combined'!$A70,RevReq!$C$16:$C$140,0),BD$16+1) -> 12.14358616 | BE70: =INDEX(RevReq!$O$16:$BM$140,MATCH('Earning & Infra Combined'!$A70,RevReq!$C$16:$C$140,0),BE$16+1) -> 10.84506322 | BF70: =INDEX(RevReq!$O$16:$BM$140,MATCH('Earning & Infra Combined'!$A70,RevReq!$C$16:$C$140,0),BF$16+1) -> 9.546540279 | BG70: =INDEX(RevReq!$O$16:$BM$140,MATCH('Earning & Infra Combined'!$A70,RevReq!$C$16:$C$140,0),BG$16+1) -> 3.711398684 | BH70: =INDEX(RevReq!$O$16:$BM$140,MATCH('Earning & Infra Combined'!$A70,RevReq!$C$16:$C$140,0),BH$16+1) -> 0.00044458586 | BI70: =INDEX(RevReq!$O$16:$BM$140,MATCH('Earning & Infra Combined'!$A70,RevReq!$C$16:$C$140,0),BI$16+1) -> 5.156260303e-14 | BJ70: =INDEX(RevReq!$O$16:$BM$140,MATCH('Earning & Infra Combined'!$A70,RevReq!$C$16:$C$140,0),BJ$16+1) -> 5.156260303e-14 | BK70: =INDEX(RevReq!$O$16:$BM$140,MATCH('Earning & Infra Combined'!$A70,RevReq!$C$16:$C$140,0),BK$16+1) -> 5.156260303e-14 | BL70: =INDEX(RevReq!$O$16:$BM$140,MATCH('Earning & Infra Combined'!$A70,RevReq!$C$16:$C$140,0),BL$16+1) -> 5.156260303e-14 | BM70: =INDEX(RevReq!$O$16:$BM$140,MATCH('Earning & Infra Combined'!$A70,RevReq!$C$16:$C$140,0),BM$16+1) -> 5.156260303e-14 | BN70: =INDEX(RevReq!$O$16:$BM$140,MATCH('Earning & Infra Combined'!$A70,RevReq!$C$16:$C$140,0),BN$16+1) -> 5.156260303e-14 | BO70: =INDEX(RevReq!$O$16:$BM$140,MATCH('Earning & Infra Combined'!$A70,RevReq!$C$16:$C$140,0),BO$16+1) -> 5.156260303e-14 | BP70: =INDEX(RevReq!$O$16:$BM$140,MATCH('Earning & Infra Combined'!$A70,RevReq!$C$16:$C$140,0),BP$16+1) -> 5.156260303e-14 | BQ70: =INDEX(RevReq!$O$16:$BM$140,MATCH('Earning & Infra Combined'!$A70,RevReq!$C$16:$C$140,0),BQ$16+1) -> 5.156260303e-14 | BR70: =INDEX(RevReq!$O$16:$BM$140,MATCH('Earning & Infra Combined'!$A70,RevReq!$C$16:$C$140,0),BR$16+1) -> 5.156260303e-14 | BS70: =INDEX(RevReq!$O$16:$BM$140,MATCH('Earning & Infra Combined'!$A70,RevReq!$C$16:$C$140,0),BS$16+1) -> 5.156260303e-14 | BT70: =INDEX(RevReq!$O$16:$BM$140,MATCH('Earning & Infra Combined'!$A70,RevReq!$C$16:$C$140,0),BT$16+1) -> 5.156260303e-14 | BU70: =INDEX(RevReq!$O$16:$BM$140,MATCH('Earning & Infra Combined'!$A70,RevReq!$C$16:$C$140,0),BU$16+1) -> 5.156260303e-14 | BV70: =INDEX(RevReq!$O$16:$BM$140,MATCH('Earning & Infra Combined'!$A70,RevReq!$C$16:$C$140,0),BV$16+1) -> 5.156260303e-14 | BW70: =INDEX(RevReq!$O$16:$BM$140,MATCH('Earning & Infra Combined'!$A70,RevReq!$C$16:$C$140,0),BW$16+1) -> 5.156260303e-14 | BX70: =INDEX(RevReq!$O$16:$BM$140,MATCH('Earning & Infra Combined'!$A70,RevReq!$C$16:$C$140,0),BX$16+1) -> 5.156260303e-14 | BY70: =INDEX(RevReq!$O$16:$BM$140,MATCH('Earning & Infra Combined'!$A70,RevReq!$C$16:$C$140,0),BY$16+1) -> 5.156260303e-14 | BZ70: =INDEX(RevReq!$O$16:$BM$140,MATCH('Earning & Infra Combined'!$A70,RevReq!$C$16:$C$140,0),BZ$16+1) -> 5.156260303e-14
A71: =MAX($A$18:A70)+1 -> 29 | B71: ='Earning Summary w. AFUDC'!B71 -> Engineering & Construction | C71: FPL Solar | D71: ='Earning Summary w. AFUDC'!D71 -> 2018 | E71: ='Earning Summary w. AFUDC'!E71 -> 2018-01-01 | F71: ='Earning Summary w. AFUDC'!G71 -> 2020-04-01 | G71: ='Earning Summary w. AFUDC'!H71 -> 0.034 | H71: ='Earning Summary w. AFUDC'!I71 -> 0.955404 | K71: ='Earning Summary w. AFUDC'!L71 -> 2020 SoBRA | L71: ='Earning Summary w. AFUDC'!M71 -> 202004 | M71: ='Earning Summary w. AFUDC'!N71 -> 0.034 | N71: ='Earning Summary w. AFUDC'!O71 -> 0.955404 | O71: ='Earning Summary w. AFUDC'!P71 -> 0 | P71: ='Earning Summary w. AFUDC'!Q71 -> 70.09418449 | Q71: ='Earning Summary w. AFUDC'!R71 -> 281.5618188 | R71: ='Earning Summary w. AFUDC'!S71 -> 44.62812534 | S71: ='Earning Summary w. AFUDC'!T71 -> 0 | T71: ='Earning Summary w. AFUDC'!U71 -> 0 | U71: ='Earning Summary w. AFUDC'!V71 -> 0 | X71: 402.7666986 | Y71: 421.5668959 | Z71: 844.6105692 | AB71: =INDEX(RevReq!$O$16:$BM$140,MATCH('Earning & Infra Combined'!$A71,RevReq!$C$16:$C$140,0),AB$16+1) -> 0 | AC71: =INDEX(RevReq!$O$16:$BM$140,MATCH('Earning & Infra Combined'!$A71,RevReq!$C$16:$C$140,0),AC$16+1) -> 0 | AD71: =INDEX(RevReq!$O$16:$BM$140,MATCH('Earning & Infra Combined'!$A71,RevReq!$C$16:$C$140,0),AD$16+1) -> 0 | AE71: =INDEX(RevReq!$O$16:$BM$140,MATCH('Earning & Infra Combined'!$A71,RevReq!$C$16:$C$140,0),AE$16+1) -> 36.00556364 | AF71: =INDEX(RevReq!$O$16:$BM$140,MATCH('Earning & Infra Combined'!$A71,RevReq!$C$16:$C$140,0),AF$16+1) -> 46.98892297 | AG71: =INDEX(RevReq!$O$16:$BM$140,MATCH('Earning & Infra Combined'!$A71,RevReq!$C$16:$C$140,0),AG$16+1) -> 45.63092935 | AH71: =INDEX(RevReq!$O$16:$BM$140,MATCH('Earning & Infra Combined'!$A71,RevReq!$C$16:$C$140,0),AH$16+1) -> 44.27293573 | AI71: =INDEX(RevReq!$O$16:$BM$140,MATCH('Earning & Infra Combined'!$A71,RevReq!$C$16:$C$140,0),AI$16+1) -> 42.91494211 | AJ71: =INDEX(RevReq!$O$16:$BM$140,MATCH('Earning & Infra Combined'!$A71,RevReq!$C$16:$C$140,0),AJ$16+1) -> 41.55694849 | AK71: =INDEX(RevReq!$O$16:$BM$140,MATCH('Earning & Infra Combined'!$A71,RevReq!$C$16:$C$140,0),AK$16+1) -> 40.19895488 | AL71: =INDEX(RevReq!$O$16:$BM$140,MATCH('Earning & Infra Combined'!$A71,RevReq!$C$16:$C$140,0),AL$16+1) -> 38.84096126 | AM71: =INDEX(RevReq!$O$16:$BM$140,MATCH('Earning & Infra Combined'!$A71,RevReq!$C$16:$C$140,0),AM$16+1) -> 37.48296764 | AN71: =INDEX(RevReq!$O$16:$BM$140,MATCH('Earning & Infra Combined'!$A71,RevReq!$C$16:$C$140,0),AN$16+1) -> 36.12497402 | AO71: =INDEX(RevReq!$O$16:$BM$140,MATCH('Earning & Infra Combined'!$A71,RevReq!$C$16:$C$140,0),AO$16+1) -> 34.7669804 | AP71: =INDEX(RevReq!$O$16:$BM$140,MATCH('Earning & Infra Combined'!$A71,RevReq!$C$16:$C$140,0),AP$16+1) -> 33.40898678 | AQ71: =INDEX(RevReq!$O$16:$BM$140,MATCH('Earning & Infra Combined'!$A71,RevReq!$C$16:$C$140,0),AQ$16+1) -> 32.05099316 | AR71: =INDEX(RevReq!$O$16:$BM$140,MATCH('Earning & Infra Combined'!$A71,RevReq!$C$16:$C$140,0),AR$16+1) -> 30.69299954 | AS71: =INDEX(RevReq!$O$16:$BM$140,MATCH('Earning & Infra Combined'!$A71,RevReq!$C$16:$C$140,0),AS$16+1) -> 29.33500592 | AT71: =INDEX(RevReq!$O$16:$BM$140,MATCH('Earning & Infra Combined'!$A71,RevReq!$C$16:$C$140,0),AT$16+1) -> 27.9770123 | AU71: =INDEX(RevReq!$O$16:$BM$140,MATCH('Earning & Infra Combined'!$A71,RevReq!$C$16:$C$140,0),AU$16+1) -> 26.61901868 | AV71: =INDEX(RevReq!$O$16:$BM$140,MATCH('Earning & Infra Combined'!$A71,RevReq!$C$16:$C$140,0),AV$16+1) -> 25.26102506 | AW71: =INDEX(RevReq!$O$16:$BM$140,MATCH('Earning & Infra Combined'!$A71,RevReq!$C$16:$C$140,0),AW$16+1) -> 23.90303144 | AX71: =INDEX(RevReq!$O$16:$BM$140,MATCH('Earning & Infra Combined'!$A71,RevReq!$C$16:$C$140,0),AX$16+1) -> 22.54503782 | AY71: =INDEX(RevReq!$O$16:$BM$140,MATCH('Earning & Infra Combined'!$A71,RevReq!$C$16:$C$140,0),AY$16+1) -> 21.1870442 | AZ71: =INDEX(RevReq!$O$16:$BM$140,MATCH('Earning & Infra Combined'!$A71,RevReq!$C$16:$C$140,0),AZ$16+1) -> 19.82905058 | BA71: =INDEX(RevReq!$O$16:$BM$140,MATCH('Earning & Infra Combined'!$A71,RevReq!$C$16:$C$140,0),BA$16+1) -> 18.47105696 | BB71: =INDEX(RevReq!$O$16:$BM$140,MATCH('Earning & Infra Combined'!$A71,RevReq!$C$16:$C$140,0),BB$16+1) -> 17.11306335 | BC71: =INDEX(RevReq!$O$16:$BM$140,MATCH('Earning & Infra Combined'!$A71,RevReq!$C$16:$C$140,0),BC$16+1) -> 15.75506973 | BD71: =INDEX(RevReq!$O$16:$BM$140,MATCH('Earning & Infra Combined'!$A71,RevReq!$C$16:$C$140,0),BD$16+1) -> 14.39707611 | BE71: =INDEX(RevReq!$O$16:$BM$140,MATCH('Earning & Infra Combined'!$A71,RevReq!$C$16:$C$140,0),BE$16+1) -> 13.03908249 | BF71: =INDEX(RevReq!$O$16:$BM$140,MATCH('Earning & Infra Combined'!$A71,RevReq!$C$16:$C$140,0),BF$16+1) -> 11.68108887 | BG71: =INDEX(RevReq!$O$16:$BM$140,MATCH('Earning & Infra Combined'!$A71,RevReq!$C$16:$C$140,0),BG$16+1) -> 10.32309525 | BH71: =INDEX(RevReq!$O$16:$BM$140,MATCH('Earning & Infra Combined'!$A71,RevReq!$C$16:$C$140,0),BH$16+1) -> 6.236750515 | BI71: =INDEX(RevReq!$O$16:$BM$140,MATCH('Earning & Infra Combined'!$A71,RevReq!$C$16:$C$140,0),BI$16+1) -> 5.156260303e-14 | BJ71: =INDEX(RevReq!$O$16:$BM$140,MATCH('Earning & Infra Combined'!$A71,RevReq!$C$16:$C$140,0),BJ$16+1) -> 5.156260303e-14 | BK71: =INDEX(RevReq!$O$16:$BM$140,MATCH('Earning & Infra Combined'!$A71,RevReq!$C$16:$C$140,0),BK$16+1) -> 5.156260303e-14 | BL71: =INDEX(RevReq!$O$16:$BM$140,MATCH('Earning & Infra Combined'!$A71,RevReq!$C$16:$C$140,0),BL$16+1) -> 5.156260303e-14 | BM71: =INDEX(RevReq!$O$16:$BM$140,MATCH('Earning & Infra Combined'!$A71,RevReq!$C$16:$C$140,0),BM$16+1) -> 5.156260303e-14 | BN71: =INDEX(RevReq!$O$16:$BM$140,MATCH('Earning & Infra Combined'!$A71,RevReq!$C$16:$C$140,0),BN$16+1) -> 5.156260303e-14 | BO71: =INDEX(RevReq!$O$16:$BM$140,MATCH('Earning & Infra Combined'!$A71,RevReq!$C$16:$C$140,0),BO$16+1) -> 5.156260303e-14 | BP71: =INDEX(RevReq!$O$16:$BM$140,MATCH('Earning & Infra Combined'!$A71,RevReq!$C$16:$C$140,0),BP$16+1) -> 5.156260303e-14 | BQ71: =INDEX(RevReq!$O$16:$BM$140,MATCH('Earning & Infra Combined'!$A71,RevReq!$C$16:$C$140,0),BQ$16+1) -> 5.156260303e-14 | BR71: =INDEX(RevReq!$O$16:$BM$140,MATCH('Earning & Infra Combined'!$A71,RevReq!$C$16:$C$140,0),BR$16+1) -> 5.156260303e-14 | BS71: =INDEX(RevReq!$O$16:$BM$140,MATCH('Earning & Infra Combined'!$A71,RevReq!$C$16:$C$140,0),BS$16+1) -> 5.156260303e-14 | BT71: =INDEX(RevReq!$O$16:$BM$140,MATCH('Earning & Infra Combined'!$A71,RevReq!$C$16:$C$140,0),BT$16+1) -> 5.156260303e-14 | BU71: =INDEX(RevReq!$O$16:$BM$140,MATCH('Earning & Infra Combined'!$A71,RevReq!$C$16:$C$140,0),BU$16+1) -> 5.156260303e-14 | BV71: =INDEX(RevReq!$O$16:$BM$140,MATCH('Earning & Infra Combined'!$A71,RevReq!$C$16:$C$140,0),BV$16+1) -> 5.156260303e-14 | BW71: =INDEX(RevReq!$O$16:$BM$140,MATCH('Earning & Infra Combined'!$A71,RevReq!$C$16:$C$140,0),BW$16+1) -> 5.156260303e-14 | BX71: =INDEX(RevReq!$O$16:$BM$140,MATCH('Earning & Infra Combined'!$A71,RevReq!$C$16:$C$140,0),BX$16+1) -> 5.156260303e-14 | BY71: =INDEX(RevReq!$O$16:$BM$140,MATCH('Earning & Infra Combined'!$A71,RevReq!$C$16:$C$140,0),BY$16+1) -> 5.156260303e-14 | BZ71: =INDEX(RevReq!$O$16:$BM$140,MATCH('Earning & Infra Combined'!$A71,RevReq!$C$16:$C$140,0),BZ$16+1) -> 5.156260303e-14
A72: =MAX($A$18:A71)+1 -> 30 | B72: ='Earning Summary w. AFUDC'!B72 -> Engineering & Construction | C72: FPL Solar | D72: ='Earning Summary w. AFUDC'!D72 -> 2017 | E72: ='Earning Summary w. AFUDC'!E72 -> 2017-01-01 | F72: ='Earning Summary w. AFUDC'!G72 -> 2020-01-01 | G72: ='Earning Summary w. AFUDC'!H72 -> 0.034 | H72: ='Earning Summary w. AFUDC'!I72 -> 0.955404 | K72: ='Earning Summary w. AFUDC'!L72 -> SolarTogether | L72: ='Earning Summary w. AFUDC'!M72 -> 202001 | M72: ='Earning Summary w. AFUDC'!N72 -> 0.034 | N72: ='Earning Summary w. AFUDC'!O72 -> 0.955404 | O72: ='Earning Summary w. AFUDC'!P72 -> 0.0001393 | P72: ='Earning Summary w. AFUDC'!Q72 -> 0.0200664 | Q72: ='Earning Summary w. AFUDC'!R72 -> 479.5195146 | R72: ='Earning Summary w. AFUDC'!S72 -> 16.27505064 | S72: ='Earning Summary w. AFUDC'!T72 -> 0.02118681883 | T72: ='Earning Summary w. AFUDC'!U72 -> 0 | U72: ='Earning Summary w. AFUDC'!V72 -> 0 | X72: 512.9328604 | Y72: 536.8753536 | Z72: 1056.962858 | AB72: =INDEX(RevReq!$O$16:$BM$140,MATCH('Earning & Infra Combined'!$A72,RevReq!$C$16:$C$140,0),AB$16+1) -> 0 | AC72: =INDEX(RevReq!$O$16:$BM$140,MATCH('Earning & Infra Combined'!$A72,RevReq!$C$16:$C$140,0),AC$16+1) -> 0 | AD72: =INDEX(RevReq!$O$16:$BM$140,MATCH('Earning & Infra Combined'!$A72,RevReq!$C$16:$C$140,0),AD$16+1) -> 0 | AE72: =INDEX(RevReq!$O$16:$BM$140,MATCH('Earning & Infra Combined'!$A72,RevReq!$C$16:$C$140,0),AE$16+1) -> 60.06495172 | AF72: =INDEX(RevReq!$O$16:$BM$140,MATCH('Earning & Infra Combined'!$A72,RevReq!$C$16:$C$140,0),AF$16+1) -> 58.36845135 | AG72: =INDEX(RevReq!$O$16:$BM$140,MATCH('Earning & Infra Combined'!$A72,RevReq!$C$16:$C$140,0),AG$16+1) -> 56.66931172 | AH72: =INDEX(RevReq!$O$16:$BM$140,MATCH('Earning & Infra Combined'!$A72,RevReq!$C$16:$C$140,0),AH$16+1) -> 54.97017209 | AI72: =INDEX(RevReq!$O$16:$BM$140,MATCH('Earning & Infra Combined'!$A72,RevReq!$C$16:$C$140,0),AI$16+1) -> 53.27103246 | AJ72: =INDEX(RevReq!$O$16:$BM$140,MATCH('Earning & Infra Combined'!$A72,RevReq!$C$16:$C$140,0),AJ$16+1) -> 51.57189284 | AK72: =INDEX(RevReq!$O$16:$BM$140,MATCH('Earning & Infra Combined'!$A72,RevReq!$C$16:$C$140,0),AK$16+1) -> 49.87275321 | AL72: =INDEX(RevReq!$O$16:$BM$140,MATCH('Earning & Infra Combined'!$A72,RevReq!$C$16:$C$140,0),AL$16+1) -> 48.17361358 | AM72: =INDEX(RevReq!$O$16:$BM$140,MATCH('Earning & Infra Combined'!$A72,RevReq!$C$16:$C$140,0),AM$16+1) -> 46.47447395 | AN72: =INDEX(RevReq!$O$16:$BM$140,MATCH('Earning & Infra Combined'!$A72,RevReq!$C$16:$C$140,0),AN$16+1) -> 44.77533432 | AO72: =INDEX(RevReq!$O$16:$BM$140,MATCH('Earning & Infra Combined'!$A72,RevReq!$C$16:$C$140,0),AO$16+1) -> 43.0761947 | AP72: =INDEX(RevReq!$O$16:$BM$140,MATCH('Earning & Infra Combined'!$A72,RevReq!$C$16:$C$140,0),AP$16+1) -> 41.37705507 | AQ72: =INDEX(RevReq!$O$16:$BM$140,MATCH('Earning & Infra Combined'!$A72,RevReq!$C$16:$C$140,0),AQ$16+1) -> 39.67791544 | AR72: =INDEX(RevReq!$O$16:$BM$140,MATCH('Earning & Infra Combined'!$A72,RevReq!$C$16:$C$140,0),AR$16+1) -> 37.97877581 | AS72: =INDEX(RevReq!$O$16:$BM$140,MATCH('Earning & Infra Combined'!$A72,RevReq!$C$16:$C$140,0),AS$16+1) -> 36.27963618 | AT72: =INDEX(RevReq!$O$16:$BM$140,MATCH('Earning & Infra Combined'!$A72,RevReq!$C$16:$C$140,0),AT$16+1) -> 34.58049655 | AU72: =INDEX(RevReq!$O$16:$BM$140,MATCH('Earning & Infra Combined'!$A72,RevReq!$C$16:$C$140,0),AU$16+1) -> 32.88135693 | AV72: =INDEX(RevReq!$O$16:$BM$140,MATCH('Earning & Infra Combined'!$A72,RevReq!$C$16:$C$140,0),AV$16+1) -> 31.1822173 | AW72: =INDEX(RevReq!$O$16:$BM$140,MATCH('Earning & Infra Combined'!$A72,RevReq!$C$16:$C$140,0),AW$16+1) -> 29.48307767 | AX72: =INDEX(RevReq!$O$16:$BM$140,MATCH('Earning & Infra Combined'!$A72,RevReq!$C$16:$C$140,0),AX$16+1) -> 27.78393804 | AY72: =INDEX(RevReq!$O$16:$BM$140,MATCH('Earning & Infra Combined'!$A72,RevReq!$C$16:$C$140,0),AY$16+1) -> 26.08479841 | AZ72: =INDEX(RevReq!$O$16:$BM$140,MATCH('Earning & Infra Combined'!$A72,RevReq!$C$16:$C$140,0),AZ$16+1) -> 24.38565879 | BA72: =INDEX(RevReq!$O$16:$BM$140,MATCH('Earning & Infra Combined'!$A72,RevReq!$C$16:$C$140,0),BA$16+1) -> 22.68651916 | BB72: =INDEX(RevReq!$O$16:$BM$140,MATCH('Earning & Infra Combined'!$A72,RevReq!$C$16:$C$140,0),BB$16+1) -> 20.98737953 | BC72: =INDEX(RevReq!$O$16:$BM$140,MATCH('Earning & Infra Combined'!$A72,RevReq!$C$16:$C$140,0),BC$16+1) -> 19.2882399 | BD72: =INDEX(RevReq!$O$16:$BM$140,MATCH('Earning & Infra Combined'!$A72,RevReq!$C$16:$C$140,0),BD$16+1) -> 17.58910027 | BE72: =INDEX(RevReq!$O$16:$BM$140,MATCH('Earning & Infra Combined'!$A72,RevReq!$C$16:$C$140,0),BE$16+1) -> 15.88996065 | BF72: =INDEX(RevReq!$O$16:$BM$140,MATCH('Earning & Infra Combined'!$A72,RevReq!$C$16:$C$140,0),BF$16+1) -> 14.19082102 | BG72: =INDEX(RevReq!$O$16:$BM$140,MATCH('Earning & Infra Combined'!$A72,RevReq!$C$16:$C$140,0),BG$16+1) -> 12.49168139 | BH72: =INDEX(RevReq!$O$16:$BM$140,MATCH('Earning & Infra Combined'!$A72,RevReq!$C$16:$C$140,0),BH$16+1) -> 4.855840486 | BI72: =INDEX(RevReq!$O$16:$BM$140,MATCH('Earning & Infra Combined'!$A72,RevReq!$C$16:$C$140,0),BI$16+1) -> 0.0002074736575 | BJ72: =INDEX(RevReq!$O$16:$BM$140,MATCH('Earning & Infra Combined'!$A72,RevReq!$C$16:$C$140,0),BJ$16+1) -> 2.864589057e-14 | BK72: =INDEX(RevReq!$O$16:$BM$140,MATCH('Earning & Infra Combined'!$A72,RevReq!$C$16:$C$140,0),BK$16+1) -> 2.864589057e-14 | BL72: =INDEX(RevReq!$O$16:$BM$140,MATCH('Earning & Infra Combined'!$A72,RevReq!$C$16:$C$140,0),BL$16+1) -> 2.864589057e-14 | BM72: =INDEX(RevReq!$O$16:$BM$140,MATCH('Earning & Infra Combined'!$A72,RevReq!$C$16:$C$140,0),BM$16+1) -> 2.864589057e-14 | BN72: =INDEX(RevReq!$O$16:$BM$140,MATCH('Earning & Infra Combined'!$A72,RevReq!$C$16:$C$140,0),BN$16+1) -> 2.864589057e-14 | BO72: =INDEX(RevReq!$O$16:$BM$140,MATCH('Earning & Infra Combined'!$A72,RevReq!$C$16:$C$140,0),BO$16+1) -> 2.864589057e-14 | BP72: =INDEX(RevReq!$O$16:$BM$140,MATCH('Earning & Infra Combined'!$A72,RevReq!$C$16:$C$140,0),BP$16+1) -> 2.864589057e-14 | BQ72: =INDEX(RevReq!$O$16:$BM$140,MATCH('Earning & Infra Combined'!$A72,RevReq!$C$16:$C$140,0),BQ$16+1) -> 2.864589057e-14 | BR72: =INDEX(RevReq!$O$16:$BM$140,MATCH('Earning & Infra Combined'!$A72,RevReq!$C$16:$C$140,0),BR$16+1) -> 2.864589057e-14 | BS72: =INDEX(RevReq!$O$16:$BM$140,MATCH('Earning & Infra Combined'!$A72,RevReq!$C$16:$C$140,0),BS$16+1) -> 2.864589057e-14 | BT72: =INDEX(RevReq!$O$16:$BM$140,MATCH('Earning & Infra Combined'!$A72,RevReq!$C$16:$C$140,0),BT$16+1) -> 2.864589057e-14 | BU72: =INDEX(RevReq!$O$16:$BM$140,MATCH('Earning & Infra Combined'!$A72,RevReq!$C$16:$C$140,0),BU$16+1) -> 2.864589057e-14 | BV72: =INDEX(RevReq!$O$16:$BM$140,MATCH('Earning & Infra Combined'!$A72,RevReq!$C$16:$C$140,0),BV$16+1) -> 2.864589057e-14 | BW72: =INDEX(RevReq!$O$16:$BM$140,MATCH('Earning & Infra Combined'!$A72,RevReq!$C$16:$C$140,0),BW$16+1) -> 2.864589057e-14 | BX72: =INDEX(RevReq!$O$16:$BM$140,MATCH('Earning & Infra Combined'!$A72,RevReq!$C$16:$C$140,0),BX$16+1) -> 2.864589057e-14 | BY72: =INDEX(RevReq!$O$16:$BM$140,MATCH('Earning & Infra Combined'!$A72,RevReq!$C$16:$C$140,0),BY$16+1) -> 2.864589057e-14 | BZ72: =INDEX(RevReq!$O$16:$BM$140,MATCH('Earning & Infra Combined'!$A72,RevReq!$C$16:$C$140,0),BZ$16+1) -> 2.864589057e-14
A73: =MAX($A$18:A72)+1 -> 31 | B73: ='Earning Summary w. AFUDC'!B73 -> Engineering & Construction | C73: Gulf Solar | D73: ='Earning Summary w. AFUDC'!D73 -> 2019 | E73: ='Earning Summary w. AFUDC'!E73 -> 2019-01-01 | F73: ='Earning Summary w. AFUDC'!G73 -> 2020-04-01 | G73: ='Earning Summary w. AFUDC'!H73 -> 0.029 | H73: ='Earning Summary w. AFUDC'!I73 -> 0.955404 | K73: ='Earning Summary w. AFUDC'!L73 -> Mason Solar | L73: ='Earning Summary w. AFUDC'!M73 -> 202004 | M73: ='Earning Summary w. AFUDC'!N73 -> 0.029 | N73: ='Earning Summary w. AFUDC'!O73 -> 0.955404 | O73: ='Earning Summary w. AFUDC'!P73 -> 0 | P73: ='Earning Summary w. AFUDC'!Q73 -> 0 | Q73: ='Earning Summary w. AFUDC'!R73 -> 91.92505604 | R73: ='Earning Summary w. AFUDC'!S73 -> 7.74641868 | S73: ='Earning Summary w. AFUDC'!T73 -> 0 | T73: ='Earning Summary w. AFUDC'!U73 -> 0 | U73: ='Earning Summary w. AFUDC'!V73 -> 0 | X73: 104.498688 | Y73: 109.3764397 | Z73: 237.8983955 | AB73: =INDEX(RevReq!$O$16:$BM$140,MATCH('Earning & Infra Combined'!$A73,RevReq!$C$16:$C$140,0),AB$16+1) -> 0 | AC73: =INDEX(RevReq!$O$16:$BM$140,MATCH('Earning & Infra Combined'!$A73,RevReq!$C$16:$C$140,0),AC$16+1) -> 0 | AD73: =INDEX(RevReq!$O$16:$BM$140,MATCH('Earning & Infra Combined'!$A73,RevReq!$C$16:$C$140,0),AD$16+1) -> 0 | AE73: =INDEX(RevReq!$O$16:$BM$140,MATCH('Earning & Infra Combined'!$A73,RevReq!$C$16:$C$140,0),AE$16+1) -> 8.832177937 | AF73: =INDEX(RevReq!$O$16:$BM$140,MATCH('Earning & Infra Combined'!$A73,RevReq!$C$16:$C$140,0),AF$16+1) -> 11.55774186 | AG73: =INDEX(RevReq!$O$16:$BM$140,MATCH('Earning & Infra Combined'!$A73,RevReq!$C$16:$C$140,0),AG$16+1) -> 11.26641467 | AH73: =INDEX(RevReq!$O$16:$BM$140,MATCH('Earning & Infra Combined'!$A73,RevReq!$C$16:$C$140,0),AH$16+1) -> 10.97508749 | AI73: =INDEX(RevReq!$O$16:$BM$140,MATCH('Earning & Infra Combined'!$A73,RevReq!$C$16:$C$140,0),AI$16+1) -> 10.6837603 | AJ73: =INDEX(RevReq!$O$16:$BM$140,MATCH('Earning & Infra Combined'!$A73,RevReq!$C$16:$C$140,0),AJ$16+1) -> 10.39243311 | AK73: =INDEX(RevReq!$O$16:$BM$140,MATCH('Earning & Infra Combined'!$A73,RevReq!$C$16:$C$140,0),AK$16+1) -> 10.10110592 | AL73: =INDEX(RevReq!$O$16:$BM$140,MATCH('Earning & Infra Combined'!$A73,RevReq!$C$16:$C$140,0),AL$16+1) -> 9.809778737 | AM73: =INDEX(RevReq!$O$16:$BM$140,MATCH('Earning & Infra Combined'!$A73,RevReq!$C$16:$C$140,0),AM$16+1) -> 9.51845155 | AN73: =INDEX(RevReq!$O$16:$BM$140,MATCH('Earning & Infra Combined'!$A73,RevReq!$C$16:$C$140,0),AN$16+1) -> 9.227124363 | AO73: =INDEX(RevReq!$O$16:$BM$140,MATCH('Earning & Infra Combined'!$A73,RevReq!$C$16:$C$140,0),AO$16+1) -> 8.935797176 | AP73: =INDEX(RevReq!$O$16:$BM$140,MATCH('Earning & Infra Combined'!$A73,RevReq!$C$16:$C$140,0),AP$16+1) -> 8.644469989 | AQ73: =INDEX(RevReq!$O$16:$BM$140,MATCH('Earning & Infra Combined'!$A73,RevReq!$C$16:$C$140,0),AQ$16+1) -> 8.353142802 | AR73: =INDEX(RevReq!$O$16:$BM$140,MATCH('Earning & Infra Combined'!$A73,RevReq!$C$16:$C$140,0),AR$16+1) -> 8.061815615 | AS73: =INDEX(RevReq!$O$16:$BM$140,MATCH('Earning & Infra Combined'!$A73,RevReq!$C$16:$C$140,0),AS$16+1) -> 7.770488428 | AT73: =INDEX(RevReq!$O$16:$BM$140,MATCH('Earning & Infra Combined'!$A73,RevReq!$C$16:$C$140,0),AT$16+1) -> 7.479161241 | AU73: =INDEX(RevReq!$O$16:$BM$140,MATCH('Earning & Infra Combined'!$A73,RevReq!$C$16:$C$140,0),AU$16+1) -> 7.187834054 | AV73: =INDEX(RevReq!$O$16:$BM$140,MATCH('Earning & Infra Combined'!$A73,RevReq!$C$16:$C$140,0),AV$16+1) -> 6.896506867 | AW73: =INDEX(RevReq!$O$16:$BM$140,MATCH('Earning & Infra Combined'!$A73,RevReq!$C$16:$C$140,0),AW$16+1) -> 6.60517968 | AX73: =INDEX(RevReq!$O$16:$BM$140,MATCH('Earning & Infra Combined'!$A73,RevReq!$C$16:$C$140,0),AX$16+1) -> 6.313852493 | AY73: =INDEX(RevReq!$O$16:$BM$140,MATCH('Earning & Infra Combined'!$A73,RevReq!$C$16:$C$140,0),AY$16+1) -> 6.022525306 | AZ73: =INDEX(RevReq!$O$16:$BM$140,MATCH('Earning & Infra Combined'!$A73,RevReq!$C$16:$C$140,0),AZ$16+1) -> 5.731198119 | BA73: =INDEX(RevReq!$O$16:$BM$140,MATCH('Earning & Infra Combined'!$A73,RevReq!$C$16:$C$140,0),BA$16+1) -> 5.439870932 | BB73: =INDEX(RevReq!$O$16:$BM$140,MATCH('Earning & Infra Combined'!$A73,RevReq!$C$16:$C$140,0),BB$16+1) -> 5.148543746 | BC73: =INDEX(RevReq!$O$16:$BM$140,MATCH('Earning & Infra Combined'!$A73,RevReq!$C$16:$C$140,0),BC$16+1) -> 4.857216559 | BD73: =INDEX(RevReq!$O$16:$BM$140,MATCH('Earning & Infra Combined'!$A73,RevReq!$C$16:$C$140,0),BD$16+1) -> 4.565889372 | BE73: =INDEX(RevReq!$O$16:$BM$140,MATCH('Earning & Infra Combined'!$A73,RevReq!$C$16:$C$140,0),BE$16+1) -> 4.274562185 | BF73: =INDEX(RevReq!$O$16:$BM$140,MATCH('Earning & Infra Combined'!$A73,RevReq!$C$16:$C$140,0),BF$16+1) -> 3.983234998 | BG73: =INDEX(RevReq!$O$16:$BM$140,MATCH('Earning & Infra Combined'!$A73,RevReq!$C$16:$C$140,0),BG$16+1) -> 3.691907811 | BH73: =INDEX(RevReq!$O$16:$BM$140,MATCH('Earning & Infra Combined'!$A73,RevReq!$C$16:$C$140,0),BH$16+1) -> 3.400580624 | BI73: =INDEX(RevReq!$O$16:$BM$140,MATCH('Earning & Infra Combined'!$A73,RevReq!$C$16:$C$140,0),BI$16+1) -> 3.109253437 | BJ73: =INDEX(RevReq!$O$16:$BM$140,MATCH('Earning & Infra Combined'!$A73,RevReq!$C$16:$C$140,0),BJ$16+1) -> 2.81792625 | BK73: =INDEX(RevReq!$O$16:$BM$140,MATCH('Earning & Infra Combined'!$A73,RevReq!$C$16:$C$140,0),BK$16+1) -> 2.526599063 | BL73: =INDEX(RevReq!$O$16:$BM$140,MATCH('Earning & Infra Combined'!$A73,RevReq!$C$16:$C$140,0),BL$16+1) -> 2.235271876 | BM73: =INDEX(RevReq!$O$16:$BM$140,MATCH('Earning & Infra Combined'!$A73,RevReq!$C$16:$C$140,0),BM$16+1) -> 1.481490916 | BN73: =INDEX(RevReq!$O$16:$BM$140,MATCH('Earning & Infra Combined'!$A73,RevReq!$C$16:$C$140,0),BN$16+1) -> 8.593767171e-15 | BO73: =INDEX(RevReq!$O$16:$BM$140,MATCH('Earning & Infra Combined'!$A73,RevReq!$C$16:$C$140,0),BO$16+1) -> 8.593767171e-15 | BP73: =INDEX(RevReq!$O$16:$BM$140,MATCH('Earning & Infra Combined'!$A73,RevReq!$C$16:$C$140,0),BP$16+1) -> 8.593767171e-15 | BQ73: =INDEX(RevReq!$O$16:$BM$140,MATCH('Earning & Infra Combined'!$A73,RevReq!$C$16:$C$140,0),BQ$16+1) -> 8.593767171e-15 | BR73: =INDEX(RevReq!$O$16:$BM$140,MATCH('Earning & Infra Combined'!$A73,RevReq!$C$16:$C$140,0),BR$16+1) -> 8.593767171e-15 | BS73: =INDEX(RevReq!$O$16:$BM$140,MATCH('Earning & Infra Combined'!$A73,RevReq!$C$16:$C$140,0),BS$16+1) -> 8.593767171e-15 | BT73: =INDEX(RevReq!$O$16:$BM$140,MATCH('Earning & Infra Combined'!$A73,RevReq!$C$16:$C$140,0),BT$16+1) -> 8.593767171e-15 | BU73: =INDEX(RevReq!$O$16:$BM$140,MATCH('Earning & Infra Combined'!$A73,RevReq!$C$16:$C$140,0),BU$16+1) -> 8.593767171e-15 | BV73: =INDEX(RevReq!$O$16:$BM$140,MATCH('Earning & Infra Combined'!$A73,RevReq!$C$16:$C$140,0),BV$16+1) -> 8.593767171e-15 | BW73: =INDEX(RevReq!$O$16:$BM$140,MATCH('Earning & Infra Combined'!$A73,RevReq!$C$16:$C$140,0),BW$16+1) -> 8.593767171e-15 | BX73: =INDEX(RevReq!$O$16:$BM$140,MATCH('Earning & Infra Combined'!$A73,RevReq!$C$16:$C$140,0),BX$16+1) -> 8.593767171e-15 | BY73: =INDEX(RevReq!$O$16:$BM$140,MATCH('Earning & Infra Combined'!$A73,RevReq!$C$16:$C$140,0),BY$16+1) -> 8.593767171e-15 | BZ73: =INDEX(RevReq!$O$16:$BM$140,MATCH('Earning & Infra Combined'!$A73,RevReq!$C$16:$C$140,0),BZ$16+1) -> 8.593767171e-15
A74: =MAX($A$18:A73)+1 -> 32 | B74: ='Earning Summary w. AFUDC'!B74 -> Engineering & Construction | C74: Gulf Solar | D74: ='Earning Summary w. AFUDC'!D74 -> 2020 | E74: ='Earning Summary w. AFUDC'!E74 -> 2020-01-01 | F74: ='Earning Summary w. AFUDC'!G74 -> 2021-12-01 | G74: ='Earning Summary w. AFUDC'!H74 -> 0.029 | H74: ='Earning Summary w. AFUDC'!I74 -> 0.955404 | K74: ='Earning Summary w. AFUDC'!L74 -> Blue Springs Solar | L74: ='Earning Summary w. AFUDC'!M74 -> 202112 | M74: ='Earning Summary w. AFUDC'!N74 -> 0.029 | N74: ='Earning Summary w. AFUDC'!O74 -> 0.955404 | O74: ='Earning Summary w. AFUDC'!P74 -> 0 | P74: ='Earning Summary w. AFUDC'!Q74 -> 0 | Q74: ='Earning Summary w. AFUDC'!R74 -> 0 | R74: ='Earning Summary w. AFUDC'!S74 -> 39.34787192 | S74: ='Earning Summary w. AFUDC'!T74 -> 64.680037 | T74: ='Earning Summary w. AFUDC'!U74 -> 0 | U74: ='Earning Summary w. AFUDC'!V74 -> 0 | X74: 96.61181411 | Y74: 101.1214252 | Z74: 248.3200337 | AB74: =INDEX(RevReq!$O$16:$BM$140,MATCH('Earning & Infra Combined'!$A74,RevReq!$C$16:$C$140,0),AB$16+1) -> 0 | AC74: =INDEX(RevReq!$O$16:$BM$140,MATCH('Earning & Infra Combined'!$A74,RevReq!$C$16:$C$140,0),AC$16+1) -> 0 | AD74: =INDEX(RevReq!$O$16:$BM$140,MATCH('Earning & Infra Combined'!$A74,RevReq!$C$16:$C$140,0),AD$16+1) -> 0 | AE74: =INDEX(RevReq!$O$16:$BM$140,MATCH('Earning & Infra Combined'!$A74,RevReq!$C$16:$C$140,0),AE$16+1) -> 0 | AF74: =INDEX(RevReq!$O$16:$BM$140,MATCH('Earning & Infra Combined'!$A74,RevReq!$C$16:$C$140,0),AF$16+1) -> 1.02424602 | AG74: =INDEX(RevReq!$O$16:$BM$140,MATCH('Earning & Infra Combined'!$A74,RevReq!$C$16:$C$140,0),AG$16+1) -> 12.26561387 | AH74: =INDEX(RevReq!$O$16:$BM$140,MATCH('Earning & Infra Combined'!$A74,RevReq!$C$16:$C$140,0),AH$16+1) -> 11.96155337 | AI74: =INDEX(RevReq!$O$16:$BM$140,MATCH('Earning & Infra Combined'!$A74,RevReq!$C$16:$C$140,0),AI$16+1) -> 11.65749288 | AJ74: =INDEX(RevReq!$O$16:$BM$140,MATCH('Earning & Infra Combined'!$A74,RevReq!$C$16:$C$140,0),AJ$16+1) -> 11.35343238 | AK74: =INDEX(RevReq!$O$16:$BM$140,MATCH('Earning & Infra Combined'!$A74,RevReq!$C$16:$C$140,0),AK$16+1) -> 11.04937189 | AL74: =INDEX(RevReq!$O$16:$BM$140,MATCH('Earning & Infra Combined'!$A74,RevReq!$C$16:$C$140,0),AL$16+1) -> 10.74531139 | AM74: =INDEX(RevReq!$O$16:$BM$140,MATCH('Earning & Infra Combined'!$A74,RevReq!$C$16:$C$140,0),AM$16+1) -> 10.44125089 | AN74: =INDEX(RevReq!$O$16:$BM$140,MATCH('Earning & Infra Combined'!$A74,RevReq!$C$16:$C$140,0),AN$16+1) -> 10.1371904 | AO74: =INDEX(RevReq!$O$16:$BM$140,MATCH('Earning & Infra Combined'!$A74,RevReq!$C$16:$C$140,0),AO$16+1) -> 9.8331299 | AP74: =INDEX(RevReq!$O$16:$BM$140,MATCH('Earning & Infra Combined'!$A74,RevReq!$C$16:$C$140,0),AP$16+1) -> 9.529069404 | AQ74: =INDEX(RevReq!$O$16:$BM$140,MATCH('Earning & Infra Combined'!$A74,RevReq!$C$16:$C$140,0),AQ$16+1) -> 9.225008907 | AR74: =INDEX(RevReq!$O$16:$BM$140,MATCH('Earning & Infra Combined'!$A74,RevReq!$C$16:$C$140,0),AR$16+1) -> 8.920948411 | AS74: =INDEX(RevReq!$O$16:$BM$140,MATCH('Earning & Infra Combined'!$A74,RevReq!$C$16:$C$140,0),AS$16+1) -> 8.616887915 | AT74: =INDEX(RevReq!$O$16:$BM$140,MATCH('Earning & Infra Combined'!$A74,RevReq!$C$16:$C$140,0),AT$16+1) -> 8.312827418 | AU74: =INDEX(RevReq!$O$16:$BM$140,MATCH('Earning & Infra Combined'!$A74,RevReq!$C$16:$C$140,0),AU$16+1) -> 8.008766922 | AV74: =INDEX(RevReq!$O$16:$BM$140,MATCH('Earning & Infra Combined'!$A74,RevReq!$C$16:$C$140,0),AV$16+1) -> 7.704706426 | AW74: =INDEX(RevReq!$O$16:$BM$140,MATCH('Earning & Infra Combined'!$A74,RevReq!$C$16:$C$140,0),AW$16+1) -> 7.400645929 | AX74: =INDEX(RevReq!$O$16:$BM$140,MATCH('Earning & Infra Combined'!$A74,RevReq!$C$16:$C$140,0),AX$16+1) -> 7.096585433 | AY74: =INDEX(RevReq!$O$16:$BM$140,MATCH('Earning & Infra Combined'!$A74,RevReq!$C$16:$C$140,0),AY$16+1) -> 6.792524937 | AZ74: =INDEX(RevReq!$O$16:$BM$140,MATCH('Earning & Infra Combined'!$A74,RevReq!$C$16:$C$140,0),AZ$16+1) -> 6.48846444 | BA74: =INDEX(RevReq!$O$16:$BM$140,MATCH('Earning & Infra Combined'!$A74,RevReq!$C$16:$C$140,0),BA$16+1) -> 6.184403944 | BB74: =INDEX(RevReq!$O$16:$BM$140,MATCH('Earning & Infra Combined'!$A74,RevReq!$C$16:$C$140,0),BB$16+1) -> 5.880343448 | BC74: =INDEX(RevReq!$O$16:$BM$140,MATCH('Earning & Infra Combined'!$A74,RevReq!$C$16:$C$140,0),BC$16+1) -> 5.576282951 | BD74: =INDEX(RevReq!$O$16:$BM$140,MATCH('Earning & Infra Combined'!$A74,RevReq!$C$16:$C$140,0),BD$16+1) -> 5.272222455 | BE74: =INDEX(RevReq!$O$16:$BM$140,MATCH('Earning & Infra Combined'!$A74,RevReq!$C$16:$C$140,0),BE$16+1) -> 4.968161959 | BF74: =INDEX(RevReq!$O$16:$BM$140,MATCH('Earning & Infra Combined'!$A74,RevReq!$C$16:$C$140,0),BF$16+1) -> 4.664101462 | BG74: =INDEX(RevReq!$O$16:$BM$140,MATCH('Earning & Infra Combined'!$A74,RevReq!$C$16:$C$140,0),BG$16+1) -> 4.360040966 | BH74: =INDEX(RevReq!$O$16:$BM$140,MATCH('Earning & Infra Combined'!$A74,RevReq!$C$16:$C$140,0),BH$16+1) -> 4.05598047 | BI74: =INDEX(RevReq!$O$16:$BM$140,MATCH('Earning & Infra Combined'!$A74,RevReq!$C$16:$C$140,0),BI$16+1) -> 3.751919973 | BJ74: =INDEX(RevReq!$O$16:$BM$140,MATCH('Earning & Infra Combined'!$A74,RevReq!$C$16:$C$140,0),BJ$16+1) -> 3.447859477 | BK74: =INDEX(RevReq!$O$16:$BM$140,MATCH('Earning & Infra Combined'!$A74,RevReq!$C$16:$C$140,0),BK$16+1) -> 3.143798981 | BL74: =INDEX(RevReq!$O$16:$BM$140,MATCH('Earning & Infra Combined'!$A74,RevReq!$C$16:$C$140,0),BL$16+1) -> 2.839738484 | BM74: =INDEX(RevReq!$O$16:$BM$140,MATCH('Earning & Infra Combined'!$A74,RevReq!$C$16:$C$140,0),BM$16+1) -> 2.535677988 | BN74: =INDEX(RevReq!$O$16:$BM$140,MATCH('Earning & Infra Combined'!$A74,RevReq!$C$16:$C$140,0),BN$16+1) -> 2.231617492 | BO74: =INDEX(RevReq!$O$16:$BM$140,MATCH('Earning & Infra Combined'!$A74,RevReq!$C$16:$C$140,0),BO$16+1) -> 0.842854476 | BP74: =INDEX(RevReq!$O$16:$BM$140,MATCH('Earning & Infra Combined'!$A74,RevReq!$C$16:$C$140,0),BP$16+1) -> -1.432294528e-15 | BQ74: =INDEX(RevReq!$O$16:$BM$140,MATCH('Earning & Infra Combined'!$A74,RevReq!$C$16:$C$140,0),BQ$16+1) -> -1.432294528e-15 | BR74: =INDEX(RevReq!$O$16:$BM$140,MATCH('Earning & Infra Combined'!$A74,RevReq!$C$16:$C$140,0),BR$16+1) -> -1.432294528e-15 | BS74: =INDEX(RevReq!$O$16:$BM$140,MATCH('Earning & Infra Combined'!$A74,RevReq!$C$16:$C$140,0),BS$16+1) -> -1.432294528e-15 | BT74: =INDEX(RevReq!$O$16:$BM$140,MATCH('Earning & Infra Combined'!$A74,RevReq!$C$16:$C$140,0),BT$16+1) -> -1.432294528e-15 | BU74: =INDEX(RevReq!$O$16:$BM$140,MATCH('Earning & Infra Combined'!$A74,RevReq!$C$16:$C$140,0),BU$16+1) -> -1.432294528e-15 | BV74: =INDEX(RevReq!$O$16:$BM$140,MATCH('Earning & Infra Combined'!$A74,RevReq!$C$16:$C$140,0),BV$16+1) -> -1.432294528e-15 | BW74: =INDEX(RevReq!$O$16:$BM$140,MATCH('Earning & Infra Combined'!$A74,RevReq!$C$16:$C$140,0),BW$16+1) -> -1.432294528e-15 | BX74: =INDEX(RevReq!$O$16:$BM$140,MATCH('Earning & Infra Combined'!$A74,RevReq!$C$16:$C$140,0),BX$16+1) -> -1.432294528e-15 | BY74: =INDEX(RevReq!$O$16:$BM$140,MATCH('Earning & Infra Combined'!$A74,RevReq!$C$16:$C$140,0),BY$16+1) -> -1.432294528e-15 | BZ74: =INDEX(RevReq!$O$16:$BM$140,MATCH('Earning & Infra Combined'!$A74,RevReq!$C$16:$C$140,0),BZ$16+1) -> -1.432294528e-15
A75: =MAX($A$18:A74)+1 -> 33 | B75: ='Earning Summary w. AFUDC'!B75 -> Engineering & Construction | C75: Gulf Solar | D75: ='Earning Summary w. AFUDC'!D75 -> 2020 | E75: ='Earning Summary w. AFUDC'!E75 -> 2020-01-01 | F75: ='Earning Summary w. AFUDC'!G75 -> 2021-12-01 | G75: ='Earning Summary w. AFUDC'!H75 -> 0.029 | H75: ='Earning Summary w. AFUDC'!I75 -> 0.955404 | K75: ='Earning Summary w. AFUDC'!L75 -> Cotton Creek Solar | L75: ='Earning Summary w. AFUDC'!M75 -> 202112 | M75: ='Earning Summary w. AFUDC'!N75 -> 0.029 | N75: ='Earning Summary w. AFUDC'!O75 -> 0.955404 | O75: ='Earning Summary w. AFUDC'!P75 -> 0 | P75: ='Earning Summary w. AFUDC'!Q75 -> 0 | Q75: ='Earning Summary w. AFUDC'!R75 -> 0 | R75: ='Earning Summary w. AFUDC'!S75 -> 47.00032168 | S75: ='Earning Summary w. AFUDC'!T75 -> 59.960599 | T75: ='Earning Summary w. AFUDC'!U75 -> 0 | U75: ='Earning Summary w. AFUDC'!V75 -> 0 | X75: 99.335733 | Y75: 103.9724902 | Z75: 255.3212854 | AB75: =INDEX(RevReq!$O$16:$BM$140,MATCH('Earning & Infra Combined'!$A75,RevReq!$C$16:$C$140,0),AB$16+1) -> 0 | AC75: =INDEX(RevReq!$O$16:$BM$140,MATCH('Earning & Infra Combined'!$A75,RevReq!$C$16:$C$140,0),AC$16+1) -> 0 | AD75: =INDEX(RevReq!$O$16:$BM$140,MATCH('Earning & Infra Combined'!$A75,RevReq!$C$16:$C$140,0),AD$16+1) -> 0 | AE75: =INDEX(RevReq!$O$16:$BM$140,MATCH('Earning & Infra Combined'!$A75,RevReq!$C$16:$C$140,0),AE$16+1) -> 0 | AF75: =INDEX(RevReq!$O$16:$BM$140,MATCH('Earning & Infra Combined'!$A75,RevReq!$C$16:$C$140,0),AF$16+1) -> 1.053124094 | AG75: =INDEX(RevReq!$O$16:$BM$140,MATCH('Earning & Infra Combined'!$A75,RevReq!$C$16:$C$140,0),AG$16+1) -> 12.61143635 | AH75: =INDEX(RevReq!$O$16:$BM$140,MATCH('Earning & Infra Combined'!$A75,RevReq!$C$16:$C$140,0),AH$16+1) -> 12.29880303 | AI75: =INDEX(RevReq!$O$16:$BM$140,MATCH('Earning & Infra Combined'!$A75,RevReq!$C$16:$C$140,0),AI$16+1) -> 11.98616971 | AJ75: =INDEX(RevReq!$O$16:$BM$140,MATCH('Earning & Infra Combined'!$A75,RevReq!$C$16:$C$140,0),AJ$16+1) -> 11.67353639 | AK75: =INDEX(RevReq!$O$16:$BM$140,MATCH('Earning & Infra Combined'!$A75,RevReq!$C$16:$C$140,0),AK$16+1) -> 11.36090307 | AL75: =INDEX(RevReq!$O$16:$BM$140,MATCH('Earning & Infra Combined'!$A75,RevReq!$C$16:$C$140,0),AL$16+1) -> 11.04826975 | AM75: =INDEX(RevReq!$O$16:$BM$140,MATCH('Earning & Infra Combined'!$A75,RevReq!$C$16:$C$140,0),AM$16+1) -> 10.73563643 | AN75: =INDEX(RevReq!$O$16:$BM$140,MATCH('Earning & Infra Combined'!$A75,RevReq!$C$16:$C$140,0),AN$16+1) -> 10.42300311 | AO75: =INDEX(RevReq!$O$16:$BM$140,MATCH('Earning & Infra Combined'!$A75,RevReq!$C$16:$C$140,0),AO$16+1) -> 10.11036979 | AP75: =INDEX(RevReq!$O$16:$BM$140,MATCH('Earning & Infra Combined'!$A75,RevReq!$C$16:$C$140,0),AP$16+1) -> 9.797736465 | AQ75: =INDEX(RevReq!$O$16:$BM$140,MATCH('Earning & Infra Combined'!$A75,RevReq!$C$16:$C$140,0),AQ$16+1) -> 9.485103144 | AR75: =INDEX(RevReq!$O$16:$BM$140,MATCH('Earning & Infra Combined'!$A75,RevReq!$C$16:$C$140,0),AR$16+1) -> 9.172469823 | AS75: =INDEX(RevReq!$O$16:$BM$140,MATCH('Earning & Infra Combined'!$A75,RevReq!$C$16:$C$140,0),AS$16+1) -> 8.859836503 | AT75: =INDEX(RevReq!$O$16:$BM$140,MATCH('Earning & Infra Combined'!$A75,RevReq!$C$16:$C$140,0),AT$16+1) -> 8.547203182 | AU75: =INDEX(RevReq!$O$16:$BM$140,MATCH('Earning & Infra Combined'!$A75,RevReq!$C$16:$C$140,0),AU$16+1) -> 8.234569861 | AV75: =INDEX(RevReq!$O$16:$BM$140,MATCH('Earning & Infra Combined'!$A75,RevReq!$C$16:$C$140,0),AV$16+1) -> 7.92193654 | AW75: =INDEX(RevReq!$O$16:$BM$140,MATCH('Earning & Infra Combined'!$A75,RevReq!$C$16:$C$140,0),AW$16+1) -> 7.609303219 | AX75: =INDEX(RevReq!$O$16:$BM$140,MATCH('Earning & Infra Combined'!$A75,RevReq!$C$16:$C$140,0),AX$16+1) -> 7.296669898 | AY75: =INDEX(RevReq!$O$16:$BM$140,MATCH('Earning & Infra Combined'!$A75,RevReq!$C$16:$C$140,0),AY$16+1) -> 6.984036577 | AZ75: =INDEX(RevReq!$O$16:$BM$140,MATCH('Earning & Infra Combined'!$A75,RevReq!$C$16:$C$140,0),AZ$16+1) -> 6.671403256 | BA75: =INDEX(RevReq!$O$16:$BM$140,MATCH('Earning & Infra Combined'!$A75,RevReq!$C$16:$C$140,0),BA$16+1) -> 6.358769936 | BB75: =INDEX(RevReq!$O$16:$BM$140,MATCH('Earning & Infra Combined'!$A75,RevReq!$C$16:$C$140,0),BB$16+1) -> 6.046136615 | BC75: =INDEX(RevReq!$O$16:$BM$140,MATCH('Earning & Infra Combined'!$A75,RevReq!$C$16:$C$140,0),BC$16+1) -> 5.733503294 | BD75: =INDEX(RevReq!$O$16:$BM$140,MATCH('Earning & Infra Combined'!$A75,RevReq!$C$16:$C$140,0),BD$16+1) -> 5.420869973 | BE75: =INDEX(RevReq!$O$16:$BM$140,MATCH('Earning & Infra Combined'!$A75,RevReq!$C$16:$C$140,0),BE$16+1) -> 5.108236652 | BF75: =INDEX(RevReq!$O$16:$BM$140,MATCH('Earning & Infra Combined'!$A75,RevReq!$C$16:$C$140,0),BF$16+1) -> 4.795603331 | BG75: =INDEX(RevReq!$O$16:$BM$140,MATCH('Earning & Infra Combined'!$A75,RevReq!$C$16:$C$140,0),BG$16+1) -> 4.48297001 | BH75: =INDEX(RevReq!$O$16:$BM$140,MATCH('Earning & Infra Combined'!$A75,RevReq!$C$16:$C$140,0),BH$16+1) -> 4.170336689 | BI75: =INDEX(RevReq!$O$16:$BM$140,MATCH('Earning & Infra Combined'!$A75,RevReq!$C$16:$C$140,0),BI$16+1) -> 3.857703369 | BJ75: =INDEX(RevReq!$O$16:$BM$140,MATCH('Earning & Infra Combined'!$A75,RevReq!$C$16:$C$140,0),BJ$16+1) -> 3.545070048 | BK75: =INDEX(RevReq!$O$16:$BM$140,MATCH('Earning & Infra Combined'!$A75,RevReq!$C$16:$C$140,0),BK$16+1) -> 3.232436727 | BL75: =INDEX(RevReq!$O$16:$BM$140,MATCH('Earning & Infra Combined'!$A75,RevReq!$C$16:$C$140,0),BL$16+1) -> 2.919803406 | BM75: =INDEX(RevReq!$O$16:$BM$140,MATCH('Earning & Infra Combined'!$A75,RevReq!$C$16:$C$140,0),BM$16+1) -> 2.607170085 | BN75: =INDEX(RevReq!$O$16:$BM$140,MATCH('Earning & Infra Combined'!$A75,RevReq!$C$16:$C$140,0),BN$16+1) -> 2.294536764 | BO75: =INDEX(RevReq!$O$16:$BM$140,MATCH('Earning & Infra Combined'!$A75,RevReq!$C$16:$C$140,0),BO$16+1) -> 0.8666183112 | BP75: =INDEX(RevReq!$O$16:$BM$140,MATCH('Earning & Infra Combined'!$A75,RevReq!$C$16:$C$140,0),BP$16+1) -> 1.432294528e-15 | BQ75: =INDEX(RevReq!$O$16:$BM$140,MATCH('Earning & Infra Combined'!$A75,RevReq!$C$16:$C$140,0),BQ$16+1) -> 1.432294528e-15 | BR75: =INDEX(RevReq!$O$16:$BM$140,MATCH('Earning & Infra Combined'!$A75,RevReq!$C$16:$C$140,0),BR$16+1) -> 1.432294528e-15 | BS75: =INDEX(RevReq!$O$16:$BM$140,MATCH('Earning & Infra Combined'!$A75,RevReq!$C$16:$C$140,0),BS$16+1) -> 1.432294528e-15 | BT75: =INDEX(RevReq!$O$16:$BM$140,MATCH('Earning & Infra Combined'!$A75,RevReq!$C$16:$C$140,0),BT$16+1) -> 1.432294528e-15 | BU75: =INDEX(RevReq!$O$16:$BM$140,MATCH('Earning & Infra Combined'!$A75,RevReq!$C$16:$C$140,0),BU$16+1) -> 1.432294528e-15 | BV75: =INDEX(RevReq!$O$16:$BM$140,MATCH('Earning & Infra Combined'!$A75,RevReq!$C$16:$C$140,0),BV$16+1) -> 1.432294528e-15 | BW75: =INDEX(RevReq!$O$16:$BM$140,MATCH('Earning & Infra Combined'!$A75,RevReq!$C$16:$C$140,0),BW$16+1) -> 1.432294528e-15 | BX75: =INDEX(RevReq!$O$16:$BM$140,MATCH('Earning & Infra Combined'!$A75,RevReq!$C$16:$C$140,0),BX$16+1) -> 1.432294528e-15 | BY75: =INDEX(RevReq!$O$16:$BM$140,MATCH('Earning & Infra Combined'!$A75,RevReq!$C$16:$C$140,0),BY$16+1) -> 1.432294528e-15 | BZ75: =INDEX(RevReq!$O$16:$BM$140,MATCH('Earning & Infra Combined'!$A75,RevReq!$C$16:$C$140,0),BZ$16+1) -> 1.432294528e-15
A76: =MAX($A$18:A75)+1 -> 34 | B76: ='Earning Summary w. AFUDC'!B76 -> Engineering & Construction | C76: FPL Solar | D76: ='Earning Summary w. AFUDC'!D76 -> 2020 | E76: ='Earning Summary w. AFUDC'!E76 -> 2020-01-01 | F76: ='Earning Summary w. AFUDC'!G76 -> 2021-12-01 | G76: ='Earning Summary w. AFUDC'!H76 -> 0.034 | H76: ='Earning Summary w. AFUDC'!I76 -> 0.955404 | K76: ='Earning Summary w. AFUDC'!L76 -> Unidentified Future Solar - 2021 | L76: ='Earning Summary w. AFUDC'!M76 -> 202112 | M76: ='Earning Summary w. AFUDC'!N76 -> 0.034 | N76: ='Earning Summary w. AFUDC'!O76 -> 0.955404 | O76: ='Earning Summary w. AFUDC'!P76 -> 0 | P76: ='Earning Summary w. AFUDC'!Q76 -> 0 | Q76: ='Earning Summary w. AFUDC'!R76 -> 0 | R76: ='Earning Summary w. AFUDC'!S76 -> 29.4899706 | S76: ='Earning Summary w. AFUDC'!T76 -> 507.8275777 | T76: ='Earning Summary w. AFUDC'!U76 -> 0 | U76: ='Earning Summary w. AFUDC'!V76 -> 0 | X76: 483.7482562 | Y76: 506.3284811 | Z76: 1145.298014 | AB76: =INDEX(RevReq!$O$16:$BM$140,MATCH('Earning & Infra Combined'!$A76,RevReq!$C$16:$C$140,0),AB$16+1) -> 0 | AC76: =INDEX(RevReq!$O$16:$BM$140,MATCH('Earning & Infra Combined'!$A76,RevReq!$C$16:$C$140,0),AC$16+1) -> 0 | AD76: =INDEX(RevReq!$O$16:$BM$140,MATCH('Earning & Infra Combined'!$A76,RevReq!$C$16:$C$140,0),AD$16+1) -> 0 | AE76: =INDEX(RevReq!$O$16:$BM$140,MATCH('Earning & Infra Combined'!$A76,RevReq!$C$16:$C$140,0),AE$16+1) -> 0 | AF76: =INDEX(RevReq!$O$16:$BM$140,MATCH('Earning & Infra Combined'!$A76,RevReq!$C$16:$C$140,0),AF$16+1) -> 5.424396786 | AG76: =INDEX(RevReq!$O$16:$BM$140,MATCH('Earning & Infra Combined'!$A76,RevReq!$C$16:$C$140,0),AG$16+1) -> 64.93932064 | AH76: =INDEX(RevReq!$O$16:$BM$140,MATCH('Earning & Infra Combined'!$A76,RevReq!$C$16:$C$140,0),AH$16+1) -> 63.09803115 | AI76: =INDEX(RevReq!$O$16:$BM$140,MATCH('Earning & Infra Combined'!$A76,RevReq!$C$16:$C$140,0),AI$16+1) -> 61.25674165 | AJ76: =INDEX(RevReq!$O$16:$BM$140,MATCH('Earning & Infra Combined'!$A76,RevReq!$C$16:$C$140,0),AJ$16+1) -> 59.41545216 | AK76: =INDEX(RevReq!$O$16:$BM$140,MATCH('Earning & Infra Combined'!$A76,RevReq!$C$16:$C$140,0),AK$16+1) -> 57.57416267 | AL76: =INDEX(RevReq!$O$16:$BM$140,MATCH('Earning & Infra Combined'!$A76,RevReq!$C$16:$C$140,0),AL$16+1) -> 55.73287318 | AM76: =INDEX(RevReq!$O$16:$BM$140,MATCH('Earning & Infra Combined'!$A76,RevReq!$C$16:$C$140,0),AM$16+1) -> 53.89158368 | AN76: =INDEX(RevReq!$O$16:$BM$140,MATCH('Earning & Infra Combined'!$A76,RevReq!$C$16:$C$140,0),AN$16+1) -> 52.05029419 | AO76: =INDEX(RevReq!$O$16:$BM$140,MATCH('Earning & Infra Combined'!$A76,RevReq!$C$16:$C$140,0),AO$16+1) -> 50.2090047 | AP76: =INDEX(RevReq!$O$16:$BM$140,MATCH('Earning & Infra Combined'!$A76,RevReq!$C$16:$C$140,0),AP$16+1) -> 48.3677152 | AQ76: =INDEX(RevReq!$O$16:$BM$140,MATCH('Earning & Infra Combined'!$A76,RevReq!$C$16:$C$140,0),AQ$16+1) -> 46.52642571 | AR76: =INDEX(RevReq!$O$16:$BM$140,MATCH('Earning & Infra Combined'!$A76,RevReq!$C$16:$C$140,0),AR$16+1) -> 44.68513622 | AS76: =INDEX(RevReq!$O$16:$BM$140,MATCH('Earning & Infra Combined'!$A76,RevReq!$C$16:$C$140,0),AS$16+1) -> 42.84384672 | AT76: =INDEX(RevReq!$O$16:$BM$140,MATCH('Earning & Infra Combined'!$A76,RevReq!$C$16:$C$140,0),AT$16+1) -> 41.00255723 | AU76: =INDEX(RevReq!$O$16:$BM$140,MATCH('Earning & Infra Combined'!$A76,RevReq!$C$16:$C$140,0),AU$16+1) -> 39.16126774 | AV76: =INDEX(RevReq!$O$16:$BM$140,MATCH('Earning & Infra Combined'!$A76,RevReq!$C$16:$C$140,0),AV$16+1) -> 37.31997825 | AW76: =INDEX(RevReq!$O$16:$BM$140,MATCH('Earning & Infra Combined'!$A76,RevReq!$C$16:$C$140,0),AW$16+1) -> 35.47868875 | AX76: =INDEX(RevReq!$O$16:$BM$140,MATCH('Earning & Infra Combined'!$A76,RevReq!$C$16:$C$140,0),AX$16+1) -> 33.63739926 | AY76: =INDEX(RevReq!$O$16:$BM$140,MATCH('Earning & Infra Combined'!$A76,RevReq!$C$16:$C$140,0),AY$16+1) -> 31.79610977 | AZ76: =INDEX(RevReq!$O$16:$BM$140,MATCH('Earning & Infra Combined'!$A76,RevReq!$C$16:$C$140,0),AZ$16+1) -> 29.95482027 | BA76: =INDEX(RevReq!$O$16:$BM$140,MATCH('Earning & Infra Combined'!$A76,RevReq!$C$16:$C$140,0),BA$16+1) -> 28.11353078 | BB76: =INDEX(RevReq!$O$16:$BM$140,MATCH('Earning & Infra Combined'!$A76,RevReq!$C$16:$C$140,0),BB$16+1) -> 26.27224129 | BC76: =INDEX(RevReq!$O$16:$BM$140,MATCH('Earning & Infra Combined'!$A76,RevReq!$C$16:$C$140,0),BC$16+1) -> 24.43095179 | BD76: =INDEX(RevReq!$O$16:$BM$140,MATCH('Earning & Infra Combined'!$A76,RevReq!$C$16:$C$140,0),BD$16+1) -> 22.5896623 | BE76: =INDEX(RevReq!$O$16:$BM$140,MATCH('Earning & Infra Combined'!$A76,RevReq!$C$16:$C$140,0),BE$16+1) -> 20.74837281 | BF76: =INDEX(RevReq!$O$16:$BM$140,MATCH('Earning & Infra Combined'!$A76,RevReq!$C$16:$C$140,0),BF$16+1) -> 18.90708332 | BG76: =INDEX(RevReq!$O$16:$BM$140,MATCH('Earning & Infra Combined'!$A76,RevReq!$C$16:$C$140,0),BG$16+1) -> 17.06579382 | BH76: =INDEX(RevReq!$O$16:$BM$140,MATCH('Earning & Infra Combined'!$A76,RevReq!$C$16:$C$140,0),BH$16+1) -> 15.22450433 | BI76: =INDEX(RevReq!$O$16:$BM$140,MATCH('Earning & Infra Combined'!$A76,RevReq!$C$16:$C$140,0),BI$16+1) -> 13.38321484 | BJ76: =INDEX(RevReq!$O$16:$BM$140,MATCH('Earning & Infra Combined'!$A76,RevReq!$C$16:$C$140,0),BJ$16+1) -> 4.196852938 | BK76: =INDEX(RevReq!$O$16:$BM$140,MATCH('Earning & Infra Combined'!$A76,RevReq!$C$16:$C$140,0),BK$16+1) -> 4.583342491e-14 | BL76: =INDEX(RevReq!$O$16:$BM$140,MATCH('Earning & Infra Combined'!$A76,RevReq!$C$16:$C$140,0),BL$16+1) -> 4.583342491e-14 | BM76: =INDEX(RevReq!$O$16:$BM$140,MATCH('Earning & Infra Combined'!$A76,RevReq!$C$16:$C$140,0),BM$16+1) -> 4.583342491e-14 | BN76: =INDEX(RevReq!$O$16:$BM$140,MATCH('Earning & Infra Combined'!$A76,RevReq!$C$16:$C$140,0),BN$16+1) -> 4.583342491e-14 | BO76: =INDEX(RevReq!$O$16:$BM$140,MATCH('Earning & Infra Combined'!$A76,RevReq!$C$16:$C$140,0),BO$16+1) -> 4.583342491e-14 | BP76: =INDEX(RevReq!$O$16:$BM$140,MATCH('Earning & Infra Combined'!$A76,RevReq!$C$16:$C$140,0),BP$16+1) -> 4.583342491e-14 | BQ76: =INDEX(RevReq!$O$16:$BM$140,MATCH('Earning & Infra Combined'!$A76,RevReq!$C$16:$C$140,0),BQ$16+1) -> 4.583342491e-14 | BR76: =INDEX(RevReq!$O$16:$BM$140,MATCH('Earning & Infra Combined'!$A76,RevReq!$C$16:$C$140,0),BR$16+1) -> 4.583342491e-14 | BS76: =INDEX(RevReq!$O$16:$BM$140,MATCH('Earning & Infra Combined'!$A76,RevReq!$C$16:$C$140,0),BS$16+1) -> 4.583342491e-14 | BT76: =INDEX(RevReq!$O$16:$BM$140,MATCH('Earning & Infra Combined'!$A76,RevReq!$C$16:$C$140,0),BT$16+1) -> 4.583342491e-14 | BU76: =INDEX(RevReq!$O$16:$BM$140,MATCH('Earning & Infra Combined'!$A76,RevReq!$C$16:$C$140,0),BU$16+1) -> 4.583342491e-14 | BV76: =INDEX(RevReq!$O$16:$BM$140,MATCH('Earning & Infra Combined'!$A76,RevReq!$C$16:$C$140,0),BV$16+1) -> 4.583342491e-14 | BW76: =INDEX(RevReq!$O$16:$BM$140,MATCH('Earning & Infra Combined'!$A76,RevReq!$C$16:$C$140,0),BW$16+1) -> 4.583342491e-14 | BX76: =INDEX(RevReq!$O$16:$BM$140,MATCH('Earning & Infra Combined'!$A76,RevReq!$C$16:$C$140,0),BX$16+1) -> 4.583342491e-14 | BY76: =INDEX(RevReq!$O$16:$BM$140,MATCH('Earning & Infra Combined'!$A76,RevReq!$C$16:$C$140,0),BY$16+1) -> 4.583342491e-14 | BZ76: =INDEX(RevReq!$O$16:$BM$140,MATCH('Earning & Infra Combined'!$A76,RevReq!$C$16:$C$140,0),BZ$16+1) -> 4.583342491e-14
A77: =MAX($A$18:A76)+1 -> 35 | B77: ='Earning Summary w. AFUDC'!B77 -> Engineering & Construction | C77: FPL Solar | D77: ='Earning Summary w. AFUDC'!D77 -> 2021 | E77: ='Earning Summary w. AFUDC'!E77 -> 2021-01-01 | F77: ='Earning Summary w. AFUDC'!G77 -> 2022-12-01 | G77: ='Earning Summary w. AFUDC'!H77 -> 0.034 | H77: ='Earning Summary w. AFUDC'!I77 -> 0.955404 | K77: ='Earning Summary w. AFUDC'!L77 -> Unidentified Future Solar - 2022 | L77: ='Earning Summary w. AFUDC'!M77 -> 202212 | M77: ='Earning Summary w. AFUDC'!N77 -> 0.034 | N77: ='Earning Summary w. AFUDC'!O77 -> 0.955404 | O77: ='Earning Summary w. AFUDC'!P77 -> 0 | P77: ='Earning Summary w. AFUDC'!Q77 -> 0 | Q77: ='Earning Summary w. AFUDC'!R77 -> 0 | R77: ='Earning Summary w. AFUDC'!S77 -> 0 | S77: ='Earning Summary w. AFUDC'!T77 -> 42.27115699 | T77: ='Earning Summary w. AFUDC'!U77 -> 817.2817201 | U77: ='Earning Summary w. AFUDC'!V77 -> 0 | X77: 732.5090031 | Y77: 766.7007916 | Z77: 1872.364405 | AB77: =INDEX(RevReq!$O$16:$BM$140,MATCH('Earning & Infra Combined'!$A77,RevReq!$C$16:$C$140,0),AB$16+1) -> 0 | AC77: =INDEX(RevReq!$O$16:$BM$140,MATCH('Earning & Infra Combined'!$A77,RevReq!$C$16:$C$140,0),AC$16+1) -> 0 | AD77: =INDEX(RevReq!$O$16:$BM$140,MATCH('Earning & Infra Combined'!$A77,RevReq!$C$16:$C$140,0),AD$16+1) -> 0 | AE77: =INDEX(RevReq!$O$16:$BM$140,MATCH('Earning & Infra Combined'!$A77,RevReq!$C$16:$C$140,0),AE$16+1) -> 0 | AF77: =INDEX(RevReq!$O$16:$BM$140,MATCH('Earning & Infra Combined'!$A77,RevReq!$C$16:$C$140,0),AF$16+1) -> 0 | AG77: =INDEX(RevReq!$O$16:$BM$140,MATCH('Earning & Infra Combined'!$A77,RevReq!$C$16:$C$140,0),AG$16+1) -> 8.791420175 | AH77: =INDEX(RevReq!$O$16:$BM$140,MATCH('Earning & Infra Combined'!$A77,RevReq!$C$16:$C$140,0),AH$16+1) -> 105.2515812 | AI77: =INDEX(RevReq!$O$16:$BM$140,MATCH('Earning & Infra Combined'!$A77,RevReq!$C$16:$C$140,0),AI$16+1) -> 102.3060498 | AJ77: =INDEX(RevReq!$O$16:$BM$140,MATCH('Earning & Infra Combined'!$A77,RevReq!$C$16:$C$140,0),AJ$16+1) -> 99.36051846 | AK77: =INDEX(RevReq!$O$16:$BM$140,MATCH('Earning & Infra Combined'!$A77,RevReq!$C$16:$C$140,0),AK$16+1) -> 96.41498711 | AL77: =INDEX(RevReq!$O$16:$BM$140,MATCH('Earning & Infra Combined'!$A77,RevReq!$C$16:$C$140,0),AL$16+1) -> 93.46945577 | AM77: =INDEX(RevReq!$O$16:$BM$140,MATCH('Earning & Infra Combined'!$A77,RevReq!$C$16:$C$140,0),AM$16+1) -> 90.52392442 | AN77: =INDEX(RevReq!$O$16:$BM$140,MATCH('Earning & Infra Combined'!$A77,RevReq!$C$16:$C$140,0),AN$16+1) -> 87.57839308 | AO77: =INDEX(RevReq!$O$16:$BM$140,MATCH('Earning & Infra Combined'!$A77,RevReq!$C$16:$C$140,0),AO$16+1) -> 84.63286173 | AP77: =INDEX(RevReq!$O$16:$BM$140,MATCH('Earning & Infra Combined'!$A77,RevReq!$C$16:$C$140,0),AP$16+1) -> 81.68733038 | AQ77: =INDEX(RevReq!$O$16:$BM$140,MATCH('Earning & Infra Combined'!$A77,RevReq!$C$16:$C$140,0),AQ$16+1) -> 78.74179904 | AR77: =INDEX(RevReq!$O$16:$BM$140,MATCH('Earning & Infra Combined'!$A77,RevReq!$C$16:$C$140,0),AR$16+1) -> 75.79626769 | AS77: =INDEX(RevReq!$O$16:$BM$140,MATCH('Earning & Infra Combined'!$A77,RevReq!$C$16:$C$140,0),AS$16+1) -> 72.85073635 | AT77: =INDEX(RevReq!$O$16:$BM$140,MATCH('Earning & Infra Combined'!$A77,RevReq!$C$16:$C$140,0),AT$16+1) -> 69.905205 | AU77: =INDEX(RevReq!$O$16:$BM$140,MATCH('Earning & Infra Combined'!$A77,RevReq!$C$16:$C$140,0),AU$16+1) -> 66.95967366 | AV77: =INDEX(RevReq!$O$16:$BM$140,MATCH('Earning & Infra Combined'!$A77,RevReq!$C$16:$C$140,0),AV$16+1) -> 64.01414231 | AW77: =INDEX(RevReq!$O$16:$BM$140,MATCH('Earning & Infra Combined'!$A77,RevReq!$C$16:$C$140,0),AW$16+1) -> 61.06861096 | AX77: =INDEX(RevReq!$O$16:$BM$140,MATCH('Earning & Infra Combined'!$A77,RevReq!$C$16:$C$140,0),AX$16+1) -> 58.12307962 | AY77: =INDEX(RevReq!$O$16:$BM$140,MATCH('Earning & Infra Combined'!$A77,RevReq!$C$16:$C$140,0),AY$16+1) -> 55.17754827 | AZ77: =INDEX(RevReq!$O$16:$BM$140,MATCH('Earning & Infra Combined'!$A77,RevReq!$C$16:$C$140,0),AZ$16+1) -> 52.23201693 | BA77: =INDEX(RevReq!$O$16:$BM$140,MATCH('Earning & Infra Combined'!$A77,RevReq!$C$16:$C$140,0),BA$16+1) -> 49.28648558 | BB77: =INDEX(RevReq!$O$16:$BM$140,MATCH('Earning & Infra Combined'!$A77,RevReq!$C$16:$C$140,0),BB$16+1) -> 46.34095423 | BC77: =INDEX(RevReq!$O$16:$BM$140,MATCH('Earning & Infra Combined'!$A77,RevReq!$C$16:$C$140,0),BC$16+1) -> 43.39542289 | BD77: =INDEX(RevReq!$O$16:$BM$140,MATCH('Earning & Infra Combined'!$A77,RevReq!$C$16:$C$140,0),BD$16+1) -> 40.44989154 | BE77: =INDEX(RevReq!$O$16:$BM$140,MATCH('Earning & Infra Combined'!$A77,RevReq!$C$16:$C$140,0),BE$16+1) -> 37.5043602 | BF77: =INDEX(RevReq!$O$16:$BM$140,MATCH('Earning & Infra Combined'!$A77,RevReq!$C$16:$C$140,0),BF$16+1) -> 34.55882885 | BG77: =INDEX(RevReq!$O$16:$BM$140,MATCH('Earning & Infra Combined'!$A77,RevReq!$C$16:$C$140,0),BG$16+1) -> 31.61329751 | BH77: =INDEX(RevReq!$O$16:$BM$140,MATCH('Earning & Infra Combined'!$A77,RevReq!$C$16:$C$140,0),BH$16+1) -> 28.66776616 | BI77: =INDEX(RevReq!$O$16:$BM$140,MATCH('Earning & Infra Combined'!$A77,RevReq!$C$16:$C$140,0),BI$16+1) -> 25.72223481 | BJ77: =INDEX(RevReq!$O$16:$BM$140,MATCH('Earning & Infra Combined'!$A77,RevReq!$C$16:$C$140,0),BJ$16+1) -> 22.77670347 | BK77: =INDEX(RevReq!$O$16:$BM$140,MATCH('Earning & Infra Combined'!$A77,RevReq!$C$16:$C$140,0),BK$16+1) -> 7.162857862 | BL77: =INDEX(RevReq!$O$16:$BM$140,MATCH('Earning & Infra Combined'!$A77,RevReq!$C$16:$C$140,0),BL$16+1) -> 1.031252061e-13 | BM77: =INDEX(RevReq!$O$16:$BM$140,MATCH('Earning & Infra Combined'!$A77,RevReq!$C$16:$C$140,0),BM$16+1) -> 1.031252061e-13 | BN77: =INDEX(RevReq!$O$16:$BM$140,MATCH('Earning & Infra Combined'!$A77,RevReq!$C$16:$C$140,0),BN$16+1) -> 1.031252061e-13 | BO77: =INDEX(RevReq!$O$16:$BM$140,MATCH('Earning & Infra Combined'!$A77,RevReq!$C$16:$C$140,0),BO$16+1) -> 1.031252061e-13 | BP77: =INDEX(RevReq!$O$16:$BM$140,MATCH('Earning & Infra Combined'!$A77,RevReq!$C$16:$C$140,0),BP$16+1) -> 1.031252061e-13 | BQ77: =INDEX(RevReq!$O$16:$BM$140,MATCH('Earning & Infra Combined'!$A77,RevReq!$C$16:$C$140,0),BQ$16+1) -> 1.031252061e-13 | BR77: =INDEX(RevReq!$O$16:$BM$140,MATCH('Earning & Infra Combined'!$A77,RevReq!$C$16:$C$140,0),BR$16+1) -> 1.031252061e-13 | BS77: =INDEX(RevReq!$O$16:$BM$140,MATCH('Earning & Infra Combined'!$A77,RevReq!$C$16:$C$140,0),BS$16+1) -> 1.031252061e-13 | BT77: =INDEX(RevReq!$O$16:$BM$140,MATCH('Earning & Infra Combined'!$A77,RevReq!$C$16:$C$140,0),BT$16+1) -> 1.031252061e-13 | BU77: =INDEX(RevReq!$O$16:$BM$140,MATCH('Earning & Infra Combined'!$A77,RevReq!$C$16:$C$140,0),BU$16+1) -> 1.031252061e-13 | BV77: =INDEX(RevReq!$O$16:$BM$140,MATCH('Earning & Infra Combined'!$A77,RevReq!$C$16:$C$140,0),BV$16+1) -> 1.031252061e-13 | BW77: =INDEX(RevReq!$O$16:$BM$140,MATCH('Earning & Infra Combined'!$A77,RevReq!$C$16:$C$140,0),BW$16+1) -> 1.031252061e-13 | BX77: =INDEX(RevReq!$O$16:$BM$140,MATCH('Earning & Infra Combined'!$A77,RevReq!$C$16:$C$140,0),BX$16+1) -> 1.031252061e-13 | BY77: =INDEX(RevReq!$O$16:$BM$140,MATCH('Earning & Infra Combined'!$A77,RevReq!$C$16:$C$140,0),BY$16+1) -> 1.031252061e-13 | BZ77: =INDEX(RevReq!$O$16:$BM$140,MATCH('Earning & Infra Combined'!$A77,RevReq!$C$16:$C$140,0),BZ$16+1) -> 1.031252061e-13
A78: =MAX($A$18:A77)+1 -> 36 | B78: ='Earning Summary w. AFUDC'!B78 -> Engineering & Construction | C78: FPL Solar | D78: ='Earning Summary w. AFUDC'!D78 -> 2020 | E78: ='Earning Summary w. AFUDC'!E78 -> 2020-01-01 | F78: ='Earning Summary w. AFUDC'!G78 -> 2023-12-01 | G78: ='Earning Summary w. AFUDC'!H78 -> 0.034 | H78: ='Earning Summary w. AFUDC'!I78 -> 0.955404 | K78: ='Earning Summary w. AFUDC'!L78 -> Unidentified Future Solar - 2023 | L78: ='Earning Summary w. AFUDC'!M78 -> 202312 | M78: ='Earning Summary w. AFUDC'!N78 -> 0.034 | N78: ='Earning Summary w. AFUDC'!O78 -> 0.955404 | O78: ='Earning Summary w. AFUDC'!P78 -> 0 | P78: ='Earning Summary w. AFUDC'!Q78 -> 0 | Q78: ='Earning Summary w. AFUDC'!R78 -> 0 | R78: ='Earning Summary w. AFUDC'!S78 -> 0.0064401 | S78: ='Earning Summary w. AFUDC'!T78 -> 0 | T78: ='Earning Summary w. AFUDC'!U78 -> 36.01699811 | U78: ='Earning Summary w. AFUDC'!V78 -> 698.3251894 | X78: 592.1863588 | Y78: 619.828218 | Z78: 1633.992033 | AB78: =INDEX(RevReq!$O$16:$BM$140,MATCH('Earning & Infra Combined'!$A78,RevReq!$C$16:$C$140,0),AB$16+1) -> 0 | AC78: =INDEX(RevReq!$O$16:$BM$140,MATCH('Earning & Infra Combined'!$A78,RevReq!$C$16:$C$140,0),AC$16+1) -> 0 | AD78: =INDEX(RevReq!$O$16:$BM$140,MATCH('Earning & Infra Combined'!$A78,RevReq!$C$16:$C$140,0),AD$16+1) -> 0 | AE78: =INDEX(RevReq!$O$16:$BM$140,MATCH('Earning & Infra Combined'!$A78,RevReq!$C$16:$C$140,0),AE$16+1) -> 0 | AF78: =INDEX(RevReq!$O$16:$BM$140,MATCH('Earning & Infra Combined'!$A78,RevReq!$C$16:$C$140,0),AF$16+1) -> 0 | AG78: =INDEX(RevReq!$O$16:$BM$140,MATCH('Earning & Infra Combined'!$A78,RevReq!$C$16:$C$140,0),AG$16+1) -> 0 | AH78: =INDEX(RevReq!$O$16:$BM$140,MATCH('Earning & Infra Combined'!$A78,RevReq!$C$16:$C$140,0),AH$16+1) -> 7.608197347 | AI78: =INDEX(RevReq!$O$16:$BM$140,MATCH('Earning & Infra Combined'!$A78,RevReq!$C$16:$C$140,0),AI$16+1) -> 91.08866156 | AJ78: =INDEX(RevReq!$O$16:$BM$140,MATCH('Earning & Infra Combined'!$A78,RevReq!$C$16:$C$140,0),AJ$16+1) -> 88.5721824 | AK78: =INDEX(RevReq!$O$16:$BM$140,MATCH('Earning & Infra Combined'!$A78,RevReq!$C$16:$C$140,0),AK$16+1) -> 86.05570325 | AL78: =INDEX(RevReq!$O$16:$BM$140,MATCH('Earning & Infra Combined'!$A78,RevReq!$C$16:$C$140,0),AL$16+1) -> 83.53922409 | AM78: =INDEX(RevReq!$O$16:$BM$140,MATCH('Earning & Infra Combined'!$A78,RevReq!$C$16:$C$140,0),AM$16+1) -> 81.02274493 | AN78: =INDEX(RevReq!$O$16:$BM$140,MATCH('Earning & Infra Combined'!$A78,RevReq!$C$16:$C$140,0),AN$16+1) -> 78.50626577 | AO78: =INDEX(RevReq!$O$16:$BM$140,MATCH('Earning & Infra Combined'!$A78,RevReq!$C$16:$C$140,0),AO$16+1) -> 75.98978661 | AP78: =INDEX(RevReq!$O$16:$BM$140,MATCH('Earning & Infra Combined'!$A78,RevReq!$C$16:$C$140,0),AP$16+1) -> 73.47330745 | AQ78: =INDEX(RevReq!$O$16:$BM$140,MATCH('Earning & Infra Combined'!$A78,RevReq!$C$16:$C$140,0),AQ$16+1) -> 70.95682829 | AR78: =INDEX(RevReq!$O$16:$BM$140,MATCH('Earning & Infra Combined'!$A78,RevReq!$C$16:$C$140,0),AR$16+1) -> 68.44034913 | AS78: =INDEX(RevReq!$O$16:$BM$140,MATCH('Earning & Infra Combined'!$A78,RevReq!$C$16:$C$140,0),AS$16+1) -> 65.92386997 | AT78: =INDEX(RevReq!$O$16:$BM$140,MATCH('Earning & Infra Combined'!$A78,RevReq!$C$16:$C$140,0),AT$16+1) -> 63.40739081 | AU78: =INDEX(RevReq!$O$16:$BM$140,MATCH('Earning & Infra Combined'!$A78,RevReq!$C$16:$C$140,0),AU$16+1) -> 60.89091165 | AV78: =INDEX(RevReq!$O$16:$BM$140,MATCH('Earning & Infra Combined'!$A78,RevReq!$C$16:$C$140,0),AV$16+1) -> 58.37443249 | AW78: =INDEX(RevReq!$O$16:$BM$140,MATCH('Earning & Infra Combined'!$A78,RevReq!$C$16:$C$140,0),AW$16+1) -> 55.85795334 | AX78: =INDEX(RevReq!$O$16:$BM$140,MATCH('Earning & Infra Combined'!$A78,RevReq!$C$16:$C$140,0),AX$16+1) -> 53.34147418 | AY78: =INDEX(RevReq!$O$16:$BM$140,MATCH('Earning & Infra Combined'!$A78,RevReq!$C$16:$C$140,0),AY$16+1) -> 50.82499502 | AZ78: =INDEX(RevReq!$O$16:$BM$140,MATCH('Earning & Infra Combined'!$A78,RevReq!$C$16:$C$140,0),AZ$16+1) -> 48.30851586 | BA78: =INDEX(RevReq!$O$16:$BM$140,MATCH('Earning & Infra Combined'!$A78,RevReq!$C$16:$C$140,0),BA$16+1) -> 45.7920367 | BB78: =INDEX(RevReq!$O$16:$BM$140,MATCH('Earning & Infra Combined'!$A78,RevReq!$C$16:$C$140,0),BB$16+1) -> 43.27555754 | BC78: =INDEX(RevReq!$O$16:$BM$140,MATCH('Earning & Infra Combined'!$A78,RevReq!$C$16:$C$140,0),BC$16+1) -> 40.75907838 | BD78: =INDEX(RevReq!$O$16:$BM$140,MATCH('Earning & Infra Combined'!$A78,RevReq!$C$16:$C$140,0),BD$16+1) -> 38.24259922 | BE78: =INDEX(RevReq!$O$16:$BM$140,MATCH('Earning & Infra Combined'!$A78,RevReq!$C$16:$C$140,0),BE$16+1) -> 35.72612006 | BF78: =INDEX(RevReq!$O$16:$BM$140,MATCH('Earning & Infra Combined'!$A78,RevReq!$C$16:$C$140,0),BF$16+1) -> 33.2096409 | BG78: =INDEX(RevReq!$O$16:$BM$140,MATCH('Earning & Infra Combined'!$A78,RevReq!$C$16:$C$140,0),BG$16+1) -> 30.69316174 | BH78: =INDEX(RevReq!$O$16:$BM$140,MATCH('Earning & Infra Combined'!$A78,RevReq!$C$16:$C$140,0),BH$16+1) -> 28.17668259 | BI78: =INDEX(RevReq!$O$16:$BM$140,MATCH('Earning & Infra Combined'!$A78,RevReq!$C$16:$C$140,0),BI$16+1) -> 25.66020343 | BJ78: =INDEX(RevReq!$O$16:$BM$140,MATCH('Earning & Infra Combined'!$A78,RevReq!$C$16:$C$140,0),BJ$16+1) -> 23.14372427 | BK78: =INDEX(RevReq!$O$16:$BM$140,MATCH('Earning & Infra Combined'!$A78,RevReq!$C$16:$C$140,0),BK$16+1) -> 20.62724511 | BL78: =INDEX(RevReq!$O$16:$BM$140,MATCH('Earning & Infra Combined'!$A78,RevReq!$C$16:$C$140,0),BL$16+1) -> 6.503188946 | BM78: =INDEX(RevReq!$O$16:$BM$140,MATCH('Earning & Infra Combined'!$A78,RevReq!$C$16:$C$140,0),BM$16+1) -> 8.02084936e-14 | BN78: =INDEX(RevReq!$O$16:$BM$140,MATCH('Earning & Infra Combined'!$A78,RevReq!$C$16:$C$140,0),BN$16+1) -> 8.02084936e-14 | BO78: =INDEX(RevReq!$O$16:$BM$140,MATCH('Earning & Infra Combined'!$A78,RevReq!$C$16:$C$140,0),BO$16+1) -> 8.02084936e-14 | BP78: =INDEX(RevReq!$O$16:$BM$140,MATCH('Earning & Infra Combined'!$A78,RevReq!$C$16:$C$140,0),BP$16+1) -> 8.02084936e-14 | BQ78: =INDEX(RevReq!$O$16:$BM$140,MATCH('Earning & Infra Combined'!$A78,RevReq!$C$16:$C$140,0),BQ$16+1) -> 8.02084936e-14 | BR78: =INDEX(RevReq!$O$16:$BM$140,MATCH('Earning & Infra Combined'!$A78,RevReq!$C$16:$C$140,0),BR$16+1) -> 8.02084936e-14 | BS78: =INDEX(RevReq!$O$16:$BM$140,MATCH('Earning & Infra Combined'!$A78,RevReq!$C$16:$C$140,0),BS$16+1) -> 8.02084936e-14 | BT78: =INDEX(RevReq!$O$16:$BM$140,MATCH('Earning & Infra Combined'!$A78,RevReq!$C$16:$C$140,0),BT$16+1) -> 8.02084936e-14 | BU78: =INDEX(RevReq!$O$16:$BM$140,MATCH('Earning & Infra Combined'!$A78,RevReq!$C$16:$C$140,0),BU$16+1) -> 8.02084936e-14 | BV78: =INDEX(RevReq!$O$16:$BM$140,MATCH('Earning & Infra Combined'!$A78,RevReq!$C$16:$C$140,0),BV$16+1) -> 8.02084936e-14 | BW78: =INDEX(RevReq!$O$16:$BM$140,MATCH('Earning & Infra Combined'!$A78,RevReq!$C$16:$C$140,0),BW$16+1) -> 8.02084936e-14 | BX78: =INDEX(RevReq!$O$16:$BM$140,MATCH('Earning & Infra Combined'!$A78,RevReq!$C$16:$C$140,0),BX$16+1) -> 8.02084936e-14 | BY78: =INDEX(RevReq!$O$16:$BM$140,MATCH('Earning & Infra Combined'!$A78,RevReq!$C$16:$C$140,0),BY$16+1) -> 8.02084936e-14 | BZ78: =INDEX(RevReq!$O$16:$BM$140,MATCH('Earning & Infra Combined'!$A78,RevReq!$C$16:$C$140,0),BZ$16+1) -> 8.02084936e-14
A79: =MAX($A$18:A78)+1 -> 37 | B79: ='Earning Summary w. AFUDC'!B79 -> Engineering & Construction | C79: FPL Solar | D79: ='Earning Summary w. AFUDC'!D79 -> 2023 | E79: ='Earning Summary w. AFUDC'!E79 -> 2023-01-01 | F79: ='Earning Summary w. AFUDC'!G79 -> 2024-12-01 | G79: ='Earning Summary w. AFUDC'!H79 -> 0.034 | H79: ='Earning Summary w. AFUDC'!I79 -> 0.955404 | K79: ='Earning Summary w. AFUDC'!L79 -> Unidentified Future Solar - 2024 | L79: ='Earning Summary w. AFUDC'!M79 -> 202412 | M79: ='Earning Summary w. AFUDC'!N79 -> 0.034 | N79: ='Earning Summary w. AFUDC'!O79 -> 0.955404 | O79: ='Earning Summary w. AFUDC'!P79 -> 0 | P79: ='Earning Summary w. AFUDC'!Q79 -> 0 | Q79: ='Earning Summary w. AFUDC'!R79 -> 0 | R79: ='Earning Summary w. AFUDC'!S79 -> 0 | S79: ='Earning Summary w. AFUDC'!T79 -> 0 | T79: ='Earning Summary w. AFUDC'!U79 -> 0 | U79: ='Earning Summary w. AFUDC'!V79 -> 26.41227433 | X79: 20.83163135 | Y79: 21.80400265 | Z79: 62.47717935 | AB79: =INDEX(RevReq!$O$16:$BM$140,MATCH('Earning & Infra Combined'!$A79,RevReq!$C$16:$C$140,0),AB$16+1) -> 0 | AC79: =INDEX(RevReq!$O$16:$BM$140,MATCH('Earning & Infra Combined'!$A79,RevReq!$C$16:$C$140,0),AC$16+1) -> 0 | AD79: =INDEX(RevReq!$O$16:$BM$140,MATCH('Earning & Infra Combined'!$A79,RevReq!$C$16:$C$140,0),AD$16+1) -> 0 | AE79: =INDEX(RevReq!$O$16:$BM$140,MATCH('Earning & Infra Combined'!$A79,RevReq!$C$16:$C$140,0),AE$16+1) -> 0 | AF79: =INDEX(RevReq!$O$16:$BM$140,MATCH('Earning & Infra Combined'!$A79,RevReq!$C$16:$C$140,0),AF$16+1) -> 0 | AG79: =INDEX(RevReq!$O$16:$BM$140,MATCH('Earning & Infra Combined'!$A79,RevReq!$C$16:$C$140,0),AG$16+1) -> 0 | AH79: =INDEX(RevReq!$O$16:$BM$140,MATCH('Earning & Infra Combined'!$A79,RevReq!$C$16:$C$140,0),AH$16+1) -> 0 | AI79: =INDEX(RevReq!$O$16:$BM$140,MATCH('Earning & Infra Combined'!$A79,RevReq!$C$16:$C$140,0),AI$16+1) -> 0.2841481263 | AJ79: =INDEX(RevReq!$O$16:$BM$140,MATCH('Earning & Infra Combined'!$A79,RevReq!$C$16:$C$140,0),AJ$16+1) -> 3.40223501 | AK79: =INDEX(RevReq!$O$16:$BM$140,MATCH('Earning & Infra Combined'!$A79,RevReq!$C$16:$C$140,0),AK$16+1) -> 3.311724951 | AL79: =INDEX(RevReq!$O$16:$BM$140,MATCH('Earning & Infra Combined'!$A79,RevReq!$C$16:$C$140,0),AL$16+1) -> 3.221214891 | AM79: =INDEX(RevReq!$O$16:$BM$140,MATCH('Earning & Infra Combined'!$A79,RevReq!$C$16:$C$140,0),AM$16+1) -> 3.130704832 | AN79: =INDEX(RevReq!$O$16:$BM$140,MATCH('Earning & Infra Combined'!$A79,RevReq!$C$16:$C$140,0),AN$16+1) -> 3.040194773 | AO79: =INDEX(RevReq!$O$16:$BM$140,MATCH('Earning & Infra Combined'!$A79,RevReq!$C$16:$C$140,0),AO$16+1) -> 2.949684713 | AP79: =INDEX(RevReq!$O$16:$BM$140,MATCH('Earning & Infra Combined'!$A79,RevReq!$C$16:$C$140,0),AP$16+1) -> 2.859174654 | AQ79: =INDEX(RevReq!$O$16:$BM$140,MATCH('Earning & Infra Combined'!$A79,RevReq!$C$16:$C$140,0),AQ$16+1) -> 2.768664594 | AR79: =INDEX(RevReq!$O$16:$BM$140,MATCH('Earning & Infra Combined'!$A79,RevReq!$C$16:$C$140,0),AR$16+1) -> 2.678154535 | AS79: =INDEX(RevReq!$O$16:$BM$140,MATCH('Earning & Infra Combined'!$A79,RevReq!$C$16:$C$140,0),AS$16+1) -> 2.587644476 | AT79: =INDEX(RevReq!$O$16:$BM$140,MATCH('Earning & Infra Combined'!$A79,RevReq!$C$16:$C$140,0),AT$16+1) -> 2.497134416 | AU79: =INDEX(RevReq!$O$16:$BM$140,MATCH('Earning & Infra Combined'!$A79,RevReq!$C$16:$C$140,0),AU$16+1) -> 2.406624357 | AV79: =INDEX(RevReq!$O$16:$BM$140,MATCH('Earning & Infra Combined'!$A79,RevReq!$C$16:$C$140,0),AV$16+1) -> 2.316114297 | AW79: =INDEX(RevReq!$O$16:$BM$140,MATCH('Earning & Infra Combined'!$A79,RevReq!$C$16:$C$140,0),AW$16+1) -> 2.225604238 | AX79: =INDEX(RevReq!$O$16:$BM$140,MATCH('Earning & Infra Combined'!$A79,RevReq!$C$16:$C$140,0),AX$16+1) -> 2.135094179 | AY79: =INDEX(RevReq!$O$16:$BM$140,MATCH('Earning & Infra Combined'!$A79,RevReq!$C$16:$C$140,0),AY$16+1) -> 2.044584119 | AZ79: =INDEX(RevReq!$O$16:$BM$140,MATCH('Earning & Infra Combined'!$A79,RevReq!$C$16:$C$140,0),AZ$16+1) -> 1.95407406 | BA79: =INDEX(RevReq!$O$16:$BM$140,MATCH('Earning & Infra Combined'!$A79,RevReq!$C$16:$C$140,0),BA$16+1) -> 1.863564 | BB79: =INDEX(RevReq!$O$16:$BM$140,MATCH('Earning & Infra Combined'!$A79,RevReq!$C$16:$C$140,0),BB$16+1) -> 1.773053941 | BC79: =INDEX(RevReq!$O$16:$BM$140,MATCH('Earning & Infra Combined'!$A79,RevReq!$C$16:$C$140,0),BC$16+1) -> 1.682543882 | BD79: =INDEX(RevReq!$O$16:$BM$140,MATCH('Earning & Infra Combined'!$A79,RevReq!$C$16:$C$140,0),BD$16+1) -> 1.592033822 | BE79: =INDEX(RevReq!$O$16:$BM$140,MATCH('Earning & Infra Combined'!$A79,RevReq!$C$16:$C$140,0),BE$16+1) -> 1.501523763 | BF79: =INDEX(RevReq!$O$16:$BM$140,MATCH('Earning & Infra Combined'!$A79,RevReq!$C$16:$C$140,0),BF$16+1) -> 1.411013703 | BG79: =INDEX(RevReq!$O$16:$BM$140,MATCH('Earning & Infra Combined'!$A79,RevReq!$C$16:$C$140,0),BG$16+1) -> 1.320503644 | BH79: =INDEX(RevReq!$O$16:$BM$140,MATCH('Earning & Infra Combined'!$A79,RevReq!$C$16:$C$140,0),BH$16+1) -> 1.229993585 | BI79: =INDEX(RevReq!$O$16:$BM$140,MATCH('Earning & Infra Combined'!$A79,RevReq!$C$16:$C$140,0),BI$16+1) -> 1.139483525 | BJ79: =INDEX(RevReq!$O$16:$BM$140,MATCH('Earning & Infra Combined'!$A79,RevReq!$C$16:$C$140,0),BJ$16+1) -> 1.048973466 | BK79: =INDEX(RevReq!$O$16:$BM$140,MATCH('Earning & Infra Combined'!$A79,RevReq!$C$16:$C$140,0),BK$16+1) -> 0.9584634065 | BL79: =INDEX(RevReq!$O$16:$BM$140,MATCH('Earning & Infra Combined'!$A79,RevReq!$C$16:$C$140,0),BL$16+1) -> 0.8679533471 | BM79: =INDEX(RevReq!$O$16:$BM$140,MATCH('Earning & Infra Combined'!$A79,RevReq!$C$16:$C$140,0),BM$16+1) -> 0.2753000455 | BN79: =INDEX(RevReq!$O$16:$BM$140,MATCH('Earning & Infra Combined'!$A79,RevReq!$C$16:$C$140,0),BN$16+1) -> 0 | BO79: =INDEX(RevReq!$O$16:$BM$140,MATCH('Earning & Infra Combined'!$A79,RevReq!$C$16:$C$140,0),BO$16+1) -> 0 | BP79: =INDEX(RevReq!$O$16:$BM$140,MATCH('Earning & Infra Combined'!$A79,RevReq!$C$16:$C$140,0),BP$16+1) -> 0 | BQ79: =INDEX(RevReq!$O$16:$BM$140,MATCH('Earning & Infra Combined'!$A79,RevReq!$C$16:$C$140,0),BQ$16+1) -> 0 | BR79: =INDEX(RevReq!$O$16:$BM$140,MATCH('Earning & Infra Combined'!$A79,RevReq!$C$16:$C$140,0),BR$16+1) -> 0 | BS79: =INDEX(RevReq!$O$16:$BM$140,MATCH('Earning & Infra Combined'!$A79,RevReq!$C$16:$C$140,0),BS$16+1) -> 0 | BT79: =INDEX(RevReq!$O$16:$BM$140,MATCH('Earning & Infra Combined'!$A79,RevReq!$C$16:$C$140,0),BT$16+1) -> 0 | BU79: =INDEX(RevReq!$O$16:$BM$140,MATCH('Earning & Infra Combined'!$A79,RevReq!$C$16:$C$140,0),BU$16+1) -> 0 | BV79: =INDEX(RevReq!$O$16:$BM$140,MATCH('Earning & Infra Combined'!$A79,RevReq!$C$16:$C$140,0),BV$16+1) -> 0 | BW79: =INDEX(RevReq!$O$16:$BM$140,MATCH('Earning & Infra Combined'!$A79,RevReq!$C$16:$C$140,0),BW$16+1) -> 0 | BX79: =INDEX(RevReq!$O$16:$BM$140,MATCH('Earning & Infra Combined'!$A79,RevReq!$C$16:$C$140,0),BX$16+1) -> 0 | BY79: =INDEX(RevReq!$O$16:$BM$140,MATCH('Earning & Infra Combined'!$A79,RevReq!$C$16:$C$140,0),BY$16+1) -> 0 | BZ79: =INDEX(RevReq!$O$16:$BM$140,MATCH('Earning & Infra Combined'!$A79,RevReq!$C$16:$C$140,0),BZ$16+1) -> 0
